{"text_format":"1","workbook":"xlsx","n_sheets":5,"sheets":["Constats projets Entretiens","TODO LIST","suivi des dossiers","Param Constats","Concaténation"],"not_rendered":{"charts":0,"images":0,"macros":1,"external_links":0,"defined_names":5,"comments":0,"pivot_tables":1},"unopened":[],"bounds":{"document_bytes":16777216,"sheet_cells":100000,"rows_first":2000,"rows_last":500,"rows_between":2000,"halvings":0,"cell_chars":16384,"cell_head_chars":4096},"cells_cut":0,"cells_raw":0,"read":"whole","date_system":"1900"}

{"sheet":"Constats projets Entretiens","index":0,"n_rows":97,"n_cols":10,"rows_kept":97,"cut":false,"hidden":false,"merged":[]}
["Domaine","bien","composante","constat/projet","Entretien","Dates prévues","priorité","Localisation","Constat/projet ou Entretien","Loca +  Constat/Projet ou Entretien"]
["ITTRE","Extérieur","abords des bâtiments","barrière en mauvais état, à refaire",null,null,3,{"$f":"Table24[[#This Row],[Domaine]]&\" / \" &Table24[[#This Row],[bien]]&\" / \" &Table24[[#This Row],[composante]]","v":"ITTRE / Extérieur / abords des bâtiments"},{"$f":"IF(Table24[[#This Row],[constat/projet]]=\"\",Table24[[#This Row],[Entretien]],Table24[[#This Row],[constat/projet]])","v":"barrière en mauvais état, à refaire"},{"$f":"Table24[[#This Row],[Localisation]]& \" \" &IF(Table24[[#This Row],[constat/projet]]=\"\",Table24[[#This Row],[Entretien]],Table24[[#This Row],[constat/projet]])","v":"ITTRE / Extérieur / abords des bâtiments barrière en mauvais état, à refaire"}]
["ITTRE","Ensemble du domaine","chemins","eaux dévalent le chemin et entrent dans les bâtiments",null,null,1,{"$f":"Table24[[#This Row],[Domaine]]&\" / \" &Table24[[#This Row],[bien]]&\" / \" &Table24[[#This Row],[composante]]","v":"ITTRE / Ensemble du domaine / chemins"},{"$f":"IF(Table24[[#This Row],[constat/projet]]=\"\",Table24[[#This Row],[Entretien]],Table24[[#This Row],[constat/projet]])","v":"eaux dévalent le chemin et entrent dans les bâtiments"},{"$f":"Table24[[#This Row],[Localisation]]& \" \" &IF(Table24[[#This Row],[constat/projet]]=\"\",Table24[[#This Row],[Entretien]],Table24[[#This Row],[constat/projet]])","v":"ITTRE / Ensemble du domaine / chemins eaux dévalent le chemin et entrent dans les bâtiments"}]
["ITTRE","Intérieur","réfectoire","idée de faire un étage pour gagner en place",null,null,3,{"$f":"Table24[[#This Row],[Domaine]]&\" / \" &Table24[[#This Row],[bien]]&\" / \" &Table24[[#This Row],[composante]]","v":"ITTRE / Intérieur / réfectoire"},{"$f":"IF(Table24[[#This Row],[constat/projet]]=\"\",Table24[[#This Row],[Entretien]],Table24[[#This Row],[constat/projet]])","v":"idée de faire un étage pour gagner en place"},{"$f":"Table24[[#This Row],[Localisation]]& \" \" &IF(Table24[[#This Row],[constat/projet]]=\"\",Table24[[#This Row],[Entretien]],Table24[[#This Row],[constat/projet]])","v":"ITTRE / Intérieur / réfectoire idée de faire un étage pour gagner en place"}]
["ITTRE","Intérieur","sanitaires","besoin de désamianter ?",null,null,3,{"$f":"Table24[[#This Row],[Domaine]]&\" / \" &Table24[[#This Row],[bien]]&\" / \" &Table24[[#This Row],[composante]]","v":"ITTRE / Intérieur / sanitaires"},{"$f":"IF(Table24[[#This Row],[constat/projet]]=\"\",Table24[[#This Row],[Entretien]],Table24[[#This Row],[constat/projet]])","v":"besoin de désamianter ?"},{"$f":"Table24[[#This Row],[Localisation]]& \" \" &IF(Table24[[#This Row],[constat/projet]]=\"\",Table24[[#This Row],[Entretien]],Table24[[#This Row],[constat/projet]])","v":"ITTRE / Intérieur / sanitaires besoin de désamianter ?"}]
["ITTRE","Intérieur","sanitaires","retaper les douches et wc",null,null,3,{"$f":"Table24[[#This Row],[Domaine]]&\" / \" &Table24[[#This Row],[bien]]&\" / \" &Table24[[#This Row],[composante]]","v":"ITTRE / Intérieur / sanitaires"},{"$f":"IF(Table24[[#This Row],[constat/projet]]=\"\",Table24[[#This Row],[Entretien]],Table24[[#This Row],[constat/projet]])","v":"retaper les douches et wc"},{"$f":"Table24[[#This Row],[Localisation]]& \" \" &IF(Table24[[#This Row],[constat/projet]]=\"\",Table24[[#This Row],[Entretien]],Table24[[#This Row],[constat/projet]])","v":"ITTRE / Intérieur / sanitaires retaper les douches et wc"}]
["ITTRE","Intérieur","cuisine","POMPIER : placer une hotte",null,null,1,{"$f":"Table24[[#This Row],[Domaine]]&\" / \" &Table24[[#This Row],[bien]]&\" / \" &Table24[[#This Row],[composante]]","v":"ITTRE / Intérieur / cuisine"},{"$f":"IF(Table24[[#This Row],[constat/projet]]=\"\",Table24[[#This Row],[Entretien]],Table24[[#This Row],[constat/projet]])","v":"POMPIER : placer une hotte"},{"$f":"Table24[[#This Row],[Localisation]]& \" \" &IF(Table24[[#This Row],[constat/projet]]=\"\",Table24[[#This Row],[Entretien]],Table24[[#This Row],[constat/projet]])","v":"ITTRE / Intérieur / cuisine POMPIER : placer une hotte"}]
["ITTRE","Extérieur","prairie",null,"tondre ITTRE","2016-06-01",{"$f":"IF(Table24[[#This Row],[Dates prévues]]=\"\",\"\", IF(Table24[[#This Row],[Dates prévues]]-15<TODAY(),1,3) )","v":3},{"$f":"Table24[[#This Row],[Domaine]]&\" / \" &Table24[[#This Row],[bien]]&\" / \" &Table24[[#This Row],[composante]]","v":"ITTRE / Extérieur / prairie"},{"$f":"IF(Table24[[#This Row],[constat/projet]]=\"\",Table24[[#This Row],[Entretien]],Table24[[#This Row],[constat/projet]])","v":"tondre ITTRE"},{"$f":"Table24[[#This Row],[Localisation]]& \" \" &IF(Table24[[#This Row],[constat/projet]]=\"\",Table24[[#This Row],[Entretien]],Table24[[#This Row],[constat/projet]])","v":"ITTRE / Extérieur / prairie tondre ITTRE"}]
["PDH 38","caves","chaudière et chauffage","chaudière instable, s'éteint tout le temps",null,null,1,{"$f":"Table24[[#This Row],[Domaine]]&\" / \" &Table24[[#This Row],[bien]]&\" / \" &Table24[[#This Row],[composante]]","v":"PDH 38 / caves / chaudière et chauffage"},{"$f":"IF(Table24[[#This Row],[constat/projet]]=\"\",Table24[[#This Row],[Entretien]],Table24[[#This Row],[constat/projet]])","v":"chaudière instable, s'éteint tout le temps"},{"$f":"Table24[[#This Row],[Localisation]]& \" \" &IF(Table24[[#This Row],[constat/projet]]=\"\",Table24[[#This Row],[Entretien]],Table24[[#This Row],[constat/projet]])","v":"PDH 38 / caves / chaudière et chauffage chaudière instable, s'éteint tout le temps"}]
["PDH 38","Rez","pièce à rue","changer les chassis",null,null,3,{"$f":"Table24[[#This Row],[Domaine]]&\" / \" &Table24[[#This Row],[bien]]&\" / \" &Table24[[#This Row],[composante]]","v":"PDH 38 / Rez / pièce à rue"},{"$f":"IF(Table24[[#This Row],[constat/projet]]=\"\",Table24[[#This Row],[Entretien]],Table24[[#This Row],[constat/projet]])","v":"changer les chassis"},{"$f":"Table24[[#This Row],[Localisation]]& \" \" &IF(Table24[[#This Row],[constat/projet]]=\"\",Table24[[#This Row],[Entretien]],Table24[[#This Row],[constat/projet]])","v":"PDH 38 / Rez / pièce à rue changer les chassis"}]
["PDH 38","caves","archives","ARCHIVES : créer un tableau de tri",null,null,2,{"$f":"Table24[[#This Row],[Domaine]]&\" / \" &Table24[[#This Row],[bien]]&\" / \" &Table24[[#This Row],[composante]]","v":"PDH 38 / caves / archives"},{"$f":"IF(Table24[[#This Row],[constat/projet]]=\"\",Table24[[#This Row],[Entretien]],Table24[[#This Row],[constat/projet]])","v":"ARCHIVES : créer un tableau de tri"},{"$f":"Table24[[#This Row],[Localisation]]& \" \" &IF(Table24[[#This Row],[constat/projet]]=\"\",Table24[[#This Row],[Entretien]],Table24[[#This Row],[constat/projet]])","v":"PDH 38 / caves / archives ARCHIVES : créer un tableau de tri"}]
["PDH 38","caves","archives","ARCHIVES : trier et classer",null,null,2,{"$f":"Table24[[#This Row],[Domaine]]&\" / \" &Table24[[#This Row],[bien]]&\" / \" &Table24[[#This Row],[composante]]","v":"PDH 38 / caves / archives"},{"$f":"IF(Table24[[#This Row],[constat/projet]]=\"\",Table24[[#This Row],[Entretien]],Table24[[#This Row],[constat/projet]])","v":"ARCHIVES : trier et classer"},{"$f":"Table24[[#This Row],[Localisation]]& \" \" &IF(Table24[[#This Row],[constat/projet]]=\"\",Table24[[#This Row],[Entretien]],Table24[[#This Row],[constat/projet]])","v":"PDH 38 / caves / archives ARCHIVES : trier et classer"}]
["PDH 38","caves","archives","ARCHIVES : trouver un repreneur ?",null,null,2,{"$f":"Table24[[#This Row],[Domaine]]&\" / \" &Table24[[#This Row],[bien]]&\" / \" &Table24[[#This Row],[composante]]","v":"PDH 38 / caves / archives"},{"$f":"IF(Table24[[#This Row],[constat/projet]]=\"\",Table24[[#This Row],[Entretien]],Table24[[#This Row],[constat/projet]])","v":"ARCHIVES : trouver un repreneur ?"},{"$f":"Table24[[#This Row],[Localisation]]& \" \" &IF(Table24[[#This Row],[constat/projet]]=\"\",Table24[[#This Row],[Entretien]],Table24[[#This Row],[constat/projet]])","v":"PDH 38 / caves / archives ARCHIVES : trouver un repreneur ?"}]
["PDH 38","Premier","menuiserie","APPART : changer les chassis",null,null,3,{"$f":"Table24[[#This Row],[Domaine]]&\" / \" &Table24[[#This Row],[bien]]&\" / \" &Table24[[#This Row],[composante]]","v":"PDH 38 / Premier / menuiserie"},{"$f":"IF(Table24[[#This Row],[constat/projet]]=\"\",Table24[[#This Row],[Entretien]],Table24[[#This Row],[constat/projet]])","v":"APPART : changer les chassis"},{"$f":"Table24[[#This Row],[Localisation]]& \" \" &IF(Table24[[#This Row],[constat/projet]]=\"\",Table24[[#This Row],[Entretien]],Table24[[#This Row],[constat/projet]])","v":"PDH 38 / Premier / menuiserie APPART : changer les chassis"}]
["PDH 38","Premier","autre","APPART : traiter les sols",null,null,3,{"$f":"Table24[[#This Row],[Domaine]]&\" / \" &Table24[[#This Row],[bien]]&\" / \" &Table24[[#This Row],[composante]]","v":"PDH 38 / Premier / autre"},{"$f":"IF(Table24[[#This Row],[constat/projet]]=\"\",Table24[[#This Row],[Entretien]],Table24[[#This Row],[constat/projet]])","v":"APPART : traiter les sols"},{"$f":"Table24[[#This Row],[Localisation]]& \" \" &IF(Table24[[#This Row],[constat/projet]]=\"\",Table24[[#This Row],[Entretien]],Table24[[#This Row],[constat/projet]])","v":"PDH 38 / Premier / autre APPART : traiter les sols"}]
["PDH 38","Premier","appartement (cuisine)","APPART : carreler la cuisine",null,null,3,{"$f":"Table24[[#This Row],[Domaine]]&\" / \" &Table24[[#This Row],[bien]]&\" / \" &Table24[[#This Row],[composante]]","v":"PDH 38 / Premier / appartement (cuisine)"},{"$f":"IF(Table24[[#This Row],[constat/projet]]=\"\",Table24[[#This Row],[Entretien]],Table24[[#This Row],[constat/projet]])","v":"APPART : carreler la cuisine"},{"$f":"Table24[[#This Row],[Localisation]]& \" \" &IF(Table24[[#This Row],[constat/projet]]=\"\",Table24[[#This Row],[Entretien]],Table24[[#This Row],[constat/projet]])","v":"PDH 38 / Premier / appartement (cuisine) APPART : carreler la cuisine"}]
["PDH 38","Premier","appartement (salle de Bains)","APPART : réaménager la sdb (nouv bain et lavabo, bac de douche, repeindre, etc.)",null,null,3,{"$f":"Table24[[#This Row],[Domaine]]&\" / \" &Table24[[#This Row],[bien]]&\" / \" &Table24[[#This Row],[composante]]","v":"PDH 38 / Premier / appartement (salle de Bains)"},{"$f":"IF(Table24[[#This Row],[constat/projet]]=\"\",Table24[[#This Row],[Entretien]],Table24[[#This Row],[constat/projet]])","v":"APPART : réaménager la sdb (nouv bain et lavabo, bac de douche, repeindre, etc.)"},{"$f":"Table24[[#This Row],[Localisation]]& \" \" &IF(Table24[[#This Row],[constat/projet]]=\"\",Table24[[#This Row],[Entretien]],Table24[[#This Row],[constat/projet]])","v":"PDH 38 / Premier / appartement (salle de Bains) APPART : réaménager la sdb (nouv bain et lavabo, bac de douche, repeindre, etc.)"}]
["PDH 38","Premier","appartement (pièce de vie)","APPART : quel avenir ? Vente ? Location ? Auberge de jeunesse ?",null,null,2,{"$f":"Table24[[#This Row],[Domaine]]&\" / \" &Table24[[#This Row],[bien]]&\" / \" &Table24[[#This Row],[composante]]","v":"PDH 38 / Premier / appartement (pièce de vie)"},{"$f":"IF(Table24[[#This Row],[constat/projet]]=\"\",Table24[[#This Row],[Entretien]],Table24[[#This Row],[constat/projet]])","v":"APPART : quel avenir ? Vente ? Location ? Auberge de jeunesse ?"},{"$f":"Table24[[#This Row],[Localisation]]& \" \" &IF(Table24[[#This Row],[constat/projet]]=\"\",Table24[[#This Row],[Entretien]],Table24[[#This Row],[constat/projet]])","v":"PDH 38 / Premier / appartement (pièce de vie) APPART : quel avenir ? Vente ? Location ? Auberge de jeunesse ?"}]
["PDH 38","deuxième","appartement SGP (salle de bains)","refaire ou changer le bac de douche",null,null,2,{"$f":"Table24[[#This Row],[Domaine]]&\" / \" &Table24[[#This Row],[bien]]&\" / \" &Table24[[#This Row],[composante]]","v":"PDH 38 / deuxième / appartement SGP (salle de bains)"},{"$f":"IF(Table24[[#This Row],[constat/projet]]=\"\",Table24[[#This Row],[Entretien]],Table24[[#This Row],[constat/projet]])","v":"refaire ou changer le bac de douche"},{"$f":"Table24[[#This Row],[Localisation]]& \" \" &IF(Table24[[#This Row],[constat/projet]]=\"\",Table24[[#This Row],[Entretien]],Table24[[#This Row],[constat/projet]])","v":"PDH 38 / deuxième / appartement SGP (salle de bains) refaire ou changer le bac de douche"}]
["PDH 38","troisième","projet","PROJET 3e : isoler la toiture",null,null,3,{"$f":"Table24[[#This Row],[Domaine]]&\" / \" &Table24[[#This Row],[bien]]&\" / \" &Table24[[#This Row],[composante]]","v":"PDH 38 / troisième / projet"},{"$f":"IF(Table24[[#This Row],[constat/projet]]=\"\",Table24[[#This Row],[Entretien]],Table24[[#This Row],[constat/projet]])","v":"PROJET 3e : isoler la toiture"},{"$f":"Table24[[#This Row],[Localisation]]& \" \" &IF(Table24[[#This Row],[constat/projet]]=\"\",Table24[[#This Row],[Entretien]],Table24[[#This Row],[constat/projet]])","v":"PDH 38 / troisième / projet PROJET 3e : isoler la toiture"}]
["PDH 38","troisième","projet","PROJET 3e : refaire l'électricité",null,null,3,{"$f":"Table24[[#This Row],[Domaine]]&\" / \" &Table24[[#This Row],[bien]]&\" / \" &Table24[[#This Row],[composante]]","v":"PDH 38 / troisième / projet"},{"$f":"IF(Table24[[#This Row],[constat/projet]]=\"\",Table24[[#This Row],[Entretien]],Table24[[#This Row],[constat/projet]])","v":"PROJET 3e : refaire l'électricité"},{"$f":"Table24[[#This Row],[Localisation]]& \" \" &IF(Table24[[#This Row],[constat/projet]]=\"\",Table24[[#This Row],[Entretien]],Table24[[#This Row],[constat/projet]])","v":"PDH 38 / troisième / projet PROJET 3e : refaire l'électricité"}]
["PDH 38","troisième","projet","PROJET 3e : installer une cuisine",null,null,3,{"$f":"Table24[[#This Row],[Domaine]]&\" / \" &Table24[[#This Row],[bien]]&\" / \" &Table24[[#This Row],[composante]]","v":"PDH 38 / troisième / projet"},{"$f":"IF(Table24[[#This Row],[constat/projet]]=\"\",Table24[[#This Row],[Entretien]],Table24[[#This Row],[constat/projet]])","v":"PROJET 3e : installer une cuisine"},{"$f":"Table24[[#This Row],[Localisation]]& \" \" &IF(Table24[[#This Row],[constat/projet]]=\"\",Table24[[#This Row],[Entretien]],Table24[[#This Row],[constat/projet]])","v":"PDH 38 / troisième / projet PROJET 3e : installer une cuisine"}]
["PDH 38","troisième","projet","PROJET 3e : installer une salle de bain",null,null,3,{"$f":"Table24[[#This Row],[Domaine]]&\" / \" &Table24[[#This Row],[bien]]&\" / \" &Table24[[#This Row],[composante]]","v":"PDH 38 / troisième / projet"},{"$f":"IF(Table24[[#This Row],[constat/projet]]=\"\",Table24[[#This Row],[Entretien]],Table24[[#This Row],[constat/projet]])","v":"PROJET 3e : installer une salle de bain"},{"$f":"Table24[[#This Row],[Localisation]]& \" \" &IF(Table24[[#This Row],[constat/projet]]=\"\",Table24[[#This Row],[Entretien]],Table24[[#This Row],[constat/projet]])","v":"PDH 38 / troisième / projet PROJET 3e : installer une salle de bain"}]
["PDH 39","Tout le bâtiment","travail administratif","projet auberge de jeunesse ?",null,null,2,{"$f":"Table24[[#This Row],[Domaine]]&\" / \" &Table24[[#This Row],[bien]]&\" / \" &Table24[[#This Row],[composante]]","v":"PDH 39 / Tout le bâtiment / travail administratif"},{"$f":"IF(Table24[[#This Row],[constat/projet]]=\"\",Table24[[#This Row],[Entretien]],Table24[[#This Row],[constat/projet]])","v":"projet auberge de jeunesse ?"},{"$f":"Table24[[#This Row],[Localisation]]& \" \" &IF(Table24[[#This Row],[constat/projet]]=\"\",Table24[[#This Row],[Entretien]],Table24[[#This Row],[constat/projet]])","v":"PDH 39 / Tout le bâtiment / travail administratif projet auberge de jeunesse ?"}]
["PDH 39","Tout le bâtiment","cour","cour défoncée",null,null,3,{"$f":"Table24[[#This Row],[Domaine]]&\" / \" &Table24[[#This Row],[bien]]&\" / \" &Table24[[#This Row],[composante]]","v":"PDH 39 / Tout le bâtiment / cour"},{"$f":"IF(Table24[[#This Row],[constat/projet]]=\"\",Table24[[#This Row],[Entretien]],Table24[[#This Row],[constat/projet]])","v":"cour défoncée"},{"$f":"Table24[[#This Row],[Localisation]]& \" \" &IF(Table24[[#This Row],[constat/projet]]=\"\",Table24[[#This Row],[Entretien]],Table24[[#This Row],[constat/projet]])","v":"PDH 39 / Tout le bâtiment / cour cour défoncée"}]
["PDH 39","rez","Magascout","projet de peindre une fresque sur la façade du Magascout",null,null,3,{"$f":"Table24[[#This Row],[Domaine]]&\" / \" &Table24[[#This Row],[bien]]&\" / \" &Table24[[#This Row],[composante]]","v":"PDH 39 / rez / Magascout"},{"$f":"IF(Table24[[#This Row],[constat/projet]]=\"\",Table24[[#This Row],[Entretien]],Table24[[#This Row],[constat/projet]])","v":"projet de peindre une fresque sur la façade du Magascout"},{"$f":"Table24[[#This Row],[Localisation]]& \" \" &IF(Table24[[#This Row],[constat/projet]]=\"\",Table24[[#This Row],[Entretien]],Table24[[#This Row],[constat/projet]])","v":"PDH 39 / rez / Magascout projet de peindre une fresque sur la façade du Magascout"}]
["PDH 39","rez","Magascout","créer un plancher pour ratraper la pente du bureau de Fred",null,null,2,{"$f":"Table24[[#This Row],[Domaine]]&\" / \" &Table24[[#This Row],[bien]]&\" / \" &Table24[[#This Row],[composante]]","v":"PDH 39 / rez / Magascout"},{"$f":"IF(Table24[[#This Row],[constat/projet]]=\"\",Table24[[#This Row],[Entretien]],Table24[[#This Row],[constat/projet]])","v":"créer un plancher pour ratraper la pente du bureau de Fred"},{"$f":"Table24[[#This Row],[Localisation]]& \" \" &IF(Table24[[#This Row],[constat/projet]]=\"\",Table24[[#This Row],[Entretien]],Table24[[#This Row],[constat/projet]])","v":"PDH 39 / rez / Magascout créer un plancher pour ratraper la pente du bureau de Fred"}]
["PDH 39","garages","garage SGP","remonter le frigo dans l'appart du 1er",null,null,2,{"$f":"Table24[[#This Row],[Domaine]]&\" / \" &Table24[[#This Row],[bien]]&\" / \" &Table24[[#This Row],[composante]]","v":"PDH 39 / garages / garage SGP"},{"$f":"IF(Table24[[#This Row],[constat/projet]]=\"\",Table24[[#This Row],[Entretien]],Table24[[#This Row],[constat/projet]])","v":"remonter le frigo dans l'appart du 1er"},{"$f":"Table24[[#This Row],[Localisation]]& \" \" &IF(Table24[[#This Row],[constat/projet]]=\"\",Table24[[#This Row],[Entretien]],Table24[[#This Row],[constat/projet]])","v":"PDH 39 / garages / garage SGP remonter le frigo dans l'appart du 1er"}]
["PDH 39","garages","sanitaire","repeindre et rafraichir les WC",null,null,3,{"$f":"Table24[[#This Row],[Domaine]]&\" / \" &Table24[[#This Row],[bien]]&\" / \" &Table24[[#This Row],[composante]]","v":"PDH 39 / garages / sanitaire"},{"$f":"IF(Table24[[#This Row],[constat/projet]]=\"\",Table24[[#This Row],[Entretien]],Table24[[#This Row],[constat/projet]])","v":"repeindre et rafraichir les WC"},{"$f":"Table24[[#This Row],[Localisation]]& \" \" &IF(Table24[[#This Row],[constat/projet]]=\"\",Table24[[#This Row],[Entretien]],Table24[[#This Row],[constat/projet]])","v":"PDH 39 / garages / sanitaire repeindre et rafraichir les WC"}]
["PDH 39","caves","chaudière et chauffage","chaudière embouée",null,null,1,{"$f":"Table24[[#This Row],[Domaine]]&\" / \" &Table24[[#This Row],[bien]]&\" / \" &Table24[[#This Row],[composante]]","v":"PDH 39 / caves / chaudière et chauffage"},{"$f":"IF(Table24[[#This Row],[constat/projet]]=\"\",Table24[[#This Row],[Entretien]],Table24[[#This Row],[constat/projet]])","v":"chaudière embouée"},{"$f":"Table24[[#This Row],[Localisation]]& \" \" &IF(Table24[[#This Row],[constat/projet]]=\"\",Table24[[#This Row],[Entretien]],Table24[[#This Row],[constat/projet]])","v":"PDH 39 / caves / chaudière et chauffage chaudière embouée"}]
["PDH 39","premier","bureau SF","insonoriser le bureau",null,null,3,{"$f":"Table24[[#This Row],[Domaine]]&\" / \" &Table24[[#This Row],[bien]]&\" / \" &Table24[[#This Row],[composante]]","v":"PDH 39 / premier / bureau SF"},{"$f":"IF(Table24[[#This Row],[constat/projet]]=\"\",Table24[[#This Row],[Entretien]],Table24[[#This Row],[constat/projet]])","v":"insonoriser le bureau"},{"$f":"Table24[[#This Row],[Localisation]]& \" \" &IF(Table24[[#This Row],[constat/projet]]=\"\",Table24[[#This Row],[Entretien]],Table24[[#This Row],[constat/projet]])","v":"PDH 39 / premier / bureau SF insonoriser le bureau"}]
["PDH 39","premier","autre","OXFAM : obtenir les armoires et chaises manquantes",null,null,1,{"$f":"Table24[[#This Row],[Domaine]]&\" / \" &Table24[[#This Row],[bien]]&\" / \" &Table24[[#This Row],[composante]]","v":"PDH 39 / premier / autre"},{"$f":"IF(Table24[[#This Row],[constat/projet]]=\"\",Table24[[#This Row],[Entretien]],Table24[[#This Row],[constat/projet]])","v":"OXFAM : obtenir les armoires et chaises manquantes"},{"$f":"Table24[[#This Row],[Localisation]]& \" \" &IF(Table24[[#This Row],[constat/projet]]=\"\",Table24[[#This Row],[Entretien]],Table24[[#This Row],[constat/projet]])","v":"PDH 39 / premier / autre OXFAM : obtenir les armoires et chaises manquantes"}]
["PDH 39","premier","autre","OXFAM : faire enlever le mobilier en trop",null,null,1,{"$f":"Table24[[#This Row],[Domaine]]&\" / \" &Table24[[#This Row],[bien]]&\" / \" &Table24[[#This Row],[composante]]","v":"PDH 39 / premier / autre"},{"$f":"IF(Table24[[#This Row],[constat/projet]]=\"\",Table24[[#This Row],[Entretien]],Table24[[#This Row],[constat/projet]])","v":"OXFAM : faire enlever le mobilier en trop"},{"$f":"Table24[[#This Row],[Localisation]]& \" \" &IF(Table24[[#This Row],[constat/projet]]=\"\",Table24[[#This Row],[Entretien]],Table24[[#This Row],[constat/projet]])","v":"PDH 39 / premier / autre OXFAM : faire enlever le mobilier en trop"}]
["PDH 39","Tout le bâtiment","toiture","refaire le roafing du grand toit + celui de roro",null,null,3,{"$f":"Table24[[#This Row],[Domaine]]&\" / \" &Table24[[#This Row],[bien]]&\" / \" &Table24[[#This Row],[composante]]","v":"PDH 39 / Tout le bâtiment / toiture"},{"$f":"IF(Table24[[#This Row],[constat/projet]]=\"\",Table24[[#This Row],[Entretien]],Table24[[#This Row],[constat/projet]])","v":"refaire le roafing du grand toit + celui de roro"},{"$f":"Table24[[#This Row],[Localisation]]& \" \" &IF(Table24[[#This Row],[constat/projet]]=\"\",Table24[[#This Row],[Entretien]],Table24[[#This Row],[constat/projet]])","v":"PDH 39 / Tout le bâtiment / toiture refaire le roafing du grand toit + celui de roro"}]
["PDH 39","Tout le bâtiment","toiture","transformer le toit plat au-dessus de la cuisine en terrasse",null,null,3,{"$f":"Table24[[#This Row],[Domaine]]&\" / \" &Table24[[#This Row],[bien]]&\" / \" &Table24[[#This Row],[composante]]","v":"PDH 39 / Tout le bâtiment / toiture"},{"$f":"IF(Table24[[#This Row],[constat/projet]]=\"\",Table24[[#This Row],[Entretien]],Table24[[#This Row],[constat/projet]])","v":"transformer le toit plat au-dessus de la cuisine en terrasse"},{"$f":"Table24[[#This Row],[Localisation]]& \" \" &IF(Table24[[#This Row],[constat/projet]]=\"\",Table24[[#This Row],[Entretien]],Table24[[#This Row],[constat/projet]])","v":"PDH 39 / Tout le bâtiment / toiture transformer le toit plat au-dessus de la cuisine en terrasse"}]
["PDH 39","premier","sanitaires","rafraichir les WC",null,null,3,{"$f":"Table24[[#This Row],[Domaine]]&\" / \" &Table24[[#This Row],[bien]]&\" / \" &Table24[[#This Row],[composante]]","v":"PDH 39 / premier / sanitaires"},{"$f":"IF(Table24[[#This Row],[constat/projet]]=\"\",Table24[[#This Row],[Entretien]],Table24[[#This Row],[constat/projet]])","v":"rafraichir les WC"},{"$f":"Table24[[#This Row],[Localisation]]& \" \" &IF(Table24[[#This Row],[constat/projet]]=\"\",Table24[[#This Row],[Entretien]],Table24[[#This Row],[constat/projet]])","v":"PDH 39 / premier / sanitaires rafraichir les WC"}]
["PDH 39","premier","salle biblio-costumothèque","améliorer les espaces de rangement",null,null,3,{"$f":"Table24[[#This Row],[Domaine]]&\" / \" &Table24[[#This Row],[bien]]&\" / \" &Table24[[#This Row],[composante]]","v":"PDH 39 / premier / salle biblio-costumothèque"},{"$f":"IF(Table24[[#This Row],[constat/projet]]=\"\",Table24[[#This Row],[Entretien]],Table24[[#This Row],[constat/projet]])","v":"améliorer les espaces de rangement"},{"$f":"Table24[[#This Row],[Localisation]]& \" \" &IF(Table24[[#This Row],[constat/projet]]=\"\",Table24[[#This Row],[Entretien]],Table24[[#This Row],[constat/projet]])","v":"PDH 39 / premier / salle biblio-costumothèque améliorer les espaces de rangement"}]
["PDH 39","premier","cuisine","repeindre et rafraichir + nouveau frigo",null,null,2,{"$f":"Table24[[#This Row],[Domaine]]&\" / \" &Table24[[#This Row],[bien]]&\" / \" &Table24[[#This Row],[composante]]","v":"PDH 39 / premier / cuisine"},{"$f":"IF(Table24[[#This Row],[constat/projet]]=\"\",Table24[[#This Row],[Entretien]],Table24[[#This Row],[constat/projet]])","v":"repeindre et rafraichir + nouveau frigo"},{"$f":"Table24[[#This Row],[Localisation]]& \" \" &IF(Table24[[#This Row],[constat/projet]]=\"\",Table24[[#This Row],[Entretien]],Table24[[#This Row],[constat/projet]])","v":"PDH 39 / premier / cuisine repeindre et rafraichir + nouveau frigo"}]
["PDH 39","premier","bureau RH, compta et affi","repeindre",null,null,2,{"$f":"Table24[[#This Row],[Domaine]]&\" / \" &Table24[[#This Row],[bien]]&\" / \" &Table24[[#This Row],[composante]]","v":"PDH 39 / premier / bureau RH, compta et affi"},{"$f":"IF(Table24[[#This Row],[constat/projet]]=\"\",Table24[[#This Row],[Entretien]],Table24[[#This Row],[constat/projet]])","v":"repeindre"},{"$f":"Table24[[#This Row],[Localisation]]& \" \" &IF(Table24[[#This Row],[constat/projet]]=\"\",Table24[[#This Row],[Entretien]],Table24[[#This Row],[constat/projet]])","v":"PDH 39 / premier / bureau RH, compta et affi repeindre"}]
["PDH 39","premier","cuisine","améliorer les conditions d'utilisation de la cuisine + commu",null,"2016-04-30",1,{"$f":"Table24[[#This Row],[Domaine]]&\" / \" &Table24[[#This Row],[bien]]&\" / \" &Table24[[#This Row],[composante]]","v":"PDH 39 / premier / cuisine"},{"$f":"IF(Table24[[#This Row],[constat/projet]]=\"\",Table24[[#This Row],[Entretien]],Table24[[#This Row],[constat/projet]])","v":"améliorer les conditions d'utilisation de la cuisine + commu"},{"$f":"Table24[[#This Row],[Localisation]]& \" \" &IF(Table24[[#This Row],[constat/projet]]=\"\",Table24[[#This Row],[Entretien]],Table24[[#This Row],[constat/projet]])","v":"PDH 39 / premier / cuisine améliorer les conditions d'utilisation de la cuisine + commu"}]
["CDS","Intérieur","menuiserie","POMPIER : barre anti-panique",null,null,1,{"$f":"Table24[[#This Row],[Domaine]]&\" / \" &Table24[[#This Row],[bien]]&\" / \" &Table24[[#This Row],[composante]]","v":"CDS / Intérieur / menuiserie"},{"$f":"IF(Table24[[#This Row],[constat/projet]]=\"\",Table24[[#This Row],[Entretien]],Table24[[#This Row],[constat/projet]])","v":"POMPIER : barre anti-panique"},{"$f":"Table24[[#This Row],[Localisation]]& \" \" &IF(Table24[[#This Row],[constat/projet]]=\"\",Table24[[#This Row],[Entretien]],Table24[[#This Row],[constat/projet]])","v":"CDS / Intérieur / menuiserie POMPIER : barre anti-panique"}]
["CDS","Ensemble du domaine","relation aux autorités publiques","COUVIN : gérer les dossiers à remettre à la commune",null,"2016-05-31",1,{"$f":"Table24[[#This Row],[Domaine]]&\" / \" &Table24[[#This Row],[bien]]&\" / \" &Table24[[#This Row],[composante]]","v":"CDS / Ensemble du domaine / relation aux autorités publiques"},{"$f":"IF(Table24[[#This Row],[constat/projet]]=\"\",Table24[[#This Row],[Entretien]],Table24[[#This Row],[constat/projet]])","v":"COUVIN : gérer les dossiers à remettre à la commune"},{"$f":"Table24[[#This Row],[Localisation]]& \" \" &IF(Table24[[#This Row],[constat/projet]]=\"\",Table24[[#This Row],[Entretien]],Table24[[#This Row],[constat/projet]])","v":"CDS / Ensemble du domaine / relation aux autorités publiques COUVIN : gérer les dossiers à remettre à la commune"}]
["CDS","Ensemble du domaine","travail administratif","VENTE 1: annoncer la vente aux potentiels repreneurs",null,null,1,{"$f":"Table24[[#This Row],[Domaine]]&\" / \" &Table24[[#This Row],[bien]]&\" / \" &Table24[[#This Row],[composante]]","v":"CDS / Ensemble du domaine / travail administratif"},{"$f":"IF(Table24[[#This Row],[constat/projet]]=\"\",Table24[[#This Row],[Entretien]],Table24[[#This Row],[constat/projet]])","v":"VENTE 1: annoncer la vente aux potentiels repreneurs"},{"$f":"Table24[[#This Row],[Localisation]]& \" \" &IF(Table24[[#This Row],[constat/projet]]=\"\",Table24[[#This Row],[Entretien]],Table24[[#This Row],[constat/projet]])","v":"CDS / Ensemble du domaine / travail administratif VENTE 1: annoncer la vente aux potentiels repreneurs"}]
["HEURE","Ensemble du domaine","bois",null,"nouvelles plantations","2016-10-01",{"$f":"IF(Table24[[#This Row],[Dates prévues]]=\"\",\"\", IF(Table24[[#This Row],[Dates prévues]]-15<TODAY(),1,3) )","v":3},{"$f":"Table24[[#This Row],[Domaine]]&\" / \" &Table24[[#This Row],[bien]]&\" / \" &Table24[[#This Row],[composante]]","v":"HEURE / Ensemble du domaine / bois"},{"$f":"IF(Table24[[#This Row],[constat/projet]]=\"\",Table24[[#This Row],[Entretien]],Table24[[#This Row],[constat/projet]])","v":"nouvelles plantations"},{"$f":"Table24[[#This Row],[Localisation]]& \" \" &IF(Table24[[#This Row],[constat/projet]]=\"\",Table24[[#This Row],[Entretien]],Table24[[#This Row],[constat/projet]])","v":"HEURE / Ensemble du domaine / bois nouvelles plantations"}]
["HEURE","Ensemble du domaine","relation aux autorités publiques","dossier bourgmestre",null,null,1,{"$f":"Table24[[#This Row],[Domaine]]&\" / \" &Table24[[#This Row],[bien]]&\" / \" &Table24[[#This Row],[composante]]","v":"HEURE / Ensemble du domaine / relation aux autorités publiques"},{"$f":"IF(Table24[[#This Row],[constat/projet]]=\"\",Table24[[#This Row],[Entretien]],Table24[[#This Row],[constat/projet]])","v":"dossier bourgmestre"},{"$f":"Table24[[#This Row],[Localisation]]& \" \" &IF(Table24[[#This Row],[constat/projet]]=\"\",Table24[[#This Row],[Entretien]],Table24[[#This Row],[constat/projet]])","v":"HEURE / Ensemble du domaine / relation aux autorités publiques dossier bourgmestre"}]
["HEURE","La Carlingue","général","faire une nouvelle affiche infirmerie",null,null,2,{"$f":"Table24[[#This Row],[Domaine]]&\" / \" &Table24[[#This Row],[bien]]&\" / \" &Table24[[#This Row],[composante]]","v":"HEURE / La Carlingue / général"},{"$f":"IF(Table24[[#This Row],[constat/projet]]=\"\",Table24[[#This Row],[Entretien]],Table24[[#This Row],[constat/projet]])","v":"faire une nouvelle affiche infirmerie"},{"$f":"Table24[[#This Row],[Localisation]]& \" \" &IF(Table24[[#This Row],[constat/projet]]=\"\",Table24[[#This Row],[Entretien]],Table24[[#This Row],[constat/projet]])","v":"HEURE / La Carlingue / général faire une nouvelle affiche infirmerie"}]
["HEURE","Le Grand Chalet","murs extérieurs","rejointoyer et traiter les plaques sur les murs + remplacer mettre vis inoxydables",null,null,3,{"$f":"Table24[[#This Row],[Domaine]]&\" / \" &Table24[[#This Row],[bien]]&\" / \" &Table24[[#This Row],[composante]]","v":"HEURE / Le Grand Chalet / murs extérieurs"},{"$f":"IF(Table24[[#This Row],[constat/projet]]=\"\",Table24[[#This Row],[Entretien]],Table24[[#This Row],[constat/projet]])","v":"rejointoyer et traiter les plaques sur les murs + remplacer mettre vis inoxydables"},{"$f":"Table24[[#This Row],[Localisation]]& \" \" &IF(Table24[[#This Row],[constat/projet]]=\"\",Table24[[#This Row],[Entretien]],Table24[[#This Row],[constat/projet]])","v":"HEURE / Le Grand Chalet / murs extérieurs rejointoyer et traiter les plaques sur les murs + remplacer mettre vis inoxydables"}]
["HEURE","Le Grand Chalet","toiture","infiltrations côté parking",null,null,2,{"$f":"Table24[[#This Row],[Domaine]]&\" / \" &Table24[[#This Row],[bien]]&\" / \" &Table24[[#This Row],[composante]]","v":"HEURE / Le Grand Chalet / toiture"},{"$f":"IF(Table24[[#This Row],[constat/projet]]=\"\",Table24[[#This Row],[Entretien]],Table24[[#This Row],[constat/projet]])","v":"infiltrations côté parking"},{"$f":"Table24[[#This Row],[Localisation]]& \" \" &IF(Table24[[#This Row],[constat/projet]]=\"\",Table24[[#This Row],[Entretien]],Table24[[#This Row],[constat/projet]])","v":"HEURE / Le Grand Chalet / toiture infiltrations côté parking"}]
["HEURE","Le Grand Chalet","abords extérieurs","terrassement et remblayage du parking",null,null,3,{"$f":"Table24[[#This Row],[Domaine]]&\" / \" &Table24[[#This Row],[bien]]&\" / \" &Table24[[#This Row],[composante]]","v":"HEURE / Le Grand Chalet / abords extérieurs"},{"$f":"IF(Table24[[#This Row],[constat/projet]]=\"\",Table24[[#This Row],[Entretien]],Table24[[#This Row],[constat/projet]])","v":"terrassement et remblayage du parking"},{"$f":"Table24[[#This Row],[Localisation]]& \" \" &IF(Table24[[#This Row],[constat/projet]]=\"\",Table24[[#This Row],[Entretien]],Table24[[#This Row],[constat/projet]])","v":"HEURE / Le Grand Chalet / abords extérieurs terrassement et remblayage du parking"}]
["HEURE","Le Grand Chalet","salle du sous-sol","humidité dans le mur sous la rampe d'accès à la terrasse",null,null,2,{"$f":"Table24[[#This Row],[Domaine]]&\" / \" &Table24[[#This Row],[bien]]&\" / \" &Table24[[#This Row],[composante]]","v":"HEURE / Le Grand Chalet / salle du sous-sol"},{"$f":"IF(Table24[[#This Row],[constat/projet]]=\"\",Table24[[#This Row],[Entretien]],Table24[[#This Row],[constat/projet]])","v":"humidité dans le mur sous la rampe d'accès à la terrasse"},{"$f":"Table24[[#This Row],[Localisation]]& \" \" &IF(Table24[[#This Row],[constat/projet]]=\"\",Table24[[#This Row],[Entretien]],Table24[[#This Row],[constat/projet]])","v":"HEURE / Le Grand Chalet / salle du sous-sol humidité dans le mur sous la rampe d'accès à la terrasse"}]
["HEURE","Ensemble du domaine","toilettes sèches","projet toilettes sèches : quelle gestion ?",null,null,2,{"$f":"Table24[[#This Row],[Domaine]]&\" / \" &Table24[[#This Row],[bien]]&\" / \" &Table24[[#This Row],[composante]]","v":"HEURE / Ensemble du domaine / toilettes sèches"},{"$f":"IF(Table24[[#This Row],[constat/projet]]=\"\",Table24[[#This Row],[Entretien]],Table24[[#This Row],[constat/projet]])","v":"projet toilettes sèches : quelle gestion ?"},{"$f":"Table24[[#This Row],[Localisation]]& \" \" &IF(Table24[[#This Row],[constat/projet]]=\"\",Table24[[#This Row],[Entretien]],Table24[[#This Row],[constat/projet]])","v":"HEURE / Ensemble du domaine / toilettes sèches projet toilettes sèches : quelle gestion ?"}]
["HEURE","Le Grand Chalet","abords extérieurs","réparer le cabanon",null,null,3,{"$f":"Table24[[#This Row],[Domaine]]&\" / \" &Table24[[#This Row],[bien]]&\" / \" &Table24[[#This Row],[composante]]","v":"HEURE / Le Grand Chalet / abords extérieurs"},{"$f":"IF(Table24[[#This Row],[constat/projet]]=\"\",Table24[[#This Row],[Entretien]],Table24[[#This Row],[constat/projet]])","v":"réparer le cabanon"},{"$f":"Table24[[#This Row],[Localisation]]& \" \" &IF(Table24[[#This Row],[constat/projet]]=\"\",Table24[[#This Row],[Entretien]],Table24[[#This Row],[constat/projet]])","v":"HEURE / Le Grand Chalet / abords extérieurs réparer le cabanon"}]
["HEURE","Le Grand Chalet","général","placer des grilles devant les arrivées d'air chaud + nettoyer",null,null,3,{"$f":"Table24[[#This Row],[Domaine]]&\" / \" &Table24[[#This Row],[bien]]&\" / \" &Table24[[#This Row],[composante]]","v":"HEURE / Le Grand Chalet / général"},{"$f":"IF(Table24[[#This Row],[constat/projet]]=\"\",Table24[[#This Row],[Entretien]],Table24[[#This Row],[constat/projet]])","v":"placer des grilles devant les arrivées d'air chaud + nettoyer"},{"$f":"Table24[[#This Row],[Localisation]]& \" \" &IF(Table24[[#This Row],[constat/projet]]=\"\",Table24[[#This Row],[Entretien]],Table24[[#This Row],[constat/projet]])","v":"HEURE / Le Grand Chalet / général placer des grilles devant les arrivées d'air chaud + nettoyer"}]
["HEURE","Le Grand Chalet","chaudière et chauffage","infiltrations, local à mazout se remplit d'eau",null,null,2,{"$f":"Table24[[#This Row],[Domaine]]&\" / \" &Table24[[#This Row],[bien]]&\" / \" &Table24[[#This Row],[composante]]","v":"HEURE / Le Grand Chalet / chaudière et chauffage"},{"$f":"IF(Table24[[#This Row],[constat/projet]]=\"\",Table24[[#This Row],[Entretien]],Table24[[#This Row],[constat/projet]])","v":"infiltrations, local à mazout se remplit d'eau"},{"$f":"Table24[[#This Row],[Localisation]]& \" \" &IF(Table24[[#This Row],[constat/projet]]=\"\",Table24[[#This Row],[Entretien]],Table24[[#This Row],[constat/projet]])","v":"HEURE / Le Grand Chalet / chaudière et chauffage infiltrations, local à mazout se remplit d'eau"}]
["HEURE","Le Grand Chalet","sanitaires","SDD F : placer ventilation en interne (pas vers l'extérieur)",null,null,3,{"$f":"Table24[[#This Row],[Domaine]]&\" / \" &Table24[[#This Row],[bien]]&\" / \" &Table24[[#This Row],[composante]]","v":"HEURE / Le Grand Chalet / sanitaires"},{"$f":"IF(Table24[[#This Row],[constat/projet]]=\"\",Table24[[#This Row],[Entretien]],Table24[[#This Row],[constat/projet]])","v":"SDD F : placer ventilation en interne (pas vers l'extérieur)"},{"$f":"Table24[[#This Row],[Localisation]]& \" \" &IF(Table24[[#This Row],[constat/projet]]=\"\",Table24[[#This Row],[Entretien]],Table24[[#This Row],[constat/projet]])","v":"HEURE / Le Grand Chalet / sanitaires SDD F : placer ventilation en interne (pas vers l'extérieur)"}]
["HEURE","Le Grand Chalet","sanitaires","SDD H : mettre des plintes",null,null,3,{"$f":"Table24[[#This Row],[Domaine]]&\" / \" &Table24[[#This Row],[bien]]&\" / \" &Table24[[#This Row],[composante]]","v":"HEURE / Le Grand Chalet / sanitaires"},{"$f":"IF(Table24[[#This Row],[constat/projet]]=\"\",Table24[[#This Row],[Entretien]],Table24[[#This Row],[constat/projet]])","v":"SDD H : mettre des plintes"},{"$f":"Table24[[#This Row],[Localisation]]& \" \" &IF(Table24[[#This Row],[constat/projet]]=\"\",Table24[[#This Row],[Entretien]],Table24[[#This Row],[constat/projet]])","v":"HEURE / Le Grand Chalet / sanitaires SDD H : mettre des plintes"}]
["HEURE","Ensemble du domaine","travail administratif","trouver ferraileur pour évacuer le vieux congel",null,null,2,{"$f":"Table24[[#This Row],[Domaine]]&\" / \" &Table24[[#This Row],[bien]]&\" / \" &Table24[[#This Row],[composante]]","v":"HEURE / Ensemble du domaine / travail administratif"},{"$f":"IF(Table24[[#This Row],[constat/projet]]=\"\",Table24[[#This Row],[Entretien]],Table24[[#This Row],[constat/projet]])","v":"trouver ferraileur pour évacuer le vieux congel"},{"$f":"Table24[[#This Row],[Localisation]]& \" \" &IF(Table24[[#This Row],[constat/projet]]=\"\",Table24[[#This Row],[Entretien]],Table24[[#This Row],[constat/projet]])","v":"HEURE / Ensemble du domaine / travail administratif trouver ferraileur pour évacuer le vieux congel"}]
["HEURE","Le Grand Chalet","menuiserie","réparer les oscillobattants des portes fenetres en bas",null,null,2,{"$f":"Table24[[#This Row],[Domaine]]&\" / \" &Table24[[#This Row],[bien]]&\" / \" &Table24[[#This Row],[composante]]","v":"HEURE / Le Grand Chalet / menuiserie"},{"$f":"IF(Table24[[#This Row],[constat/projet]]=\"\",Table24[[#This Row],[Entretien]],Table24[[#This Row],[constat/projet]])","v":"réparer les oscillobattants des portes fenetres en bas"},{"$f":"Table24[[#This Row],[Localisation]]& \" \" &IF(Table24[[#This Row],[constat/projet]]=\"\",Table24[[#This Row],[Entretien]],Table24[[#This Row],[constat/projet]])","v":"HEURE / Le Grand Chalet / menuiserie réparer les oscillobattants des portes fenetres en bas"}]
["HEURE","Le Grand Chalet","salle du sous-sol","isoler les buses de chauffage pour stopper la déperdition de chaleur",null,null,3,{"$f":"Table24[[#This Row],[Domaine]]&\" / \" &Table24[[#This Row],[bien]]&\" / \" &Table24[[#This Row],[composante]]","v":"HEURE / Le Grand Chalet / salle du sous-sol"},{"$f":"IF(Table24[[#This Row],[constat/projet]]=\"\",Table24[[#This Row],[Entretien]],Table24[[#This Row],[constat/projet]])","v":"isoler les buses de chauffage pour stopper la déperdition de chaleur"},{"$f":"Table24[[#This Row],[Localisation]]& \" \" &IF(Table24[[#This Row],[constat/projet]]=\"\",Table24[[#This Row],[Entretien]],Table24[[#This Row],[constat/projet]])","v":"HEURE / Le Grand Chalet / salle du sous-sol isoler les buses de chauffage pour stopper la déperdition de chaleur"}]
["HEURE","Le Grand Chalet","sanitaires","carreler les murs des WC lorsque prob d'infiltration terrasse sera réglé",null,null,3,{"$f":"Table24[[#This Row],[Domaine]]&\" / \" &Table24[[#This Row],[bien]]&\" / \" &Table24[[#This Row],[composante]]","v":"HEURE / Le Grand Chalet / sanitaires"},{"$f":"IF(Table24[[#This Row],[constat/projet]]=\"\",Table24[[#This Row],[Entretien]],Table24[[#This Row],[constat/projet]])","v":"carreler les murs des WC lorsque prob d'infiltration terrasse sera réglé"},{"$f":"Table24[[#This Row],[Localisation]]& \" \" &IF(Table24[[#This Row],[constat/projet]]=\"\",Table24[[#This Row],[Entretien]],Table24[[#This Row],[constat/projet]])","v":"HEURE / Le Grand Chalet / sanitaires carreler les murs des WC lorsque prob d'infiltration terrasse sera réglé"}]
["HEURE","Le Grand Chalet","sanitaires","poser des cadres devant les trous vitrés (WC)",null,null,3,{"$f":"Table24[[#This Row],[Domaine]]&\" / \" &Table24[[#This Row],[bien]]&\" / \" &Table24[[#This Row],[composante]]","v":"HEURE / Le Grand Chalet / sanitaires"},{"$f":"IF(Table24[[#This Row],[constat/projet]]=\"\",Table24[[#This Row],[Entretien]],Table24[[#This Row],[constat/projet]])","v":"poser des cadres devant les trous vitrés (WC)"},{"$f":"Table24[[#This Row],[Localisation]]& \" \" &IF(Table24[[#This Row],[constat/projet]]=\"\",Table24[[#This Row],[Entretien]],Table24[[#This Row],[constat/projet]])","v":"HEURE / Le Grand Chalet / sanitaires poser des cadres devant les trous vitrés (WC)"}]
["HEURE","Le Grand Chalet","sanitaires","remettre de service le 4e wc",null,null,3,{"$f":"Table24[[#This Row],[Domaine]]&\" / \" &Table24[[#This Row],[bien]]&\" / \" &Table24[[#This Row],[composante]]","v":"HEURE / Le Grand Chalet / sanitaires"},{"$f":"IF(Table24[[#This Row],[constat/projet]]=\"\",Table24[[#This Row],[Entretien]],Table24[[#This Row],[constat/projet]])","v":"remettre de service le 4e wc"},{"$f":"Table24[[#This Row],[Localisation]]& \" \" &IF(Table24[[#This Row],[constat/projet]]=\"\",Table24[[#This Row],[Entretien]],Table24[[#This Row],[constat/projet]])","v":"HEURE / Le Grand Chalet / sanitaires remettre de service le 4e wc"}]
["HEURE","Le Grand Chalet","sanitaires","faire un coffrage au-dessus de l'éternite (WC)",null,null,2,{"$f":"Table24[[#This Row],[Domaine]]&\" / \" &Table24[[#This Row],[bien]]&\" / \" &Table24[[#This Row],[composante]]","v":"HEURE / Le Grand Chalet / sanitaires"},{"$f":"IF(Table24[[#This Row],[constat/projet]]=\"\",Table24[[#This Row],[Entretien]],Table24[[#This Row],[constat/projet]])","v":"faire un coffrage au-dessus de l'éternite (WC)"},{"$f":"Table24[[#This Row],[Localisation]]& \" \" &IF(Table24[[#This Row],[constat/projet]]=\"\",Table24[[#This Row],[Entretien]],Table24[[#This Row],[constat/projet]])","v":"HEURE / Le Grand Chalet / sanitaires faire un coffrage au-dessus de l'éternite (WC)"}]
["HEURE","Le Grand Chalet","cuisine","hotte : placer un multiprise et isoler le trou de la hotte",null,null,2,{"$f":"Table24[[#This Row],[Domaine]]&\" / \" &Table24[[#This Row],[bien]]&\" / \" &Table24[[#This Row],[composante]]","v":"HEURE / Le Grand Chalet / cuisine"},{"$f":"IF(Table24[[#This Row],[constat/projet]]=\"\",Table24[[#This Row],[Entretien]],Table24[[#This Row],[constat/projet]])","v":"hotte : placer un multiprise et isoler le trou de la hotte"},{"$f":"Table24[[#This Row],[Localisation]]& \" \" &IF(Table24[[#This Row],[constat/projet]]=\"\",Table24[[#This Row],[Entretien]],Table24[[#This Row],[constat/projet]])","v":"HEURE / Le Grand Chalet / cuisine hotte : placer un multiprise et isoler le trou de la hotte"}]
["HEURE","Terrains","général","enlever les bornes d'arrivée électrique",null,null,3,{"$f":"Table24[[#This Row],[Domaine]]&\" / \" &Table24[[#This Row],[bien]]&\" / \" &Table24[[#This Row],[composante]]","v":"HEURE / Terrains / général"},{"$f":"IF(Table24[[#This Row],[constat/projet]]=\"\",Table24[[#This Row],[Entretien]],Table24[[#This Row],[constat/projet]])","v":"enlever les bornes d'arrivée électrique"},{"$f":"Table24[[#This Row],[Localisation]]& \" \" &IF(Table24[[#This Row],[constat/projet]]=\"\",Table24[[#This Row],[Entretien]],Table24[[#This Row],[constat/projet]])","v":"HEURE / Terrains / général enlever les bornes d'arrivée électrique"}]
["HEURE","Terrains","Epicéas","planter une haie pour isoler et mettre à l'ombre le terrain",null,null,3,{"$f":"Table24[[#This Row],[Domaine]]&\" / \" &Table24[[#This Row],[bien]]&\" / \" &Table24[[#This Row],[composante]]","v":"HEURE / Terrains / Epicéas"},{"$f":"IF(Table24[[#This Row],[constat/projet]]=\"\",Table24[[#This Row],[Entretien]],Table24[[#This Row],[constat/projet]])","v":"planter une haie pour isoler et mettre à l'ombre le terrain"},{"$f":"Table24[[#This Row],[Localisation]]& \" \" &IF(Table24[[#This Row],[constat/projet]]=\"\",Table24[[#This Row],[Entretien]],Table24[[#This Row],[constat/projet]])","v":"HEURE / Terrains / Epicéas planter une haie pour isoler et mettre à l'ombre le terrain"}]
["HEURE","Terrains","Daguet","lancer la location",null,null,2,{"$f":"Table24[[#This Row],[Domaine]]&\" / \" &Table24[[#This Row],[bien]]&\" / \" &Table24[[#This Row],[composante]]","v":"HEURE / Terrains / Daguet"},{"$f":"IF(Table24[[#This Row],[constat/projet]]=\"\",Table24[[#This Row],[Entretien]],Table24[[#This Row],[constat/projet]])","v":"lancer la location"},{"$f":"Table24[[#This Row],[Localisation]]& \" \" &IF(Table24[[#This Row],[constat/projet]]=\"\",Table24[[#This Row],[Entretien]],Table24[[#This Row],[constat/projet]])","v":"HEURE / Terrains / Daguet lancer la location"}]
["HEURE","ancien bloc sanitaire","projet","définir sa nouvelle affectation : nouveau bloc sanitaire \"léger\", kot à outils, etc ?",null,null,2,{"$f":"Table24[[#This Row],[Domaine]]&\" / \" &Table24[[#This Row],[bien]]&\" / \" &Table24[[#This Row],[composante]]","v":"HEURE / ancien bloc sanitaire / projet"},{"$f":"IF(Table24[[#This Row],[constat/projet]]=\"\",Table24[[#This Row],[Entretien]],Table24[[#This Row],[constat/projet]])","v":"définir sa nouvelle affectation : nouveau bloc sanitaire \"léger\", kot à outils, etc ?"},{"$f":"Table24[[#This Row],[Localisation]]& \" \" &IF(Table24[[#This Row],[constat/projet]]=\"\",Table24[[#This Row],[Entretien]],Table24[[#This Row],[constat/projet]])","v":"HEURE / ancien bloc sanitaire / projet définir sa nouvelle affectation : nouveau bloc sanitaire \"léger\", kot à outils, etc ?"}]
["HEURE","Ensemble du domaine","autre","évacuer la citerne à gaz du mini-chalet",null,"2016-04-30",1,{"$f":"Table24[[#This Row],[Domaine]]&\" / \" &Table24[[#This Row],[bien]]&\" / \" &Table24[[#This Row],[composante]]","v":"HEURE / Ensemble du domaine / autre"},{"$f":"IF(Table24[[#This Row],[constat/projet]]=\"\",Table24[[#This Row],[Entretien]],Table24[[#This Row],[constat/projet]])","v":"évacuer la citerne à gaz du mini-chalet"},{"$f":"Table24[[#This Row],[Localisation]]& \" \" &IF(Table24[[#This Row],[constat/projet]]=\"\",Table24[[#This Row],[Entretien]],Table24[[#This Row],[constat/projet]])","v":"HEURE / Ensemble du domaine / autre évacuer la citerne à gaz du mini-chalet"}]
["HEURE","La Carlingue","abords extérieurs","terrassement et remblayage du parking",null,null,2,{"$f":"Table24[[#This Row],[Domaine]]&\" / \" &Table24[[#This Row],[bien]]&\" / \" &Table24[[#This Row],[composante]]","v":"HEURE / La Carlingue / abords extérieurs"},{"$f":"IF(Table24[[#This Row],[constat/projet]]=\"\",Table24[[#This Row],[Entretien]],Table24[[#This Row],[constat/projet]])","v":"terrassement et remblayage du parking"},{"$f":"Table24[[#This Row],[Localisation]]& \" \" &IF(Table24[[#This Row],[constat/projet]]=\"\",Table24[[#This Row],[Entretien]],Table24[[#This Row],[constat/projet]])","v":"HEURE / La Carlingue / abords extérieurs terrassement et remblayage du parking"}]
["HEURE","La Carlingue","réfectoire","ajouter un plan de travail",null,null,3,{"$f":"Table24[[#This Row],[Domaine]]&\" / \" &Table24[[#This Row],[bien]]&\" / \" &Table24[[#This Row],[composante]]","v":"HEURE / La Carlingue / réfectoire"},{"$f":"IF(Table24[[#This Row],[constat/projet]]=\"\",Table24[[#This Row],[Entretien]],Table24[[#This Row],[constat/projet]])","v":"ajouter un plan de travail"},{"$f":"Table24[[#This Row],[Localisation]]& \" \" &IF(Table24[[#This Row],[constat/projet]]=\"\",Table24[[#This Row],[Entretien]],Table24[[#This Row],[constat/projet]])","v":"HEURE / La Carlingue / réfectoire ajouter un plan de travail"}]
["HEURE","La Carlingue","abords extérieurs","faire un chemin praticable (ou terrasse) vers le bureau et toilettes",null,null,2,{"$f":"Table24[[#This Row],[Domaine]]&\" / \" &Table24[[#This Row],[bien]]&\" / \" &Table24[[#This Row],[composante]]","v":"HEURE / La Carlingue / abords extérieurs"},{"$f":"IF(Table24[[#This Row],[constat/projet]]=\"\",Table24[[#This Row],[Entretien]],Table24[[#This Row],[constat/projet]])","v":"faire un chemin praticable (ou terrasse) vers le bureau et toilettes"},{"$f":"Table24[[#This Row],[Localisation]]& \" \" &IF(Table24[[#This Row],[constat/projet]]=\"\",Table24[[#This Row],[Entretien]],Table24[[#This Row],[constat/projet]])","v":"HEURE / La Carlingue / abords extérieurs faire un chemin praticable (ou terrasse) vers le bureau et toilettes"}]
["HEURE","Le Grand Chalet","général","projet d'agrandissement",null,null,3,{"$f":"Table24[[#This Row],[Domaine]]&\" / \" &Table24[[#This Row],[bien]]&\" / \" &Table24[[#This Row],[composante]]","v":"HEURE / Le Grand Chalet / général"},{"$f":"IF(Table24[[#This Row],[constat/projet]]=\"\",Table24[[#This Row],[Entretien]],Table24[[#This Row],[constat/projet]])","v":"projet d'agrandissement"},{"$f":"Table24[[#This Row],[Localisation]]& \" \" &IF(Table24[[#This Row],[constat/projet]]=\"\",Table24[[#This Row],[Entretien]],Table24[[#This Row],[constat/projet]])","v":"HEURE / Le Grand Chalet / général projet d'agrandissement"}]
["HEURE","Ensemble du domaine","étang et abords de rivière","projet de nouveau barrage pour avoir à nouveau un étang",null,null,2,{"$f":"Table24[[#This Row],[Domaine]]&\" / \" &Table24[[#This Row],[bien]]&\" / \" &Table24[[#This Row],[composante]]","v":"HEURE / Ensemble du domaine / étang et abords de rivière"},{"$f":"IF(Table24[[#This Row],[constat/projet]]=\"\",Table24[[#This Row],[Entretien]],Table24[[#This Row],[constat/projet]])","v":"projet de nouveau barrage pour avoir à nouveau un étang"},{"$f":"Table24[[#This Row],[Localisation]]& \" \" &IF(Table24[[#This Row],[constat/projet]]=\"\",Table24[[#This Row],[Entretien]],Table24[[#This Row],[constat/projet]])","v":"HEURE / Ensemble du domaine / étang et abords de rivière projet de nouveau barrage pour avoir à nouveau un étang"}]
["HEURE","Ensemble du domaine","étang et abords de rivière","dégagement d'une Parcelle de bois en bord de rivière",null,null,2,{"$f":"Table24[[#This Row],[Domaine]]&\" / \" &Table24[[#This Row],[bien]]&\" / \" &Table24[[#This Row],[composante]]","v":"HEURE / Ensemble du domaine / étang et abords de rivière"},{"$f":"IF(Table24[[#This Row],[constat/projet]]=\"\",Table24[[#This Row],[Entretien]],Table24[[#This Row],[constat/projet]])","v":"dégagement d'une Parcelle de bois en bord de rivière"},{"$f":"Table24[[#This Row],[Localisation]]& \" \" &IF(Table24[[#This Row],[constat/projet]]=\"\",Table24[[#This Row],[Entretien]],Table24[[#This Row],[constat/projet]])","v":"HEURE / Ensemble du domaine / étang et abords de rivière dégagement d'une Parcelle de bois en bord de rivière"}]
["CDS","Ensemble du domaine","travail administratif","VENTE 2: annonce immoweb",null,null,2,{"$f":"Table24[[#This Row],[Domaine]]&\" / \" &Table24[[#This Row],[bien]]&\" / \" &Table24[[#This Row],[composante]]","v":"CDS / Ensemble du domaine / travail administratif"},{"$f":"IF(Table24[[#This Row],[constat/projet]]=\"\",Table24[[#This Row],[Entretien]],Table24[[#This Row],[constat/projet]])","v":"VENTE 2: annonce immoweb"},{"$f":"Table24[[#This Row],[Localisation]]& \" \" &IF(Table24[[#This Row],[constat/projet]]=\"\",Table24[[#This Row],[Entretien]],Table24[[#This Row],[constat/projet]])","v":"CDS / Ensemble du domaine / travail administratif VENTE 2: annonce immoweb"}]
["CDS","Ensemble du domaine","travail administratif","VENTE 2: faire des photos",null,null,2,{"$f":"Table24[[#This Row],[Domaine]]&\" / \" &Table24[[#This Row],[bien]]&\" / \" &Table24[[#This Row],[composante]]","v":"CDS / Ensemble du domaine / travail administratif"},{"$f":"IF(Table24[[#This Row],[constat/projet]]=\"\",Table24[[#This Row],[Entretien]],Table24[[#This Row],[constat/projet]])","v":"VENTE 2: faire des photos"},{"$f":"Table24[[#This Row],[Localisation]]& \" \" &IF(Table24[[#This Row],[constat/projet]]=\"\",Table24[[#This Row],[Entretien]],Table24[[#This Row],[constat/projet]])","v":"CDS / Ensemble du domaine / travail administratif VENTE 2: faire des photos"}]
["CDS","Ensemble du domaine","travail administratif","VENTE 1: créer annonce",null,null,1,{"$f":"Table24[[#This Row],[Domaine]]&\" / \" &Table24[[#This Row],[bien]]&\" / \" &Table24[[#This Row],[composante]]","v":"CDS / Ensemble du domaine / travail administratif"},{"$f":"IF(Table24[[#This Row],[constat/projet]]=\"\",Table24[[#This Row],[Entretien]],Table24[[#This Row],[constat/projet]])","v":"VENTE 1: créer annonce"},{"$f":"Table24[[#This Row],[Localisation]]& \" \" &IF(Table24[[#This Row],[constat/projet]]=\"\",Table24[[#This Row],[Entretien]],Table24[[#This Row],[constat/projet]])","v":"CDS / Ensemble du domaine / travail administratif VENTE 1: créer annonce"}]
["CDS","Ensemble du domaine","travail administratif","VENTE 3: choisir et prévenir notaire lorsqu'un repreneur est trouvé",null,null,3,{"$f":"Table24[[#This Row],[Domaine]]&\" / \" &Table24[[#This Row],[bien]]&\" / \" &Table24[[#This Row],[composante]]","v":"CDS / Ensemble du domaine / travail administratif"},{"$f":"IF(Table24[[#This Row],[constat/projet]]=\"\",Table24[[#This Row],[Entretien]],Table24[[#This Row],[constat/projet]])","v":"VENTE 3: choisir et prévenir notaire lorsqu'un repreneur est trouvé"},{"$f":"Table24[[#This Row],[Localisation]]& \" \" &IF(Table24[[#This Row],[constat/projet]]=\"\",Table24[[#This Row],[Entretien]],Table24[[#This Row],[constat/projet]])","v":"CDS / Ensemble du domaine / travail administratif VENTE 3: choisir et prévenir notaire lorsqu'un repreneur est trouvé"}]
["ITTRE","Ensemble du domaine","travail administratif","voir avec pierre pour des subsides infra",null,null,1,{"$f":"Table24[[#This Row],[Domaine]]&\" / \" &Table24[[#This Row],[bien]]&\" / \" &Table24[[#This Row],[composante]]","v":"ITTRE / Ensemble du domaine / travail administratif"},{"$f":"IF(Table24[[#This Row],[constat/projet]]=\"\",Table24[[#This Row],[Entretien]],Table24[[#This Row],[constat/projet]])","v":"voir avec pierre pour des subsides infra"},{"$f":"Table24[[#This Row],[Localisation]]& \" \" &IF(Table24[[#This Row],[constat/projet]]=\"\",Table24[[#This Row],[Entretien]],Table24[[#This Row],[constat/projet]])","v":"ITTRE / Ensemble du domaine / travail administratif voir avec pierre pour des subsides infra"}]
["PDH 38","Premier","appartement (pièce de vie)","se renseigner si les normes de sécurités sont respectées",null,null,2,{"$f":"Table24[[#This Row],[Domaine]]&\" / \" &Table24[[#This Row],[bien]]&\" / \" &Table24[[#This Row],[composante]]","v":"PDH 38 / Premier / appartement (pièce de vie)"},{"$f":"IF(Table24[[#This Row],[constat/projet]]=\"\",Table24[[#This Row],[Entretien]],Table24[[#This Row],[constat/projet]])","v":"se renseigner si les normes de sécurités sont respectées"},{"$f":"Table24[[#This Row],[Localisation]]& \" \" &IF(Table24[[#This Row],[constat/projet]]=\"\",Table24[[#This Row],[Entretien]],Table24[[#This Row],[constat/projet]])","v":"PDH 38 / Premier / appartement (pièce de vie) se renseigner si les normes de sécurités sont respectées"}]
["PDH 38","caves","chaudière et chauffage","voir avec catherine pour faire le point de ce qui est payé/pas payé et fait/pas fait par AMBIANCE & CHALEUR",null,null,2,{"$f":"Table24[[#This Row],[Domaine]]&\" / \" &Table24[[#This Row],[bien]]&\" / \" &Table24[[#This Row],[composante]]","v":"PDH 38 / caves / chaudière et chauffage"},{"$f":"IF(Table24[[#This Row],[constat/projet]]=\"\",Table24[[#This Row],[Entretien]],Table24[[#This Row],[constat/projet]])","v":"voir avec catherine pour faire le point de ce qui est payé/pas payé et fait/pas fait par AMBIANCE & CHALEUR"},{"$f":"Table24[[#This Row],[Localisation]]& \" \" &IF(Table24[[#This Row],[constat/projet]]=\"\",Table24[[#This Row],[Entretien]],Table24[[#This Row],[constat/projet]])","v":"PDH 38 / caves / chaudière et chauffage voir avec catherine pour faire le point de ce qui est payé/pas payé et fait/pas fait par AMBIANCE & CHALEUR"}]
["PDH 38","deuxième","appartement SGP (salle de bains)","réparer le pommeau de la baignoire",null,null,3,{"$f":"Table24[[#This Row],[Domaine]]&\" / \" &Table24[[#This Row],[bien]]&\" / \" &Table24[[#This Row],[composante]]","v":"PDH 38 / deuxième / appartement SGP (salle de bains)"},{"$f":"IF(Table24[[#This Row],[constat/projet]]=\"\",Table24[[#This Row],[Entretien]],Table24[[#This Row],[constat/projet]])","v":"réparer le pommeau de la baignoire"},{"$f":"Table24[[#This Row],[Localisation]]& \" \" &IF(Table24[[#This Row],[constat/projet]]=\"\",Table24[[#This Row],[Entretien]],Table24[[#This Row],[constat/projet]])","v":"PDH 38 / deuxième / appartement SGP (salle de bains) réparer le pommeau de la baignoire"}]
["PDH 38","caves","chaudière et chauffage",null,"entretien bisannuel de la chaudière","2017-09-01",{"$f":"IF(Table24[[#This Row],[Dates prévues]]=\"\",\"\", IF(Table24[[#This Row],[Dates prévues]]-15<TODAY(),1,3) )","v":3},{"$f":"Table24[[#This Row],[Domaine]]&\" / \" &Table24[[#This Row],[bien]]&\" / \" &Table24[[#This Row],[composante]]","v":"PDH 38 / caves / chaudière et chauffage"},{"$f":"IF(Table24[[#This Row],[constat/projet]]=\"\",Table24[[#This Row],[Entretien]],Table24[[#This Row],[constat/projet]])","v":"entretien bisannuel de la chaudière"},{"$f":"Table24[[#This Row],[Localisation]]& \" \" &IF(Table24[[#This Row],[constat/projet]]=\"\",Table24[[#This Row],[Entretien]],Table24[[#This Row],[constat/projet]])","v":"PDH 38 / caves / chaudière et chauffage entretien bisannuel de la chaudière"}]
["PDH 39","caves","chaudière et chauffage",null,"entretien bisannuel de la chaudière","2017-09-01",{"$f":"IF(Table24[[#This Row],[Dates prévues]]=\"\",\"\", IF(Table24[[#This Row],[Dates prévues]]-15<TODAY(),1,3) )","v":3},{"$f":"Table24[[#This Row],[Domaine]]&\" / \" &Table24[[#This Row],[bien]]&\" / \" &Table24[[#This Row],[composante]]","v":"PDH 39 / caves / chaudière et chauffage"},{"$f":"IF(Table24[[#This Row],[constat/projet]]=\"\",Table24[[#This Row],[Entretien]],Table24[[#This Row],[constat/projet]])","v":"entretien bisannuel de la chaudière"},{"$f":"Table24[[#This Row],[Localisation]]& \" \" &IF(Table24[[#This Row],[constat/projet]]=\"\",Table24[[#This Row],[Entretien]],Table24[[#This Row],[constat/projet]])","v":"PDH 39 / caves / chaudière et chauffage entretien bisannuel de la chaudière"}]
["PDH 38","Rez","autre","mettre à louer les pièces du rez comme bureaux",null,null,2,{"$f":"Table24[[#This Row],[Domaine]]&\" / \" &Table24[[#This Row],[bien]]&\" / \" &Table24[[#This Row],[composante]]","v":"PDH 38 / Rez / autre"},{"$f":"IF(Table24[[#This Row],[constat/projet]]=\"\",Table24[[#This Row],[Entretien]],Table24[[#This Row],[constat/projet]])","v":"mettre à louer les pièces du rez comme bureaux"},{"$f":"Table24[[#This Row],[Localisation]]& \" \" &IF(Table24[[#This Row],[constat/projet]]=\"\",Table24[[#This Row],[Entretien]],Table24[[#This Row],[constat/projet]])","v":"PDH 38 / Rez / autre mettre à louer les pièces du rez comme bureaux"}]
["HEURE","Ensemble du domaine","travail administratif","reprendre contract avec YannJacquet (photographe) pour réaliser des photos pro des domaines",null,"2016-05-10",{"$f":"IF(Table24[[#This Row],[Dates prévues]]=\"\",\"\", IF(Table24[[#This Row],[Dates prévues]]-15<TODAY(),1,3) )","v":1},{"$f":"Table24[[#This Row],[Domaine]]&\" / \" &Table24[[#This Row],[bien]]&\" / \" &Table24[[#This Row],[composante]]","v":"HEURE / Ensemble du domaine / travail administratif"},{"$f":"IF(Table24[[#This Row],[constat/projet]]=\"\",Table24[[#This Row],[Entretien]],Table24[[#This Row],[constat/projet]])","v":"reprendre contract avec YannJacquet (photographe) pour réaliser des photos pro des domaines"},{"$f":"Table24[[#This Row],[Localisation]]& \" \" &IF(Table24[[#This Row],[constat/projet]]=\"\",Table24[[#This Row],[Entretien]],Table24[[#This Row],[constat/projet]])","v":"HEURE / Ensemble du domaine / travail administratif reprendre contract avec YannJacquet (photographe) pour réaliser des photos pro des domaines"}]
["HEURE","Ensemble du domaine","travail administratif",null,"envoyer planning location à Milos","2016-05-15",{"$f":"IF(Table24[[#This Row],[Dates prévues]]=\"\",\"\", IF(Table24[[#This Row],[Dates prévues]]-15<TODAY(),1,3) )","v":1},{"$f":"Table24[[#This Row],[Domaine]]&\" / \" &Table24[[#This Row],[bien]]&\" / \" &Table24[[#This Row],[composante]]","v":"HEURE / Ensemble du domaine / travail administratif"},{"$f":"IF(Table24[[#This Row],[constat/projet]]=\"\",Table24[[#This Row],[Entretien]],Table24[[#This Row],[constat/projet]])","v":"envoyer planning location à Milos"},{"$f":"Table24[[#This Row],[Localisation]]& \" \" &IF(Table24[[#This Row],[constat/projet]]=\"\",Table24[[#This Row],[Entretien]],Table24[[#This Row],[constat/projet]])","v":"HEURE / Ensemble du domaine / travail administratif envoyer planning location à Milos"}]
["ITTRE","Ensemble du domaine","travail administratif",null,"envoyer planning location à Martine","2016-05-15",{"$f":"IF(Table24[[#This Row],[Dates prévues]]=\"\",\"\", IF(Table24[[#This Row],[Dates prévues]]-15<TODAY(),1,3) )","v":1},{"$f":"Table24[[#This Row],[Domaine]]&\" / \" &Table24[[#This Row],[bien]]&\" / \" &Table24[[#This Row],[composante]]","v":"ITTRE / Ensemble du domaine / travail administratif"},{"$f":"IF(Table24[[#This Row],[constat/projet]]=\"\",Table24[[#This Row],[Entretien]],Table24[[#This Row],[constat/projet]])","v":"envoyer planning location à Martine"},{"$f":"Table24[[#This Row],[Localisation]]& \" \" &IF(Table24[[#This Row],[constat/projet]]=\"\",Table24[[#This Row],[Entretien]],Table24[[#This Row],[constat/projet]])","v":"ITTRE / Ensemble du domaine / travail administratif envoyer planning location à Martine"}]
["CDS","Ensemble du domaine","travail administratif",null,"envoyer planning location à Guy","2016-05-15",{"$f":"IF(Table24[[#This Row],[Dates prévues]]=\"\",\"\", IF(Table24[[#This Row],[Dates prévues]]-15<TODAY(),1,3) )","v":1},{"$f":"Table24[[#This Row],[Domaine]]&\" / \" &Table24[[#This Row],[bien]]&\" / \" &Table24[[#This Row],[composante]]","v":"CDS / Ensemble du domaine / travail administratif"},{"$f":"IF(Table24[[#This Row],[constat/projet]]=\"\",Table24[[#This Row],[Entretien]],Table24[[#This Row],[constat/projet]])","v":"envoyer planning location à Guy"},{"$f":"Table24[[#This Row],[Localisation]]& \" \" &IF(Table24[[#This Row],[constat/projet]]=\"\",Table24[[#This Row],[Entretien]],Table24[[#This Row],[constat/projet]])","v":"CDS / Ensemble du domaine / travail administratif envoyer planning location à Guy"}]
["HEURE","Terrains","général","suivi du dossier abattage et plantation avec Yves Lambrecht",null,null,2,{"$f":"Table24[[#This Row],[Domaine]]&\" / \" &Table24[[#This Row],[bien]]&\" / \" &Table24[[#This Row],[composante]]","v":"HEURE / Terrains / général"},{"$f":"IF(Table24[[#This Row],[constat/projet]]=\"\",Table24[[#This Row],[Entretien]],Table24[[#This Row],[constat/projet]])","v":"suivi du dossier abattage et plantation avec Yves Lambrecht"},{"$f":"Table24[[#This Row],[Localisation]]& \" \" &IF(Table24[[#This Row],[constat/projet]]=\"\",Table24[[#This Row],[Entretien]],Table24[[#This Row],[constat/projet]])","v":"HEURE / Terrains / général suivi du dossier abattage et plantation avec Yves Lambrecht"}]
["HEURE","Ensemble du domaine","toilettes sèches","se renseigner sur les normes nbre de toilette par campeur",null,null,2,{"$f":"Table24[[#This Row],[Domaine]]&\" / \" &Table24[[#This Row],[bien]]&\" / \" &Table24[[#This Row],[composante]]","v":"HEURE / Ensemble du domaine / toilettes sèches"},{"$f":"IF(Table24[[#This Row],[constat/projet]]=\"\",Table24[[#This Row],[Entretien]],Table24[[#This Row],[constat/projet]])","v":"se renseigner sur les normes nbre de toilette par campeur"},{"$f":"Table24[[#This Row],[Localisation]]& \" \" &IF(Table24[[#This Row],[constat/projet]]=\"\",Table24[[#This Row],[Entretien]],Table24[[#This Row],[constat/projet]])","v":"HEURE / Ensemble du domaine / toilettes sèches se renseigner sur les normes nbre de toilette par campeur"}]
["HEURE","La Carlingue","abords extérieurs","créer un cabanon pour les déchets PMC",null,null,3,{"$f":"Table24[[#This Row],[Domaine]]&\" / \" &Table24[[#This Row],[bien]]&\" / \" &Table24[[#This Row],[composante]]","v":"HEURE / La Carlingue / abords extérieurs"},{"$f":"IF(Table24[[#This Row],[constat/projet]]=\"\",Table24[[#This Row],[Entretien]],Table24[[#This Row],[constat/projet]])","v":"créer un cabanon pour les déchets PMC"},{"$f":"Table24[[#This Row],[Localisation]]& \" \" &IF(Table24[[#This Row],[constat/projet]]=\"\",Table24[[#This Row],[Entretien]],Table24[[#This Row],[constat/projet]])","v":"HEURE / La Carlingue / abords extérieurs créer un cabanon pour les déchets PMC"}]
["PDH 39","Tout le bâtiment","travail administratif","vérifier conformité détecteurs incendie (déjà fait ?)",null,null,1,{"$f":"Table24[[#This Row],[Domaine]]&\" / \" &Table24[[#This Row],[bien]]&\" / \" &Table24[[#This Row],[composante]]","v":"PDH 39 / Tout le bâtiment / travail administratif"},{"$f":"IF(Table24[[#This Row],[constat/projet]]=\"\",Table24[[#This Row],[Entretien]],Table24[[#This Row],[constat/projet]])","v":"vérifier conformité détecteurs incendie (déjà fait ?)"},{"$f":"Table24[[#This Row],[Localisation]]& \" \" &IF(Table24[[#This Row],[constat/projet]]=\"\",Table24[[#This Row],[Entretien]],Table24[[#This Row],[constat/projet]])","v":"PDH 39 / Tout le bâtiment / travail administratif vérifier conformité détecteurs incendie (déjà fait ?)"}]
["HEURE","Ensemble du domaine","autre","créer un nouvel affichage didactique pour les déchets",null,"2016-10-01",{"$f":"IF(Table24[[#This Row],[Dates prévues]]=\"\",\"\", IF(Table24[[#This Row],[Dates prévues]]-15<TODAY(),1,3) )","v":3},{"$f":"Table24[[#This Row],[Domaine]]&\" / \" &Table24[[#This Row],[bien]]&\" / \" &Table24[[#This Row],[composante]]","v":"HEURE / Ensemble du domaine / autre"},{"$f":"IF(Table24[[#This Row],[constat/projet]]=\"\",Table24[[#This Row],[Entretien]],Table24[[#This Row],[constat/projet]])","v":"créer un nouvel affichage didactique pour les déchets"},{"$f":"Table24[[#This Row],[Localisation]]& \" \" &IF(Table24[[#This Row],[constat/projet]]=\"\",Table24[[#This Row],[Entretien]],Table24[[#This Row],[constat/projet]])","v":"HEURE / Ensemble du domaine / autre créer un nouvel affichage didactique pour les déchets"}]
["PDH 39","Tout le bâtiment","travail administratif",null,"vérifier si besoin catering siège","2016-05-15",{"$f":"IF(Table24[[#This Row],[Dates prévues]]=\"\",\"\", IF(Table24[[#This Row],[Dates prévues]]-15<TODAY(),1,3) )","v":1},{"$f":"Table24[[#This Row],[Domaine]]&\" / \" &Table24[[#This Row],[bien]]&\" / \" &Table24[[#This Row],[composante]]","v":"PDH 39 / Tout le bâtiment / travail administratif"},{"$f":"IF(Table24[[#This Row],[constat/projet]]=\"\",Table24[[#This Row],[Entretien]],Table24[[#This Row],[constat/projet]])","v":"vérifier si besoin catering siège"},{"$f":"Table24[[#This Row],[Localisation]]& \" \" &IF(Table24[[#This Row],[constat/projet]]=\"\",Table24[[#This Row],[Entretien]],Table24[[#This Row],[constat/projet]])","v":"PDH 39 / Tout le bâtiment / travail administratif vérifier si besoin catering siège"}]
["HEURE","Ensemble du domaine","autre","CONGRES : répartition des tâches et identification des besoins",null,null,1,{"$f":"Table24[[#This Row],[Domaine]]&\" / \" &Table24[[#This Row],[bien]]&\" / \" &Table24[[#This Row],[composante]]","v":"HEURE / Ensemble du domaine / autre"},{"$f":"IF(Table24[[#This Row],[constat/projet]]=\"\",Table24[[#This Row],[Entretien]],Table24[[#This Row],[constat/projet]])","v":"CONGRES : répartition des tâches et identification des besoins"},{"$f":"Table24[[#This Row],[Localisation]]& \" \" &IF(Table24[[#This Row],[constat/projet]]=\"\",Table24[[#This Row],[Entretien]],Table24[[#This Row],[constat/projet]])","v":"HEURE / Ensemble du domaine / autre CONGRES : répartition des tâches et identification des besoins"}]

{"sheet":"TODO LIST","index":1,"n_rows":193,"n_cols":7,"rows_kept":193,"cut":false,"hidden":false,"merged":[]}
["urgence","localisation","constat/projet/entretien","action","responsable","échéance","Loca / action"]
[{"$f":"IFERROR(IF(OFFSET(Table24[[#Headers],[Domaine]],MATCH(Table1[[#This Row],[Loca / action]],'Constats projets Entretiens'!J:J,0)-1,6,,)=0,\"\",OFFSET(Table24[[#Headers],[Domaine]],MATCH(Table1[[#This Row],[Loca / action]],'Constats projets Entretiens'!J:J,0)-1,6,,)),\"Ligne supprimée dans Constat\")","v":1},"PDH 39 / premier / cuisine","améliorer les conditions d'utilisation de la cuisine + commu",null,"greg",{"$f":"IFERROR(IF(OFFSET(Table24[[#Headers],[Domaine]],MATCH(Table1[[#This Row],[Loca / action]],'Constats projets Entretiens'!J:J,0)-1,5,,)=0,\"\",OFFSET(Table24[[#Headers],[Domaine]],MATCH(Table1[[#This Row],[Loca / action]],'Constats projets Entretiens'!J:J,0)-1,5,,)),\"Ligne supprimée dans Constat\")","v":"2016-04-30"},{"$f":"IFERROR(Table1[[#This Row],[localisation]]&\" \"&Table1[[#This Row],[constat/projet/entretien]],\"\")","v":"PDH 39 / premier / cuisine améliorer les conditions d'utilisation de la cuisine + commu"}]
[{"$f":"IFERROR(IF(OFFSET(Table24[[#Headers],[Domaine]],MATCH(Table1[[#This Row],[Loca / action]],'Constats projets Entretiens'!J:J,0)-1,6,,)=0,\"\",OFFSET(Table24[[#Headers],[Domaine]],MATCH(Table1[[#This Row],[Loca / action]],'Constats projets Entretiens'!J:J,0)-1,6,,)),\"Ligne supprimée dans Constat\")","v":1},"HEURE / Ensemble du domaine / autre","évacuer la citerne à gaz du mini-chalet","appeler atnargaz","greg",{"$f":"IFERROR(IF(OFFSET(Table24[[#Headers],[Domaine]],MATCH(Table1[[#This Row],[Loca / action]],'Constats projets Entretiens'!J:J,0)-1,5,,)=0,\"\",OFFSET(Table24[[#Headers],[Domaine]],MATCH(Table1[[#This Row],[Loca / action]],'Constats projets Entretiens'!J:J,0)-1,5,,)),\"Ligne supprimée dans Constat\")","v":"2016-04-30"},{"$f":"IFERROR(Table1[[#This Row],[localisation]]&\" \"&Table1[[#This Row],[constat/projet/entretien]],\"\")","v":"HEURE / Ensemble du domaine / autre évacuer la citerne à gaz du mini-chalet"}]
[{"$f":"IFERROR(IF(OFFSET(Table24[[#Headers],[Domaine]],MATCH(Table1[[#This Row],[Loca / action]],'Constats projets Entretiens'!J:J,0)-1,6,,)=0,\"\",OFFSET(Table24[[#Headers],[Domaine]],MATCH(Table1[[#This Row],[Loca / action]],'Constats projets Entretiens'!J:J,0)-1,6,,)),\"Ligne supprimée dans Constat\")","v":1},"PDH 39 / premier / cuisine","améliorer les conditions d'utilisation de la cuisine + commu",null,null,{"$f":"IFERROR(IF(OFFSET(Table24[[#Headers],[Domaine]],MATCH(Table1[[#This Row],[Loca / action]],'Constats projets Entretiens'!J:J,0)-1,5,,)=0,\"\",OFFSET(Table24[[#Headers],[Domaine]],MATCH(Table1[[#This Row],[Loca / action]],'Constats projets Entretiens'!J:J,0)-1,5,,)),\"Ligne supprimée dans Constat\")","v":"2016-04-30"},{"$f":"IFERROR(Table1[[#This Row],[localisation]]&\" \"&Table1[[#This Row],[constat/projet/entretien]],\"\")","v":"PDH 39 / premier / cuisine améliorer les conditions d'utilisation de la cuisine + commu"}]
[{"$f":"IFERROR(IF(OFFSET(Table24[[#Headers],[Domaine]],MATCH(Table1[[#This Row],[Loca / action]],'Constats projets Entretiens'!J:J,0)-1,6,,)=0,\"\",OFFSET(Table24[[#Headers],[Domaine]],MATCH(Table1[[#This Row],[Loca / action]],'Constats projets Entretiens'!J:J,0)-1,6,,)),\"Ligne supprimée dans Constat\")","v":1},"HEURE / Ensemble du domaine / autre","évacuer la citerne à gaz du mini-chalet",null,null,{"$f":"IFERROR(IF(OFFSET(Table24[[#Headers],[Domaine]],MATCH(Table1[[#This Row],[Loca / action]],'Constats projets Entretiens'!J:J,0)-1,5,,)=0,\"\",OFFSET(Table24[[#Headers],[Domaine]],MATCH(Table1[[#This Row],[Loca / action]],'Constats projets Entretiens'!J:J,0)-1,5,,)),\"Ligne supprimée dans Constat\")","v":"2016-04-30"},{"$f":"IFERROR(Table1[[#This Row],[localisation]]&\" \"&Table1[[#This Row],[constat/projet/entretien]],\"\")","v":"HEURE / Ensemble du domaine / autre évacuer la citerne à gaz du mini-chalet"}]
[{"$f":"IFERROR(IF(OFFSET(Table24[[#Headers],[Domaine]],MATCH(Table1[[#This Row],[Loca / action]],'Constats projets Entretiens'!J:J,0)-1,6,,)=0,\"\",OFFSET(Table24[[#Headers],[Domaine]],MATCH(Table1[[#This Row],[Loca / action]],'Constats projets Entretiens'!J:J,0)-1,6,,)),\"Ligne supprimée dans Constat\")","v":1},"HEURE / Ensemble du domaine / travail administratif","reprendre contract avec YannJacquet (photographe) pour réaliser des photos pro des domaines","appeler Yann Jacquet","greg",{"$f":"IFERROR(IF(OFFSET(Table24[[#Headers],[Domaine]],MATCH(Table1[[#This Row],[Loca / action]],'Constats projets Entretiens'!J:J,0)-1,5,,)=0,\"\",OFFSET(Table24[[#Headers],[Domaine]],MATCH(Table1[[#This Row],[Loca / action]],'Constats projets Entretiens'!J:J,0)-1,5,,)),\"Ligne supprimée dans Constat\")","v":"2016-05-10"},{"$f":"IFERROR(Table1[[#This Row],[localisation]]&\" \"&Table1[[#This Row],[constat/projet/entretien]],\"\")","v":"HEURE / Ensemble du domaine / travail administratif reprendre contract avec YannJacquet (photographe) pour réaliser des photos pro des domaines"}]
[{"$f":"IFERROR(IF(OFFSET(Table24[[#Headers],[Domaine]],MATCH(Table1[[#This Row],[Loca / action]],'Constats projets Entretiens'!J:J,0)-1,6,,)=0,\"\",OFFSET(Table24[[#Headers],[Domaine]],MATCH(Table1[[#This Row],[Loca / action]],'Constats projets Entretiens'!J:J,0)-1,6,,)),\"Ligne supprimée dans Constat\")","v":1},"HEURE / Ensemble du domaine / travail administratif","reprendre contract avec YannJacquet (photographe) pour réaliser des photos pro des domaines",null,null,{"$f":"IFERROR(IF(OFFSET(Table24[[#Headers],[Domaine]],MATCH(Table1[[#This Row],[Loca / action]],'Constats projets Entretiens'!J:J,0)-1,5,,)=0,\"\",OFFSET(Table24[[#Headers],[Domaine]],MATCH(Table1[[#This Row],[Loca / action]],'Constats projets Entretiens'!J:J,0)-1,5,,)),\"Ligne supprimée dans Constat\")","v":"2016-05-10"},{"$f":"IFERROR(Table1[[#This Row],[localisation]]&\" \"&Table1[[#This Row],[constat/projet/entretien]],\"\")","v":"HEURE / Ensemble du domaine / travail administratif reprendre contract avec YannJacquet (photographe) pour réaliser des photos pro des domaines"}]
[{"$f":"IFERROR(IF(OFFSET(Table24[[#Headers],[Domaine]],MATCH(Table1[[#This Row],[Loca / action]],'Constats projets Entretiens'!J:J,0)-1,6,,)=0,\"\",OFFSET(Table24[[#Headers],[Domaine]],MATCH(Table1[[#This Row],[Loca / action]],'Constats projets Entretiens'!J:J,0)-1,6,,)),\"Ligne supprimée dans Constat\")","v":1},"HEURE / Ensemble du domaine / travail administratif","envoyer planning location à Milos",null,null,{"$f":"IFERROR(IF(OFFSET(Table24[[#Headers],[Domaine]],MATCH(Table1[[#This Row],[Loca / action]],'Constats projets Entretiens'!J:J,0)-1,5,,)=0,\"\",OFFSET(Table24[[#Headers],[Domaine]],MATCH(Table1[[#This Row],[Loca / action]],'Constats projets Entretiens'!J:J,0)-1,5,,)),\"Ligne supprimée dans Constat\")","v":"2016-05-15"},{"$f":"IFERROR(Table1[[#This Row],[localisation]]&\" \"&Table1[[#This Row],[constat/projet/entretien]],\"\")","v":"HEURE / Ensemble du domaine / travail administratif envoyer planning location à Milos"}]
[{"$f":"IFERROR(IF(OFFSET(Table24[[#Headers],[Domaine]],MATCH(Table1[[#This Row],[Loca / action]],'Constats projets Entretiens'!J:J,0)-1,6,,)=0,\"\",OFFSET(Table24[[#Headers],[Domaine]],MATCH(Table1[[#This Row],[Loca / action]],'Constats projets Entretiens'!J:J,0)-1,6,,)),\"Ligne supprimée dans Constat\")","v":1},"PDH 39 / Tout le bâtiment / travail administratif","vérifier si besoin catering siège",null,null,{"$f":"IFERROR(IF(OFFSET(Table24[[#Headers],[Domaine]],MATCH(Table1[[#This Row],[Loca / action]],'Constats projets Entretiens'!J:J,0)-1,5,,)=0,\"\",OFFSET(Table24[[#Headers],[Domaine]],MATCH(Table1[[#This Row],[Loca / action]],'Constats projets Entretiens'!J:J,0)-1,5,,)),\"Ligne supprimée dans Constat\")","v":"2016-05-15"},{"$f":"IFERROR(Table1[[#This Row],[localisation]]&\" \"&Table1[[#This Row],[constat/projet/entretien]],\"\")","v":"PDH 39 / Tout le bâtiment / travail administratif vérifier si besoin catering siège"}]
[{"$f":"IFERROR(IF(OFFSET(Table24[[#Headers],[Domaine]],MATCH(Table1[[#This Row],[Loca / action]],'Constats projets Entretiens'!J:J,0)-1,6,,)=0,\"\",OFFSET(Table24[[#Headers],[Domaine]],MATCH(Table1[[#This Row],[Loca / action]],'Constats projets Entretiens'!J:J,0)-1,6,,)),\"Ligne supprimée dans Constat\")","v":1},"CDS / Ensemble du domaine / travail administratif","envoyer planning location à Guy",null,null,{"$f":"IFERROR(IF(OFFSET(Table24[[#Headers],[Domaine]],MATCH(Table1[[#This Row],[Loca / action]],'Constats projets Entretiens'!J:J,0)-1,5,,)=0,\"\",OFFSET(Table24[[#Headers],[Domaine]],MATCH(Table1[[#This Row],[Loca / action]],'Constats projets Entretiens'!J:J,0)-1,5,,)),\"Ligne supprimée dans Constat\")","v":"2016-05-15"},{"$f":"IFERROR(Table1[[#This Row],[localisation]]&\" \"&Table1[[#This Row],[constat/projet/entretien]],\"\")","v":"CDS / Ensemble du domaine / travail administratif envoyer planning location à Guy"}]
[{"$f":"IFERROR(IF(OFFSET(Table24[[#Headers],[Domaine]],MATCH(Table1[[#This Row],[Loca / action]],'Constats projets Entretiens'!J:J,0)-1,6,,)=0,\"\",OFFSET(Table24[[#Headers],[Domaine]],MATCH(Table1[[#This Row],[Loca / action]],'Constats projets Entretiens'!J:J,0)-1,6,,)),\"Ligne supprimée dans Constat\")","v":1},"ITTRE / Ensemble du domaine / travail administratif","envoyer planning location à Martine",null,null,{"$f":"IFERROR(IF(OFFSET(Table24[[#Headers],[Domaine]],MATCH(Table1[[#This Row],[Loca / action]],'Constats projets Entretiens'!J:J,0)-1,5,,)=0,\"\",OFFSET(Table24[[#Headers],[Domaine]],MATCH(Table1[[#This Row],[Loca / action]],'Constats projets Entretiens'!J:J,0)-1,5,,)),\"Ligne supprimée dans Constat\")","v":"2016-05-15"},{"$f":"IFERROR(Table1[[#This Row],[localisation]]&\" \"&Table1[[#This Row],[constat/projet/entretien]],\"\")","v":"ITTRE / Ensemble du domaine / travail administratif envoyer planning location à Martine"}]
[{"$f":"IFERROR(IF(OFFSET(Table24[[#Headers],[Domaine]],MATCH(Table1[[#This Row],[Loca / action]],'Constats projets Entretiens'!J:J,0)-1,6,,)=0,\"\",OFFSET(Table24[[#Headers],[Domaine]],MATCH(Table1[[#This Row],[Loca / action]],'Constats projets Entretiens'!J:J,0)-1,6,,)),\"Ligne supprimée dans Constat\")","v":1},"HEURE / Ensemble du domaine / travail administratif","envoyer planning location à Milos",null,null,{"$f":"IFERROR(IF(OFFSET(Table24[[#Headers],[Domaine]],MATCH(Table1[[#This Row],[Loca / action]],'Constats projets Entretiens'!J:J,0)-1,5,,)=0,\"\",OFFSET(Table24[[#Headers],[Domaine]],MATCH(Table1[[#This Row],[Loca / action]],'Constats projets Entretiens'!J:J,0)-1,5,,)),\"Ligne supprimée dans Constat\")","v":"2016-05-15"},{"$f":"IFERROR(Table1[[#This Row],[localisation]]&\" \"&Table1[[#This Row],[constat/projet/entretien]],\"\")","v":"HEURE / Ensemble du domaine / travail administratif envoyer planning location à Milos"}]
[{"$f":"IFERROR(IF(OFFSET(Table24[[#Headers],[Domaine]],MATCH(Table1[[#This Row],[Loca / action]],'Constats projets Entretiens'!J:J,0)-1,6,,)=0,\"\",OFFSET(Table24[[#Headers],[Domaine]],MATCH(Table1[[#This Row],[Loca / action]],'Constats projets Entretiens'!J:J,0)-1,6,,)),\"Ligne supprimée dans Constat\")","v":1},"PDH 39 / Tout le bâtiment / travail administratif","vérifier si besoin catering siège",null,null,{"$f":"IFERROR(IF(OFFSET(Table24[[#Headers],[Domaine]],MATCH(Table1[[#This Row],[Loca / action]],'Constats projets Entretiens'!J:J,0)-1,5,,)=0,\"\",OFFSET(Table24[[#Headers],[Domaine]],MATCH(Table1[[#This Row],[Loca / action]],'Constats projets Entretiens'!J:J,0)-1,5,,)),\"Ligne supprimée dans Constat\")","v":"2016-05-15"},{"$f":"IFERROR(Table1[[#This Row],[localisation]]&\" \"&Table1[[#This Row],[constat/projet/entretien]],\"\")","v":"PDH 39 / Tout le bâtiment / travail administratif vérifier si besoin catering siège"}]
[{"$f":"IFERROR(IF(OFFSET(Table24[[#Headers],[Domaine]],MATCH(Table1[[#This Row],[Loca / action]],'Constats projets Entretiens'!J:J,0)-1,6,,)=0,\"\",OFFSET(Table24[[#Headers],[Domaine]],MATCH(Table1[[#This Row],[Loca / action]],'Constats projets Entretiens'!J:J,0)-1,6,,)),\"Ligne supprimée dans Constat\")","v":1},"CDS / Ensemble du domaine / travail administratif","envoyer planning location à Guy",null,null,{"$f":"IFERROR(IF(OFFSET(Table24[[#Headers],[Domaine]],MATCH(Table1[[#This Row],[Loca / action]],'Constats projets Entretiens'!J:J,0)-1,5,,)=0,\"\",OFFSET(Table24[[#Headers],[Domaine]],MATCH(Table1[[#This Row],[Loca / action]],'Constats projets Entretiens'!J:J,0)-1,5,,)),\"Ligne supprimée dans Constat\")","v":"2016-05-15"},{"$f":"IFERROR(Table1[[#This Row],[localisation]]&\" \"&Table1[[#This Row],[constat/projet/entretien]],\"\")","v":"CDS / Ensemble du domaine / travail administratif envoyer planning location à Guy"}]
[{"$f":"IFERROR(IF(OFFSET(Table24[[#Headers],[Domaine]],MATCH(Table1[[#This Row],[Loca / action]],'Constats projets Entretiens'!J:J,0)-1,6,,)=0,\"\",OFFSET(Table24[[#Headers],[Domaine]],MATCH(Table1[[#This Row],[Loca / action]],'Constats projets Entretiens'!J:J,0)-1,6,,)),\"Ligne supprimée dans Constat\")","v":1},"ITTRE / Ensemble du domaine / travail administratif","envoyer planning location à Martine",null,null,{"$f":"IFERROR(IF(OFFSET(Table24[[#Headers],[Domaine]],MATCH(Table1[[#This Row],[Loca / action]],'Constats projets Entretiens'!J:J,0)-1,5,,)=0,\"\",OFFSET(Table24[[#Headers],[Domaine]],MATCH(Table1[[#This Row],[Loca / action]],'Constats projets Entretiens'!J:J,0)-1,5,,)),\"Ligne supprimée dans Constat\")","v":"2016-05-15"},{"$f":"IFERROR(Table1[[#This Row],[localisation]]&\" \"&Table1[[#This Row],[constat/projet/entretien]],\"\")","v":"ITTRE / Ensemble du domaine / travail administratif envoyer planning location à Martine"}]
[{"$f":"IFERROR(IF(OFFSET(Table24[[#Headers],[Domaine]],MATCH(Table1[[#This Row],[Loca / action]],'Constats projets Entretiens'!J:J,0)-1,6,,)=0,\"\",OFFSET(Table24[[#Headers],[Domaine]],MATCH(Table1[[#This Row],[Loca / action]],'Constats projets Entretiens'!J:J,0)-1,6,,)),\"Ligne supprimée dans Constat\")","v":1},"CDS / Ensemble du domaine / relation aux autorités publiques","COUVIN : gérer les dossiers à remettre à la commune","faire un rappel aux groupes qui louent","greg",{"$f":"IFERROR(IF(OFFSET(Table24[[#Headers],[Domaine]],MATCH(Table1[[#This Row],[Loca / action]],'Constats projets Entretiens'!J:J,0)-1,5,,)=0,\"\",OFFSET(Table24[[#Headers],[Domaine]],MATCH(Table1[[#This Row],[Loca / action]],'Constats projets Entretiens'!J:J,0)-1,5,,)),\"Ligne supprimée dans Constat\")","v":"2016-05-31"},{"$f":"IFERROR(Table1[[#This Row],[localisation]]&\" \"&Table1[[#This Row],[constat/projet/entretien]],\"\")","v":"CDS / Ensemble du domaine / relation aux autorités publiques COUVIN : gérer les dossiers à remettre à la commune"}]
[{"$f":"IFERROR(IF(OFFSET(Table24[[#Headers],[Domaine]],MATCH(Table1[[#This Row],[Loca / action]],'Constats projets Entretiens'!J:J,0)-1,6,,)=0,\"\",OFFSET(Table24[[#Headers],[Domaine]],MATCH(Table1[[#This Row],[Loca / action]],'Constats projets Entretiens'!J:J,0)-1,6,,)),\"Ligne supprimée dans Constat\")","v":1},"CDS / Ensemble du domaine / relation aux autorités publiques","COUVIN : gérer les dossiers à remettre à la commune",null,null,{"$f":"IFERROR(IF(OFFSET(Table24[[#Headers],[Domaine]],MATCH(Table1[[#This Row],[Loca / action]],'Constats projets Entretiens'!J:J,0)-1,5,,)=0,\"\",OFFSET(Table24[[#Headers],[Domaine]],MATCH(Table1[[#This Row],[Loca / action]],'Constats projets Entretiens'!J:J,0)-1,5,,)),\"Ligne supprimée dans Constat\")","v":"2016-05-31"},{"$f":"IFERROR(Table1[[#This Row],[localisation]]&\" \"&Table1[[#This Row],[constat/projet/entretien]],\"\")","v":"CDS / Ensemble du domaine / relation aux autorités publiques COUVIN : gérer les dossiers à remettre à la commune"}]
[{"$f":"IFERROR(IF(OFFSET(Table24[[#Headers],[Domaine]],MATCH(Table1[[#This Row],[Loca / action]],'Constats projets Entretiens'!J:J,0)-1,6,,)=0,\"\",OFFSET(Table24[[#Headers],[Domaine]],MATCH(Table1[[#This Row],[Loca / action]],'Constats projets Entretiens'!J:J,0)-1,6,,)),\"Ligne supprimée dans Constat\")","v":1},"HEURE / Ensemble du domaine / relation aux autorités publiques","dossier bourgmestre",null,"gil",{"$f":"IFERROR(IF(OFFSET(Table24[[#Headers],[Domaine]],MATCH(Table1[[#This Row],[Loca / action]],'Constats projets Entretiens'!J:J,0)-1,5,,)=0,\"\",OFFSET(Table24[[#Headers],[Domaine]],MATCH(Table1[[#This Row],[Loca / action]],'Constats projets Entretiens'!J:J,0)-1,5,,)),\"Ligne supprimée dans Constat\")","v":""},{"$f":"IFERROR(Table1[[#This Row],[localisation]]&\" \"&Table1[[#This Row],[constat/projet/entretien]],\"\")","v":"HEURE / Ensemble du domaine / relation aux autorités publiques dossier bourgmestre"}]
[{"$f":"IFERROR(IF(OFFSET(Table24[[#Headers],[Domaine]],MATCH(Table1[[#This Row],[Loca / action]],'Constats projets Entretiens'!J:J,0)-1,6,,)=0,\"\",OFFSET(Table24[[#Headers],[Domaine]],MATCH(Table1[[#This Row],[Loca / action]],'Constats projets Entretiens'!J:J,0)-1,6,,)),\"Ligne supprimée dans Constat\")","v":1},"ITTRE / Ensemble du domaine / chemins","eaux dévalent le chemin et entrent dans les bâtiments","établir des devis pour voir si pas moins cher","greg",{"$f":"IFERROR(IF(OFFSET(Table24[[#Headers],[Domaine]],MATCH(Table1[[#This Row],[Loca / action]],'Constats projets Entretiens'!J:J,0)-1,5,,)=0,\"\",OFFSET(Table24[[#Headers],[Domaine]],MATCH(Table1[[#This Row],[Loca / action]],'Constats projets Entretiens'!J:J,0)-1,5,,)),\"Ligne supprimée dans Constat\")","v":""},{"$f":"IFERROR(Table1[[#This Row],[localisation]]&\" \"&Table1[[#This Row],[constat/projet/entretien]],\"\")","v":"ITTRE / Ensemble du domaine / chemins eaux dévalent le chemin et entrent dans les bâtiments"}]
[{"$f":"IFERROR(IF(OFFSET(Table24[[#Headers],[Domaine]],MATCH(Table1[[#This Row],[Loca / action]],'Constats projets Entretiens'!J:J,0)-1,6,,)=0,\"\",OFFSET(Table24[[#Headers],[Domaine]],MATCH(Table1[[#This Row],[Loca / action]],'Constats projets Entretiens'!J:J,0)-1,6,,)),\"Ligne supprimée dans Constat\")","v":1},"ITTRE / Intérieur / cuisine","POMPIER : placer une hotte",null,"milos",{"$f":"IFERROR(IF(OFFSET(Table24[[#Headers],[Domaine]],MATCH(Table1[[#This Row],[Loca / action]],'Constats projets Entretiens'!J:J,0)-1,5,,)=0,\"\",OFFSET(Table24[[#Headers],[Domaine]],MATCH(Table1[[#This Row],[Loca / action]],'Constats projets Entretiens'!J:J,0)-1,5,,)),\"Ligne supprimée dans Constat\")","v":""},{"$f":"IFERROR(Table1[[#This Row],[localisation]]&\" \"&Table1[[#This Row],[constat/projet/entretien]],\"\")","v":"ITTRE / Intérieur / cuisine POMPIER : placer une hotte"}]
[{"$f":"IFERROR(IF(OFFSET(Table24[[#Headers],[Domaine]],MATCH(Table1[[#This Row],[Loca / action]],'Constats projets Entretiens'!J:J,0)-1,6,,)=0,\"\",OFFSET(Table24[[#Headers],[Domaine]],MATCH(Table1[[#This Row],[Loca / action]],'Constats projets Entretiens'!J:J,0)-1,6,,)),\"Ligne supprimée dans Constat\")","v":1},"PDH 38 / caves / chaudière et chauffage","chaudière instable, s'éteint tout le temps",null,"roro",{"$f":"IFERROR(IF(OFFSET(Table24[[#Headers],[Domaine]],MATCH(Table1[[#This Row],[Loca / action]],'Constats projets Entretiens'!J:J,0)-1,5,,)=0,\"\",OFFSET(Table24[[#Headers],[Domaine]],MATCH(Table1[[#This Row],[Loca / action]],'Constats projets Entretiens'!J:J,0)-1,5,,)),\"Ligne supprimée dans Constat\")","v":""},{"$f":"IFERROR(Table1[[#This Row],[localisation]]&\" \"&Table1[[#This Row],[constat/projet/entretien]],\"\")","v":"PDH 38 / caves / chaudière et chauffage chaudière instable, s'éteint tout le temps"}]
[{"$f":"IFERROR(IF(OFFSET(Table24[[#Headers],[Domaine]],MATCH(Table1[[#This Row],[Loca / action]],'Constats projets Entretiens'!J:J,0)-1,6,,)=0,\"\",OFFSET(Table24[[#Headers],[Domaine]],MATCH(Table1[[#This Row],[Loca / action]],'Constats projets Entretiens'!J:J,0)-1,6,,)),\"Ligne supprimée dans Constat\")","v":1},"PDH 39 / Tout le bâtiment / travail administratif","vérifier conformité détecteurs incendie (déjà fait ?)","voir si ça a été fait","greg",{"$f":"IFERROR(IF(OFFSET(Table24[[#Headers],[Domaine]],MATCH(Table1[[#This Row],[Loca / action]],'Constats projets Entretiens'!J:J,0)-1,5,,)=0,\"\",OFFSET(Table24[[#Headers],[Domaine]],MATCH(Table1[[#This Row],[Loca / action]],'Constats projets Entretiens'!J:J,0)-1,5,,)),\"Ligne supprimée dans Constat\")","v":""},{"$f":"IFERROR(Table1[[#This Row],[localisation]]&\" \"&Table1[[#This Row],[constat/projet/entretien]],\"\")","v":"PDH 39 / Tout le bâtiment / travail administratif vérifier conformité détecteurs incendie (déjà fait ?)"}]
[{"$f":"IFERROR(IF(OFFSET(Table24[[#Headers],[Domaine]],MATCH(Table1[[#This Row],[Loca / action]],'Constats projets Entretiens'!J:J,0)-1,6,,)=0,\"\",OFFSET(Table24[[#Headers],[Domaine]],MATCH(Table1[[#This Row],[Loca / action]],'Constats projets Entretiens'!J:J,0)-1,6,,)),\"Ligne supprimée dans Constat\")","v":1},"PDH 39 / caves / chaudière et chauffage","chaudière embouée",null,"roro",{"$f":"IFERROR(IF(OFFSET(Table24[[#Headers],[Domaine]],MATCH(Table1[[#This Row],[Loca / action]],'Constats projets Entretiens'!J:J,0)-1,5,,)=0,\"\",OFFSET(Table24[[#Headers],[Domaine]],MATCH(Table1[[#This Row],[Loca / action]],'Constats projets Entretiens'!J:J,0)-1,5,,)),\"Ligne supprimée dans Constat\")","v":""},{"$f":"IFERROR(Table1[[#This Row],[localisation]]&\" \"&Table1[[#This Row],[constat/projet/entretien]],\"\")","v":"PDH 39 / caves / chaudière et chauffage chaudière embouée"}]
[{"$f":"IFERROR(IF(OFFSET(Table24[[#Headers],[Domaine]],MATCH(Table1[[#This Row],[Loca / action]],'Constats projets Entretiens'!J:J,0)-1,6,,)=0,\"\",OFFSET(Table24[[#Headers],[Domaine]],MATCH(Table1[[#This Row],[Loca / action]],'Constats projets Entretiens'!J:J,0)-1,6,,)),\"Ligne supprimée dans Constat\")","v":1},"PDH 39 / premier / autre","OXFAM : obtenir les armoires et chaises manquantes","contacter M verinden","greg",{"$f":"IFERROR(IF(OFFSET(Table24[[#Headers],[Domaine]],MATCH(Table1[[#This Row],[Loca / action]],'Constats projets Entretiens'!J:J,0)-1,5,,)=0,\"\",OFFSET(Table24[[#Headers],[Domaine]],MATCH(Table1[[#This Row],[Loca / action]],'Constats projets Entretiens'!J:J,0)-1,5,,)),\"Ligne supprimée dans Constat\")","v":""},{"$f":"IFERROR(Table1[[#This Row],[localisation]]&\" \"&Table1[[#This Row],[constat/projet/entretien]],\"\")","v":"PDH 39 / premier / autre OXFAM : obtenir les armoires et chaises manquantes"}]
[{"$f":"IFERROR(IF(OFFSET(Table24[[#Headers],[Domaine]],MATCH(Table1[[#This Row],[Loca / action]],'Constats projets Entretiens'!J:J,0)-1,6,,)=0,\"\",OFFSET(Table24[[#Headers],[Domaine]],MATCH(Table1[[#This Row],[Loca / action]],'Constats projets Entretiens'!J:J,0)-1,6,,)),\"Ligne supprimée dans Constat\")","v":1},"PDH 39 / premier / autre","OXFAM : faire enlever le mobilier en trop","contacter M verinden","greg",{"$f":"IFERROR(IF(OFFSET(Table24[[#Headers],[Domaine]],MATCH(Table1[[#This Row],[Loca / action]],'Constats projets Entretiens'!J:J,0)-1,5,,)=0,\"\",OFFSET(Table24[[#Headers],[Domaine]],MATCH(Table1[[#This Row],[Loca / action]],'Constats projets Entretiens'!J:J,0)-1,5,,)),\"Ligne supprimée dans Constat\")","v":""},{"$f":"IFERROR(Table1[[#This Row],[localisation]]&\" \"&Table1[[#This Row],[constat/projet/entretien]],\"\")","v":"PDH 39 / premier / autre OXFAM : faire enlever le mobilier en trop"}]
[{"$f":"IFERROR(IF(OFFSET(Table24[[#Headers],[Domaine]],MATCH(Table1[[#This Row],[Loca / action]],'Constats projets Entretiens'!J:J,0)-1,6,,)=0,\"\",OFFSET(Table24[[#Headers],[Domaine]],MATCH(Table1[[#This Row],[Loca / action]],'Constats projets Entretiens'!J:J,0)-1,6,,)),\"Ligne supprimée dans Constat\")","v":1},"CDS / Ensemble du domaine / travail administratif","VENTE 1: annoncer la vente aux potentiels repreneurs",null,"greg",{"$f":"IFERROR(IF(OFFSET(Table24[[#Headers],[Domaine]],MATCH(Table1[[#This Row],[Loca / action]],'Constats projets Entretiens'!J:J,0)-1,5,,)=0,\"\",OFFSET(Table24[[#Headers],[Domaine]],MATCH(Table1[[#This Row],[Loca / action]],'Constats projets Entretiens'!J:J,0)-1,5,,)),\"Ligne supprimée dans Constat\")","v":""},{"$f":"IFERROR(Table1[[#This Row],[localisation]]&\" \"&Table1[[#This Row],[constat/projet/entretien]],\"\")","v":"CDS / Ensemble du domaine / travail administratif VENTE 1: annoncer la vente aux potentiels repreneurs"}]
[{"$f":"IFERROR(IF(OFFSET(Table24[[#Headers],[Domaine]],MATCH(Table1[[#This Row],[Loca / action]],'Constats projets Entretiens'!J:J,0)-1,6,,)=0,\"\",OFFSET(Table24[[#Headers],[Domaine]],MATCH(Table1[[#This Row],[Loca / action]],'Constats projets Entretiens'!J:J,0)-1,6,,)),\"Ligne supprimée dans Constat\")","v":1},"CDS / Ensemble du domaine / travail administratif","VENTE 1: créer annonce",null,"greg",{"$f":"IFERROR(IF(OFFSET(Table24[[#Headers],[Domaine]],MATCH(Table1[[#This Row],[Loca / action]],'Constats projets Entretiens'!J:J,0)-1,5,,)=0,\"\",OFFSET(Table24[[#Headers],[Domaine]],MATCH(Table1[[#This Row],[Loca / action]],'Constats projets Entretiens'!J:J,0)-1,5,,)),\"Ligne supprimée dans Constat\")","v":""},{"$f":"IFERROR(Table1[[#This Row],[localisation]]&\" \"&Table1[[#This Row],[constat/projet/entretien]],\"\")","v":"CDS / Ensemble du domaine / travail administratif VENTE 1: créer annonce"}]
[{"$f":"IFERROR(IF(OFFSET(Table24[[#Headers],[Domaine]],MATCH(Table1[[#This Row],[Loca / action]],'Constats projets Entretiens'!J:J,0)-1,6,,)=0,\"\",OFFSET(Table24[[#Headers],[Domaine]],MATCH(Table1[[#This Row],[Loca / action]],'Constats projets Entretiens'!J:J,0)-1,6,,)),\"Ligne supprimée dans Constat\")","v":1},"CDS / Intérieur / menuiserie","POMPIER : barre anti-panique",null,"milos",{"$f":"IFERROR(IF(OFFSET(Table24[[#Headers],[Domaine]],MATCH(Table1[[#This Row],[Loca / action]],'Constats projets Entretiens'!J:J,0)-1,5,,)=0,\"\",OFFSET(Table24[[#Headers],[Domaine]],MATCH(Table1[[#This Row],[Loca / action]],'Constats projets Entretiens'!J:J,0)-1,5,,)),\"Ligne supprimée dans Constat\")","v":""},{"$f":"IFERROR(Table1[[#This Row],[localisation]]&\" \"&Table1[[#This Row],[constat/projet/entretien]],\"\")","v":"CDS / Intérieur / menuiserie POMPIER : barre anti-panique"}]
[{"$f":"IFERROR(IF(OFFSET(Table24[[#Headers],[Domaine]],MATCH(Table1[[#This Row],[Loca / action]],'Constats projets Entretiens'!J:J,0)-1,6,,)=0,\"\",OFFSET(Table24[[#Headers],[Domaine]],MATCH(Table1[[#This Row],[Loca / action]],'Constats projets Entretiens'!J:J,0)-1,6,,)),\"Ligne supprimée dans Constat\")","v":1},"HEURE / Ensemble du domaine / autre","CONGRES : répartition des tâches et identification des besoins",null,null,{"$f":"IFERROR(IF(OFFSET(Table24[[#Headers],[Domaine]],MATCH(Table1[[#This Row],[Loca / action]],'Constats projets Entretiens'!J:J,0)-1,5,,)=0,\"\",OFFSET(Table24[[#Headers],[Domaine]],MATCH(Table1[[#This Row],[Loca / action]],'Constats projets Entretiens'!J:J,0)-1,5,,)),\"Ligne supprimée dans Constat\")","v":""},{"$f":"IFERROR(Table1[[#This Row],[localisation]]&\" \"&Table1[[#This Row],[constat/projet/entretien]],\"\")","v":"HEURE / Ensemble du domaine / autre CONGRES : répartition des tâches et identification des besoins"}]
[{"$f":"IFERROR(IF(OFFSET(Table24[[#Headers],[Domaine]],MATCH(Table1[[#This Row],[Loca / action]],'Constats projets Entretiens'!J:J,0)-1,6,,)=0,\"\",OFFSET(Table24[[#Headers],[Domaine]],MATCH(Table1[[#This Row],[Loca / action]],'Constats projets Entretiens'!J:J,0)-1,6,,)),\"Ligne supprimée dans Constat\")","v":1},"ITTRE / Ensemble du domaine / travail administratif","voir avec pierre pour des subsides infra",null,"greg",{"$f":"IFERROR(IF(OFFSET(Table24[[#Headers],[Domaine]],MATCH(Table1[[#This Row],[Loca / action]],'Constats projets Entretiens'!J:J,0)-1,5,,)=0,\"\",OFFSET(Table24[[#Headers],[Domaine]],MATCH(Table1[[#This Row],[Loca / action]],'Constats projets Entretiens'!J:J,0)-1,5,,)),\"Ligne supprimée dans Constat\")","v":""},{"$f":"IFERROR(Table1[[#This Row],[localisation]]&\" \"&Table1[[#This Row],[constat/projet/entretien]],\"\")","v":"ITTRE / Ensemble du domaine / travail administratif voir avec pierre pour des subsides infra"}]
[{"$f":"IFERROR(IF(OFFSET(Table24[[#Headers],[Domaine]],MATCH(Table1[[#This Row],[Loca / action]],'Constats projets Entretiens'!J:J,0)-1,6,,)=0,\"\",OFFSET(Table24[[#Headers],[Domaine]],MATCH(Table1[[#This Row],[Loca / action]],'Constats projets Entretiens'!J:J,0)-1,6,,)),\"Ligne supprimée dans Constat\")","v":1},"HEURE / Ensemble du domaine / relation aux autorités publiques","dossier bourgmestre",null,null,{"$f":"IFERROR(IF(OFFSET(Table24[[#Headers],[Domaine]],MATCH(Table1[[#This Row],[Loca / action]],'Constats projets Entretiens'!J:J,0)-1,5,,)=0,\"\",OFFSET(Table24[[#Headers],[Domaine]],MATCH(Table1[[#This Row],[Loca / action]],'Constats projets Entretiens'!J:J,0)-1,5,,)),\"Ligne supprimée dans Constat\")","v":""},{"$f":"IFERROR(Table1[[#This Row],[localisation]]&\" \"&Table1[[#This Row],[constat/projet/entretien]],\"\")","v":"HEURE / Ensemble du domaine / relation aux autorités publiques dossier bourgmestre"}]
[{"$f":"IFERROR(IF(OFFSET(Table24[[#Headers],[Domaine]],MATCH(Table1[[#This Row],[Loca / action]],'Constats projets Entretiens'!J:J,0)-1,6,,)=0,\"\",OFFSET(Table24[[#Headers],[Domaine]],MATCH(Table1[[#This Row],[Loca / action]],'Constats projets Entretiens'!J:J,0)-1,6,,)),\"Ligne supprimée dans Constat\")","v":1},"ITTRE / Ensemble du domaine / chemins","eaux dévalent le chemin et entrent dans les bâtiments",null,null,{"$f":"IFERROR(IF(OFFSET(Table24[[#Headers],[Domaine]],MATCH(Table1[[#This Row],[Loca / action]],'Constats projets Entretiens'!J:J,0)-1,5,,)=0,\"\",OFFSET(Table24[[#Headers],[Domaine]],MATCH(Table1[[#This Row],[Loca / action]],'Constats projets Entretiens'!J:J,0)-1,5,,)),\"Ligne supprimée dans Constat\")","v":""},{"$f":"IFERROR(Table1[[#This Row],[localisation]]&\" \"&Table1[[#This Row],[constat/projet/entretien]],\"\")","v":"ITTRE / Ensemble du domaine / chemins eaux dévalent le chemin et entrent dans les bâtiments"}]
[{"$f":"IFERROR(IF(OFFSET(Table24[[#Headers],[Domaine]],MATCH(Table1[[#This Row],[Loca / action]],'Constats projets Entretiens'!J:J,0)-1,6,,)=0,\"\",OFFSET(Table24[[#Headers],[Domaine]],MATCH(Table1[[#This Row],[Loca / action]],'Constats projets Entretiens'!J:J,0)-1,6,,)),\"Ligne supprimée dans Constat\")","v":1},"ITTRE / Intérieur / cuisine","POMPIER : placer une hotte",null,null,{"$f":"IFERROR(IF(OFFSET(Table24[[#Headers],[Domaine]],MATCH(Table1[[#This Row],[Loca / action]],'Constats projets Entretiens'!J:J,0)-1,5,,)=0,\"\",OFFSET(Table24[[#Headers],[Domaine]],MATCH(Table1[[#This Row],[Loca / action]],'Constats projets Entretiens'!J:J,0)-1,5,,)),\"Ligne supprimée dans Constat\")","v":""},{"$f":"IFERROR(Table1[[#This Row],[localisation]]&\" \"&Table1[[#This Row],[constat/projet/entretien]],\"\")","v":"ITTRE / Intérieur / cuisine POMPIER : placer une hotte"}]
[{"$f":"IFERROR(IF(OFFSET(Table24[[#Headers],[Domaine]],MATCH(Table1[[#This Row],[Loca / action]],'Constats projets Entretiens'!J:J,0)-1,6,,)=0,\"\",OFFSET(Table24[[#Headers],[Domaine]],MATCH(Table1[[#This Row],[Loca / action]],'Constats projets Entretiens'!J:J,0)-1,6,,)),\"Ligne supprimée dans Constat\")","v":1},"PDH 38 / caves / chaudière et chauffage","chaudière instable, s'éteint tout le temps",null,null,{"$f":"IFERROR(IF(OFFSET(Table24[[#Headers],[Domaine]],MATCH(Table1[[#This Row],[Loca / action]],'Constats projets Entretiens'!J:J,0)-1,5,,)=0,\"\",OFFSET(Table24[[#Headers],[Domaine]],MATCH(Table1[[#This Row],[Loca / action]],'Constats projets Entretiens'!J:J,0)-1,5,,)),\"Ligne supprimée dans Constat\")","v":""},{"$f":"IFERROR(Table1[[#This Row],[localisation]]&\" \"&Table1[[#This Row],[constat/projet/entretien]],\"\")","v":"PDH 38 / caves / chaudière et chauffage chaudière instable, s'éteint tout le temps"}]
[{"$f":"IFERROR(IF(OFFSET(Table24[[#Headers],[Domaine]],MATCH(Table1[[#This Row],[Loca / action]],'Constats projets Entretiens'!J:J,0)-1,6,,)=0,\"\",OFFSET(Table24[[#Headers],[Domaine]],MATCH(Table1[[#This Row],[Loca / action]],'Constats projets Entretiens'!J:J,0)-1,6,,)),\"Ligne supprimée dans Constat\")","v":1},"PDH 39 / Tout le bâtiment / travail administratif","vérifier conformité détecteurs incendie (déjà fait ?)",null,null,{"$f":"IFERROR(IF(OFFSET(Table24[[#Headers],[Domaine]],MATCH(Table1[[#This Row],[Loca / action]],'Constats projets Entretiens'!J:J,0)-1,5,,)=0,\"\",OFFSET(Table24[[#Headers],[Domaine]],MATCH(Table1[[#This Row],[Loca / action]],'Constats projets Entretiens'!J:J,0)-1,5,,)),\"Ligne supprimée dans Constat\")","v":""},{"$f":"IFERROR(Table1[[#This Row],[localisation]]&\" \"&Table1[[#This Row],[constat/projet/entretien]],\"\")","v":"PDH 39 / Tout le bâtiment / travail administratif vérifier conformité détecteurs incendie (déjà fait ?)"}]
[{"$f":"IFERROR(IF(OFFSET(Table24[[#Headers],[Domaine]],MATCH(Table1[[#This Row],[Loca / action]],'Constats projets Entretiens'!J:J,0)-1,6,,)=0,\"\",OFFSET(Table24[[#Headers],[Domaine]],MATCH(Table1[[#This Row],[Loca / action]],'Constats projets Entretiens'!J:J,0)-1,6,,)),\"Ligne supprimée dans Constat\")","v":1},"PDH 39 / caves / chaudière et chauffage","chaudière embouée",null,null,{"$f":"IFERROR(IF(OFFSET(Table24[[#Headers],[Domaine]],MATCH(Table1[[#This Row],[Loca / action]],'Constats projets Entretiens'!J:J,0)-1,5,,)=0,\"\",OFFSET(Table24[[#Headers],[Domaine]],MATCH(Table1[[#This Row],[Loca / action]],'Constats projets Entretiens'!J:J,0)-1,5,,)),\"Ligne supprimée dans Constat\")","v":""},{"$f":"IFERROR(Table1[[#This Row],[localisation]]&\" \"&Table1[[#This Row],[constat/projet/entretien]],\"\")","v":"PDH 39 / caves / chaudière et chauffage chaudière embouée"}]
[{"$f":"IFERROR(IF(OFFSET(Table24[[#Headers],[Domaine]],MATCH(Table1[[#This Row],[Loca / action]],'Constats projets Entretiens'!J:J,0)-1,6,,)=0,\"\",OFFSET(Table24[[#Headers],[Domaine]],MATCH(Table1[[#This Row],[Loca / action]],'Constats projets Entretiens'!J:J,0)-1,6,,)),\"Ligne supprimée dans Constat\")","v":1},"PDH 39 / premier / autre","OXFAM : obtenir les armoires et chaises manquantes",null,null,{"$f":"IFERROR(IF(OFFSET(Table24[[#Headers],[Domaine]],MATCH(Table1[[#This Row],[Loca / action]],'Constats projets Entretiens'!J:J,0)-1,5,,)=0,\"\",OFFSET(Table24[[#Headers],[Domaine]],MATCH(Table1[[#This Row],[Loca / action]],'Constats projets Entretiens'!J:J,0)-1,5,,)),\"Ligne supprimée dans Constat\")","v":""},{"$f":"IFERROR(Table1[[#This Row],[localisation]]&\" \"&Table1[[#This Row],[constat/projet/entretien]],\"\")","v":"PDH 39 / premier / autre OXFAM : obtenir les armoires et chaises manquantes"}]
[{"$f":"IFERROR(IF(OFFSET(Table24[[#Headers],[Domaine]],MATCH(Table1[[#This Row],[Loca / action]],'Constats projets Entretiens'!J:J,0)-1,6,,)=0,\"\",OFFSET(Table24[[#Headers],[Domaine]],MATCH(Table1[[#This Row],[Loca / action]],'Constats projets Entretiens'!J:J,0)-1,6,,)),\"Ligne supprimée dans Constat\")","v":1},"PDH 39 / premier / autre","OXFAM : faire enlever le mobilier en trop",null,null,{"$f":"IFERROR(IF(OFFSET(Table24[[#Headers],[Domaine]],MATCH(Table1[[#This Row],[Loca / action]],'Constats projets Entretiens'!J:J,0)-1,5,,)=0,\"\",OFFSET(Table24[[#Headers],[Domaine]],MATCH(Table1[[#This Row],[Loca / action]],'Constats projets Entretiens'!J:J,0)-1,5,,)),\"Ligne supprimée dans Constat\")","v":""},{"$f":"IFERROR(Table1[[#This Row],[localisation]]&\" \"&Table1[[#This Row],[constat/projet/entretien]],\"\")","v":"PDH 39 / premier / autre OXFAM : faire enlever le mobilier en trop"}]
[{"$f":"IFERROR(IF(OFFSET(Table24[[#Headers],[Domaine]],MATCH(Table1[[#This Row],[Loca / action]],'Constats projets Entretiens'!J:J,0)-1,6,,)=0,\"\",OFFSET(Table24[[#Headers],[Domaine]],MATCH(Table1[[#This Row],[Loca / action]],'Constats projets Entretiens'!J:J,0)-1,6,,)),\"Ligne supprimée dans Constat\")","v":1},"CDS / Ensemble du domaine / travail administratif","VENTE 1: annoncer la vente aux potentiels repreneurs",null,null,{"$f":"IFERROR(IF(OFFSET(Table24[[#Headers],[Domaine]],MATCH(Table1[[#This Row],[Loca / action]],'Constats projets Entretiens'!J:J,0)-1,5,,)=0,\"\",OFFSET(Table24[[#Headers],[Domaine]],MATCH(Table1[[#This Row],[Loca / action]],'Constats projets Entretiens'!J:J,0)-1,5,,)),\"Ligne supprimée dans Constat\")","v":""},{"$f":"IFERROR(Table1[[#This Row],[localisation]]&\" \"&Table1[[#This Row],[constat/projet/entretien]],\"\")","v":"CDS / Ensemble du domaine / travail administratif VENTE 1: annoncer la vente aux potentiels repreneurs"}]
[{"$f":"IFERROR(IF(OFFSET(Table24[[#Headers],[Domaine]],MATCH(Table1[[#This Row],[Loca / action]],'Constats projets Entretiens'!J:J,0)-1,6,,)=0,\"\",OFFSET(Table24[[#Headers],[Domaine]],MATCH(Table1[[#This Row],[Loca / action]],'Constats projets Entretiens'!J:J,0)-1,6,,)),\"Ligne supprimée dans Constat\")","v":1},"CDS / Ensemble du domaine / travail administratif","VENTE 1: créer annonce",null,null,{"$f":"IFERROR(IF(OFFSET(Table24[[#Headers],[Domaine]],MATCH(Table1[[#This Row],[Loca / action]],'Constats projets Entretiens'!J:J,0)-1,5,,)=0,\"\",OFFSET(Table24[[#Headers],[Domaine]],MATCH(Table1[[#This Row],[Loca / action]],'Constats projets Entretiens'!J:J,0)-1,5,,)),\"Ligne supprimée dans Constat\")","v":""},{"$f":"IFERROR(Table1[[#This Row],[localisation]]&\" \"&Table1[[#This Row],[constat/projet/entretien]],\"\")","v":"CDS / Ensemble du domaine / travail administratif VENTE 1: créer annonce"}]
[{"$f":"IFERROR(IF(OFFSET(Table24[[#Headers],[Domaine]],MATCH(Table1[[#This Row],[Loca / action]],'Constats projets Entretiens'!J:J,0)-1,6,,)=0,\"\",OFFSET(Table24[[#Headers],[Domaine]],MATCH(Table1[[#This Row],[Loca / action]],'Constats projets Entretiens'!J:J,0)-1,6,,)),\"Ligne supprimée dans Constat\")","v":1},"CDS / Intérieur / menuiserie","POMPIER : barre anti-panique",null,null,{"$f":"IFERROR(IF(OFFSET(Table24[[#Headers],[Domaine]],MATCH(Table1[[#This Row],[Loca / action]],'Constats projets Entretiens'!J:J,0)-1,5,,)=0,\"\",OFFSET(Table24[[#Headers],[Domaine]],MATCH(Table1[[#This Row],[Loca / action]],'Constats projets Entretiens'!J:J,0)-1,5,,)),\"Ligne supprimée dans Constat\")","v":""},{"$f":"IFERROR(Table1[[#This Row],[localisation]]&\" \"&Table1[[#This Row],[constat/projet/entretien]],\"\")","v":"CDS / Intérieur / menuiserie POMPIER : barre anti-panique"}]
[{"$f":"IFERROR(IF(OFFSET(Table24[[#Headers],[Domaine]],MATCH(Table1[[#This Row],[Loca / action]],'Constats projets Entretiens'!J:J,0)-1,6,,)=0,\"\",OFFSET(Table24[[#Headers],[Domaine]],MATCH(Table1[[#This Row],[Loca / action]],'Constats projets Entretiens'!J:J,0)-1,6,,)),\"Ligne supprimée dans Constat\")","v":1},"HEURE / Ensemble du domaine / autre","CONGRES : répartition des tâches et identification des besoins",null,null,{"$f":"IFERROR(IF(OFFSET(Table24[[#Headers],[Domaine]],MATCH(Table1[[#This Row],[Loca / action]],'Constats projets Entretiens'!J:J,0)-1,5,,)=0,\"\",OFFSET(Table24[[#Headers],[Domaine]],MATCH(Table1[[#This Row],[Loca / action]],'Constats projets Entretiens'!J:J,0)-1,5,,)),\"Ligne supprimée dans Constat\")","v":""},{"$f":"IFERROR(Table1[[#This Row],[localisation]]&\" \"&Table1[[#This Row],[constat/projet/entretien]],\"\")","v":"HEURE / Ensemble du domaine / autre CONGRES : répartition des tâches et identification des besoins"}]
[{"$f":"IFERROR(IF(OFFSET(Table24[[#Headers],[Domaine]],MATCH(Table1[[#This Row],[Loca / action]],'Constats projets Entretiens'!J:J,0)-1,6,,)=0,\"\",OFFSET(Table24[[#Headers],[Domaine]],MATCH(Table1[[#This Row],[Loca / action]],'Constats projets Entretiens'!J:J,0)-1,6,,)),\"Ligne supprimée dans Constat\")","v":1},"ITTRE / Ensemble du domaine / travail administratif","voir avec pierre pour des subsides infra",null,null,{"$f":"IFERROR(IF(OFFSET(Table24[[#Headers],[Domaine]],MATCH(Table1[[#This Row],[Loca / action]],'Constats projets Entretiens'!J:J,0)-1,5,,)=0,\"\",OFFSET(Table24[[#Headers],[Domaine]],MATCH(Table1[[#This Row],[Loca / action]],'Constats projets Entretiens'!J:J,0)-1,5,,)),\"Ligne supprimée dans Constat\")","v":""},{"$f":"IFERROR(Table1[[#This Row],[localisation]]&\" \"&Table1[[#This Row],[constat/projet/entretien]],\"\")","v":"ITTRE / Ensemble du domaine / travail administratif voir avec pierre pour des subsides infra"}]
[{"$f":"IFERROR(IF(OFFSET(Table24[[#Headers],[Domaine]],MATCH(Table1[[#This Row],[Loca / action]],'Constats projets Entretiens'!J:J,0)-1,6,,)=0,\"\",OFFSET(Table24[[#Headers],[Domaine]],MATCH(Table1[[#This Row],[Loca / action]],'Constats projets Entretiens'!J:J,0)-1,6,,)),\"Ligne supprimée dans Constat\")","v":2},"HEURE / Ensemble du domaine / travail administratif","trouver ferraileur pour évacuer le vieux congel",null,"milos",{"$f":"IFERROR(IF(OFFSET(Table24[[#Headers],[Domaine]],MATCH(Table1[[#This Row],[Loca / action]],'Constats projets Entretiens'!J:J,0)-1,5,,)=0,\"\",OFFSET(Table24[[#Headers],[Domaine]],MATCH(Table1[[#This Row],[Loca / action]],'Constats projets Entretiens'!J:J,0)-1,5,,)),\"Ligne supprimée dans Constat\")","v":""},{"$f":"IFERROR(Table1[[#This Row],[localisation]]&\" \"&Table1[[#This Row],[constat/projet/entretien]],\"\")","v":"HEURE / Ensemble du domaine / travail administratif trouver ferraileur pour évacuer le vieux congel"}]
[{"$f":"IFERROR(IF(OFFSET(Table24[[#Headers],[Domaine]],MATCH(Table1[[#This Row],[Loca / action]],'Constats projets Entretiens'!J:J,0)-1,6,,)=0,\"\",OFFSET(Table24[[#Headers],[Domaine]],MATCH(Table1[[#This Row],[Loca / action]],'Constats projets Entretiens'!J:J,0)-1,6,,)),\"Ligne supprimée dans Constat\")","v":2},"PDH 38 / caves / chaudière et chauffage","voir avec catherine pour faire le point de ce qui est payé/pas payé et fait/pas fait par AMBIANCE & CHALEUR",null,"greg",{"$f":"IFERROR(IF(OFFSET(Table24[[#Headers],[Domaine]],MATCH(Table1[[#This Row],[Loca / action]],'Constats projets Entretiens'!J:J,0)-1,5,,)=0,\"\",OFFSET(Table24[[#Headers],[Domaine]],MATCH(Table1[[#This Row],[Loca / action]],'Constats projets Entretiens'!J:J,0)-1,5,,)),\"Ligne supprimée dans Constat\")","v":""},{"$f":"IFERROR(Table1[[#This Row],[localisation]]&\" \"&Table1[[#This Row],[constat/projet/entretien]],\"\")","v":"PDH 38 / caves / chaudière et chauffage voir avec catherine pour faire le point de ce qui est payé/pas payé et fait/pas fait par AMBIANCE & CHALEUR"}]
[{"$f":"IFERROR(IF(OFFSET(Table24[[#Headers],[Domaine]],MATCH(Table1[[#This Row],[Loca / action]],'Constats projets Entretiens'!J:J,0)-1,6,,)=0,\"\",OFFSET(Table24[[#Headers],[Domaine]],MATCH(Table1[[#This Row],[Loca / action]],'Constats projets Entretiens'!J:J,0)-1,6,,)),\"Ligne supprimée dans Constat\")","v":2},"PDH 38 / caves / archives","ARCHIVES : créer un tableau de tri",null,"greg",{"$f":"IFERROR(IF(OFFSET(Table24[[#Headers],[Domaine]],MATCH(Table1[[#This Row],[Loca / action]],'Constats projets Entretiens'!J:J,0)-1,5,,)=0,\"\",OFFSET(Table24[[#Headers],[Domaine]],MATCH(Table1[[#This Row],[Loca / action]],'Constats projets Entretiens'!J:J,0)-1,5,,)),\"Ligne supprimée dans Constat\")","v":""},{"$f":"IFERROR(Table1[[#This Row],[localisation]]&\" \"&Table1[[#This Row],[constat/projet/entretien]],\"\")","v":"PDH 38 / caves / archives ARCHIVES : créer un tableau de tri"}]
[{"$f":"IFERROR(IF(OFFSET(Table24[[#Headers],[Domaine]],MATCH(Table1[[#This Row],[Loca / action]],'Constats projets Entretiens'!J:J,0)-1,6,,)=0,\"\",OFFSET(Table24[[#Headers],[Domaine]],MATCH(Table1[[#This Row],[Loca / action]],'Constats projets Entretiens'!J:J,0)-1,6,,)),\"Ligne supprimée dans Constat\")","v":2},"PDH 38 / caves / archives","ARCHIVES : trier et classer",null,"greg",{"$f":"IFERROR(IF(OFFSET(Table24[[#Headers],[Domaine]],MATCH(Table1[[#This Row],[Loca / action]],'Constats projets Entretiens'!J:J,0)-1,5,,)=0,\"\",OFFSET(Table24[[#Headers],[Domaine]],MATCH(Table1[[#This Row],[Loca / action]],'Constats projets Entretiens'!J:J,0)-1,5,,)),\"Ligne supprimée dans Constat\")","v":""},{"$f":"IFERROR(Table1[[#This Row],[localisation]]&\" \"&Table1[[#This Row],[constat/projet/entretien]],\"\")","v":"PDH 38 / caves / archives ARCHIVES : trier et classer"}]
[{"$f":"IFERROR(IF(OFFSET(Table24[[#Headers],[Domaine]],MATCH(Table1[[#This Row],[Loca / action]],'Constats projets Entretiens'!J:J,0)-1,6,,)=0,\"\",OFFSET(Table24[[#Headers],[Domaine]],MATCH(Table1[[#This Row],[Loca / action]],'Constats projets Entretiens'!J:J,0)-1,6,,)),\"Ligne supprimée dans Constat\")","v":2},"PDH 38 / caves / archives","ARCHIVES : trouver un repreneur ?",null,"greg",{"$f":"IFERROR(IF(OFFSET(Table24[[#Headers],[Domaine]],MATCH(Table1[[#This Row],[Loca / action]],'Constats projets Entretiens'!J:J,0)-1,5,,)=0,\"\",OFFSET(Table24[[#Headers],[Domaine]],MATCH(Table1[[#This Row],[Loca / action]],'Constats projets Entretiens'!J:J,0)-1,5,,)),\"Ligne supprimée dans Constat\")","v":""},{"$f":"IFERROR(Table1[[#This Row],[localisation]]&\" \"&Table1[[#This Row],[constat/projet/entretien]],\"\")","v":"PDH 38 / caves / archives ARCHIVES : trouver un repreneur ?"}]
[{"$f":"IFERROR(IF(OFFSET(Table24[[#Headers],[Domaine]],MATCH(Table1[[#This Row],[Loca / action]],'Constats projets Entretiens'!J:J,0)-1,6,,)=0,\"\",OFFSET(Table24[[#Headers],[Domaine]],MATCH(Table1[[#This Row],[Loca / action]],'Constats projets Entretiens'!J:J,0)-1,6,,)),\"Ligne supprimée dans Constat\")","v":2},"PDH 38 / Premier / appartement (pièce de vie)","APPART : quel avenir ? Vente ? Location ? Auberge de jeunesse ?",null,null,{"$f":"IFERROR(IF(OFFSET(Table24[[#Headers],[Domaine]],MATCH(Table1[[#This Row],[Loca / action]],'Constats projets Entretiens'!J:J,0)-1,5,,)=0,\"\",OFFSET(Table24[[#Headers],[Domaine]],MATCH(Table1[[#This Row],[Loca / action]],'Constats projets Entretiens'!J:J,0)-1,5,,)),\"Ligne supprimée dans Constat\")","v":""},{"$f":"IFERROR(Table1[[#This Row],[localisation]]&\" \"&Table1[[#This Row],[constat/projet/entretien]],\"\")","v":"PDH 38 / Premier / appartement (pièce de vie) APPART : quel avenir ? Vente ? Location ? Auberge de jeunesse ?"}]
[{"$f":"IFERROR(IF(OFFSET(Table24[[#Headers],[Domaine]],MATCH(Table1[[#This Row],[Loca / action]],'Constats projets Entretiens'!J:J,0)-1,6,,)=0,\"\",OFFSET(Table24[[#Headers],[Domaine]],MATCH(Table1[[#This Row],[Loca / action]],'Constats projets Entretiens'!J:J,0)-1,6,,)),\"Ligne supprimée dans Constat\")","v":2},"PDH 38 / Premier / appartement (pièce de vie)","se renseigner si les normes de sécurités sont respectées",null,"greg",{"$f":"IFERROR(IF(OFFSET(Table24[[#Headers],[Domaine]],MATCH(Table1[[#This Row],[Loca / action]],'Constats projets Entretiens'!J:J,0)-1,5,,)=0,\"\",OFFSET(Table24[[#Headers],[Domaine]],MATCH(Table1[[#This Row],[Loca / action]],'Constats projets Entretiens'!J:J,0)-1,5,,)),\"Ligne supprimée dans Constat\")","v":""},{"$f":"IFERROR(Table1[[#This Row],[localisation]]&\" \"&Table1[[#This Row],[constat/projet/entretien]],\"\")","v":"PDH 38 / Premier / appartement (pièce de vie) se renseigner si les normes de sécurités sont respectées"}]
[{"$f":"IFERROR(IF(OFFSET(Table24[[#Headers],[Domaine]],MATCH(Table1[[#This Row],[Loca / action]],'Constats projets Entretiens'!J:J,0)-1,6,,)=0,\"\",OFFSET(Table24[[#Headers],[Domaine]],MATCH(Table1[[#This Row],[Loca / action]],'Constats projets Entretiens'!J:J,0)-1,6,,)),\"Ligne supprimée dans Constat\")","v":2},"PDH 38 / deuxième / appartement SGP (salle de bains)","refaire ou changer le bac de douche",null,"roro",{"$f":"IFERROR(IF(OFFSET(Table24[[#Headers],[Domaine]],MATCH(Table1[[#This Row],[Loca / action]],'Constats projets Entretiens'!J:J,0)-1,5,,)=0,\"\",OFFSET(Table24[[#Headers],[Domaine]],MATCH(Table1[[#This Row],[Loca / action]],'Constats projets Entretiens'!J:J,0)-1,5,,)),\"Ligne supprimée dans Constat\")","v":""},{"$f":"IFERROR(Table1[[#This Row],[localisation]]&\" \"&Table1[[#This Row],[constat/projet/entretien]],\"\")","v":"PDH 38 / deuxième / appartement SGP (salle de bains) refaire ou changer le bac de douche"}]
[{"$f":"IFERROR(IF(OFFSET(Table24[[#Headers],[Domaine]],MATCH(Table1[[#This Row],[Loca / action]],'Constats projets Entretiens'!J:J,0)-1,6,,)=0,\"\",OFFSET(Table24[[#Headers],[Domaine]],MATCH(Table1[[#This Row],[Loca / action]],'Constats projets Entretiens'!J:J,0)-1,6,,)),\"Ligne supprimée dans Constat\")","v":2},"PDH 39 / Tout le bâtiment / travail administratif","projet auberge de jeunesse ?",null,null,{"$f":"IFERROR(IF(OFFSET(Table24[[#Headers],[Domaine]],MATCH(Table1[[#This Row],[Loca / action]],'Constats projets Entretiens'!J:J,0)-1,5,,)=0,\"\",OFFSET(Table24[[#Headers],[Domaine]],MATCH(Table1[[#This Row],[Loca / action]],'Constats projets Entretiens'!J:J,0)-1,5,,)),\"Ligne supprimée dans Constat\")","v":""},{"$f":"IFERROR(Table1[[#This Row],[localisation]]&\" \"&Table1[[#This Row],[constat/projet/entretien]],\"\")","v":"PDH 39 / Tout le bâtiment / travail administratif projet auberge de jeunesse ?"}]
[{"$f":"IFERROR(IF(OFFSET(Table24[[#Headers],[Domaine]],MATCH(Table1[[#This Row],[Loca / action]],'Constats projets Entretiens'!J:J,0)-1,6,,)=0,\"\",OFFSET(Table24[[#Headers],[Domaine]],MATCH(Table1[[#This Row],[Loca / action]],'Constats projets Entretiens'!J:J,0)-1,6,,)),\"Ligne supprimée dans Constat\")","v":2},"PDH 39 / rez / Magascout","créer un plancher pour ratraper la pente du bureau de Fred",null,"roro",{"$f":"IFERROR(IF(OFFSET(Table24[[#Headers],[Domaine]],MATCH(Table1[[#This Row],[Loca / action]],'Constats projets Entretiens'!J:J,0)-1,5,,)=0,\"\",OFFSET(Table24[[#Headers],[Domaine]],MATCH(Table1[[#This Row],[Loca / action]],'Constats projets Entretiens'!J:J,0)-1,5,,)),\"Ligne supprimée dans Constat\")","v":""},{"$f":"IFERROR(Table1[[#This Row],[localisation]]&\" \"&Table1[[#This Row],[constat/projet/entretien]],\"\")","v":"PDH 39 / rez / Magascout créer un plancher pour ratraper la pente du bureau de Fred"}]
[{"$f":"IFERROR(IF(OFFSET(Table24[[#Headers],[Domaine]],MATCH(Table1[[#This Row],[Loca / action]],'Constats projets Entretiens'!J:J,0)-1,6,,)=0,\"\",OFFSET(Table24[[#Headers],[Domaine]],MATCH(Table1[[#This Row],[Loca / action]],'Constats projets Entretiens'!J:J,0)-1,6,,)),\"Ligne supprimée dans Constat\")","v":2},"PDH 39 / garages / garage SGP","remonter le frigo dans l'appart du 1er",null,null,{"$f":"IFERROR(IF(OFFSET(Table24[[#Headers],[Domaine]],MATCH(Table1[[#This Row],[Loca / action]],'Constats projets Entretiens'!J:J,0)-1,5,,)=0,\"\",OFFSET(Table24[[#Headers],[Domaine]],MATCH(Table1[[#This Row],[Loca / action]],'Constats projets Entretiens'!J:J,0)-1,5,,)),\"Ligne supprimée dans Constat\")","v":""},{"$f":"IFERROR(Table1[[#This Row],[localisation]]&\" \"&Table1[[#This Row],[constat/projet/entretien]],\"\")","v":"PDH 39 / garages / garage SGP remonter le frigo dans l'appart du 1er"}]
[{"$f":"IFERROR(IF(OFFSET(Table24[[#Headers],[Domaine]],MATCH(Table1[[#This Row],[Loca / action]],'Constats projets Entretiens'!J:J,0)-1,6,,)=0,\"\",OFFSET(Table24[[#Headers],[Domaine]],MATCH(Table1[[#This Row],[Loca / action]],'Constats projets Entretiens'!J:J,0)-1,6,,)),\"Ligne supprimée dans Constat\")","v":2},"PDH 39 / premier / cuisine","repeindre et rafraichir + nouveau frigo",null,null,{"$f":"IFERROR(IF(OFFSET(Table24[[#Headers],[Domaine]],MATCH(Table1[[#This Row],[Loca / action]],'Constats projets Entretiens'!J:J,0)-1,5,,)=0,\"\",OFFSET(Table24[[#Headers],[Domaine]],MATCH(Table1[[#This Row],[Loca / action]],'Constats projets Entretiens'!J:J,0)-1,5,,)),\"Ligne supprimée dans Constat\")","v":""},{"$f":"IFERROR(Table1[[#This Row],[localisation]]&\" \"&Table1[[#This Row],[constat/projet/entretien]],\"\")","v":"PDH 39 / premier / cuisine repeindre et rafraichir + nouveau frigo"}]
[{"$f":"IFERROR(IF(OFFSET(Table24[[#Headers],[Domaine]],MATCH(Table1[[#This Row],[Loca / action]],'Constats projets Entretiens'!J:J,0)-1,6,,)=0,\"\",OFFSET(Table24[[#Headers],[Domaine]],MATCH(Table1[[#This Row],[Loca / action]],'Constats projets Entretiens'!J:J,0)-1,6,,)),\"Ligne supprimée dans Constat\")","v":2},"PDH 39 / premier / bureau RH, compta et affi","repeindre",null,null,{"$f":"IFERROR(IF(OFFSET(Table24[[#Headers],[Domaine]],MATCH(Table1[[#This Row],[Loca / action]],'Constats projets Entretiens'!J:J,0)-1,5,,)=0,\"\",OFFSET(Table24[[#Headers],[Domaine]],MATCH(Table1[[#This Row],[Loca / action]],'Constats projets Entretiens'!J:J,0)-1,5,,)),\"Ligne supprimée dans Constat\")","v":""},{"$f":"IFERROR(Table1[[#This Row],[localisation]]&\" \"&Table1[[#This Row],[constat/projet/entretien]],\"\")","v":"PDH 39 / premier / bureau RH, compta et affi repeindre"}]
[{"$f":"IFERROR(IF(OFFSET(Table24[[#Headers],[Domaine]],MATCH(Table1[[#This Row],[Loca / action]],'Constats projets Entretiens'!J:J,0)-1,6,,)=0,\"\",OFFSET(Table24[[#Headers],[Domaine]],MATCH(Table1[[#This Row],[Loca / action]],'Constats projets Entretiens'!J:J,0)-1,6,,)),\"Ligne supprimée dans Constat\")","v":2},"CDS / Ensemble du domaine / travail administratif","VENTE 2: annonce immoweb",null,"greg",{"$f":"IFERROR(IF(OFFSET(Table24[[#Headers],[Domaine]],MATCH(Table1[[#This Row],[Loca / action]],'Constats projets Entretiens'!J:J,0)-1,5,,)=0,\"\",OFFSET(Table24[[#Headers],[Domaine]],MATCH(Table1[[#This Row],[Loca / action]],'Constats projets Entretiens'!J:J,0)-1,5,,)),\"Ligne supprimée dans Constat\")","v":""},{"$f":"IFERROR(Table1[[#This Row],[localisation]]&\" \"&Table1[[#This Row],[constat/projet/entretien]],\"\")","v":"CDS / Ensemble du domaine / travail administratif VENTE 2: annonce immoweb"}]
[{"$f":"IFERROR(IF(OFFSET(Table24[[#Headers],[Domaine]],MATCH(Table1[[#This Row],[Loca / action]],'Constats projets Entretiens'!J:J,0)-1,6,,)=0,\"\",OFFSET(Table24[[#Headers],[Domaine]],MATCH(Table1[[#This Row],[Loca / action]],'Constats projets Entretiens'!J:J,0)-1,6,,)),\"Ligne supprimée dans Constat\")","v":2},"CDS / Ensemble du domaine / travail administratif","VENTE 2: faire des photos",null,"greg",{"$f":"IFERROR(IF(OFFSET(Table24[[#Headers],[Domaine]],MATCH(Table1[[#This Row],[Loca / action]],'Constats projets Entretiens'!J:J,0)-1,5,,)=0,\"\",OFFSET(Table24[[#Headers],[Domaine]],MATCH(Table1[[#This Row],[Loca / action]],'Constats projets Entretiens'!J:J,0)-1,5,,)),\"Ligne supprimée dans Constat\")","v":""},{"$f":"IFERROR(Table1[[#This Row],[localisation]]&\" \"&Table1[[#This Row],[constat/projet/entretien]],\"\")","v":"CDS / Ensemble du domaine / travail administratif VENTE 2: faire des photos"}]
[{"$f":"IFERROR(IF(OFFSET(Table24[[#Headers],[Domaine]],MATCH(Table1[[#This Row],[Loca / action]],'Constats projets Entretiens'!J:J,0)-1,6,,)=0,\"\",OFFSET(Table24[[#Headers],[Domaine]],MATCH(Table1[[#This Row],[Loca / action]],'Constats projets Entretiens'!J:J,0)-1,6,,)),\"Ligne supprimée dans Constat\")","v":2},"HEURE / La Carlingue / général","faire une nouvelle affiche infirmerie",null,null,{"$f":"IFERROR(IF(OFFSET(Table24[[#Headers],[Domaine]],MATCH(Table1[[#This Row],[Loca / action]],'Constats projets Entretiens'!J:J,0)-1,5,,)=0,\"\",OFFSET(Table24[[#Headers],[Domaine]],MATCH(Table1[[#This Row],[Loca / action]],'Constats projets Entretiens'!J:J,0)-1,5,,)),\"Ligne supprimée dans Constat\")","v":""},{"$f":"IFERROR(Table1[[#This Row],[localisation]]&\" \"&Table1[[#This Row],[constat/projet/entretien]],\"\")","v":"HEURE / La Carlingue / général faire une nouvelle affiche infirmerie"}]
[{"$f":"IFERROR(IF(OFFSET(Table24[[#Headers],[Domaine]],MATCH(Table1[[#This Row],[Loca / action]],'Constats projets Entretiens'!J:J,0)-1,6,,)=0,\"\",OFFSET(Table24[[#Headers],[Domaine]],MATCH(Table1[[#This Row],[Loca / action]],'Constats projets Entretiens'!J:J,0)-1,6,,)),\"Ligne supprimée dans Constat\")","v":2},"HEURE / Le Grand Chalet / toiture","infiltrations côté parking",null,null,{"$f":"IFERROR(IF(OFFSET(Table24[[#Headers],[Domaine]],MATCH(Table1[[#This Row],[Loca / action]],'Constats projets Entretiens'!J:J,0)-1,5,,)=0,\"\",OFFSET(Table24[[#Headers],[Domaine]],MATCH(Table1[[#This Row],[Loca / action]],'Constats projets Entretiens'!J:J,0)-1,5,,)),\"Ligne supprimée dans Constat\")","v":""},{"$f":"IFERROR(Table1[[#This Row],[localisation]]&\" \"&Table1[[#This Row],[constat/projet/entretien]],\"\")","v":"HEURE / Le Grand Chalet / toiture infiltrations côté parking"}]
[{"$f":"IFERROR(IF(OFFSET(Table24[[#Headers],[Domaine]],MATCH(Table1[[#This Row],[Loca / action]],'Constats projets Entretiens'!J:J,0)-1,6,,)=0,\"\",OFFSET(Table24[[#Headers],[Domaine]],MATCH(Table1[[#This Row],[Loca / action]],'Constats projets Entretiens'!J:J,0)-1,6,,)),\"Ligne supprimée dans Constat\")","v":2},"HEURE / Le Grand Chalet / salle du sous-sol","humidité dans le mur sous la rampe d'accès à la terrasse",null,null,{"$f":"IFERROR(IF(OFFSET(Table24[[#Headers],[Domaine]],MATCH(Table1[[#This Row],[Loca / action]],'Constats projets Entretiens'!J:J,0)-1,5,,)=0,\"\",OFFSET(Table24[[#Headers],[Domaine]],MATCH(Table1[[#This Row],[Loca / action]],'Constats projets Entretiens'!J:J,0)-1,5,,)),\"Ligne supprimée dans Constat\")","v":""},{"$f":"IFERROR(Table1[[#This Row],[localisation]]&\" \"&Table1[[#This Row],[constat/projet/entretien]],\"\")","v":"HEURE / Le Grand Chalet / salle du sous-sol humidité dans le mur sous la rampe d'accès à la terrasse"}]
[{"$f":"IFERROR(IF(OFFSET(Table24[[#Headers],[Domaine]],MATCH(Table1[[#This Row],[Loca / action]],'Constats projets Entretiens'!J:J,0)-1,6,,)=0,\"\",OFFSET(Table24[[#Headers],[Domaine]],MATCH(Table1[[#This Row],[Loca / action]],'Constats projets Entretiens'!J:J,0)-1,6,,)),\"Ligne supprimée dans Constat\")","v":2},"HEURE / Ensemble du domaine / toilettes sèches","projet toilettes sèches : quelle gestion ?",null,null,{"$f":"IFERROR(IF(OFFSET(Table24[[#Headers],[Domaine]],MATCH(Table1[[#This Row],[Loca / action]],'Constats projets Entretiens'!J:J,0)-1,5,,)=0,\"\",OFFSET(Table24[[#Headers],[Domaine]],MATCH(Table1[[#This Row],[Loca / action]],'Constats projets Entretiens'!J:J,0)-1,5,,)),\"Ligne supprimée dans Constat\")","v":""},{"$f":"IFERROR(Table1[[#This Row],[localisation]]&\" \"&Table1[[#This Row],[constat/projet/entretien]],\"\")","v":"HEURE / Ensemble du domaine / toilettes sèches projet toilettes sèches : quelle gestion ?"}]
[{"$f":"IFERROR(IF(OFFSET(Table24[[#Headers],[Domaine]],MATCH(Table1[[#This Row],[Loca / action]],'Constats projets Entretiens'!J:J,0)-1,6,,)=0,\"\",OFFSET(Table24[[#Headers],[Domaine]],MATCH(Table1[[#This Row],[Loca / action]],'Constats projets Entretiens'!J:J,0)-1,6,,)),\"Ligne supprimée dans Constat\")","v":2},"HEURE / Ensemble du domaine / toilettes sèches","se renseigner sur les normes nbre de toilette par campeur",null,null,{"$f":"IFERROR(IF(OFFSET(Table24[[#Headers],[Domaine]],MATCH(Table1[[#This Row],[Loca / action]],'Constats projets Entretiens'!J:J,0)-1,5,,)=0,\"\",OFFSET(Table24[[#Headers],[Domaine]],MATCH(Table1[[#This Row],[Loca / action]],'Constats projets Entretiens'!J:J,0)-1,5,,)),\"Ligne supprimée dans Constat\")","v":""},{"$f":"IFERROR(Table1[[#This Row],[localisation]]&\" \"&Table1[[#This Row],[constat/projet/entretien]],\"\")","v":"HEURE / Ensemble du domaine / toilettes sèches se renseigner sur les normes nbre de toilette par campeur"}]
[{"$f":"IFERROR(IF(OFFSET(Table24[[#Headers],[Domaine]],MATCH(Table1[[#This Row],[Loca / action]],'Constats projets Entretiens'!J:J,0)-1,6,,)=0,\"\",OFFSET(Table24[[#Headers],[Domaine]],MATCH(Table1[[#This Row],[Loca / action]],'Constats projets Entretiens'!J:J,0)-1,6,,)),\"Ligne supprimée dans Constat\")","v":2},"HEURE / Le Grand Chalet / chaudière et chauffage","infiltrations, local à mazout se remplit d'eau",null,null,{"$f":"IFERROR(IF(OFFSET(Table24[[#Headers],[Domaine]],MATCH(Table1[[#This Row],[Loca / action]],'Constats projets Entretiens'!J:J,0)-1,5,,)=0,\"\",OFFSET(Table24[[#Headers],[Domaine]],MATCH(Table1[[#This Row],[Loca / action]],'Constats projets Entretiens'!J:J,0)-1,5,,)),\"Ligne supprimée dans Constat\")","v":""},{"$f":"IFERROR(Table1[[#This Row],[localisation]]&\" \"&Table1[[#This Row],[constat/projet/entretien]],\"\")","v":"HEURE / Le Grand Chalet / chaudière et chauffage infiltrations, local à mazout se remplit d'eau"}]
[{"$f":"IFERROR(IF(OFFSET(Table24[[#Headers],[Domaine]],MATCH(Table1[[#This Row],[Loca / action]],'Constats projets Entretiens'!J:J,0)-1,6,,)=0,\"\",OFFSET(Table24[[#Headers],[Domaine]],MATCH(Table1[[#This Row],[Loca / action]],'Constats projets Entretiens'!J:J,0)-1,6,,)),\"Ligne supprimée dans Constat\")","v":2},"HEURE / Le Grand Chalet / sanitaires","faire un coffrage au-dessus de l'éternite (WC)",null,null,{"$f":"IFERROR(IF(OFFSET(Table24[[#Headers],[Domaine]],MATCH(Table1[[#This Row],[Loca / action]],'Constats projets Entretiens'!J:J,0)-1,5,,)=0,\"\",OFFSET(Table24[[#Headers],[Domaine]],MATCH(Table1[[#This Row],[Loca / action]],'Constats projets Entretiens'!J:J,0)-1,5,,)),\"Ligne supprimée dans Constat\")","v":""},{"$f":"IFERROR(Table1[[#This Row],[localisation]]&\" \"&Table1[[#This Row],[constat/projet/entretien]],\"\")","v":"HEURE / Le Grand Chalet / sanitaires faire un coffrage au-dessus de l'éternite (WC)"}]
[{"$f":"IFERROR(IF(OFFSET(Table24[[#Headers],[Domaine]],MATCH(Table1[[#This Row],[Loca / action]],'Constats projets Entretiens'!J:J,0)-1,6,,)=0,\"\",OFFSET(Table24[[#Headers],[Domaine]],MATCH(Table1[[#This Row],[Loca / action]],'Constats projets Entretiens'!J:J,0)-1,6,,)),\"Ligne supprimée dans Constat\")","v":2},"HEURE / Le Grand Chalet / menuiserie","réparer les oscillobattants des portes fenetres en bas",null,null,{"$f":"IFERROR(IF(OFFSET(Table24[[#Headers],[Domaine]],MATCH(Table1[[#This Row],[Loca / action]],'Constats projets Entretiens'!J:J,0)-1,5,,)=0,\"\",OFFSET(Table24[[#Headers],[Domaine]],MATCH(Table1[[#This Row],[Loca / action]],'Constats projets Entretiens'!J:J,0)-1,5,,)),\"Ligne supprimée dans Constat\")","v":""},{"$f":"IFERROR(Table1[[#This Row],[localisation]]&\" \"&Table1[[#This Row],[constat/projet/entretien]],\"\")","v":"HEURE / Le Grand Chalet / menuiserie réparer les oscillobattants des portes fenetres en bas"}]
[{"$f":"IFERROR(IF(OFFSET(Table24[[#Headers],[Domaine]],MATCH(Table1[[#This Row],[Loca / action]],'Constats projets Entretiens'!J:J,0)-1,6,,)=0,\"\",OFFSET(Table24[[#Headers],[Domaine]],MATCH(Table1[[#This Row],[Loca / action]],'Constats projets Entretiens'!J:J,0)-1,6,,)),\"Ligne supprimée dans Constat\")","v":2},"HEURE / Le Grand Chalet / cuisine","hotte : placer un multiprise et isoler le trou de la hotte",null,null,{"$f":"IFERROR(IF(OFFSET(Table24[[#Headers],[Domaine]],MATCH(Table1[[#This Row],[Loca / action]],'Constats projets Entretiens'!J:J,0)-1,5,,)=0,\"\",OFFSET(Table24[[#Headers],[Domaine]],MATCH(Table1[[#This Row],[Loca / action]],'Constats projets Entretiens'!J:J,0)-1,5,,)),\"Ligne supprimée dans Constat\")","v":""},{"$f":"IFERROR(Table1[[#This Row],[localisation]]&\" \"&Table1[[#This Row],[constat/projet/entretien]],\"\")","v":"HEURE / Le Grand Chalet / cuisine hotte : placer un multiprise et isoler le trou de la hotte"}]
[{"$f":"IFERROR(IF(OFFSET(Table24[[#Headers],[Domaine]],MATCH(Table1[[#This Row],[Loca / action]],'Constats projets Entretiens'!J:J,0)-1,6,,)=0,\"\",OFFSET(Table24[[#Headers],[Domaine]],MATCH(Table1[[#This Row],[Loca / action]],'Constats projets Entretiens'!J:J,0)-1,6,,)),\"Ligne supprimée dans Constat\")","v":2},"HEURE / Terrains / général","suivi du dossier abattage et plantation avec Yves Lambrecht",null,null,{"$f":"IFERROR(IF(OFFSET(Table24[[#Headers],[Domaine]],MATCH(Table1[[#This Row],[Loca / action]],'Constats projets Entretiens'!J:J,0)-1,5,,)=0,\"\",OFFSET(Table24[[#Headers],[Domaine]],MATCH(Table1[[#This Row],[Loca / action]],'Constats projets Entretiens'!J:J,0)-1,5,,)),\"Ligne supprimée dans Constat\")","v":""},{"$f":"IFERROR(Table1[[#This Row],[localisation]]&\" \"&Table1[[#This Row],[constat/projet/entretien]],\"\")","v":"HEURE / Terrains / général suivi du dossier abattage et plantation avec Yves Lambrecht"}]
[{"$f":"IFERROR(IF(OFFSET(Table24[[#Headers],[Domaine]],MATCH(Table1[[#This Row],[Loca / action]],'Constats projets Entretiens'!J:J,0)-1,6,,)=0,\"\",OFFSET(Table24[[#Headers],[Domaine]],MATCH(Table1[[#This Row],[Loca / action]],'Constats projets Entretiens'!J:J,0)-1,6,,)),\"Ligne supprimée dans Constat\")","v":2},"HEURE / Terrains / Daguet","lancer la location",null,null,{"$f":"IFERROR(IF(OFFSET(Table24[[#Headers],[Domaine]],MATCH(Table1[[#This Row],[Loca / action]],'Constats projets Entretiens'!J:J,0)-1,5,,)=0,\"\",OFFSET(Table24[[#Headers],[Domaine]],MATCH(Table1[[#This Row],[Loca / action]],'Constats projets Entretiens'!J:J,0)-1,5,,)),\"Ligne supprimée dans Constat\")","v":""},{"$f":"IFERROR(Table1[[#This Row],[localisation]]&\" \"&Table1[[#This Row],[constat/projet/entretien]],\"\")","v":"HEURE / Terrains / Daguet lancer la location"}]
[{"$f":"IFERROR(IF(OFFSET(Table24[[#Headers],[Domaine]],MATCH(Table1[[#This Row],[Loca / action]],'Constats projets Entretiens'!J:J,0)-1,6,,)=0,\"\",OFFSET(Table24[[#Headers],[Domaine]],MATCH(Table1[[#This Row],[Loca / action]],'Constats projets Entretiens'!J:J,0)-1,6,,)),\"Ligne supprimée dans Constat\")","v":2},"HEURE / ancien bloc sanitaire / projet","définir sa nouvelle affectation : nouveau bloc sanitaire \"léger\", kot à outils, etc ?",null,null,{"$f":"IFERROR(IF(OFFSET(Table24[[#Headers],[Domaine]],MATCH(Table1[[#This Row],[Loca / action]],'Constats projets Entretiens'!J:J,0)-1,5,,)=0,\"\",OFFSET(Table24[[#Headers],[Domaine]],MATCH(Table1[[#This Row],[Loca / action]],'Constats projets Entretiens'!J:J,0)-1,5,,)),\"Ligne supprimée dans Constat\")","v":""},{"$f":"IFERROR(Table1[[#This Row],[localisation]]&\" \"&Table1[[#This Row],[constat/projet/entretien]],\"\")","v":"HEURE / ancien bloc sanitaire / projet définir sa nouvelle affectation : nouveau bloc sanitaire \"léger\", kot à outils, etc ?"}]
[{"$f":"IFERROR(IF(OFFSET(Table24[[#Headers],[Domaine]],MATCH(Table1[[#This Row],[Loca / action]],'Constats projets Entretiens'!J:J,0)-1,6,,)=0,\"\",OFFSET(Table24[[#Headers],[Domaine]],MATCH(Table1[[#This Row],[Loca / action]],'Constats projets Entretiens'!J:J,0)-1,6,,)),\"Ligne supprimée dans Constat\")","v":2},"HEURE / La Carlingue / abords extérieurs","terrassement et remblayage du parking",null,null,{"$f":"IFERROR(IF(OFFSET(Table24[[#Headers],[Domaine]],MATCH(Table1[[#This Row],[Loca / action]],'Constats projets Entretiens'!J:J,0)-1,5,,)=0,\"\",OFFSET(Table24[[#Headers],[Domaine]],MATCH(Table1[[#This Row],[Loca / action]],'Constats projets Entretiens'!J:J,0)-1,5,,)),\"Ligne supprimée dans Constat\")","v":""},{"$f":"IFERROR(Table1[[#This Row],[localisation]]&\" \"&Table1[[#This Row],[constat/projet/entretien]],\"\")","v":"HEURE / La Carlingue / abords extérieurs terrassement et remblayage du parking"}]
[{"$f":"IFERROR(IF(OFFSET(Table24[[#Headers],[Domaine]],MATCH(Table1[[#This Row],[Loca / action]],'Constats projets Entretiens'!J:J,0)-1,6,,)=0,\"\",OFFSET(Table24[[#Headers],[Domaine]],MATCH(Table1[[#This Row],[Loca / action]],'Constats projets Entretiens'!J:J,0)-1,6,,)),\"Ligne supprimée dans Constat\")","v":2},"HEURE / La Carlingue / abords extérieurs","faire un chemin praticable (ou terrasse) vers le bureau et toilettes",null,null,{"$f":"IFERROR(IF(OFFSET(Table24[[#Headers],[Domaine]],MATCH(Table1[[#This Row],[Loca / action]],'Constats projets Entretiens'!J:J,0)-1,5,,)=0,\"\",OFFSET(Table24[[#Headers],[Domaine]],MATCH(Table1[[#This Row],[Loca / action]],'Constats projets Entretiens'!J:J,0)-1,5,,)),\"Ligne supprimée dans Constat\")","v":""},{"$f":"IFERROR(Table1[[#This Row],[localisation]]&\" \"&Table1[[#This Row],[constat/projet/entretien]],\"\")","v":"HEURE / La Carlingue / abords extérieurs faire un chemin praticable (ou terrasse) vers le bureau et toilettes"}]
[{"$f":"IFERROR(IF(OFFSET(Table24[[#Headers],[Domaine]],MATCH(Table1[[#This Row],[Loca / action]],'Constats projets Entretiens'!J:J,0)-1,6,,)=0,\"\",OFFSET(Table24[[#Headers],[Domaine]],MATCH(Table1[[#This Row],[Loca / action]],'Constats projets Entretiens'!J:J,0)-1,6,,)),\"Ligne supprimée dans Constat\")","v":2},"HEURE / Ensemble du domaine / étang et abords de rivière","projet de nouveau barrage pour avoir à nouveau un étang",null,null,{"$f":"IFERROR(IF(OFFSET(Table24[[#Headers],[Domaine]],MATCH(Table1[[#This Row],[Loca / action]],'Constats projets Entretiens'!J:J,0)-1,5,,)=0,\"\",OFFSET(Table24[[#Headers],[Domaine]],MATCH(Table1[[#This Row],[Loca / action]],'Constats projets Entretiens'!J:J,0)-1,5,,)),\"Ligne supprimée dans Constat\")","v":""},{"$f":"IFERROR(Table1[[#This Row],[localisation]]&\" \"&Table1[[#This Row],[constat/projet/entretien]],\"\")","v":"HEURE / Ensemble du domaine / étang et abords de rivière projet de nouveau barrage pour avoir à nouveau un étang"}]
[{"$f":"IFERROR(IF(OFFSET(Table24[[#Headers],[Domaine]],MATCH(Table1[[#This Row],[Loca / action]],'Constats projets Entretiens'!J:J,0)-1,6,,)=0,\"\",OFFSET(Table24[[#Headers],[Domaine]],MATCH(Table1[[#This Row],[Loca / action]],'Constats projets Entretiens'!J:J,0)-1,6,,)),\"Ligne supprimée dans Constat\")","v":2},"HEURE / Ensemble du domaine / étang et abords de rivière","dégagement d'une Parcelle de bois en bord de rivière",null,null,{"$f":"IFERROR(IF(OFFSET(Table24[[#Headers],[Domaine]],MATCH(Table1[[#This Row],[Loca / action]],'Constats projets Entretiens'!J:J,0)-1,5,,)=0,\"\",OFFSET(Table24[[#Headers],[Domaine]],MATCH(Table1[[#This Row],[Loca / action]],'Constats projets Entretiens'!J:J,0)-1,5,,)),\"Ligne supprimée dans Constat\")","v":""},{"$f":"IFERROR(Table1[[#This Row],[localisation]]&\" \"&Table1[[#This Row],[constat/projet/entretien]],\"\")","v":"HEURE / Ensemble du domaine / étang et abords de rivière dégagement d'une Parcelle de bois en bord de rivière"}]
[{"$f":"IFERROR(IF(OFFSET(Table24[[#Headers],[Domaine]],MATCH(Table1[[#This Row],[Loca / action]],'Constats projets Entretiens'!J:J,0)-1,6,,)=0,\"\",OFFSET(Table24[[#Headers],[Domaine]],MATCH(Table1[[#This Row],[Loca / action]],'Constats projets Entretiens'!J:J,0)-1,6,,)),\"Ligne supprimée dans Constat\")","v":2},"PDH 38 / Rez / autre","mettre à louer les pièces du rez comme bureaux",null,null,{"$f":"IFERROR(IF(OFFSET(Table24[[#Headers],[Domaine]],MATCH(Table1[[#This Row],[Loca / action]],'Constats projets Entretiens'!J:J,0)-1,5,,)=0,\"\",OFFSET(Table24[[#Headers],[Domaine]],MATCH(Table1[[#This Row],[Loca / action]],'Constats projets Entretiens'!J:J,0)-1,5,,)),\"Ligne supprimée dans Constat\")","v":""},{"$f":"IFERROR(Table1[[#This Row],[localisation]]&\" \"&Table1[[#This Row],[constat/projet/entretien]],\"\")","v":"PDH 38 / Rez / autre mettre à louer les pièces du rez comme bureaux"}]
[{"$f":"IFERROR(IF(OFFSET(Table24[[#Headers],[Domaine]],MATCH(Table1[[#This Row],[Loca / action]],'Constats projets Entretiens'!J:J,0)-1,6,,)=0,\"\",OFFSET(Table24[[#Headers],[Domaine]],MATCH(Table1[[#This Row],[Loca / action]],'Constats projets Entretiens'!J:J,0)-1,6,,)),\"Ligne supprimée dans Constat\")","v":2},"HEURE / Ensemble du domaine / travail administratif","trouver ferraileur pour évacuer le vieux congel",null,null,{"$f":"IFERROR(IF(OFFSET(Table24[[#Headers],[Domaine]],MATCH(Table1[[#This Row],[Loca / action]],'Constats projets Entretiens'!J:J,0)-1,5,,)=0,\"\",OFFSET(Table24[[#Headers],[Domaine]],MATCH(Table1[[#This Row],[Loca / action]],'Constats projets Entretiens'!J:J,0)-1,5,,)),\"Ligne supprimée dans Constat\")","v":""},{"$f":"IFERROR(Table1[[#This Row],[localisation]]&\" \"&Table1[[#This Row],[constat/projet/entretien]],\"\")","v":"HEURE / Ensemble du domaine / travail administratif trouver ferraileur pour évacuer le vieux congel"}]
[{"$f":"IFERROR(IF(OFFSET(Table24[[#Headers],[Domaine]],MATCH(Table1[[#This Row],[Loca / action]],'Constats projets Entretiens'!J:J,0)-1,6,,)=0,\"\",OFFSET(Table24[[#Headers],[Domaine]],MATCH(Table1[[#This Row],[Loca / action]],'Constats projets Entretiens'!J:J,0)-1,6,,)),\"Ligne supprimée dans Constat\")","v":2},"PDH 38 / caves / chaudière et chauffage","voir avec catherine pour faire le point de ce qui est payé/pas payé et fait/pas fait par AMBIANCE & CHALEUR",null,null,{"$f":"IFERROR(IF(OFFSET(Table24[[#Headers],[Domaine]],MATCH(Table1[[#This Row],[Loca / action]],'Constats projets Entretiens'!J:J,0)-1,5,,)=0,\"\",OFFSET(Table24[[#Headers],[Domaine]],MATCH(Table1[[#This Row],[Loca / action]],'Constats projets Entretiens'!J:J,0)-1,5,,)),\"Ligne supprimée dans Constat\")","v":""},{"$f":"IFERROR(Table1[[#This Row],[localisation]]&\" \"&Table1[[#This Row],[constat/projet/entretien]],\"\")","v":"PDH 38 / caves / chaudière et chauffage voir avec catherine pour faire le point de ce qui est payé/pas payé et fait/pas fait par AMBIANCE & CHALEUR"}]
[{"$f":"IFERROR(IF(OFFSET(Table24[[#Headers],[Domaine]],MATCH(Table1[[#This Row],[Loca / action]],'Constats projets Entretiens'!J:J,0)-1,6,,)=0,\"\",OFFSET(Table24[[#Headers],[Domaine]],MATCH(Table1[[#This Row],[Loca / action]],'Constats projets Entretiens'!J:J,0)-1,6,,)),\"Ligne supprimée dans Constat\")","v":2},"PDH 38 / caves / archives","ARCHIVES : créer un tableau de tri",null,null,{"$f":"IFERROR(IF(OFFSET(Table24[[#Headers],[Domaine]],MATCH(Table1[[#This Row],[Loca / action]],'Constats projets Entretiens'!J:J,0)-1,5,,)=0,\"\",OFFSET(Table24[[#Headers],[Domaine]],MATCH(Table1[[#This Row],[Loca / action]],'Constats projets Entretiens'!J:J,0)-1,5,,)),\"Ligne supprimée dans Constat\")","v":""},{"$f":"IFERROR(Table1[[#This Row],[localisation]]&\" \"&Table1[[#This Row],[constat/projet/entretien]],\"\")","v":"PDH 38 / caves / archives ARCHIVES : créer un tableau de tri"}]
[{"$f":"IFERROR(IF(OFFSET(Table24[[#Headers],[Domaine]],MATCH(Table1[[#This Row],[Loca / action]],'Constats projets Entretiens'!J:J,0)-1,6,,)=0,\"\",OFFSET(Table24[[#Headers],[Domaine]],MATCH(Table1[[#This Row],[Loca / action]],'Constats projets Entretiens'!J:J,0)-1,6,,)),\"Ligne supprimée dans Constat\")","v":2},"PDH 38 / caves / archives","ARCHIVES : trier et classer",null,null,{"$f":"IFERROR(IF(OFFSET(Table24[[#Headers],[Domaine]],MATCH(Table1[[#This Row],[Loca / action]],'Constats projets Entretiens'!J:J,0)-1,5,,)=0,\"\",OFFSET(Table24[[#Headers],[Domaine]],MATCH(Table1[[#This Row],[Loca / action]],'Constats projets Entretiens'!J:J,0)-1,5,,)),\"Ligne supprimée dans Constat\")","v":""},{"$f":"IFERROR(Table1[[#This Row],[localisation]]&\" \"&Table1[[#This Row],[constat/projet/entretien]],\"\")","v":"PDH 38 / caves / archives ARCHIVES : trier et classer"}]
[{"$f":"IFERROR(IF(OFFSET(Table24[[#Headers],[Domaine]],MATCH(Table1[[#This Row],[Loca / action]],'Constats projets Entretiens'!J:J,0)-1,6,,)=0,\"\",OFFSET(Table24[[#Headers],[Domaine]],MATCH(Table1[[#This Row],[Loca / action]],'Constats projets Entretiens'!J:J,0)-1,6,,)),\"Ligne supprimée dans Constat\")","v":2},"PDH 38 / caves / archives","ARCHIVES : trouver un repreneur ?",null,null,{"$f":"IFERROR(IF(OFFSET(Table24[[#Headers],[Domaine]],MATCH(Table1[[#This Row],[Loca / action]],'Constats projets Entretiens'!J:J,0)-1,5,,)=0,\"\",OFFSET(Table24[[#Headers],[Domaine]],MATCH(Table1[[#This Row],[Loca / action]],'Constats projets Entretiens'!J:J,0)-1,5,,)),\"Ligne supprimée dans Constat\")","v":""},{"$f":"IFERROR(Table1[[#This Row],[localisation]]&\" \"&Table1[[#This Row],[constat/projet/entretien]],\"\")","v":"PDH 38 / caves / archives ARCHIVES : trouver un repreneur ?"}]
[{"$f":"IFERROR(IF(OFFSET(Table24[[#Headers],[Domaine]],MATCH(Table1[[#This Row],[Loca / action]],'Constats projets Entretiens'!J:J,0)-1,6,,)=0,\"\",OFFSET(Table24[[#Headers],[Domaine]],MATCH(Table1[[#This Row],[Loca / action]],'Constats projets Entretiens'!J:J,0)-1,6,,)),\"Ligne supprimée dans Constat\")","v":2},"PDH 38 / Premier / appartement (pièce de vie)","APPART : quel avenir ? Vente ? Location ? Auberge de jeunesse ?",null,null,{"$f":"IFERROR(IF(OFFSET(Table24[[#Headers],[Domaine]],MATCH(Table1[[#This Row],[Loca / action]],'Constats projets Entretiens'!J:J,0)-1,5,,)=0,\"\",OFFSET(Table24[[#Headers],[Domaine]],MATCH(Table1[[#This Row],[Loca / action]],'Constats projets Entretiens'!J:J,0)-1,5,,)),\"Ligne supprimée dans Constat\")","v":""},{"$f":"IFERROR(Table1[[#This Row],[localisation]]&\" \"&Table1[[#This Row],[constat/projet/entretien]],\"\")","v":"PDH 38 / Premier / appartement (pièce de vie) APPART : quel avenir ? Vente ? Location ? Auberge de jeunesse ?"}]
[{"$f":"IFERROR(IF(OFFSET(Table24[[#Headers],[Domaine]],MATCH(Table1[[#This Row],[Loca / action]],'Constats projets Entretiens'!J:J,0)-1,6,,)=0,\"\",OFFSET(Table24[[#Headers],[Domaine]],MATCH(Table1[[#This Row],[Loca / action]],'Constats projets Entretiens'!J:J,0)-1,6,,)),\"Ligne supprimée dans Constat\")","v":2},"PDH 38 / Premier / appartement (pièce de vie)","se renseigner si les normes de sécurités sont respectées",null,null,{"$f":"IFERROR(IF(OFFSET(Table24[[#Headers],[Domaine]],MATCH(Table1[[#This Row],[Loca / action]],'Constats projets Entretiens'!J:J,0)-1,5,,)=0,\"\",OFFSET(Table24[[#Headers],[Domaine]],MATCH(Table1[[#This Row],[Loca / action]],'Constats projets Entretiens'!J:J,0)-1,5,,)),\"Ligne supprimée dans Constat\")","v":""},{"$f":"IFERROR(Table1[[#This Row],[localisation]]&\" \"&Table1[[#This Row],[constat/projet/entretien]],\"\")","v":"PDH 38 / Premier / appartement (pièce de vie) se renseigner si les normes de sécurités sont respectées"}]
[{"$f":"IFERROR(IF(OFFSET(Table24[[#Headers],[Domaine]],MATCH(Table1[[#This Row],[Loca / action]],'Constats projets Entretiens'!J:J,0)-1,6,,)=0,\"\",OFFSET(Table24[[#Headers],[Domaine]],MATCH(Table1[[#This Row],[Loca / action]],'Constats projets Entretiens'!J:J,0)-1,6,,)),\"Ligne supprimée dans Constat\")","v":2},"PDH 38 / deuxième / appartement SGP (salle de bains)","refaire ou changer le bac de douche",null,null,{"$f":"IFERROR(IF(OFFSET(Table24[[#Headers],[Domaine]],MATCH(Table1[[#This Row],[Loca / action]],'Constats projets Entretiens'!J:J,0)-1,5,,)=0,\"\",OFFSET(Table24[[#Headers],[Domaine]],MATCH(Table1[[#This Row],[Loca / action]],'Constats projets Entretiens'!J:J,0)-1,5,,)),\"Ligne supprimée dans Constat\")","v":""},{"$f":"IFERROR(Table1[[#This Row],[localisation]]&\" \"&Table1[[#This Row],[constat/projet/entretien]],\"\")","v":"PDH 38 / deuxième / appartement SGP (salle de bains) refaire ou changer le bac de douche"}]
[{"$f":"IFERROR(IF(OFFSET(Table24[[#Headers],[Domaine]],MATCH(Table1[[#This Row],[Loca / action]],'Constats projets Entretiens'!J:J,0)-1,6,,)=0,\"\",OFFSET(Table24[[#Headers],[Domaine]],MATCH(Table1[[#This Row],[Loca / action]],'Constats projets Entretiens'!J:J,0)-1,6,,)),\"Ligne supprimée dans Constat\")","v":2},"PDH 39 / Tout le bâtiment / travail administratif","projet auberge de jeunesse ?",null,null,{"$f":"IFERROR(IF(OFFSET(Table24[[#Headers],[Domaine]],MATCH(Table1[[#This Row],[Loca / action]],'Constats projets Entretiens'!J:J,0)-1,5,,)=0,\"\",OFFSET(Table24[[#Headers],[Domaine]],MATCH(Table1[[#This Row],[Loca / action]],'Constats projets Entretiens'!J:J,0)-1,5,,)),\"Ligne supprimée dans Constat\")","v":""},{"$f":"IFERROR(Table1[[#This Row],[localisation]]&\" \"&Table1[[#This Row],[constat/projet/entretien]],\"\")","v":"PDH 39 / Tout le bâtiment / travail administratif projet auberge de jeunesse ?"}]
[{"$f":"IFERROR(IF(OFFSET(Table24[[#Headers],[Domaine]],MATCH(Table1[[#This Row],[Loca / action]],'Constats projets Entretiens'!J:J,0)-1,6,,)=0,\"\",OFFSET(Table24[[#Headers],[Domaine]],MATCH(Table1[[#This Row],[Loca / action]],'Constats projets Entretiens'!J:J,0)-1,6,,)),\"Ligne supprimée dans Constat\")","v":2},"PDH 39 / rez / Magascout","créer un plancher pour ratraper la pente du bureau de Fred",null,null,{"$f":"IFERROR(IF(OFFSET(Table24[[#Headers],[Domaine]],MATCH(Table1[[#This Row],[Loca / action]],'Constats projets Entretiens'!J:J,0)-1,5,,)=0,\"\",OFFSET(Table24[[#Headers],[Domaine]],MATCH(Table1[[#This Row],[Loca / action]],'Constats projets Entretiens'!J:J,0)-1,5,,)),\"Ligne supprimée dans Constat\")","v":""},{"$f":"IFERROR(Table1[[#This Row],[localisation]]&\" \"&Table1[[#This Row],[constat/projet/entretien]],\"\")","v":"PDH 39 / rez / Magascout créer un plancher pour ratraper la pente du bureau de Fred"}]
[{"$f":"IFERROR(IF(OFFSET(Table24[[#Headers],[Domaine]],MATCH(Table1[[#This Row],[Loca / action]],'Constats projets Entretiens'!J:J,0)-1,6,,)=0,\"\",OFFSET(Table24[[#Headers],[Domaine]],MATCH(Table1[[#This Row],[Loca / action]],'Constats projets Entretiens'!J:J,0)-1,6,,)),\"Ligne supprimée dans Constat\")","v":2},"PDH 39 / garages / garage SGP","remonter le frigo dans l'appart du 1er",null,null,{"$f":"IFERROR(IF(OFFSET(Table24[[#Headers],[Domaine]],MATCH(Table1[[#This Row],[Loca / action]],'Constats projets Entretiens'!J:J,0)-1,5,,)=0,\"\",OFFSET(Table24[[#Headers],[Domaine]],MATCH(Table1[[#This Row],[Loca / action]],'Constats projets Entretiens'!J:J,0)-1,5,,)),\"Ligne supprimée dans Constat\")","v":""},{"$f":"IFERROR(Table1[[#This Row],[localisation]]&\" \"&Table1[[#This Row],[constat/projet/entretien]],\"\")","v":"PDH 39 / garages / garage SGP remonter le frigo dans l'appart du 1er"}]
[{"$f":"IFERROR(IF(OFFSET(Table24[[#Headers],[Domaine]],MATCH(Table1[[#This Row],[Loca / action]],'Constats projets Entretiens'!J:J,0)-1,6,,)=0,\"\",OFFSET(Table24[[#Headers],[Domaine]],MATCH(Table1[[#This Row],[Loca / action]],'Constats projets Entretiens'!J:J,0)-1,6,,)),\"Ligne supprimée dans Constat\")","v":2},"PDH 39 / premier / cuisine","repeindre et rafraichir + nouveau frigo",null,null,{"$f":"IFERROR(IF(OFFSET(Table24[[#Headers],[Domaine]],MATCH(Table1[[#This Row],[Loca / action]],'Constats projets Entretiens'!J:J,0)-1,5,,)=0,\"\",OFFSET(Table24[[#Headers],[Domaine]],MATCH(Table1[[#This Row],[Loca / action]],'Constats projets Entretiens'!J:J,0)-1,5,,)),\"Ligne supprimée dans Constat\")","v":""},{"$f":"IFERROR(Table1[[#This Row],[localisation]]&\" \"&Table1[[#This Row],[constat/projet/entretien]],\"\")","v":"PDH 39 / premier / cuisine repeindre et rafraichir + nouveau frigo"}]
[{"$f":"IFERROR(IF(OFFSET(Table24[[#Headers],[Domaine]],MATCH(Table1[[#This Row],[Loca / action]],'Constats projets Entretiens'!J:J,0)-1,6,,)=0,\"\",OFFSET(Table24[[#Headers],[Domaine]],MATCH(Table1[[#This Row],[Loca / action]],'Constats projets Entretiens'!J:J,0)-1,6,,)),\"Ligne supprimée dans Constat\")","v":2},"PDH 39 / premier / bureau RH, compta et affi","repeindre",null,null,{"$f":"IFERROR(IF(OFFSET(Table24[[#Headers],[Domaine]],MATCH(Table1[[#This Row],[Loca / action]],'Constats projets Entretiens'!J:J,0)-1,5,,)=0,\"\",OFFSET(Table24[[#Headers],[Domaine]],MATCH(Table1[[#This Row],[Loca / action]],'Constats projets Entretiens'!J:J,0)-1,5,,)),\"Ligne supprimée dans Constat\")","v":""},{"$f":"IFERROR(Table1[[#This Row],[localisation]]&\" \"&Table1[[#This Row],[constat/projet/entretien]],\"\")","v":"PDH 39 / premier / bureau RH, compta et affi repeindre"}]
[{"$f":"IFERROR(IF(OFFSET(Table24[[#Headers],[Domaine]],MATCH(Table1[[#This Row],[Loca / action]],'Constats projets Entretiens'!J:J,0)-1,6,,)=0,\"\",OFFSET(Table24[[#Headers],[Domaine]],MATCH(Table1[[#This Row],[Loca / action]],'Constats projets Entretiens'!J:J,0)-1,6,,)),\"Ligne supprimée dans Constat\")","v":2},"CDS / Ensemble du domaine / travail administratif","VENTE 2: annonce immoweb",null,null,{"$f":"IFERROR(IF(OFFSET(Table24[[#Headers],[Domaine]],MATCH(Table1[[#This Row],[Loca / action]],'Constats projets Entretiens'!J:J,0)-1,5,,)=0,\"\",OFFSET(Table24[[#Headers],[Domaine]],MATCH(Table1[[#This Row],[Loca / action]],'Constats projets Entretiens'!J:J,0)-1,5,,)),\"Ligne supprimée dans Constat\")","v":""},{"$f":"IFERROR(Table1[[#This Row],[localisation]]&\" \"&Table1[[#This Row],[constat/projet/entretien]],\"\")","v":"CDS / Ensemble du domaine / travail administratif VENTE 2: annonce immoweb"}]
[{"$f":"IFERROR(IF(OFFSET(Table24[[#Headers],[Domaine]],MATCH(Table1[[#This Row],[Loca / action]],'Constats projets Entretiens'!J:J,0)-1,6,,)=0,\"\",OFFSET(Table24[[#Headers],[Domaine]],MATCH(Table1[[#This Row],[Loca / action]],'Constats projets Entretiens'!J:J,0)-1,6,,)),\"Ligne supprimée dans Constat\")","v":2},"CDS / Ensemble du domaine / travail administratif","VENTE 2: faire des photos",null,null,{"$f":"IFERROR(IF(OFFSET(Table24[[#Headers],[Domaine]],MATCH(Table1[[#This Row],[Loca / action]],'Constats projets Entretiens'!J:J,0)-1,5,,)=0,\"\",OFFSET(Table24[[#Headers],[Domaine]],MATCH(Table1[[#This Row],[Loca / action]],'Constats projets Entretiens'!J:J,0)-1,5,,)),\"Ligne supprimée dans Constat\")","v":""},{"$f":"IFERROR(Table1[[#This Row],[localisation]]&\" \"&Table1[[#This Row],[constat/projet/entretien]],\"\")","v":"CDS / Ensemble du domaine / travail administratif VENTE 2: faire des photos"}]
[{"$f":"IFERROR(IF(OFFSET(Table24[[#Headers],[Domaine]],MATCH(Table1[[#This Row],[Loca / action]],'Constats projets Entretiens'!J:J,0)-1,6,,)=0,\"\",OFFSET(Table24[[#Headers],[Domaine]],MATCH(Table1[[#This Row],[Loca / action]],'Constats projets Entretiens'!J:J,0)-1,6,,)),\"Ligne supprimée dans Constat\")","v":2},"HEURE / La Carlingue / général","faire une nouvelle affiche infirmerie",null,null,{"$f":"IFERROR(IF(OFFSET(Table24[[#Headers],[Domaine]],MATCH(Table1[[#This Row],[Loca / action]],'Constats projets Entretiens'!J:J,0)-1,5,,)=0,\"\",OFFSET(Table24[[#Headers],[Domaine]],MATCH(Table1[[#This Row],[Loca / action]],'Constats projets Entretiens'!J:J,0)-1,5,,)),\"Ligne supprimée dans Constat\")","v":""},{"$f":"IFERROR(Table1[[#This Row],[localisation]]&\" \"&Table1[[#This Row],[constat/projet/entretien]],\"\")","v":"HEURE / La Carlingue / général faire une nouvelle affiche infirmerie"}]
[{"$f":"IFERROR(IF(OFFSET(Table24[[#Headers],[Domaine]],MATCH(Table1[[#This Row],[Loca / action]],'Constats projets Entretiens'!J:J,0)-1,6,,)=0,\"\",OFFSET(Table24[[#Headers],[Domaine]],MATCH(Table1[[#This Row],[Loca / action]],'Constats projets Entretiens'!J:J,0)-1,6,,)),\"Ligne supprimée dans Constat\")","v":2},"HEURE / Le Grand Chalet / toiture","infiltrations côté parking",null,null,{"$f":"IFERROR(IF(OFFSET(Table24[[#Headers],[Domaine]],MATCH(Table1[[#This Row],[Loca / action]],'Constats projets Entretiens'!J:J,0)-1,5,,)=0,\"\",OFFSET(Table24[[#Headers],[Domaine]],MATCH(Table1[[#This Row],[Loca / action]],'Constats projets Entretiens'!J:J,0)-1,5,,)),\"Ligne supprimée dans Constat\")","v":""},{"$f":"IFERROR(Table1[[#This Row],[localisation]]&\" \"&Table1[[#This Row],[constat/projet/entretien]],\"\")","v":"HEURE / Le Grand Chalet / toiture infiltrations côté parking"}]
[{"$f":"IFERROR(IF(OFFSET(Table24[[#Headers],[Domaine]],MATCH(Table1[[#This Row],[Loca / action]],'Constats projets Entretiens'!J:J,0)-1,6,,)=0,\"\",OFFSET(Table24[[#Headers],[Domaine]],MATCH(Table1[[#This Row],[Loca / action]],'Constats projets Entretiens'!J:J,0)-1,6,,)),\"Ligne supprimée dans Constat\")","v":2},"HEURE / Le Grand Chalet / salle du sous-sol","humidité dans le mur sous la rampe d'accès à la terrasse",null,null,{"$f":"IFERROR(IF(OFFSET(Table24[[#Headers],[Domaine]],MATCH(Table1[[#This Row],[Loca / action]],'Constats projets Entretiens'!J:J,0)-1,5,,)=0,\"\",OFFSET(Table24[[#Headers],[Domaine]],MATCH(Table1[[#This Row],[Loca / action]],'Constats projets Entretiens'!J:J,0)-1,5,,)),\"Ligne supprimée dans Constat\")","v":""},{"$f":"IFERROR(Table1[[#This Row],[localisation]]&\" \"&Table1[[#This Row],[constat/projet/entretien]],\"\")","v":"HEURE / Le Grand Chalet / salle du sous-sol humidité dans le mur sous la rampe d'accès à la terrasse"}]
[{"$f":"IFERROR(IF(OFFSET(Table24[[#Headers],[Domaine]],MATCH(Table1[[#This Row],[Loca / action]],'Constats projets Entretiens'!J:J,0)-1,6,,)=0,\"\",OFFSET(Table24[[#Headers],[Domaine]],MATCH(Table1[[#This Row],[Loca / action]],'Constats projets Entretiens'!J:J,0)-1,6,,)),\"Ligne supprimée dans Constat\")","v":2},"HEURE / Ensemble du domaine / toilettes sèches","projet toilettes sèches : quelle gestion ?",null,null,{"$f":"IFERROR(IF(OFFSET(Table24[[#Headers],[Domaine]],MATCH(Table1[[#This Row],[Loca / action]],'Constats projets Entretiens'!J:J,0)-1,5,,)=0,\"\",OFFSET(Table24[[#Headers],[Domaine]],MATCH(Table1[[#This Row],[Loca / action]],'Constats projets Entretiens'!J:J,0)-1,5,,)),\"Ligne supprimée dans Constat\")","v":""},{"$f":"IFERROR(Table1[[#This Row],[localisation]]&\" \"&Table1[[#This Row],[constat/projet/entretien]],\"\")","v":"HEURE / Ensemble du domaine / toilettes sèches projet toilettes sèches : quelle gestion ?"}]
[{"$f":"IFERROR(IF(OFFSET(Table24[[#Headers],[Domaine]],MATCH(Table1[[#This Row],[Loca / action]],'Constats projets Entretiens'!J:J,0)-1,6,,)=0,\"\",OFFSET(Table24[[#Headers],[Domaine]],MATCH(Table1[[#This Row],[Loca / action]],'Constats projets Entretiens'!J:J,0)-1,6,,)),\"Ligne supprimée dans Constat\")","v":2},"HEURE / Ensemble du domaine / toilettes sèches","se renseigner sur les normes nbre de toilette par campeur",null,null,{"$f":"IFERROR(IF(OFFSET(Table24[[#Headers],[Domaine]],MATCH(Table1[[#This Row],[Loca / action]],'Constats projets Entretiens'!J:J,0)-1,5,,)=0,\"\",OFFSET(Table24[[#Headers],[Domaine]],MATCH(Table1[[#This Row],[Loca / action]],'Constats projets Entretiens'!J:J,0)-1,5,,)),\"Ligne supprimée dans Constat\")","v":""},{"$f":"IFERROR(Table1[[#This Row],[localisation]]&\" \"&Table1[[#This Row],[constat/projet/entretien]],\"\")","v":"HEURE / Ensemble du domaine / toilettes sèches se renseigner sur les normes nbre de toilette par campeur"}]
[{"$f":"IFERROR(IF(OFFSET(Table24[[#Headers],[Domaine]],MATCH(Table1[[#This Row],[Loca / action]],'Constats projets Entretiens'!J:J,0)-1,6,,)=0,\"\",OFFSET(Table24[[#Headers],[Domaine]],MATCH(Table1[[#This Row],[Loca / action]],'Constats projets Entretiens'!J:J,0)-1,6,,)),\"Ligne supprimée dans Constat\")","v":2},"HEURE / Le Grand Chalet / chaudière et chauffage","infiltrations, local à mazout se remplit d'eau",null,null,{"$f":"IFERROR(IF(OFFSET(Table24[[#Headers],[Domaine]],MATCH(Table1[[#This Row],[Loca / action]],'Constats projets Entretiens'!J:J,0)-1,5,,)=0,\"\",OFFSET(Table24[[#Headers],[Domaine]],MATCH(Table1[[#This Row],[Loca / action]],'Constats projets Entretiens'!J:J,0)-1,5,,)),\"Ligne supprimée dans Constat\")","v":""},{"$f":"IFERROR(Table1[[#This Row],[localisation]]&\" \"&Table1[[#This Row],[constat/projet/entretien]],\"\")","v":"HEURE / Le Grand Chalet / chaudière et chauffage infiltrations, local à mazout se remplit d'eau"}]
[{"$f":"IFERROR(IF(OFFSET(Table24[[#Headers],[Domaine]],MATCH(Table1[[#This Row],[Loca / action]],'Constats projets Entretiens'!J:J,0)-1,6,,)=0,\"\",OFFSET(Table24[[#Headers],[Domaine]],MATCH(Table1[[#This Row],[Loca / action]],'Constats projets Entretiens'!J:J,0)-1,6,,)),\"Ligne supprimée dans Constat\")","v":2},"HEURE / Le Grand Chalet / sanitaires","faire un coffrage au-dessus de l'éternite (WC)",null,null,{"$f":"IFERROR(IF(OFFSET(Table24[[#Headers],[Domaine]],MATCH(Table1[[#This Row],[Loca / action]],'Constats projets Entretiens'!J:J,0)-1,5,,)=0,\"\",OFFSET(Table24[[#Headers],[Domaine]],MATCH(Table1[[#This Row],[Loca / action]],'Constats projets Entretiens'!J:J,0)-1,5,,)),\"Ligne supprimée dans Constat\")","v":""},{"$f":"IFERROR(Table1[[#This Row],[localisation]]&\" \"&Table1[[#This Row],[constat/projet/entretien]],\"\")","v":"HEURE / Le Grand Chalet / sanitaires faire un coffrage au-dessus de l'éternite (WC)"}]
[{"$f":"IFERROR(IF(OFFSET(Table24[[#Headers],[Domaine]],MATCH(Table1[[#This Row],[Loca / action]],'Constats projets Entretiens'!J:J,0)-1,6,,)=0,\"\",OFFSET(Table24[[#Headers],[Domaine]],MATCH(Table1[[#This Row],[Loca / action]],'Constats projets Entretiens'!J:J,0)-1,6,,)),\"Ligne supprimée dans Constat\")","v":2},"HEURE / Le Grand Chalet / menuiserie","réparer les oscillobattants des portes fenetres en bas",null,null,{"$f":"IFERROR(IF(OFFSET(Table24[[#Headers],[Domaine]],MATCH(Table1[[#This Row],[Loca / action]],'Constats projets Entretiens'!J:J,0)-1,5,,)=0,\"\",OFFSET(Table24[[#Headers],[Domaine]],MATCH(Table1[[#This Row],[Loca / action]],'Constats projets Entretiens'!J:J,0)-1,5,,)),\"Ligne supprimée dans Constat\")","v":""},{"$f":"IFERROR(Table1[[#This Row],[localisation]]&\" \"&Table1[[#This Row],[constat/projet/entretien]],\"\")","v":"HEURE / Le Grand Chalet / menuiserie réparer les oscillobattants des portes fenetres en bas"}]
[{"$f":"IFERROR(IF(OFFSET(Table24[[#Headers],[Domaine]],MATCH(Table1[[#This Row],[Loca / action]],'Constats projets Entretiens'!J:J,0)-1,6,,)=0,\"\",OFFSET(Table24[[#Headers],[Domaine]],MATCH(Table1[[#This Row],[Loca / action]],'Constats projets Entretiens'!J:J,0)-1,6,,)),\"Ligne supprimée dans Constat\")","v":2},"HEURE / Le Grand Chalet / cuisine","hotte : placer un multiprise et isoler le trou de la hotte",null,null,{"$f":"IFERROR(IF(OFFSET(Table24[[#Headers],[Domaine]],MATCH(Table1[[#This Row],[Loca / action]],'Constats projets Entretiens'!J:J,0)-1,5,,)=0,\"\",OFFSET(Table24[[#Headers],[Domaine]],MATCH(Table1[[#This Row],[Loca / action]],'Constats projets Entretiens'!J:J,0)-1,5,,)),\"Ligne supprimée dans Constat\")","v":""},{"$f":"IFERROR(Table1[[#This Row],[localisation]]&\" \"&Table1[[#This Row],[constat/projet/entretien]],\"\")","v":"HEURE / Le Grand Chalet / cuisine hotte : placer un multiprise et isoler le trou de la hotte"}]
[{"$f":"IFERROR(IF(OFFSET(Table24[[#Headers],[Domaine]],MATCH(Table1[[#This Row],[Loca / action]],'Constats projets Entretiens'!J:J,0)-1,6,,)=0,\"\",OFFSET(Table24[[#Headers],[Domaine]],MATCH(Table1[[#This Row],[Loca / action]],'Constats projets Entretiens'!J:J,0)-1,6,,)),\"Ligne supprimée dans Constat\")","v":2},"HEURE / Terrains / général","suivi du dossier abattage et plantation avec Yves Lambrecht",null,null,{"$f":"IFERROR(IF(OFFSET(Table24[[#Headers],[Domaine]],MATCH(Table1[[#This Row],[Loca / action]],'Constats projets Entretiens'!J:J,0)-1,5,,)=0,\"\",OFFSET(Table24[[#Headers],[Domaine]],MATCH(Table1[[#This Row],[Loca / action]],'Constats projets Entretiens'!J:J,0)-1,5,,)),\"Ligne supprimée dans Constat\")","v":""},{"$f":"IFERROR(Table1[[#This Row],[localisation]]&\" \"&Table1[[#This Row],[constat/projet/entretien]],\"\")","v":"HEURE / Terrains / général suivi du dossier abattage et plantation avec Yves Lambrecht"}]
[{"$f":"IFERROR(IF(OFFSET(Table24[[#Headers],[Domaine]],MATCH(Table1[[#This Row],[Loca / action]],'Constats projets Entretiens'!J:J,0)-1,6,,)=0,\"\",OFFSET(Table24[[#Headers],[Domaine]],MATCH(Table1[[#This Row],[Loca / action]],'Constats projets Entretiens'!J:J,0)-1,6,,)),\"Ligne supprimée dans Constat\")","v":2},"HEURE / Terrains / Daguet","lancer la location",null,null,{"$f":"IFERROR(IF(OFFSET(Table24[[#Headers],[Domaine]],MATCH(Table1[[#This Row],[Loca / action]],'Constats projets Entretiens'!J:J,0)-1,5,,)=0,\"\",OFFSET(Table24[[#Headers],[Domaine]],MATCH(Table1[[#This Row],[Loca / action]],'Constats projets Entretiens'!J:J,0)-1,5,,)),\"Ligne supprimée dans Constat\")","v":""},{"$f":"IFERROR(Table1[[#This Row],[localisation]]&\" \"&Table1[[#This Row],[constat/projet/entretien]],\"\")","v":"HEURE / Terrains / Daguet lancer la location"}]
[{"$f":"IFERROR(IF(OFFSET(Table24[[#Headers],[Domaine]],MATCH(Table1[[#This Row],[Loca / action]],'Constats projets Entretiens'!J:J,0)-1,6,,)=0,\"\",OFFSET(Table24[[#Headers],[Domaine]],MATCH(Table1[[#This Row],[Loca / action]],'Constats projets Entretiens'!J:J,0)-1,6,,)),\"Ligne supprimée dans Constat\")","v":2},"HEURE / ancien bloc sanitaire / projet","définir sa nouvelle affectation : nouveau bloc sanitaire \"léger\", kot à outils, etc ?",null,null,{"$f":"IFERROR(IF(OFFSET(Table24[[#Headers],[Domaine]],MATCH(Table1[[#This Row],[Loca / action]],'Constats projets Entretiens'!J:J,0)-1,5,,)=0,\"\",OFFSET(Table24[[#Headers],[Domaine]],MATCH(Table1[[#This Row],[Loca / action]],'Constats projets Entretiens'!J:J,0)-1,5,,)),\"Ligne supprimée dans Constat\")","v":""},{"$f":"IFERROR(Table1[[#This Row],[localisation]]&\" \"&Table1[[#This Row],[constat/projet/entretien]],\"\")","v":"HEURE / ancien bloc sanitaire / projet définir sa nouvelle affectation : nouveau bloc sanitaire \"léger\", kot à outils, etc ?"}]
[{"$f":"IFERROR(IF(OFFSET(Table24[[#Headers],[Domaine]],MATCH(Table1[[#This Row],[Loca / action]],'Constats projets Entretiens'!J:J,0)-1,6,,)=0,\"\",OFFSET(Table24[[#Headers],[Domaine]],MATCH(Table1[[#This Row],[Loca / action]],'Constats projets Entretiens'!J:J,0)-1,6,,)),\"Ligne supprimée dans Constat\")","v":2},"HEURE / La Carlingue / abords extérieurs","terrassement et remblayage du parking",null,null,{"$f":"IFERROR(IF(OFFSET(Table24[[#Headers],[Domaine]],MATCH(Table1[[#This Row],[Loca / action]],'Constats projets Entretiens'!J:J,0)-1,5,,)=0,\"\",OFFSET(Table24[[#Headers],[Domaine]],MATCH(Table1[[#This Row],[Loca / action]],'Constats projets Entretiens'!J:J,0)-1,5,,)),\"Ligne supprimée dans Constat\")","v":""},{"$f":"IFERROR(Table1[[#This Row],[localisation]]&\" \"&Table1[[#This Row],[constat/projet/entretien]],\"\")","v":"HEURE / La Carlingue / abords extérieurs terrassement et remblayage du parking"}]
[{"$f":"IFERROR(IF(OFFSET(Table24[[#Headers],[Domaine]],MATCH(Table1[[#This Row],[Loca / action]],'Constats projets Entretiens'!J:J,0)-1,6,,)=0,\"\",OFFSET(Table24[[#Headers],[Domaine]],MATCH(Table1[[#This Row],[Loca / action]],'Constats projets Entretiens'!J:J,0)-1,6,,)),\"Ligne supprimée dans Constat\")","v":2},"HEURE / La Carlingue / abords extérieurs","faire un chemin praticable (ou terrasse) vers le bureau et toilettes",null,null,{"$f":"IFERROR(IF(OFFSET(Table24[[#Headers],[Domaine]],MATCH(Table1[[#This Row],[Loca / action]],'Constats projets Entretiens'!J:J,0)-1,5,,)=0,\"\",OFFSET(Table24[[#Headers],[Domaine]],MATCH(Table1[[#This Row],[Loca / action]],'Constats projets Entretiens'!J:J,0)-1,5,,)),\"Ligne supprimée dans Constat\")","v":""},{"$f":"IFERROR(Table1[[#This Row],[localisation]]&\" \"&Table1[[#This Row],[constat/projet/entretien]],\"\")","v":"HEURE / La Carlingue / abords extérieurs faire un chemin praticable (ou terrasse) vers le bureau et toilettes"}]
[{"$f":"IFERROR(IF(OFFSET(Table24[[#Headers],[Domaine]],MATCH(Table1[[#This Row],[Loca / action]],'Constats projets Entretiens'!J:J,0)-1,6,,)=0,\"\",OFFSET(Table24[[#Headers],[Domaine]],MATCH(Table1[[#This Row],[Loca / action]],'Constats projets Entretiens'!J:J,0)-1,6,,)),\"Ligne supprimée dans Constat\")","v":2},"HEURE / Ensemble du domaine / étang et abords de rivière","projet de nouveau barrage pour avoir à nouveau un étang",null,null,{"$f":"IFERROR(IF(OFFSET(Table24[[#Headers],[Domaine]],MATCH(Table1[[#This Row],[Loca / action]],'Constats projets Entretiens'!J:J,0)-1,5,,)=0,\"\",OFFSET(Table24[[#Headers],[Domaine]],MATCH(Table1[[#This Row],[Loca / action]],'Constats projets Entretiens'!J:J,0)-1,5,,)),\"Ligne supprimée dans Constat\")","v":""},{"$f":"IFERROR(Table1[[#This Row],[localisation]]&\" \"&Table1[[#This Row],[constat/projet/entretien]],\"\")","v":"HEURE / Ensemble du domaine / étang et abords de rivière projet de nouveau barrage pour avoir à nouveau un étang"}]
[{"$f":"IFERROR(IF(OFFSET(Table24[[#Headers],[Domaine]],MATCH(Table1[[#This Row],[Loca / action]],'Constats projets Entretiens'!J:J,0)-1,6,,)=0,\"\",OFFSET(Table24[[#Headers],[Domaine]],MATCH(Table1[[#This Row],[Loca / action]],'Constats projets Entretiens'!J:J,0)-1,6,,)),\"Ligne supprimée dans Constat\")","v":2},"HEURE / Ensemble du domaine / étang et abords de rivière","dégagement d'une Parcelle de bois en bord de rivière",null,null,{"$f":"IFERROR(IF(OFFSET(Table24[[#Headers],[Domaine]],MATCH(Table1[[#This Row],[Loca / action]],'Constats projets Entretiens'!J:J,0)-1,5,,)=0,\"\",OFFSET(Table24[[#Headers],[Domaine]],MATCH(Table1[[#This Row],[Loca / action]],'Constats projets Entretiens'!J:J,0)-1,5,,)),\"Ligne supprimée dans Constat\")","v":""},{"$f":"IFERROR(Table1[[#This Row],[localisation]]&\" \"&Table1[[#This Row],[constat/projet/entretien]],\"\")","v":"HEURE / Ensemble du domaine / étang et abords de rivière dégagement d'une Parcelle de bois en bord de rivière"}]
[{"$f":"IFERROR(IF(OFFSET(Table24[[#Headers],[Domaine]],MATCH(Table1[[#This Row],[Loca / action]],'Constats projets Entretiens'!J:J,0)-1,6,,)=0,\"\",OFFSET(Table24[[#Headers],[Domaine]],MATCH(Table1[[#This Row],[Loca / action]],'Constats projets Entretiens'!J:J,0)-1,6,,)),\"Ligne supprimée dans Constat\")","v":2},"PDH 38 / Rez / autre","mettre à louer les pièces du rez comme bureaux",null,null,{"$f":"IFERROR(IF(OFFSET(Table24[[#Headers],[Domaine]],MATCH(Table1[[#This Row],[Loca / action]],'Constats projets Entretiens'!J:J,0)-1,5,,)=0,\"\",OFFSET(Table24[[#Headers],[Domaine]],MATCH(Table1[[#This Row],[Loca / action]],'Constats projets Entretiens'!J:J,0)-1,5,,)),\"Ligne supprimée dans Constat\")","v":""},{"$f":"IFERROR(Table1[[#This Row],[localisation]]&\" \"&Table1[[#This Row],[constat/projet/entretien]],\"\")","v":"PDH 38 / Rez / autre mettre à louer les pièces du rez comme bureaux"}]
[{"$f":"IFERROR(IF(OFFSET(Table24[[#Headers],[Domaine]],MATCH(Table1[[#This Row],[Loca / action]],'Constats projets Entretiens'!J:J,0)-1,6,,)=0,\"\",OFFSET(Table24[[#Headers],[Domaine]],MATCH(Table1[[#This Row],[Loca / action]],'Constats projets Entretiens'!J:J,0)-1,6,,)),\"Ligne supprimée dans Constat\")","v":3},"ITTRE / Extérieur / prairie","tondre ITTRE",null,null,{"$f":"IFERROR(IF(OFFSET(Table24[[#Headers],[Domaine]],MATCH(Table1[[#This Row],[Loca / action]],'Constats projets Entretiens'!J:J,0)-1,5,,)=0,\"\",OFFSET(Table24[[#Headers],[Domaine]],MATCH(Table1[[#This Row],[Loca / action]],'Constats projets Entretiens'!J:J,0)-1,5,,)),\"Ligne supprimée dans Constat\")","v":"2016-06-01"},{"$f":"IFERROR(Table1[[#This Row],[localisation]]&\" \"&Table1[[#This Row],[constat/projet/entretien]],\"\")","v":"ITTRE / Extérieur / prairie tondre ITTRE"}]
[{"$f":"IFERROR(IF(OFFSET(Table24[[#Headers],[Domaine]],MATCH(Table1[[#This Row],[Loca / action]],'Constats projets Entretiens'!J:J,0)-1,6,,)=0,\"\",OFFSET(Table24[[#Headers],[Domaine]],MATCH(Table1[[#This Row],[Loca / action]],'Constats projets Entretiens'!J:J,0)-1,6,,)),\"Ligne supprimée dans Constat\")","v":3},"ITTRE / Extérieur / prairie","tondre ITTRE",null,null,{"$f":"IFERROR(IF(OFFSET(Table24[[#Headers],[Domaine]],MATCH(Table1[[#This Row],[Loca / action]],'Constats projets Entretiens'!J:J,0)-1,5,,)=0,\"\",OFFSET(Table24[[#Headers],[Domaine]],MATCH(Table1[[#This Row],[Loca / action]],'Constats projets Entretiens'!J:J,0)-1,5,,)),\"Ligne supprimée dans Constat\")","v":"2016-06-01"},{"$f":"IFERROR(Table1[[#This Row],[localisation]]&\" \"&Table1[[#This Row],[constat/projet/entretien]],\"\")","v":"ITTRE / Extérieur / prairie tondre ITTRE"}]
[{"$f":"IFERROR(IF(OFFSET(Table24[[#Headers],[Domaine]],MATCH(Table1[[#This Row],[Loca / action]],'Constats projets Entretiens'!J:J,0)-1,6,,)=0,\"\",OFFSET(Table24[[#Headers],[Domaine]],MATCH(Table1[[#This Row],[Loca / action]],'Constats projets Entretiens'!J:J,0)-1,6,,)),\"Ligne supprimée dans Constat\")","v":3},"HEURE / Ensemble du domaine / bois","nouvelles plantations",null,null,{"$f":"IFERROR(IF(OFFSET(Table24[[#Headers],[Domaine]],MATCH(Table1[[#This Row],[Loca / action]],'Constats projets Entretiens'!J:J,0)-1,5,,)=0,\"\",OFFSET(Table24[[#Headers],[Domaine]],MATCH(Table1[[#This Row],[Loca / action]],'Constats projets Entretiens'!J:J,0)-1,5,,)),\"Ligne supprimée dans Constat\")","v":"2016-10-01"},{"$f":"IFERROR(Table1[[#This Row],[localisation]]&\" \"&Table1[[#This Row],[constat/projet/entretien]],\"\")","v":"HEURE / Ensemble du domaine / bois nouvelles plantations"}]
[{"$f":"IFERROR(IF(OFFSET(Table24[[#Headers],[Domaine]],MATCH(Table1[[#This Row],[Loca / action]],'Constats projets Entretiens'!J:J,0)-1,6,,)=0,\"\",OFFSET(Table24[[#Headers],[Domaine]],MATCH(Table1[[#This Row],[Loca / action]],'Constats projets Entretiens'!J:J,0)-1,6,,)),\"Ligne supprimée dans Constat\")","v":3},"HEURE / Ensemble du domaine / autre","créer un nouvel affichage didactique pour les déchets",null,null,{"$f":"IFERROR(IF(OFFSET(Table24[[#Headers],[Domaine]],MATCH(Table1[[#This Row],[Loca / action]],'Constats projets Entretiens'!J:J,0)-1,5,,)=0,\"\",OFFSET(Table24[[#Headers],[Domaine]],MATCH(Table1[[#This Row],[Loca / action]],'Constats projets Entretiens'!J:J,0)-1,5,,)),\"Ligne supprimée dans Constat\")","v":"2016-10-01"},{"$f":"IFERROR(Table1[[#This Row],[localisation]]&\" \"&Table1[[#This Row],[constat/projet/entretien]],\"\")","v":"HEURE / Ensemble du domaine / autre créer un nouvel affichage didactique pour les déchets"}]
[{"$f":"IFERROR(IF(OFFSET(Table24[[#Headers],[Domaine]],MATCH(Table1[[#This Row],[Loca / action]],'Constats projets Entretiens'!J:J,0)-1,6,,)=0,\"\",OFFSET(Table24[[#Headers],[Domaine]],MATCH(Table1[[#This Row],[Loca / action]],'Constats projets Entretiens'!J:J,0)-1,6,,)),\"Ligne supprimée dans Constat\")","v":3},"HEURE / Ensemble du domaine / bois","nouvelles plantations",null,null,{"$f":"IFERROR(IF(OFFSET(Table24[[#Headers],[Domaine]],MATCH(Table1[[#This Row],[Loca / action]],'Constats projets Entretiens'!J:J,0)-1,5,,)=0,\"\",OFFSET(Table24[[#Headers],[Domaine]],MATCH(Table1[[#This Row],[Loca / action]],'Constats projets Entretiens'!J:J,0)-1,5,,)),\"Ligne supprimée dans Constat\")","v":"2016-10-01"},{"$f":"IFERROR(Table1[[#This Row],[localisation]]&\" \"&Table1[[#This Row],[constat/projet/entretien]],\"\")","v":"HEURE / Ensemble du domaine / bois nouvelles plantations"}]
[{"$f":"IFERROR(IF(OFFSET(Table24[[#Headers],[Domaine]],MATCH(Table1[[#This Row],[Loca / action]],'Constats projets Entretiens'!J:J,0)-1,6,,)=0,\"\",OFFSET(Table24[[#Headers],[Domaine]],MATCH(Table1[[#This Row],[Loca / action]],'Constats projets Entretiens'!J:J,0)-1,6,,)),\"Ligne supprimée dans Constat\")","v":3},"HEURE / Ensemble du domaine / autre","créer un nouvel affichage didactique pour les déchets",null,null,{"$f":"IFERROR(IF(OFFSET(Table24[[#Headers],[Domaine]],MATCH(Table1[[#This Row],[Loca / action]],'Constats projets Entretiens'!J:J,0)-1,5,,)=0,\"\",OFFSET(Table24[[#Headers],[Domaine]],MATCH(Table1[[#This Row],[Loca / action]],'Constats projets Entretiens'!J:J,0)-1,5,,)),\"Ligne supprimée dans Constat\")","v":"2016-10-01"},{"$f":"IFERROR(Table1[[#This Row],[localisation]]&\" \"&Table1[[#This Row],[constat/projet/entretien]],\"\")","v":"HEURE / Ensemble du domaine / autre créer un nouvel affichage didactique pour les déchets"}]
[{"$f":"IFERROR(IF(OFFSET(Table24[[#Headers],[Domaine]],MATCH(Table1[[#This Row],[Loca / action]],'Constats projets Entretiens'!J:J,0)-1,6,,)=0,\"\",OFFSET(Table24[[#Headers],[Domaine]],MATCH(Table1[[#This Row],[Loca / action]],'Constats projets Entretiens'!J:J,0)-1,6,,)),\"Ligne supprimée dans Constat\")","v":3},"PDH 38 / caves / chaudière et chauffage","entretien bisannuel de la chaudière",null,null,{"$f":"IFERROR(IF(OFFSET(Table24[[#Headers],[Domaine]],MATCH(Table1[[#This Row],[Loca / action]],'Constats projets Entretiens'!J:J,0)-1,5,,)=0,\"\",OFFSET(Table24[[#Headers],[Domaine]],MATCH(Table1[[#This Row],[Loca / action]],'Constats projets Entretiens'!J:J,0)-1,5,,)),\"Ligne supprimée dans Constat\")","v":"2017-09-01"},{"$f":"IFERROR(Table1[[#This Row],[localisation]]&\" \"&Table1[[#This Row],[constat/projet/entretien]],\"\")","v":"PDH 38 / caves / chaudière et chauffage entretien bisannuel de la chaudière"}]
[{"$f":"IFERROR(IF(OFFSET(Table24[[#Headers],[Domaine]],MATCH(Table1[[#This Row],[Loca / action]],'Constats projets Entretiens'!J:J,0)-1,6,,)=0,\"\",OFFSET(Table24[[#Headers],[Domaine]],MATCH(Table1[[#This Row],[Loca / action]],'Constats projets Entretiens'!J:J,0)-1,6,,)),\"Ligne supprimée dans Constat\")","v":3},"PDH 39 / caves / chaudière et chauffage","entretien bisannuel de la chaudière",null,null,{"$f":"IFERROR(IF(OFFSET(Table24[[#Headers],[Domaine]],MATCH(Table1[[#This Row],[Loca / action]],'Constats projets Entretiens'!J:J,0)-1,5,,)=0,\"\",OFFSET(Table24[[#Headers],[Domaine]],MATCH(Table1[[#This Row],[Loca / action]],'Constats projets Entretiens'!J:J,0)-1,5,,)),\"Ligne supprimée dans Constat\")","v":"2017-09-01"},{"$f":"IFERROR(Table1[[#This Row],[localisation]]&\" \"&Table1[[#This Row],[constat/projet/entretien]],\"\")","v":"PDH 39 / caves / chaudière et chauffage entretien bisannuel de la chaudière"}]
[{"$f":"IFERROR(IF(OFFSET(Table24[[#Headers],[Domaine]],MATCH(Table1[[#This Row],[Loca / action]],'Constats projets Entretiens'!J:J,0)-1,6,,)=0,\"\",OFFSET(Table24[[#Headers],[Domaine]],MATCH(Table1[[#This Row],[Loca / action]],'Constats projets Entretiens'!J:J,0)-1,6,,)),\"Ligne supprimée dans Constat\")","v":3},"PDH 38 / caves / chaudière et chauffage","entretien bisannuel de la chaudière",null,null,{"$f":"IFERROR(IF(OFFSET(Table24[[#Headers],[Domaine]],MATCH(Table1[[#This Row],[Loca / action]],'Constats projets Entretiens'!J:J,0)-1,5,,)=0,\"\",OFFSET(Table24[[#Headers],[Domaine]],MATCH(Table1[[#This Row],[Loca / action]],'Constats projets Entretiens'!J:J,0)-1,5,,)),\"Ligne supprimée dans Constat\")","v":"2017-09-01"},{"$f":"IFERROR(Table1[[#This Row],[localisation]]&\" \"&Table1[[#This Row],[constat/projet/entretien]],\"\")","v":"PDH 38 / caves / chaudière et chauffage entretien bisannuel de la chaudière"}]
[{"$f":"IFERROR(IF(OFFSET(Table24[[#Headers],[Domaine]],MATCH(Table1[[#This Row],[Loca / action]],'Constats projets Entretiens'!J:J,0)-1,6,,)=0,\"\",OFFSET(Table24[[#Headers],[Domaine]],MATCH(Table1[[#This Row],[Loca / action]],'Constats projets Entretiens'!J:J,0)-1,6,,)),\"Ligne supprimée dans Constat\")","v":3},"PDH 39 / caves / chaudière et chauffage","entretien bisannuel de la chaudière",null,null,{"$f":"IFERROR(IF(OFFSET(Table24[[#Headers],[Domaine]],MATCH(Table1[[#This Row],[Loca / action]],'Constats projets Entretiens'!J:J,0)-1,5,,)=0,\"\",OFFSET(Table24[[#Headers],[Domaine]],MATCH(Table1[[#This Row],[Loca / action]],'Constats projets Entretiens'!J:J,0)-1,5,,)),\"Ligne supprimée dans Constat\")","v":"2017-09-01"},{"$f":"IFERROR(Table1[[#This Row],[localisation]]&\" \"&Table1[[#This Row],[constat/projet/entretien]],\"\")","v":"PDH 39 / caves / chaudière et chauffage entretien bisannuel de la chaudière"}]
[{"$f":"IFERROR(IF(OFFSET(Table24[[#Headers],[Domaine]],MATCH(Table1[[#This Row],[Loca / action]],'Constats projets Entretiens'!J:J,0)-1,6,,)=0,\"\",OFFSET(Table24[[#Headers],[Domaine]],MATCH(Table1[[#This Row],[Loca / action]],'Constats projets Entretiens'!J:J,0)-1,6,,)),\"Ligne supprimée dans Constat\")","v":3},"ITTRE / Extérieur / abords des bâtiments","barrière en mauvais état, à refaire",null,null,{"$f":"IFERROR(IF(OFFSET(Table24[[#Headers],[Domaine]],MATCH(Table1[[#This Row],[Loca / action]],'Constats projets Entretiens'!J:J,0)-1,5,,)=0,\"\",OFFSET(Table24[[#Headers],[Domaine]],MATCH(Table1[[#This Row],[Loca / action]],'Constats projets Entretiens'!J:J,0)-1,5,,)),\"Ligne supprimée dans Constat\")","v":""},{"$f":"IFERROR(Table1[[#This Row],[localisation]]&\" \"&Table1[[#This Row],[constat/projet/entretien]],\"\")","v":"ITTRE / Extérieur / abords des bâtiments barrière en mauvais état, à refaire"}]
[{"$f":"IFERROR(IF(OFFSET(Table24[[#Headers],[Domaine]],MATCH(Table1[[#This Row],[Loca / action]],'Constats projets Entretiens'!J:J,0)-1,6,,)=0,\"\",OFFSET(Table24[[#Headers],[Domaine]],MATCH(Table1[[#This Row],[Loca / action]],'Constats projets Entretiens'!J:J,0)-1,6,,)),\"Ligne supprimée dans Constat\")","v":3},"ITTRE / Intérieur / réfectoire","idée de faire un étage pour gagner en place",null,null,{"$f":"IFERROR(IF(OFFSET(Table24[[#Headers],[Domaine]],MATCH(Table1[[#This Row],[Loca / action]],'Constats projets Entretiens'!J:J,0)-1,5,,)=0,\"\",OFFSET(Table24[[#Headers],[Domaine]],MATCH(Table1[[#This Row],[Loca / action]],'Constats projets Entretiens'!J:J,0)-1,5,,)),\"Ligne supprimée dans Constat\")","v":""},{"$f":"IFERROR(Table1[[#This Row],[localisation]]&\" \"&Table1[[#This Row],[constat/projet/entretien]],\"\")","v":"ITTRE / Intérieur / réfectoire idée de faire un étage pour gagner en place"}]
[{"$f":"IFERROR(IF(OFFSET(Table24[[#Headers],[Domaine]],MATCH(Table1[[#This Row],[Loca / action]],'Constats projets Entretiens'!J:J,0)-1,6,,)=0,\"\",OFFSET(Table24[[#Headers],[Domaine]],MATCH(Table1[[#This Row],[Loca / action]],'Constats projets Entretiens'!J:J,0)-1,6,,)),\"Ligne supprimée dans Constat\")","v":3},"ITTRE / Intérieur / sanitaires","besoin de désamianter ?",null,null,{"$f":"IFERROR(IF(OFFSET(Table24[[#Headers],[Domaine]],MATCH(Table1[[#This Row],[Loca / action]],'Constats projets Entretiens'!J:J,0)-1,5,,)=0,\"\",OFFSET(Table24[[#Headers],[Domaine]],MATCH(Table1[[#This Row],[Loca / action]],'Constats projets Entretiens'!J:J,0)-1,5,,)),\"Ligne supprimée dans Constat\")","v":""},{"$f":"IFERROR(Table1[[#This Row],[localisation]]&\" \"&Table1[[#This Row],[constat/projet/entretien]],\"\")","v":"ITTRE / Intérieur / sanitaires besoin de désamianter ?"}]
[{"$f":"IFERROR(IF(OFFSET(Table24[[#Headers],[Domaine]],MATCH(Table1[[#This Row],[Loca / action]],'Constats projets Entretiens'!J:J,0)-1,6,,)=0,\"\",OFFSET(Table24[[#Headers],[Domaine]],MATCH(Table1[[#This Row],[Loca / action]],'Constats projets Entretiens'!J:J,0)-1,6,,)),\"Ligne supprimée dans Constat\")","v":3},"ITTRE / Intérieur / sanitaires","retaper les douches et wc",null,null,{"$f":"IFERROR(IF(OFFSET(Table24[[#Headers],[Domaine]],MATCH(Table1[[#This Row],[Loca / action]],'Constats projets Entretiens'!J:J,0)-1,5,,)=0,\"\",OFFSET(Table24[[#Headers],[Domaine]],MATCH(Table1[[#This Row],[Loca / action]],'Constats projets Entretiens'!J:J,0)-1,5,,)),\"Ligne supprimée dans Constat\")","v":""},{"$f":"IFERROR(Table1[[#This Row],[localisation]]&\" \"&Table1[[#This Row],[constat/projet/entretien]],\"\")","v":"ITTRE / Intérieur / sanitaires retaper les douches et wc"}]
[{"$f":"IFERROR(IF(OFFSET(Table24[[#Headers],[Domaine]],MATCH(Table1[[#This Row],[Loca / action]],'Constats projets Entretiens'!J:J,0)-1,6,,)=0,\"\",OFFSET(Table24[[#Headers],[Domaine]],MATCH(Table1[[#This Row],[Loca / action]],'Constats projets Entretiens'!J:J,0)-1,6,,)),\"Ligne supprimée dans Constat\")","v":3},"PDH 38 / Rez / pièce à rue","changer les chassis",null,null,{"$f":"IFERROR(IF(OFFSET(Table24[[#Headers],[Domaine]],MATCH(Table1[[#This Row],[Loca / action]],'Constats projets Entretiens'!J:J,0)-1,5,,)=0,\"\",OFFSET(Table24[[#Headers],[Domaine]],MATCH(Table1[[#This Row],[Loca / action]],'Constats projets Entretiens'!J:J,0)-1,5,,)),\"Ligne supprimée dans Constat\")","v":""},{"$f":"IFERROR(Table1[[#This Row],[localisation]]&\" \"&Table1[[#This Row],[constat/projet/entretien]],\"\")","v":"PDH 38 / Rez / pièce à rue changer les chassis"}]
[{"$f":"IFERROR(IF(OFFSET(Table24[[#Headers],[Domaine]],MATCH(Table1[[#This Row],[Loca / action]],'Constats projets Entretiens'!J:J,0)-1,6,,)=0,\"\",OFFSET(Table24[[#Headers],[Domaine]],MATCH(Table1[[#This Row],[Loca / action]],'Constats projets Entretiens'!J:J,0)-1,6,,)),\"Ligne supprimée dans Constat\")","v":3},"PDH 38 / Premier / menuiserie","APPART : changer les chassis",null,null,{"$f":"IFERROR(IF(OFFSET(Table24[[#Headers],[Domaine]],MATCH(Table1[[#This Row],[Loca / action]],'Constats projets Entretiens'!J:J,0)-1,5,,)=0,\"\",OFFSET(Table24[[#Headers],[Domaine]],MATCH(Table1[[#This Row],[Loca / action]],'Constats projets Entretiens'!J:J,0)-1,5,,)),\"Ligne supprimée dans Constat\")","v":""},{"$f":"IFERROR(Table1[[#This Row],[localisation]]&\" \"&Table1[[#This Row],[constat/projet/entretien]],\"\")","v":"PDH 38 / Premier / menuiserie APPART : changer les chassis"}]
[{"$f":"IFERROR(IF(OFFSET(Table24[[#Headers],[Domaine]],MATCH(Table1[[#This Row],[Loca / action]],'Constats projets Entretiens'!J:J,0)-1,6,,)=0,\"\",OFFSET(Table24[[#Headers],[Domaine]],MATCH(Table1[[#This Row],[Loca / action]],'Constats projets Entretiens'!J:J,0)-1,6,,)),\"Ligne supprimée dans Constat\")","v":3},"PDH 38 / Premier / autre","APPART : traiter les sols",null,null,{"$f":"IFERROR(IF(OFFSET(Table24[[#Headers],[Domaine]],MATCH(Table1[[#This Row],[Loca / action]],'Constats projets Entretiens'!J:J,0)-1,5,,)=0,\"\",OFFSET(Table24[[#Headers],[Domaine]],MATCH(Table1[[#This Row],[Loca / action]],'Constats projets Entretiens'!J:J,0)-1,5,,)),\"Ligne supprimée dans Constat\")","v":""},{"$f":"IFERROR(Table1[[#This Row],[localisation]]&\" \"&Table1[[#This Row],[constat/projet/entretien]],\"\")","v":"PDH 38 / Premier / autre APPART : traiter les sols"}]
[{"$f":"IFERROR(IF(OFFSET(Table24[[#Headers],[Domaine]],MATCH(Table1[[#This Row],[Loca / action]],'Constats projets Entretiens'!J:J,0)-1,6,,)=0,\"\",OFFSET(Table24[[#Headers],[Domaine]],MATCH(Table1[[#This Row],[Loca / action]],'Constats projets Entretiens'!J:J,0)-1,6,,)),\"Ligne supprimée dans Constat\")","v":3},"PDH 38 / Premier / appartement (cuisine)","APPART : carreler la cuisine",null,null,{"$f":"IFERROR(IF(OFFSET(Table24[[#Headers],[Domaine]],MATCH(Table1[[#This Row],[Loca / action]],'Constats projets Entretiens'!J:J,0)-1,5,,)=0,\"\",OFFSET(Table24[[#Headers],[Domaine]],MATCH(Table1[[#This Row],[Loca / action]],'Constats projets Entretiens'!J:J,0)-1,5,,)),\"Ligne supprimée dans Constat\")","v":""},{"$f":"IFERROR(Table1[[#This Row],[localisation]]&\" \"&Table1[[#This Row],[constat/projet/entretien]],\"\")","v":"PDH 38 / Premier / appartement (cuisine) APPART : carreler la cuisine"}]
[{"$f":"IFERROR(IF(OFFSET(Table24[[#Headers],[Domaine]],MATCH(Table1[[#This Row],[Loca / action]],'Constats projets Entretiens'!J:J,0)-1,6,,)=0,\"\",OFFSET(Table24[[#Headers],[Domaine]],MATCH(Table1[[#This Row],[Loca / action]],'Constats projets Entretiens'!J:J,0)-1,6,,)),\"Ligne supprimée dans Constat\")","v":3},"PDH 38 / Premier / appartement (salle de Bains)","APPART : réaménager la sdb (nouv bain et lavabo, bac de douche, repeindre, etc.)",null,null,{"$f":"IFERROR(IF(OFFSET(Table24[[#Headers],[Domaine]],MATCH(Table1[[#This Row],[Loca / action]],'Constats projets Entretiens'!J:J,0)-1,5,,)=0,\"\",OFFSET(Table24[[#Headers],[Domaine]],MATCH(Table1[[#This Row],[Loca / action]],'Constats projets Entretiens'!J:J,0)-1,5,,)),\"Ligne supprimée dans Constat\")","v":""},{"$f":"IFERROR(Table1[[#This Row],[localisation]]&\" \"&Table1[[#This Row],[constat/projet/entretien]],\"\")","v":"PDH 38 / Premier / appartement (salle de Bains) APPART : réaménager la sdb (nouv bain et lavabo, bac de douche, repeindre, etc.)"}]
[{"$f":"IFERROR(IF(OFFSET(Table24[[#Headers],[Domaine]],MATCH(Table1[[#This Row],[Loca / action]],'Constats projets Entretiens'!J:J,0)-1,6,,)=0,\"\",OFFSET(Table24[[#Headers],[Domaine]],MATCH(Table1[[#This Row],[Loca / action]],'Constats projets Entretiens'!J:J,0)-1,6,,)),\"Ligne supprimée dans Constat\")","v":3},"PDH 38 / deuxième / appartement SGP (salle de bains)","réparer le pommeau de la baignoire",null,null,{"$f":"IFERROR(IF(OFFSET(Table24[[#Headers],[Domaine]],MATCH(Table1[[#This Row],[Loca / action]],'Constats projets Entretiens'!J:J,0)-1,5,,)=0,\"\",OFFSET(Table24[[#Headers],[Domaine]],MATCH(Table1[[#This Row],[Loca / action]],'Constats projets Entretiens'!J:J,0)-1,5,,)),\"Ligne supprimée dans Constat\")","v":""},{"$f":"IFERROR(Table1[[#This Row],[localisation]]&\" \"&Table1[[#This Row],[constat/projet/entretien]],\"\")","v":"PDH 38 / deuxième / appartement SGP (salle de bains) réparer le pommeau de la baignoire"}]
[{"$f":"IFERROR(IF(OFFSET(Table24[[#Headers],[Domaine]],MATCH(Table1[[#This Row],[Loca / action]],'Constats projets Entretiens'!J:J,0)-1,6,,)=0,\"\",OFFSET(Table24[[#Headers],[Domaine]],MATCH(Table1[[#This Row],[Loca / action]],'Constats projets Entretiens'!J:J,0)-1,6,,)),\"Ligne supprimée dans Constat\")","v":3},"PDH 38 / troisième / projet","PROJET 3e : isoler la toiture",null,null,{"$f":"IFERROR(IF(OFFSET(Table24[[#Headers],[Domaine]],MATCH(Table1[[#This Row],[Loca / action]],'Constats projets Entretiens'!J:J,0)-1,5,,)=0,\"\",OFFSET(Table24[[#Headers],[Domaine]],MATCH(Table1[[#This Row],[Loca / action]],'Constats projets Entretiens'!J:J,0)-1,5,,)),\"Ligne supprimée dans Constat\")","v":""},{"$f":"IFERROR(Table1[[#This Row],[localisation]]&\" \"&Table1[[#This Row],[constat/projet/entretien]],\"\")","v":"PDH 38 / troisième / projet PROJET 3e : isoler la toiture"}]
[{"$f":"IFERROR(IF(OFFSET(Table24[[#Headers],[Domaine]],MATCH(Table1[[#This Row],[Loca / action]],'Constats projets Entretiens'!J:J,0)-1,6,,)=0,\"\",OFFSET(Table24[[#Headers],[Domaine]],MATCH(Table1[[#This Row],[Loca / action]],'Constats projets Entretiens'!J:J,0)-1,6,,)),\"Ligne supprimée dans Constat\")","v":3},"PDH 38 / troisième / projet","PROJET 3e : refaire l'électricité",null,null,{"$f":"IFERROR(IF(OFFSET(Table24[[#Headers],[Domaine]],MATCH(Table1[[#This Row],[Loca / action]],'Constats projets Entretiens'!J:J,0)-1,5,,)=0,\"\",OFFSET(Table24[[#Headers],[Domaine]],MATCH(Table1[[#This Row],[Loca / action]],'Constats projets Entretiens'!J:J,0)-1,5,,)),\"Ligne supprimée dans Constat\")","v":""},{"$f":"IFERROR(Table1[[#This Row],[localisation]]&\" \"&Table1[[#This Row],[constat/projet/entretien]],\"\")","v":"PDH 38 / troisième / projet PROJET 3e : refaire l'électricité"}]
[{"$f":"IFERROR(IF(OFFSET(Table24[[#Headers],[Domaine]],MATCH(Table1[[#This Row],[Loca / action]],'Constats projets Entretiens'!J:J,0)-1,6,,)=0,\"\",OFFSET(Table24[[#Headers],[Domaine]],MATCH(Table1[[#This Row],[Loca / action]],'Constats projets Entretiens'!J:J,0)-1,6,,)),\"Ligne supprimée dans Constat\")","v":3},"PDH 38 / troisième / projet","PROJET 3e : installer une cuisine",null,null,{"$f":"IFERROR(IF(OFFSET(Table24[[#Headers],[Domaine]],MATCH(Table1[[#This Row],[Loca / action]],'Constats projets Entretiens'!J:J,0)-1,5,,)=0,\"\",OFFSET(Table24[[#Headers],[Domaine]],MATCH(Table1[[#This Row],[Loca / action]],'Constats projets Entretiens'!J:J,0)-1,5,,)),\"Ligne supprimée dans Constat\")","v":""},{"$f":"IFERROR(Table1[[#This Row],[localisation]]&\" \"&Table1[[#This Row],[constat/projet/entretien]],\"\")","v":"PDH 38 / troisième / projet PROJET 3e : installer une cuisine"}]
[{"$f":"IFERROR(IF(OFFSET(Table24[[#Headers],[Domaine]],MATCH(Table1[[#This Row],[Loca / action]],'Constats projets Entretiens'!J:J,0)-1,6,,)=0,\"\",OFFSET(Table24[[#Headers],[Domaine]],MATCH(Table1[[#This Row],[Loca / action]],'Constats projets Entretiens'!J:J,0)-1,6,,)),\"Ligne supprimée dans Constat\")","v":3},"PDH 38 / troisième / projet","PROJET 3e : installer une salle de bain",null,null,{"$f":"IFERROR(IF(OFFSET(Table24[[#Headers],[Domaine]],MATCH(Table1[[#This Row],[Loca / action]],'Constats projets Entretiens'!J:J,0)-1,5,,)=0,\"\",OFFSET(Table24[[#Headers],[Domaine]],MATCH(Table1[[#This Row],[Loca / action]],'Constats projets Entretiens'!J:J,0)-1,5,,)),\"Ligne supprimée dans Constat\")","v":""},{"$f":"IFERROR(Table1[[#This Row],[localisation]]&\" \"&Table1[[#This Row],[constat/projet/entretien]],\"\")","v":"PDH 38 / troisième / projet PROJET 3e : installer une salle de bain"}]
[{"$f":"IFERROR(IF(OFFSET(Table24[[#Headers],[Domaine]],MATCH(Table1[[#This Row],[Loca / action]],'Constats projets Entretiens'!J:J,0)-1,6,,)=0,\"\",OFFSET(Table24[[#Headers],[Domaine]],MATCH(Table1[[#This Row],[Loca / action]],'Constats projets Entretiens'!J:J,0)-1,6,,)),\"Ligne supprimée dans Constat\")","v":3},"PDH 39 / Tout le bâtiment / cour","cour défoncée",null,null,{"$f":"IFERROR(IF(OFFSET(Table24[[#Headers],[Domaine]],MATCH(Table1[[#This Row],[Loca / action]],'Constats projets Entretiens'!J:J,0)-1,5,,)=0,\"\",OFFSET(Table24[[#Headers],[Domaine]],MATCH(Table1[[#This Row],[Loca / action]],'Constats projets Entretiens'!J:J,0)-1,5,,)),\"Ligne supprimée dans Constat\")","v":""},{"$f":"IFERROR(Table1[[#This Row],[localisation]]&\" \"&Table1[[#This Row],[constat/projet/entretien]],\"\")","v":"PDH 39 / Tout le bâtiment / cour cour défoncée"}]
[{"$f":"IFERROR(IF(OFFSET(Table24[[#Headers],[Domaine]],MATCH(Table1[[#This Row],[Loca / action]],'Constats projets Entretiens'!J:J,0)-1,6,,)=0,\"\",OFFSET(Table24[[#Headers],[Domaine]],MATCH(Table1[[#This Row],[Loca / action]],'Constats projets Entretiens'!J:J,0)-1,6,,)),\"Ligne supprimée dans Constat\")","v":3},"PDH 39 / rez / Magascout","projet de peindre une fresque sur la façade du Magascout",null,null,{"$f":"IFERROR(IF(OFFSET(Table24[[#Headers],[Domaine]],MATCH(Table1[[#This Row],[Loca / action]],'Constats projets Entretiens'!J:J,0)-1,5,,)=0,\"\",OFFSET(Table24[[#Headers],[Domaine]],MATCH(Table1[[#This Row],[Loca / action]],'Constats projets Entretiens'!J:J,0)-1,5,,)),\"Ligne supprimée dans Constat\")","v":""},{"$f":"IFERROR(Table1[[#This Row],[localisation]]&\" \"&Table1[[#This Row],[constat/projet/entretien]],\"\")","v":"PDH 39 / rez / Magascout projet de peindre une fresque sur la façade du Magascout"}]
[{"$f":"IFERROR(IF(OFFSET(Table24[[#Headers],[Domaine]],MATCH(Table1[[#This Row],[Loca / action]],'Constats projets Entretiens'!J:J,0)-1,6,,)=0,\"\",OFFSET(Table24[[#Headers],[Domaine]],MATCH(Table1[[#This Row],[Loca / action]],'Constats projets Entretiens'!J:J,0)-1,6,,)),\"Ligne supprimée dans Constat\")","v":3},"PDH 39 / garages / sanitaire","repeindre et rafraichir les WC",null,null,{"$f":"IFERROR(IF(OFFSET(Table24[[#Headers],[Domaine]],MATCH(Table1[[#This Row],[Loca / action]],'Constats projets Entretiens'!J:J,0)-1,5,,)=0,\"\",OFFSET(Table24[[#Headers],[Domaine]],MATCH(Table1[[#This Row],[Loca / action]],'Constats projets Entretiens'!J:J,0)-1,5,,)),\"Ligne supprimée dans Constat\")","v":""},{"$f":"IFERROR(Table1[[#This Row],[localisation]]&\" \"&Table1[[#This Row],[constat/projet/entretien]],\"\")","v":"PDH 39 / garages / sanitaire repeindre et rafraichir les WC"}]
[{"$f":"IFERROR(IF(OFFSET(Table24[[#Headers],[Domaine]],MATCH(Table1[[#This Row],[Loca / action]],'Constats projets Entretiens'!J:J,0)-1,6,,)=0,\"\",OFFSET(Table24[[#Headers],[Domaine]],MATCH(Table1[[#This Row],[Loca / action]],'Constats projets Entretiens'!J:J,0)-1,6,,)),\"Ligne supprimée dans Constat\")","v":3},"PDH 39 / premier / bureau SF","insonoriser le bureau",null,null,{"$f":"IFERROR(IF(OFFSET(Table24[[#Headers],[Domaine]],MATCH(Table1[[#This Row],[Loca / action]],'Constats projets Entretiens'!J:J,0)-1,5,,)=0,\"\",OFFSET(Table24[[#Headers],[Domaine]],MATCH(Table1[[#This Row],[Loca / action]],'Constats projets Entretiens'!J:J,0)-1,5,,)),\"Ligne supprimée dans Constat\")","v":""},{"$f":"IFERROR(Table1[[#This Row],[localisation]]&\" \"&Table1[[#This Row],[constat/projet/entretien]],\"\")","v":"PDH 39 / premier / bureau SF insonoriser le bureau"}]
[{"$f":"IFERROR(IF(OFFSET(Table24[[#Headers],[Domaine]],MATCH(Table1[[#This Row],[Loca / action]],'Constats projets Entretiens'!J:J,0)-1,6,,)=0,\"\",OFFSET(Table24[[#Headers],[Domaine]],MATCH(Table1[[#This Row],[Loca / action]],'Constats projets Entretiens'!J:J,0)-1,6,,)),\"Ligne supprimée dans Constat\")","v":3},"PDH 39 / Tout le bâtiment / toiture","refaire le roafing du grand toit + celui de roro",null,null,{"$f":"IFERROR(IF(OFFSET(Table24[[#Headers],[Domaine]],MATCH(Table1[[#This Row],[Loca / action]],'Constats projets Entretiens'!J:J,0)-1,5,,)=0,\"\",OFFSET(Table24[[#Headers],[Domaine]],MATCH(Table1[[#This Row],[Loca / action]],'Constats projets Entretiens'!J:J,0)-1,5,,)),\"Ligne supprimée dans Constat\")","v":""},{"$f":"IFERROR(Table1[[#This Row],[localisation]]&\" \"&Table1[[#This Row],[constat/projet/entretien]],\"\")","v":"PDH 39 / Tout le bâtiment / toiture refaire le roafing du grand toit + celui de roro"}]
[{"$f":"IFERROR(IF(OFFSET(Table24[[#Headers],[Domaine]],MATCH(Table1[[#This Row],[Loca / action]],'Constats projets Entretiens'!J:J,0)-1,6,,)=0,\"\",OFFSET(Table24[[#Headers],[Domaine]],MATCH(Table1[[#This Row],[Loca / action]],'Constats projets Entretiens'!J:J,0)-1,6,,)),\"Ligne supprimée dans Constat\")","v":3},"PDH 39 / Tout le bâtiment / toiture","transformer le toit plat au-dessus de la cuisine en terrasse",null,null,{"$f":"IFERROR(IF(OFFSET(Table24[[#Headers],[Domaine]],MATCH(Table1[[#This Row],[Loca / action]],'Constats projets Entretiens'!J:J,0)-1,5,,)=0,\"\",OFFSET(Table24[[#Headers],[Domaine]],MATCH(Table1[[#This Row],[Loca / action]],'Constats projets Entretiens'!J:J,0)-1,5,,)),\"Ligne supprimée dans Constat\")","v":""},{"$f":"IFERROR(Table1[[#This Row],[localisation]]&\" \"&Table1[[#This Row],[constat/projet/entretien]],\"\")","v":"PDH 39 / Tout le bâtiment / toiture transformer le toit plat au-dessus de la cuisine en terrasse"}]
[{"$f":"IFERROR(IF(OFFSET(Table24[[#Headers],[Domaine]],MATCH(Table1[[#This Row],[Loca / action]],'Constats projets Entretiens'!J:J,0)-1,6,,)=0,\"\",OFFSET(Table24[[#Headers],[Domaine]],MATCH(Table1[[#This Row],[Loca / action]],'Constats projets Entretiens'!J:J,0)-1,6,,)),\"Ligne supprimée dans Constat\")","v":3},"PDH 39 / premier / sanitaires","rafraichir les WC",null,null,{"$f":"IFERROR(IF(OFFSET(Table24[[#Headers],[Domaine]],MATCH(Table1[[#This Row],[Loca / action]],'Constats projets Entretiens'!J:J,0)-1,5,,)=0,\"\",OFFSET(Table24[[#Headers],[Domaine]],MATCH(Table1[[#This Row],[Loca / action]],'Constats projets Entretiens'!J:J,0)-1,5,,)),\"Ligne supprimée dans Constat\")","v":""},{"$f":"IFERROR(Table1[[#This Row],[localisation]]&\" \"&Table1[[#This Row],[constat/projet/entretien]],\"\")","v":"PDH 39 / premier / sanitaires rafraichir les WC"}]
[{"$f":"IFERROR(IF(OFFSET(Table24[[#Headers],[Domaine]],MATCH(Table1[[#This Row],[Loca / action]],'Constats projets Entretiens'!J:J,0)-1,6,,)=0,\"\",OFFSET(Table24[[#Headers],[Domaine]],MATCH(Table1[[#This Row],[Loca / action]],'Constats projets Entretiens'!J:J,0)-1,6,,)),\"Ligne supprimée dans Constat\")","v":3},"PDH 39 / premier / salle biblio-costumothèque","améliorer les espaces de rangement",null,null,{"$f":"IFERROR(IF(OFFSET(Table24[[#Headers],[Domaine]],MATCH(Table1[[#This Row],[Loca / action]],'Constats projets Entretiens'!J:J,0)-1,5,,)=0,\"\",OFFSET(Table24[[#Headers],[Domaine]],MATCH(Table1[[#This Row],[Loca / action]],'Constats projets Entretiens'!J:J,0)-1,5,,)),\"Ligne supprimée dans Constat\")","v":""},{"$f":"IFERROR(Table1[[#This Row],[localisation]]&\" \"&Table1[[#This Row],[constat/projet/entretien]],\"\")","v":"PDH 39 / premier / salle biblio-costumothèque améliorer les espaces de rangement"}]
[{"$f":"IFERROR(IF(OFFSET(Table24[[#Headers],[Domaine]],MATCH(Table1[[#This Row],[Loca / action]],'Constats projets Entretiens'!J:J,0)-1,6,,)=0,\"\",OFFSET(Table24[[#Headers],[Domaine]],MATCH(Table1[[#This Row],[Loca / action]],'Constats projets Entretiens'!J:J,0)-1,6,,)),\"Ligne supprimée dans Constat\")","v":3},"CDS / Ensemble du domaine / travail administratif","VENTE 3: choisir et prévenir notaire lorsqu'un repreneur est trouvé",null,null,{"$f":"IFERROR(IF(OFFSET(Table24[[#Headers],[Domaine]],MATCH(Table1[[#This Row],[Loca / action]],'Constats projets Entretiens'!J:J,0)-1,5,,)=0,\"\",OFFSET(Table24[[#Headers],[Domaine]],MATCH(Table1[[#This Row],[Loca / action]],'Constats projets Entretiens'!J:J,0)-1,5,,)),\"Ligne supprimée dans Constat\")","v":""},{"$f":"IFERROR(Table1[[#This Row],[localisation]]&\" \"&Table1[[#This Row],[constat/projet/entretien]],\"\")","v":"CDS / Ensemble du domaine / travail administratif VENTE 3: choisir et prévenir notaire lorsqu'un repreneur est trouvé"}]
[{"$f":"IFERROR(IF(OFFSET(Table24[[#Headers],[Domaine]],MATCH(Table1[[#This Row],[Loca / action]],'Constats projets Entretiens'!J:J,0)-1,6,,)=0,\"\",OFFSET(Table24[[#Headers],[Domaine]],MATCH(Table1[[#This Row],[Loca / action]],'Constats projets Entretiens'!J:J,0)-1,6,,)),\"Ligne supprimée dans Constat\")","v":3},"HEURE / Le Grand Chalet / murs extérieurs","rejointoyer et traiter les plaques sur les murs + remplacer mettre vis inoxydables",null,null,{"$f":"IFERROR(IF(OFFSET(Table24[[#Headers],[Domaine]],MATCH(Table1[[#This Row],[Loca / action]],'Constats projets Entretiens'!J:J,0)-1,5,,)=0,\"\",OFFSET(Table24[[#Headers],[Domaine]],MATCH(Table1[[#This Row],[Loca / action]],'Constats projets Entretiens'!J:J,0)-1,5,,)),\"Ligne supprimée dans Constat\")","v":""},{"$f":"IFERROR(Table1[[#This Row],[localisation]]&\" \"&Table1[[#This Row],[constat/projet/entretien]],\"\")","v":"HEURE / Le Grand Chalet / murs extérieurs rejointoyer et traiter les plaques sur les murs + remplacer mettre vis inoxydables"}]
[{"$f":"IFERROR(IF(OFFSET(Table24[[#Headers],[Domaine]],MATCH(Table1[[#This Row],[Loca / action]],'Constats projets Entretiens'!J:J,0)-1,6,,)=0,\"\",OFFSET(Table24[[#Headers],[Domaine]],MATCH(Table1[[#This Row],[Loca / action]],'Constats projets Entretiens'!J:J,0)-1,6,,)),\"Ligne supprimée dans Constat\")","v":3},"HEURE / Le Grand Chalet / abords extérieurs","terrassement et remblayage du parking",null,null,{"$f":"IFERROR(IF(OFFSET(Table24[[#Headers],[Domaine]],MATCH(Table1[[#This Row],[Loca / action]],'Constats projets Entretiens'!J:J,0)-1,5,,)=0,\"\",OFFSET(Table24[[#Headers],[Domaine]],MATCH(Table1[[#This Row],[Loca / action]],'Constats projets Entretiens'!J:J,0)-1,5,,)),\"Ligne supprimée dans Constat\")","v":""},{"$f":"IFERROR(Table1[[#This Row],[localisation]]&\" \"&Table1[[#This Row],[constat/projet/entretien]],\"\")","v":"HEURE / Le Grand Chalet / abords extérieurs terrassement et remblayage du parking"}]
[{"$f":"IFERROR(IF(OFFSET(Table24[[#Headers],[Domaine]],MATCH(Table1[[#This Row],[Loca / action]],'Constats projets Entretiens'!J:J,0)-1,6,,)=0,\"\",OFFSET(Table24[[#Headers],[Domaine]],MATCH(Table1[[#This Row],[Loca / action]],'Constats projets Entretiens'!J:J,0)-1,6,,)),\"Ligne supprimée dans Constat\")","v":3},"HEURE / Le Grand Chalet / abords extérieurs","réparer le cabanon",null,null,{"$f":"IFERROR(IF(OFFSET(Table24[[#Headers],[Domaine]],MATCH(Table1[[#This Row],[Loca / action]],'Constats projets Entretiens'!J:J,0)-1,5,,)=0,\"\",OFFSET(Table24[[#Headers],[Domaine]],MATCH(Table1[[#This Row],[Loca / action]],'Constats projets Entretiens'!J:J,0)-1,5,,)),\"Ligne supprimée dans Constat\")","v":""},{"$f":"IFERROR(Table1[[#This Row],[localisation]]&\" \"&Table1[[#This Row],[constat/projet/entretien]],\"\")","v":"HEURE / Le Grand Chalet / abords extérieurs réparer le cabanon"}]
[{"$f":"IFERROR(IF(OFFSET(Table24[[#Headers],[Domaine]],MATCH(Table1[[#This Row],[Loca / action]],'Constats projets Entretiens'!J:J,0)-1,6,,)=0,\"\",OFFSET(Table24[[#Headers],[Domaine]],MATCH(Table1[[#This Row],[Loca / action]],'Constats projets Entretiens'!J:J,0)-1,6,,)),\"Ligne supprimée dans Constat\")","v":3},"HEURE / Le Grand Chalet / salle du sous-sol","isoler les buses de chauffage pour stopper la déperdition de chaleur",null,null,{"$f":"IFERROR(IF(OFFSET(Table24[[#Headers],[Domaine]],MATCH(Table1[[#This Row],[Loca / action]],'Constats projets Entretiens'!J:J,0)-1,5,,)=0,\"\",OFFSET(Table24[[#Headers],[Domaine]],MATCH(Table1[[#This Row],[Loca / action]],'Constats projets Entretiens'!J:J,0)-1,5,,)),\"Ligne supprimée dans Constat\")","v":""},{"$f":"IFERROR(Table1[[#This Row],[localisation]]&\" \"&Table1[[#This Row],[constat/projet/entretien]],\"\")","v":"HEURE / Le Grand Chalet / salle du sous-sol isoler les buses de chauffage pour stopper la déperdition de chaleur"}]
[{"$f":"IFERROR(IF(OFFSET(Table24[[#Headers],[Domaine]],MATCH(Table1[[#This Row],[Loca / action]],'Constats projets Entretiens'!J:J,0)-1,6,,)=0,\"\",OFFSET(Table24[[#Headers],[Domaine]],MATCH(Table1[[#This Row],[Loca / action]],'Constats projets Entretiens'!J:J,0)-1,6,,)),\"Ligne supprimée dans Constat\")","v":3},"HEURE / Le Grand Chalet / général","placer des grilles devant les arrivées d'air chaud + nettoyer",null,null,{"$f":"IFERROR(IF(OFFSET(Table24[[#Headers],[Domaine]],MATCH(Table1[[#This Row],[Loca / action]],'Constats projets Entretiens'!J:J,0)-1,5,,)=0,\"\",OFFSET(Table24[[#Headers],[Domaine]],MATCH(Table1[[#This Row],[Loca / action]],'Constats projets Entretiens'!J:J,0)-1,5,,)),\"Ligne supprimée dans Constat\")","v":""},{"$f":"IFERROR(Table1[[#This Row],[localisation]]&\" \"&Table1[[#This Row],[constat/projet/entretien]],\"\")","v":"HEURE / Le Grand Chalet / général placer des grilles devant les arrivées d'air chaud + nettoyer"}]
[{"$f":"IFERROR(IF(OFFSET(Table24[[#Headers],[Domaine]],MATCH(Table1[[#This Row],[Loca / action]],'Constats projets Entretiens'!J:J,0)-1,6,,)=0,\"\",OFFSET(Table24[[#Headers],[Domaine]],MATCH(Table1[[#This Row],[Loca / action]],'Constats projets Entretiens'!J:J,0)-1,6,,)),\"Ligne supprimée dans Constat\")","v":3},"HEURE / Le Grand Chalet / général","projet d'agrandissement",null,null,{"$f":"IFERROR(IF(OFFSET(Table24[[#Headers],[Domaine]],MATCH(Table1[[#This Row],[Loca / action]],'Constats projets Entretiens'!J:J,0)-1,5,,)=0,\"\",OFFSET(Table24[[#Headers],[Domaine]],MATCH(Table1[[#This Row],[Loca / action]],'Constats projets Entretiens'!J:J,0)-1,5,,)),\"Ligne supprimée dans Constat\")","v":""},{"$f":"IFERROR(Table1[[#This Row],[localisation]]&\" \"&Table1[[#This Row],[constat/projet/entretien]],\"\")","v":"HEURE / Le Grand Chalet / général projet d'agrandissement"}]
[{"$f":"IFERROR(IF(OFFSET(Table24[[#Headers],[Domaine]],MATCH(Table1[[#This Row],[Loca / action]],'Constats projets Entretiens'!J:J,0)-1,6,,)=0,\"\",OFFSET(Table24[[#Headers],[Domaine]],MATCH(Table1[[#This Row],[Loca / action]],'Constats projets Entretiens'!J:J,0)-1,6,,)),\"Ligne supprimée dans Constat\")","v":3},"HEURE / Le Grand Chalet / sanitaires","SDD F : placer ventilation en interne (pas vers l'extérieur)",null,null,{"$f":"IFERROR(IF(OFFSET(Table24[[#Headers],[Domaine]],MATCH(Table1[[#This Row],[Loca / action]],'Constats projets Entretiens'!J:J,0)-1,5,,)=0,\"\",OFFSET(Table24[[#Headers],[Domaine]],MATCH(Table1[[#This Row],[Loca / action]],'Constats projets Entretiens'!J:J,0)-1,5,,)),\"Ligne supprimée dans Constat\")","v":""},{"$f":"IFERROR(Table1[[#This Row],[localisation]]&\" \"&Table1[[#This Row],[constat/projet/entretien]],\"\")","v":"HEURE / Le Grand Chalet / sanitaires SDD F : placer ventilation en interne (pas vers l'extérieur)"}]
[{"$f":"IFERROR(IF(OFFSET(Table24[[#Headers],[Domaine]],MATCH(Table1[[#This Row],[Loca / action]],'Constats projets Entretiens'!J:J,0)-1,6,,)=0,\"\",OFFSET(Table24[[#Headers],[Domaine]],MATCH(Table1[[#This Row],[Loca / action]],'Constats projets Entretiens'!J:J,0)-1,6,,)),\"Ligne supprimée dans Constat\")","v":3},"HEURE / Le Grand Chalet / sanitaires","SDD H : mettre des plintes",null,null,{"$f":"IFERROR(IF(OFFSET(Table24[[#Headers],[Domaine]],MATCH(Table1[[#This Row],[Loca / action]],'Constats projets Entretiens'!J:J,0)-1,5,,)=0,\"\",OFFSET(Table24[[#Headers],[Domaine]],MATCH(Table1[[#This Row],[Loca / action]],'Constats projets Entretiens'!J:J,0)-1,5,,)),\"Ligne supprimée dans Constat\")","v":""},{"$f":"IFERROR(Table1[[#This Row],[localisation]]&\" \"&Table1[[#This Row],[constat/projet/entretien]],\"\")","v":"HEURE / Le Grand Chalet / sanitaires SDD H : mettre des plintes"}]
[{"$f":"IFERROR(IF(OFFSET(Table24[[#Headers],[Domaine]],MATCH(Table1[[#This Row],[Loca / action]],'Constats projets Entretiens'!J:J,0)-1,6,,)=0,\"\",OFFSET(Table24[[#Headers],[Domaine]],MATCH(Table1[[#This Row],[Loca / action]],'Constats projets Entretiens'!J:J,0)-1,6,,)),\"Ligne supprimée dans Constat\")","v":3},"HEURE / Le Grand Chalet / sanitaires","carreler les murs des WC lorsque prob d'infiltration terrasse sera réglé",null,null,{"$f":"IFERROR(IF(OFFSET(Table24[[#Headers],[Domaine]],MATCH(Table1[[#This Row],[Loca / action]],'Constats projets Entretiens'!J:J,0)-1,5,,)=0,\"\",OFFSET(Table24[[#Headers],[Domaine]],MATCH(Table1[[#This Row],[Loca / action]],'Constats projets Entretiens'!J:J,0)-1,5,,)),\"Ligne supprimée dans Constat\")","v":""},{"$f":"IFERROR(Table1[[#This Row],[localisation]]&\" \"&Table1[[#This Row],[constat/projet/entretien]],\"\")","v":"HEURE / Le Grand Chalet / sanitaires carreler les murs des WC lorsque prob d'infiltration terrasse sera réglé"}]
[{"$f":"IFERROR(IF(OFFSET(Table24[[#Headers],[Domaine]],MATCH(Table1[[#This Row],[Loca / action]],'Constats projets Entretiens'!J:J,0)-1,6,,)=0,\"\",OFFSET(Table24[[#Headers],[Domaine]],MATCH(Table1[[#This Row],[Loca / action]],'Constats projets Entretiens'!J:J,0)-1,6,,)),\"Ligne supprimée dans Constat\")","v":3},"HEURE / Le Grand Chalet / sanitaires","poser des cadres devant les trous vitrés (WC)",null,null,{"$f":"IFERROR(IF(OFFSET(Table24[[#Headers],[Domaine]],MATCH(Table1[[#This Row],[Loca / action]],'Constats projets Entretiens'!J:J,0)-1,5,,)=0,\"\",OFFSET(Table24[[#Headers],[Domaine]],MATCH(Table1[[#This Row],[Loca / action]],'Constats projets Entretiens'!J:J,0)-1,5,,)),\"Ligne supprimée dans Constat\")","v":""},{"$f":"IFERROR(Table1[[#This Row],[localisation]]&\" \"&Table1[[#This Row],[constat/projet/entretien]],\"\")","v":"HEURE / Le Grand Chalet / sanitaires poser des cadres devant les trous vitrés (WC)"}]
[{"$f":"IFERROR(IF(OFFSET(Table24[[#Headers],[Domaine]],MATCH(Table1[[#This Row],[Loca / action]],'Constats projets Entretiens'!J:J,0)-1,6,,)=0,\"\",OFFSET(Table24[[#Headers],[Domaine]],MATCH(Table1[[#This Row],[Loca / action]],'Constats projets Entretiens'!J:J,0)-1,6,,)),\"Ligne supprimée dans Constat\")","v":3},"HEURE / Le Grand Chalet / sanitaires","remettre de service le 4e wc",null,null,{"$f":"IFERROR(IF(OFFSET(Table24[[#Headers],[Domaine]],MATCH(Table1[[#This Row],[Loca / action]],'Constats projets Entretiens'!J:J,0)-1,5,,)=0,\"\",OFFSET(Table24[[#Headers],[Domaine]],MATCH(Table1[[#This Row],[Loca / action]],'Constats projets Entretiens'!J:J,0)-1,5,,)),\"Ligne supprimée dans Constat\")","v":""},{"$f":"IFERROR(Table1[[#This Row],[localisation]]&\" \"&Table1[[#This Row],[constat/projet/entretien]],\"\")","v":"HEURE / Le Grand Chalet / sanitaires remettre de service le 4e wc"}]
[{"$f":"IFERROR(IF(OFFSET(Table24[[#Headers],[Domaine]],MATCH(Table1[[#This Row],[Loca / action]],'Constats projets Entretiens'!J:J,0)-1,6,,)=0,\"\",OFFSET(Table24[[#Headers],[Domaine]],MATCH(Table1[[#This Row],[Loca / action]],'Constats projets Entretiens'!J:J,0)-1,6,,)),\"Ligne supprimée dans Constat\")","v":3},"HEURE / Terrains / général","enlever les bornes d'arrivée électrique",null,null,{"$f":"IFERROR(IF(OFFSET(Table24[[#Headers],[Domaine]],MATCH(Table1[[#This Row],[Loca / action]],'Constats projets Entretiens'!J:J,0)-1,5,,)=0,\"\",OFFSET(Table24[[#Headers],[Domaine]],MATCH(Table1[[#This Row],[Loca / action]],'Constats projets Entretiens'!J:J,0)-1,5,,)),\"Ligne supprimée dans Constat\")","v":""},{"$f":"IFERROR(Table1[[#This Row],[localisation]]&\" \"&Table1[[#This Row],[constat/projet/entretien]],\"\")","v":"HEURE / Terrains / général enlever les bornes d'arrivée électrique"}]
[{"$f":"IFERROR(IF(OFFSET(Table24[[#Headers],[Domaine]],MATCH(Table1[[#This Row],[Loca / action]],'Constats projets Entretiens'!J:J,0)-1,6,,)=0,\"\",OFFSET(Table24[[#Headers],[Domaine]],MATCH(Table1[[#This Row],[Loca / action]],'Constats projets Entretiens'!J:J,0)-1,6,,)),\"Ligne supprimée dans Constat\")","v":3},"HEURE / Terrains / Epicéas","planter une haie pour isoler et mettre à l'ombre le terrain",null,null,{"$f":"IFERROR(IF(OFFSET(Table24[[#Headers],[Domaine]],MATCH(Table1[[#This Row],[Loca / action]],'Constats projets Entretiens'!J:J,0)-1,5,,)=0,\"\",OFFSET(Table24[[#Headers],[Domaine]],MATCH(Table1[[#This Row],[Loca / action]],'Constats projets Entretiens'!J:J,0)-1,5,,)),\"Ligne supprimée dans Constat\")","v":""},{"$f":"IFERROR(Table1[[#This Row],[localisation]]&\" \"&Table1[[#This Row],[constat/projet/entretien]],\"\")","v":"HEURE / Terrains / Epicéas planter une haie pour isoler et mettre à l'ombre le terrain"}]
[{"$f":"IFERROR(IF(OFFSET(Table24[[#Headers],[Domaine]],MATCH(Table1[[#This Row],[Loca / action]],'Constats projets Entretiens'!J:J,0)-1,6,,)=0,\"\",OFFSET(Table24[[#Headers],[Domaine]],MATCH(Table1[[#This Row],[Loca / action]],'Constats projets Entretiens'!J:J,0)-1,6,,)),\"Ligne supprimée dans Constat\")","v":3},"HEURE / La Carlingue / abords extérieurs","créer un cabanon pour les déchets PMC",null,null,{"$f":"IFERROR(IF(OFFSET(Table24[[#Headers],[Domaine]],MATCH(Table1[[#This Row],[Loca / action]],'Constats projets Entretiens'!J:J,0)-1,5,,)=0,\"\",OFFSET(Table24[[#Headers],[Domaine]],MATCH(Table1[[#This Row],[Loca / action]],'Constats projets Entretiens'!J:J,0)-1,5,,)),\"Ligne supprimée dans Constat\")","v":""},{"$f":"IFERROR(Table1[[#This Row],[localisation]]&\" \"&Table1[[#This Row],[constat/projet/entretien]],\"\")","v":"HEURE / La Carlingue / abords extérieurs créer un cabanon pour les déchets PMC"}]
[{"$f":"IFERROR(IF(OFFSET(Table24[[#Headers],[Domaine]],MATCH(Table1[[#This Row],[Loca / action]],'Constats projets Entretiens'!J:J,0)-1,6,,)=0,\"\",OFFSET(Table24[[#Headers],[Domaine]],MATCH(Table1[[#This Row],[Loca / action]],'Constats projets Entretiens'!J:J,0)-1,6,,)),\"Ligne supprimée dans Constat\")","v":3},"HEURE / La Carlingue / réfectoire","ajouter un plan de travail",null,null,{"$f":"IFERROR(IF(OFFSET(Table24[[#Headers],[Domaine]],MATCH(Table1[[#This Row],[Loca / action]],'Constats projets Entretiens'!J:J,0)-1,5,,)=0,\"\",OFFSET(Table24[[#Headers],[Domaine]],MATCH(Table1[[#This Row],[Loca / action]],'Constats projets Entretiens'!J:J,0)-1,5,,)),\"Ligne supprimée dans Constat\")","v":""},{"$f":"IFERROR(Table1[[#This Row],[localisation]]&\" \"&Table1[[#This Row],[constat/projet/entretien]],\"\")","v":"HEURE / La Carlingue / réfectoire ajouter un plan de travail"}]
[{"$f":"IFERROR(IF(OFFSET(Table24[[#Headers],[Domaine]],MATCH(Table1[[#This Row],[Loca / action]],'Constats projets Entretiens'!J:J,0)-1,6,,)=0,\"\",OFFSET(Table24[[#Headers],[Domaine]],MATCH(Table1[[#This Row],[Loca / action]],'Constats projets Entretiens'!J:J,0)-1,6,,)),\"Ligne supprimée dans Constat\")","v":3},"ITTRE / Extérieur / abords des bâtiments","barrière en mauvais état, à refaire",null,null,{"$f":"IFERROR(IF(OFFSET(Table24[[#Headers],[Domaine]],MATCH(Table1[[#This Row],[Loca / action]],'Constats projets Entretiens'!J:J,0)-1,5,,)=0,\"\",OFFSET(Table24[[#Headers],[Domaine]],MATCH(Table1[[#This Row],[Loca / action]],'Constats projets Entretiens'!J:J,0)-1,5,,)),\"Ligne supprimée dans Constat\")","v":""},{"$f":"IFERROR(Table1[[#This Row],[localisation]]&\" \"&Table1[[#This Row],[constat/projet/entretien]],\"\")","v":"ITTRE / Extérieur / abords des bâtiments barrière en mauvais état, à refaire"}]
[{"$f":"IFERROR(IF(OFFSET(Table24[[#Headers],[Domaine]],MATCH(Table1[[#This Row],[Loca / action]],'Constats projets Entretiens'!J:J,0)-1,6,,)=0,\"\",OFFSET(Table24[[#Headers],[Domaine]],MATCH(Table1[[#This Row],[Loca / action]],'Constats projets Entretiens'!J:J,0)-1,6,,)),\"Ligne supprimée dans Constat\")","v":3},"ITTRE / Intérieur / réfectoire","idée de faire un étage pour gagner en place",null,null,{"$f":"IFERROR(IF(OFFSET(Table24[[#Headers],[Domaine]],MATCH(Table1[[#This Row],[Loca / action]],'Constats projets Entretiens'!J:J,0)-1,5,,)=0,\"\",OFFSET(Table24[[#Headers],[Domaine]],MATCH(Table1[[#This Row],[Loca / action]],'Constats projets Entretiens'!J:J,0)-1,5,,)),\"Ligne supprimée dans Constat\")","v":""},{"$f":"IFERROR(Table1[[#This Row],[localisation]]&\" \"&Table1[[#This Row],[constat/projet/entretien]],\"\")","v":"ITTRE / Intérieur / réfectoire idée de faire un étage pour gagner en place"}]
[{"$f":"IFERROR(IF(OFFSET(Table24[[#Headers],[Domaine]],MATCH(Table1[[#This Row],[Loca / action]],'Constats projets Entretiens'!J:J,0)-1,6,,)=0,\"\",OFFSET(Table24[[#Headers],[Domaine]],MATCH(Table1[[#This Row],[Loca / action]],'Constats projets Entretiens'!J:J,0)-1,6,,)),\"Ligne supprimée dans Constat\")","v":3},"ITTRE / Intérieur / sanitaires","besoin de désamianter ?",null,null,{"$f":"IFERROR(IF(OFFSET(Table24[[#Headers],[Domaine]],MATCH(Table1[[#This Row],[Loca / action]],'Constats projets Entretiens'!J:J,0)-1,5,,)=0,\"\",OFFSET(Table24[[#Headers],[Domaine]],MATCH(Table1[[#This Row],[Loca / action]],'Constats projets Entretiens'!J:J,0)-1,5,,)),\"Ligne supprimée dans Constat\")","v":""},{"$f":"IFERROR(Table1[[#This Row],[localisation]]&\" \"&Table1[[#This Row],[constat/projet/entretien]],\"\")","v":"ITTRE / Intérieur / sanitaires besoin de désamianter ?"}]
[{"$f":"IFERROR(IF(OFFSET(Table24[[#Headers],[Domaine]],MATCH(Table1[[#This Row],[Loca / action]],'Constats projets Entretiens'!J:J,0)-1,6,,)=0,\"\",OFFSET(Table24[[#Headers],[Domaine]],MATCH(Table1[[#This Row],[Loca / action]],'Constats projets Entretiens'!J:J,0)-1,6,,)),\"Ligne supprimée dans Constat\")","v":3},"ITTRE / Intérieur / sanitaires","retaper les douches et wc",null,null,{"$f":"IFERROR(IF(OFFSET(Table24[[#Headers],[Domaine]],MATCH(Table1[[#This Row],[Loca / action]],'Constats projets Entretiens'!J:J,0)-1,5,,)=0,\"\",OFFSET(Table24[[#Headers],[Domaine]],MATCH(Table1[[#This Row],[Loca / action]],'Constats projets Entretiens'!J:J,0)-1,5,,)),\"Ligne supprimée dans Constat\")","v":""},{"$f":"IFERROR(Table1[[#This Row],[localisation]]&\" \"&Table1[[#This Row],[constat/projet/entretien]],\"\")","v":"ITTRE / Intérieur / sanitaires retaper les douches et wc"}]
[{"$f":"IFERROR(IF(OFFSET(Table24[[#Headers],[Domaine]],MATCH(Table1[[#This Row],[Loca / action]],'Constats projets Entretiens'!J:J,0)-1,6,,)=0,\"\",OFFSET(Table24[[#Headers],[Domaine]],MATCH(Table1[[#This Row],[Loca / action]],'Constats projets Entretiens'!J:J,0)-1,6,,)),\"Ligne supprimée dans Constat\")","v":3},"PDH 38 / Rez / pièce à rue","changer les chassis",null,null,{"$f":"IFERROR(IF(OFFSET(Table24[[#Headers],[Domaine]],MATCH(Table1[[#This Row],[Loca / action]],'Constats projets Entretiens'!J:J,0)-1,5,,)=0,\"\",OFFSET(Table24[[#Headers],[Domaine]],MATCH(Table1[[#This Row],[Loca / action]],'Constats projets Entretiens'!J:J,0)-1,5,,)),\"Ligne supprimée dans Constat\")","v":""},{"$f":"IFERROR(Table1[[#This Row],[localisation]]&\" \"&Table1[[#This Row],[constat/projet/entretien]],\"\")","v":"PDH 38 / Rez / pièce à rue changer les chassis"}]
[{"$f":"IFERROR(IF(OFFSET(Table24[[#Headers],[Domaine]],MATCH(Table1[[#This Row],[Loca / action]],'Constats projets Entretiens'!J:J,0)-1,6,,)=0,\"\",OFFSET(Table24[[#Headers],[Domaine]],MATCH(Table1[[#This Row],[Loca / action]],'Constats projets Entretiens'!J:J,0)-1,6,,)),\"Ligne supprimée dans Constat\")","v":3},"PDH 38 / Premier / menuiserie","APPART : changer les chassis",null,null,{"$f":"IFERROR(IF(OFFSET(Table24[[#Headers],[Domaine]],MATCH(Table1[[#This Row],[Loca / action]],'Constats projets Entretiens'!J:J,0)-1,5,,)=0,\"\",OFFSET(Table24[[#Headers],[Domaine]],MATCH(Table1[[#This Row],[Loca / action]],'Constats projets Entretiens'!J:J,0)-1,5,,)),\"Ligne supprimée dans Constat\")","v":""},{"$f":"IFERROR(Table1[[#This Row],[localisation]]&\" \"&Table1[[#This Row],[constat/projet/entretien]],\"\")","v":"PDH 38 / Premier / menuiserie APPART : changer les chassis"}]
[{"$f":"IFERROR(IF(OFFSET(Table24[[#Headers],[Domaine]],MATCH(Table1[[#This Row],[Loca / action]],'Constats projets Entretiens'!J:J,0)-1,6,,)=0,\"\",OFFSET(Table24[[#Headers],[Domaine]],MATCH(Table1[[#This Row],[Loca / action]],'Constats projets Entretiens'!J:J,0)-1,6,,)),\"Ligne supprimée dans Constat\")","v":3},"PDH 38 / Premier / autre","APPART : traiter les sols",null,null,{"$f":"IFERROR(IF(OFFSET(Table24[[#Headers],[Domaine]],MATCH(Table1[[#This Row],[Loca / action]],'Constats projets Entretiens'!J:J,0)-1,5,,)=0,\"\",OFFSET(Table24[[#Headers],[Domaine]],MATCH(Table1[[#This Row],[Loca / action]],'Constats projets Entretiens'!J:J,0)-1,5,,)),\"Ligne supprimée dans Constat\")","v":""},{"$f":"IFERROR(Table1[[#This Row],[localisation]]&\" \"&Table1[[#This Row],[constat/projet/entretien]],\"\")","v":"PDH 38 / Premier / autre APPART : traiter les sols"}]
[{"$f":"IFERROR(IF(OFFSET(Table24[[#Headers],[Domaine]],MATCH(Table1[[#This Row],[Loca / action]],'Constats projets Entretiens'!J:J,0)-1,6,,)=0,\"\",OFFSET(Table24[[#Headers],[Domaine]],MATCH(Table1[[#This Row],[Loca / action]],'Constats projets Entretiens'!J:J,0)-1,6,,)),\"Ligne supprimée dans Constat\")","v":3},"PDH 38 / Premier / appartement (cuisine)","APPART : carreler la cuisine",null,null,{"$f":"IFERROR(IF(OFFSET(Table24[[#Headers],[Domaine]],MATCH(Table1[[#This Row],[Loca / action]],'Constats projets Entretiens'!J:J,0)-1,5,,)=0,\"\",OFFSET(Table24[[#Headers],[Domaine]],MATCH(Table1[[#This Row],[Loca / action]],'Constats projets Entretiens'!J:J,0)-1,5,,)),\"Ligne supprimée dans Constat\")","v":""},{"$f":"IFERROR(Table1[[#This Row],[localisation]]&\" \"&Table1[[#This Row],[constat/projet/entretien]],\"\")","v":"PDH 38 / Premier / appartement (cuisine) APPART : carreler la cuisine"}]
[{"$f":"IFERROR(IF(OFFSET(Table24[[#Headers],[Domaine]],MATCH(Table1[[#This Row],[Loca / action]],'Constats projets Entretiens'!J:J,0)-1,6,,)=0,\"\",OFFSET(Table24[[#Headers],[Domaine]],MATCH(Table1[[#This Row],[Loca / action]],'Constats projets Entretiens'!J:J,0)-1,6,,)),\"Ligne supprimée dans Constat\")","v":3},"PDH 38 / Premier / appartement (salle de Bains)","APPART : réaménager la sdb (nouv bain et lavabo, bac de douche, repeindre, etc.)",null,null,{"$f":"IFERROR(IF(OFFSET(Table24[[#Headers],[Domaine]],MATCH(Table1[[#This Row],[Loca / action]],'Constats projets Entretiens'!J:J,0)-1,5,,)=0,\"\",OFFSET(Table24[[#Headers],[Domaine]],MATCH(Table1[[#This Row],[Loca / action]],'Constats projets Entretiens'!J:J,0)-1,5,,)),\"Ligne supprimée dans Constat\")","v":""},{"$f":"IFERROR(Table1[[#This Row],[localisation]]&\" \"&Table1[[#This Row],[constat/projet/entretien]],\"\")","v":"PDH 38 / Premier / appartement (salle de Bains) APPART : réaménager la sdb (nouv bain et lavabo, bac de douche, repeindre, etc.)"}]
[{"$f":"IFERROR(IF(OFFSET(Table24[[#Headers],[Domaine]],MATCH(Table1[[#This Row],[Loca / action]],'Constats projets Entretiens'!J:J,0)-1,6,,)=0,\"\",OFFSET(Table24[[#Headers],[Domaine]],MATCH(Table1[[#This Row],[Loca / action]],'Constats projets Entretiens'!J:J,0)-1,6,,)),\"Ligne supprimée dans Constat\")","v":3},"PDH 38 / deuxième / appartement SGP (salle de bains)","réparer le pommeau de la baignoire",null,null,{"$f":"IFERROR(IF(OFFSET(Table24[[#Headers],[Domaine]],MATCH(Table1[[#This Row],[Loca / action]],'Constats projets Entretiens'!J:J,0)-1,5,,)=0,\"\",OFFSET(Table24[[#Headers],[Domaine]],MATCH(Table1[[#This Row],[Loca / action]],'Constats projets Entretiens'!J:J,0)-1,5,,)),\"Ligne supprimée dans Constat\")","v":""},{"$f":"IFERROR(Table1[[#This Row],[localisation]]&\" \"&Table1[[#This Row],[constat/projet/entretien]],\"\")","v":"PDH 38 / deuxième / appartement SGP (salle de bains) réparer le pommeau de la baignoire"}]
[{"$f":"IFERROR(IF(OFFSET(Table24[[#Headers],[Domaine]],MATCH(Table1[[#This Row],[Loca / action]],'Constats projets Entretiens'!J:J,0)-1,6,,)=0,\"\",OFFSET(Table24[[#Headers],[Domaine]],MATCH(Table1[[#This Row],[Loca / action]],'Constats projets Entretiens'!J:J,0)-1,6,,)),\"Ligne supprimée dans Constat\")","v":3},"PDH 38 / troisième / projet","PROJET 3e : isoler la toiture",null,null,{"$f":"IFERROR(IF(OFFSET(Table24[[#Headers],[Domaine]],MATCH(Table1[[#This Row],[Loca / action]],'Constats projets Entretiens'!J:J,0)-1,5,,)=0,\"\",OFFSET(Table24[[#Headers],[Domaine]],MATCH(Table1[[#This Row],[Loca / action]],'Constats projets Entretiens'!J:J,0)-1,5,,)),\"Ligne supprimée dans Constat\")","v":""},{"$f":"IFERROR(Table1[[#This Row],[localisation]]&\" \"&Table1[[#This Row],[constat/projet/entretien]],\"\")","v":"PDH 38 / troisième / projet PROJET 3e : isoler la toiture"}]
[{"$f":"IFERROR(IF(OFFSET(Table24[[#Headers],[Domaine]],MATCH(Table1[[#This Row],[Loca / action]],'Constats projets Entretiens'!J:J,0)-1,6,,)=0,\"\",OFFSET(Table24[[#Headers],[Domaine]],MATCH(Table1[[#This Row],[Loca / action]],'Constats projets Entretiens'!J:J,0)-1,6,,)),\"Ligne supprimée dans Constat\")","v":3},"PDH 38 / troisième / projet","PROJET 3e : refaire l'électricité",null,null,{"$f":"IFERROR(IF(OFFSET(Table24[[#Headers],[Domaine]],MATCH(Table1[[#This Row],[Loca / action]],'Constats projets Entretiens'!J:J,0)-1,5,,)=0,\"\",OFFSET(Table24[[#Headers],[Domaine]],MATCH(Table1[[#This Row],[Loca / action]],'Constats projets Entretiens'!J:J,0)-1,5,,)),\"Ligne supprimée dans Constat\")","v":""},{"$f":"IFERROR(Table1[[#This Row],[localisation]]&\" \"&Table1[[#This Row],[constat/projet/entretien]],\"\")","v":"PDH 38 / troisième / projet PROJET 3e : refaire l'électricité"}]
[{"$f":"IFERROR(IF(OFFSET(Table24[[#Headers],[Domaine]],MATCH(Table1[[#This Row],[Loca / action]],'Constats projets Entretiens'!J:J,0)-1,6,,)=0,\"\",OFFSET(Table24[[#Headers],[Domaine]],MATCH(Table1[[#This Row],[Loca / action]],'Constats projets Entretiens'!J:J,0)-1,6,,)),\"Ligne supprimée dans Constat\")","v":3},"PDH 38 / troisième / projet","PROJET 3e : installer une cuisine",null,null,{"$f":"IFERROR(IF(OFFSET(Table24[[#Headers],[Domaine]],MATCH(Table1[[#This Row],[Loca / action]],'Constats projets Entretiens'!J:J,0)-1,5,,)=0,\"\",OFFSET(Table24[[#Headers],[Domaine]],MATCH(Table1[[#This Row],[Loca / action]],'Constats projets Entretiens'!J:J,0)-1,5,,)),\"Ligne supprimée dans Constat\")","v":""},{"$f":"IFERROR(Table1[[#This Row],[localisation]]&\" \"&Table1[[#This Row],[constat/projet/entretien]],\"\")","v":"PDH 38 / troisième / projet PROJET 3e : installer une cuisine"}]
[{"$f":"IFERROR(IF(OFFSET(Table24[[#Headers],[Domaine]],MATCH(Table1[[#This Row],[Loca / action]],'Constats projets Entretiens'!J:J,0)-1,6,,)=0,\"\",OFFSET(Table24[[#Headers],[Domaine]],MATCH(Table1[[#This Row],[Loca / action]],'Constats projets Entretiens'!J:J,0)-1,6,,)),\"Ligne supprimée dans Constat\")","v":3},"PDH 38 / troisième / projet","PROJET 3e : installer une salle de bain",null,null,{"$f":"IFERROR(IF(OFFSET(Table24[[#Headers],[Domaine]],MATCH(Table1[[#This Row],[Loca / action]],'Constats projets Entretiens'!J:J,0)-1,5,,)=0,\"\",OFFSET(Table24[[#Headers],[Domaine]],MATCH(Table1[[#This Row],[Loca / action]],'Constats projets Entretiens'!J:J,0)-1,5,,)),\"Ligne supprimée dans Constat\")","v":""},{"$f":"IFERROR(Table1[[#This Row],[localisation]]&\" \"&Table1[[#This Row],[constat/projet/entretien]],\"\")","v":"PDH 38 / troisième / projet PROJET 3e : installer une salle de bain"}]
[{"$f":"IFERROR(IF(OFFSET(Table24[[#Headers],[Domaine]],MATCH(Table1[[#This Row],[Loca / action]],'Constats projets Entretiens'!J:J,0)-1,6,,)=0,\"\",OFFSET(Table24[[#Headers],[Domaine]],MATCH(Table1[[#This Row],[Loca / action]],'Constats projets Entretiens'!J:J,0)-1,6,,)),\"Ligne supprimée dans Constat\")","v":3},"PDH 39 / Tout le bâtiment / cour","cour défoncée",null,null,{"$f":"IFERROR(IF(OFFSET(Table24[[#Headers],[Domaine]],MATCH(Table1[[#This Row],[Loca / action]],'Constats projets Entretiens'!J:J,0)-1,5,,)=0,\"\",OFFSET(Table24[[#Headers],[Domaine]],MATCH(Table1[[#This Row],[Loca / action]],'Constats projets Entretiens'!J:J,0)-1,5,,)),\"Ligne supprimée dans Constat\")","v":""},{"$f":"IFERROR(Table1[[#This Row],[localisation]]&\" \"&Table1[[#This Row],[constat/projet/entretien]],\"\")","v":"PDH 39 / Tout le bâtiment / cour cour défoncée"}]
[{"$f":"IFERROR(IF(OFFSET(Table24[[#Headers],[Domaine]],MATCH(Table1[[#This Row],[Loca / action]],'Constats projets Entretiens'!J:J,0)-1,6,,)=0,\"\",OFFSET(Table24[[#Headers],[Domaine]],MATCH(Table1[[#This Row],[Loca / action]],'Constats projets Entretiens'!J:J,0)-1,6,,)),\"Ligne supprimée dans Constat\")","v":3},"PDH 39 / rez / Magascout","projet de peindre une fresque sur la façade du Magascout",null,null,{"$f":"IFERROR(IF(OFFSET(Table24[[#Headers],[Domaine]],MATCH(Table1[[#This Row],[Loca / action]],'Constats projets Entretiens'!J:J,0)-1,5,,)=0,\"\",OFFSET(Table24[[#Headers],[Domaine]],MATCH(Table1[[#This Row],[Loca / action]],'Constats projets Entretiens'!J:J,0)-1,5,,)),\"Ligne supprimée dans Constat\")","v":""},{"$f":"IFERROR(Table1[[#This Row],[localisation]]&\" \"&Table1[[#This Row],[constat/projet/entretien]],\"\")","v":"PDH 39 / rez / Magascout projet de peindre une fresque sur la façade du Magascout"}]
[{"$f":"IFERROR(IF(OFFSET(Table24[[#Headers],[Domaine]],MATCH(Table1[[#This Row],[Loca / action]],'Constats projets Entretiens'!J:J,0)-1,6,,)=0,\"\",OFFSET(Table24[[#Headers],[Domaine]],MATCH(Table1[[#This Row],[Loca / action]],'Constats projets Entretiens'!J:J,0)-1,6,,)),\"Ligne supprimée dans Constat\")","v":3},"PDH 39 / garages / sanitaire","repeindre et rafraichir les WC",null,null,{"$f":"IFERROR(IF(OFFSET(Table24[[#Headers],[Domaine]],MATCH(Table1[[#This Row],[Loca / action]],'Constats projets Entretiens'!J:J,0)-1,5,,)=0,\"\",OFFSET(Table24[[#Headers],[Domaine]],MATCH(Table1[[#This Row],[Loca / action]],'Constats projets Entretiens'!J:J,0)-1,5,,)),\"Ligne supprimée dans Constat\")","v":""},{"$f":"IFERROR(Table1[[#This Row],[localisation]]&\" \"&Table1[[#This Row],[constat/projet/entretien]],\"\")","v":"PDH 39 / garages / sanitaire repeindre et rafraichir les WC"}]
[{"$f":"IFERROR(IF(OFFSET(Table24[[#Headers],[Domaine]],MATCH(Table1[[#This Row],[Loca / action]],'Constats projets Entretiens'!J:J,0)-1,6,,)=0,\"\",OFFSET(Table24[[#Headers],[Domaine]],MATCH(Table1[[#This Row],[Loca / action]],'Constats projets Entretiens'!J:J,0)-1,6,,)),\"Ligne supprimée dans Constat\")","v":3},"PDH 39 / premier / bureau SF","insonoriser le bureau",null,null,{"$f":"IFERROR(IF(OFFSET(Table24[[#Headers],[Domaine]],MATCH(Table1[[#This Row],[Loca / action]],'Constats projets Entretiens'!J:J,0)-1,5,,)=0,\"\",OFFSET(Table24[[#Headers],[Domaine]],MATCH(Table1[[#This Row],[Loca / action]],'Constats projets Entretiens'!J:J,0)-1,5,,)),\"Ligne supprimée dans Constat\")","v":""},{"$f":"IFERROR(Table1[[#This Row],[localisation]]&\" \"&Table1[[#This Row],[constat/projet/entretien]],\"\")","v":"PDH 39 / premier / bureau SF insonoriser le bureau"}]
[{"$f":"IFERROR(IF(OFFSET(Table24[[#Headers],[Domaine]],MATCH(Table1[[#This Row],[Loca / action]],'Constats projets Entretiens'!J:J,0)-1,6,,)=0,\"\",OFFSET(Table24[[#Headers],[Domaine]],MATCH(Table1[[#This Row],[Loca / action]],'Constats projets Entretiens'!J:J,0)-1,6,,)),\"Ligne supprimée dans Constat\")","v":3},"PDH 39 / Tout le bâtiment / toiture","refaire le roafing du grand toit + celui de roro",null,null,{"$f":"IFERROR(IF(OFFSET(Table24[[#Headers],[Domaine]],MATCH(Table1[[#This Row],[Loca / action]],'Constats projets Entretiens'!J:J,0)-1,5,,)=0,\"\",OFFSET(Table24[[#Headers],[Domaine]],MATCH(Table1[[#This Row],[Loca / action]],'Constats projets Entretiens'!J:J,0)-1,5,,)),\"Ligne supprimée dans Constat\")","v":""},{"$f":"IFERROR(Table1[[#This Row],[localisation]]&\" \"&Table1[[#This Row],[constat/projet/entretien]],\"\")","v":"PDH 39 / Tout le bâtiment / toiture refaire le roafing du grand toit + celui de roro"}]
[{"$f":"IFERROR(IF(OFFSET(Table24[[#Headers],[Domaine]],MATCH(Table1[[#This Row],[Loca / action]],'Constats projets Entretiens'!J:J,0)-1,6,,)=0,\"\",OFFSET(Table24[[#Headers],[Domaine]],MATCH(Table1[[#This Row],[Loca / action]],'Constats projets Entretiens'!J:J,0)-1,6,,)),\"Ligne supprimée dans Constat\")","v":3},"PDH 39 / Tout le bâtiment / toiture","transformer le toit plat au-dessus de la cuisine en terrasse",null,null,{"$f":"IFERROR(IF(OFFSET(Table24[[#Headers],[Domaine]],MATCH(Table1[[#This Row],[Loca / action]],'Constats projets Entretiens'!J:J,0)-1,5,,)=0,\"\",OFFSET(Table24[[#Headers],[Domaine]],MATCH(Table1[[#This Row],[Loca / action]],'Constats projets Entretiens'!J:J,0)-1,5,,)),\"Ligne supprimée dans Constat\")","v":""},{"$f":"IFERROR(Table1[[#This Row],[localisation]]&\" \"&Table1[[#This Row],[constat/projet/entretien]],\"\")","v":"PDH 39 / Tout le bâtiment / toiture transformer le toit plat au-dessus de la cuisine en terrasse"}]
[{"$f":"IFERROR(IF(OFFSET(Table24[[#Headers],[Domaine]],MATCH(Table1[[#This Row],[Loca / action]],'Constats projets Entretiens'!J:J,0)-1,6,,)=0,\"\",OFFSET(Table24[[#Headers],[Domaine]],MATCH(Table1[[#This Row],[Loca / action]],'Constats projets Entretiens'!J:J,0)-1,6,,)),\"Ligne supprimée dans Constat\")","v":3},"PDH 39 / premier / sanitaires","rafraichir les WC",null,null,{"$f":"IFERROR(IF(OFFSET(Table24[[#Headers],[Domaine]],MATCH(Table1[[#This Row],[Loca / action]],'Constats projets Entretiens'!J:J,0)-1,5,,)=0,\"\",OFFSET(Table24[[#Headers],[Domaine]],MATCH(Table1[[#This Row],[Loca / action]],'Constats projets Entretiens'!J:J,0)-1,5,,)),\"Ligne supprimée dans Constat\")","v":""},{"$f":"IFERROR(Table1[[#This Row],[localisation]]&\" \"&Table1[[#This Row],[constat/projet/entretien]],\"\")","v":"PDH 39 / premier / sanitaires rafraichir les WC"}]
[{"$f":"IFERROR(IF(OFFSET(Table24[[#Headers],[Domaine]],MATCH(Table1[[#This Row],[Loca / action]],'Constats projets Entretiens'!J:J,0)-1,6,,)=0,\"\",OFFSET(Table24[[#Headers],[Domaine]],MATCH(Table1[[#This Row],[Loca / action]],'Constats projets Entretiens'!J:J,0)-1,6,,)),\"Ligne supprimée dans Constat\")","v":3},"PDH 39 / premier / salle biblio-costumothèque","améliorer les espaces de rangement",null,null,{"$f":"IFERROR(IF(OFFSET(Table24[[#Headers],[Domaine]],MATCH(Table1[[#This Row],[Loca / action]],'Constats projets Entretiens'!J:J,0)-1,5,,)=0,\"\",OFFSET(Table24[[#Headers],[Domaine]],MATCH(Table1[[#This Row],[Loca / action]],'Constats projets Entretiens'!J:J,0)-1,5,,)),\"Ligne supprimée dans Constat\")","v":""},{"$f":"IFERROR(Table1[[#This Row],[localisation]]&\" \"&Table1[[#This Row],[constat/projet/entretien]],\"\")","v":"PDH 39 / premier / salle biblio-costumothèque améliorer les espaces de rangement"}]
[{"$f":"IFERROR(IF(OFFSET(Table24[[#Headers],[Domaine]],MATCH(Table1[[#This Row],[Loca / action]],'Constats projets Entretiens'!J:J,0)-1,6,,)=0,\"\",OFFSET(Table24[[#Headers],[Domaine]],MATCH(Table1[[#This Row],[Loca / action]],'Constats projets Entretiens'!J:J,0)-1,6,,)),\"Ligne supprimée dans Constat\")","v":3},"CDS / Ensemble du domaine / travail administratif","VENTE 3: choisir et prévenir notaire lorsqu'un repreneur est trouvé",null,null,{"$f":"IFERROR(IF(OFFSET(Table24[[#Headers],[Domaine]],MATCH(Table1[[#This Row],[Loca / action]],'Constats projets Entretiens'!J:J,0)-1,5,,)=0,\"\",OFFSET(Table24[[#Headers],[Domaine]],MATCH(Table1[[#This Row],[Loca / action]],'Constats projets Entretiens'!J:J,0)-1,5,,)),\"Ligne supprimée dans Constat\")","v":""},{"$f":"IFERROR(Table1[[#This Row],[localisation]]&\" \"&Table1[[#This Row],[constat/projet/entretien]],\"\")","v":"CDS / Ensemble du domaine / travail administratif VENTE 3: choisir et prévenir notaire lorsqu'un repreneur est trouvé"}]
[{"$f":"IFERROR(IF(OFFSET(Table24[[#Headers],[Domaine]],MATCH(Table1[[#This Row],[Loca / action]],'Constats projets Entretiens'!J:J,0)-1,6,,)=0,\"\",OFFSET(Table24[[#Headers],[Domaine]],MATCH(Table1[[#This Row],[Loca / action]],'Constats projets Entretiens'!J:J,0)-1,6,,)),\"Ligne supprimée dans Constat\")","v":3},"HEURE / Le Grand Chalet / murs extérieurs","rejointoyer et traiter les plaques sur les murs + remplacer mettre vis inoxydables",null,null,{"$f":"IFERROR(IF(OFFSET(Table24[[#Headers],[Domaine]],MATCH(Table1[[#This Row],[Loca / action]],'Constats projets Entretiens'!J:J,0)-1,5,,)=0,\"\",OFFSET(Table24[[#Headers],[Domaine]],MATCH(Table1[[#This Row],[Loca / action]],'Constats projets Entretiens'!J:J,0)-1,5,,)),\"Ligne supprimée dans Constat\")","v":""},{"$f":"IFERROR(Table1[[#This Row],[localisation]]&\" \"&Table1[[#This Row],[constat/projet/entretien]],\"\")","v":"HEURE / Le Grand Chalet / murs extérieurs rejointoyer et traiter les plaques sur les murs + remplacer mettre vis inoxydables"}]
[{"$f":"IFERROR(IF(OFFSET(Table24[[#Headers],[Domaine]],MATCH(Table1[[#This Row],[Loca / action]],'Constats projets Entretiens'!J:J,0)-1,6,,)=0,\"\",OFFSET(Table24[[#Headers],[Domaine]],MATCH(Table1[[#This Row],[Loca / action]],'Constats projets Entretiens'!J:J,0)-1,6,,)),\"Ligne supprimée dans Constat\")","v":3},"HEURE / Le Grand Chalet / abords extérieurs","terrassement et remblayage du parking",null,null,{"$f":"IFERROR(IF(OFFSET(Table24[[#Headers],[Domaine]],MATCH(Table1[[#This Row],[Loca / action]],'Constats projets Entretiens'!J:J,0)-1,5,,)=0,\"\",OFFSET(Table24[[#Headers],[Domaine]],MATCH(Table1[[#This Row],[Loca / action]],'Constats projets Entretiens'!J:J,0)-1,5,,)),\"Ligne supprimée dans Constat\")","v":""},{"$f":"IFERROR(Table1[[#This Row],[localisation]]&\" \"&Table1[[#This Row],[constat/projet/entretien]],\"\")","v":"HEURE / Le Grand Chalet / abords extérieurs terrassement et remblayage du parking"}]
[{"$f":"IFERROR(IF(OFFSET(Table24[[#Headers],[Domaine]],MATCH(Table1[[#This Row],[Loca / action]],'Constats projets Entretiens'!J:J,0)-1,6,,)=0,\"\",OFFSET(Table24[[#Headers],[Domaine]],MATCH(Table1[[#This Row],[Loca / action]],'Constats projets Entretiens'!J:J,0)-1,6,,)),\"Ligne supprimée dans Constat\")","v":3},"HEURE / Le Grand Chalet / abords extérieurs","réparer le cabanon",null,null,{"$f":"IFERROR(IF(OFFSET(Table24[[#Headers],[Domaine]],MATCH(Table1[[#This Row],[Loca / action]],'Constats projets Entretiens'!J:J,0)-1,5,,)=0,\"\",OFFSET(Table24[[#Headers],[Domaine]],MATCH(Table1[[#This Row],[Loca / action]],'Constats projets Entretiens'!J:J,0)-1,5,,)),\"Ligne supprimée dans Constat\")","v":""},{"$f":"IFERROR(Table1[[#This Row],[localisation]]&\" \"&Table1[[#This Row],[constat/projet/entretien]],\"\")","v":"HEURE / Le Grand Chalet / abords extérieurs réparer le cabanon"}]
[{"$f":"IFERROR(IF(OFFSET(Table24[[#Headers],[Domaine]],MATCH(Table1[[#This Row],[Loca / action]],'Constats projets Entretiens'!J:J,0)-1,6,,)=0,\"\",OFFSET(Table24[[#Headers],[Domaine]],MATCH(Table1[[#This Row],[Loca / action]],'Constats projets Entretiens'!J:J,0)-1,6,,)),\"Ligne supprimée dans Constat\")","v":3},"HEURE / Le Grand Chalet / salle du sous-sol","isoler les buses de chauffage pour stopper la déperdition de chaleur",null,null,{"$f":"IFERROR(IF(OFFSET(Table24[[#Headers],[Domaine]],MATCH(Table1[[#This Row],[Loca / action]],'Constats projets Entretiens'!J:J,0)-1,5,,)=0,\"\",OFFSET(Table24[[#Headers],[Domaine]],MATCH(Table1[[#This Row],[Loca / action]],'Constats projets Entretiens'!J:J,0)-1,5,,)),\"Ligne supprimée dans Constat\")","v":""},{"$f":"IFERROR(Table1[[#This Row],[localisation]]&\" \"&Table1[[#This Row],[constat/projet/entretien]],\"\")","v":"HEURE / Le Grand Chalet / salle du sous-sol isoler les buses de chauffage pour stopper la déperdition de chaleur"}]
[{"$f":"IFERROR(IF(OFFSET(Table24[[#Headers],[Domaine]],MATCH(Table1[[#This Row],[Loca / action]],'Constats projets Entretiens'!J:J,0)-1,6,,)=0,\"\",OFFSET(Table24[[#Headers],[Domaine]],MATCH(Table1[[#This Row],[Loca / action]],'Constats projets Entretiens'!J:J,0)-1,6,,)),\"Ligne supprimée dans Constat\")","v":3},"HEURE / Le Grand Chalet / général","placer des grilles devant les arrivées d'air chaud + nettoyer",null,null,{"$f":"IFERROR(IF(OFFSET(Table24[[#Headers],[Domaine]],MATCH(Table1[[#This Row],[Loca / action]],'Constats projets Entretiens'!J:J,0)-1,5,,)=0,\"\",OFFSET(Table24[[#Headers],[Domaine]],MATCH(Table1[[#This Row],[Loca / action]],'Constats projets Entretiens'!J:J,0)-1,5,,)),\"Ligne supprimée dans Constat\")","v":""},{"$f":"IFERROR(Table1[[#This Row],[localisation]]&\" \"&Table1[[#This Row],[constat/projet/entretien]],\"\")","v":"HEURE / Le Grand Chalet / général placer des grilles devant les arrivées d'air chaud + nettoyer"}]
[{"$f":"IFERROR(IF(OFFSET(Table24[[#Headers],[Domaine]],MATCH(Table1[[#This Row],[Loca / action]],'Constats projets Entretiens'!J:J,0)-1,6,,)=0,\"\",OFFSET(Table24[[#Headers],[Domaine]],MATCH(Table1[[#This Row],[Loca / action]],'Constats projets Entretiens'!J:J,0)-1,6,,)),\"Ligne supprimée dans Constat\")","v":3},"HEURE / Le Grand Chalet / général","projet d'agrandissement",null,null,{"$f":"IFERROR(IF(OFFSET(Table24[[#Headers],[Domaine]],MATCH(Table1[[#This Row],[Loca / action]],'Constats projets Entretiens'!J:J,0)-1,5,,)=0,\"\",OFFSET(Table24[[#Headers],[Domaine]],MATCH(Table1[[#This Row],[Loca / action]],'Constats projets Entretiens'!J:J,0)-1,5,,)),\"Ligne supprimée dans Constat\")","v":""},{"$f":"IFERROR(Table1[[#This Row],[localisation]]&\" \"&Table1[[#This Row],[constat/projet/entretien]],\"\")","v":"HEURE / Le Grand Chalet / général projet d'agrandissement"}]
[{"$f":"IFERROR(IF(OFFSET(Table24[[#Headers],[Domaine]],MATCH(Table1[[#This Row],[Loca / action]],'Constats projets Entretiens'!J:J,0)-1,6,,)=0,\"\",OFFSET(Table24[[#Headers],[Domaine]],MATCH(Table1[[#This Row],[Loca / action]],'Constats projets Entretiens'!J:J,0)-1,6,,)),\"Ligne supprimée dans Constat\")","v":3},"HEURE / Le Grand Chalet / sanitaires","SDD F : placer ventilation en interne (pas vers l'extérieur)",null,null,{"$f":"IFERROR(IF(OFFSET(Table24[[#Headers],[Domaine]],MATCH(Table1[[#This Row],[Loca / action]],'Constats projets Entretiens'!J:J,0)-1,5,,)=0,\"\",OFFSET(Table24[[#Headers],[Domaine]],MATCH(Table1[[#This Row],[Loca / action]],'Constats projets Entretiens'!J:J,0)-1,5,,)),\"Ligne supprimée dans Constat\")","v":""},{"$f":"IFERROR(Table1[[#This Row],[localisation]]&\" \"&Table1[[#This Row],[constat/projet/entretien]],\"\")","v":"HEURE / Le Grand Chalet / sanitaires SDD F : placer ventilation en interne (pas vers l'extérieur)"}]
[{"$f":"IFERROR(IF(OFFSET(Table24[[#Headers],[Domaine]],MATCH(Table1[[#This Row],[Loca / action]],'Constats projets Entretiens'!J:J,0)-1,6,,)=0,\"\",OFFSET(Table24[[#Headers],[Domaine]],MATCH(Table1[[#This Row],[Loca / action]],'Constats projets Entretiens'!J:J,0)-1,6,,)),\"Ligne supprimée dans Constat\")","v":3},"HEURE / Le Grand Chalet / sanitaires","SDD H : mettre des plintes",null,null,{"$f":"IFERROR(IF(OFFSET(Table24[[#Headers],[Domaine]],MATCH(Table1[[#This Row],[Loca / action]],'Constats projets Entretiens'!J:J,0)-1,5,,)=0,\"\",OFFSET(Table24[[#Headers],[Domaine]],MATCH(Table1[[#This Row],[Loca / action]],'Constats projets Entretiens'!J:J,0)-1,5,,)),\"Ligne supprimée dans Constat\")","v":""},{"$f":"IFERROR(Table1[[#This Row],[localisation]]&\" \"&Table1[[#This Row],[constat/projet/entretien]],\"\")","v":"HEURE / Le Grand Chalet / sanitaires SDD H : mettre des plintes"}]
[{"$f":"IFERROR(IF(OFFSET(Table24[[#Headers],[Domaine]],MATCH(Table1[[#This Row],[Loca / action]],'Constats projets Entretiens'!J:J,0)-1,6,,)=0,\"\",OFFSET(Table24[[#Headers],[Domaine]],MATCH(Table1[[#This Row],[Loca / action]],'Constats projets Entretiens'!J:J,0)-1,6,,)),\"Ligne supprimée dans Constat\")","v":3},"HEURE / Le Grand Chalet / sanitaires","carreler les murs des WC lorsque prob d'infiltration terrasse sera réglé",null,null,{"$f":"IFERROR(IF(OFFSET(Table24[[#Headers],[Domaine]],MATCH(Table1[[#This Row],[Loca / action]],'Constats projets Entretiens'!J:J,0)-1,5,,)=0,\"\",OFFSET(Table24[[#Headers],[Domaine]],MATCH(Table1[[#This Row],[Loca / action]],'Constats projets Entretiens'!J:J,0)-1,5,,)),\"Ligne supprimée dans Constat\")","v":""},{"$f":"IFERROR(Table1[[#This Row],[localisation]]&\" \"&Table1[[#This Row],[constat/projet/entretien]],\"\")","v":"HEURE / Le Grand Chalet / sanitaires carreler les murs des WC lorsque prob d'infiltration terrasse sera réglé"}]
[{"$f":"IFERROR(IF(OFFSET(Table24[[#Headers],[Domaine]],MATCH(Table1[[#This Row],[Loca / action]],'Constats projets Entretiens'!J:J,0)-1,6,,)=0,\"\",OFFSET(Table24[[#Headers],[Domaine]],MATCH(Table1[[#This Row],[Loca / action]],'Constats projets Entretiens'!J:J,0)-1,6,,)),\"Ligne supprimée dans Constat\")","v":3},"HEURE / Le Grand Chalet / sanitaires","poser des cadres devant les trous vitrés (WC)",null,null,{"$f":"IFERROR(IF(OFFSET(Table24[[#Headers],[Domaine]],MATCH(Table1[[#This Row],[Loca / action]],'Constats projets Entretiens'!J:J,0)-1,5,,)=0,\"\",OFFSET(Table24[[#Headers],[Domaine]],MATCH(Table1[[#This Row],[Loca / action]],'Constats projets Entretiens'!J:J,0)-1,5,,)),\"Ligne supprimée dans Constat\")","v":""},{"$f":"IFERROR(Table1[[#This Row],[localisation]]&\" \"&Table1[[#This Row],[constat/projet/entretien]],\"\")","v":"HEURE / Le Grand Chalet / sanitaires poser des cadres devant les trous vitrés (WC)"}]
[{"$f":"IFERROR(IF(OFFSET(Table24[[#Headers],[Domaine]],MATCH(Table1[[#This Row],[Loca / action]],'Constats projets Entretiens'!J:J,0)-1,6,,)=0,\"\",OFFSET(Table24[[#Headers],[Domaine]],MATCH(Table1[[#This Row],[Loca / action]],'Constats projets Entretiens'!J:J,0)-1,6,,)),\"Ligne supprimée dans Constat\")","v":3},"HEURE / Le Grand Chalet / sanitaires","remettre de service le 4e wc",null,null,{"$f":"IFERROR(IF(OFFSET(Table24[[#Headers],[Domaine]],MATCH(Table1[[#This Row],[Loca / action]],'Constats projets Entretiens'!J:J,0)-1,5,,)=0,\"\",OFFSET(Table24[[#Headers],[Domaine]],MATCH(Table1[[#This Row],[Loca / action]],'Constats projets Entretiens'!J:J,0)-1,5,,)),\"Ligne supprimée dans Constat\")","v":""},{"$f":"IFERROR(Table1[[#This Row],[localisation]]&\" \"&Table1[[#This Row],[constat/projet/entretien]],\"\")","v":"HEURE / Le Grand Chalet / sanitaires remettre de service le 4e wc"}]
[{"$f":"IFERROR(IF(OFFSET(Table24[[#Headers],[Domaine]],MATCH(Table1[[#This Row],[Loca / action]],'Constats projets Entretiens'!J:J,0)-1,6,,)=0,\"\",OFFSET(Table24[[#Headers],[Domaine]],MATCH(Table1[[#This Row],[Loca / action]],'Constats projets Entretiens'!J:J,0)-1,6,,)),\"Ligne supprimée dans Constat\")","v":3},"HEURE / Terrains / général","enlever les bornes d'arrivée électrique",null,null,{"$f":"IFERROR(IF(OFFSET(Table24[[#Headers],[Domaine]],MATCH(Table1[[#This Row],[Loca / action]],'Constats projets Entretiens'!J:J,0)-1,5,,)=0,\"\",OFFSET(Table24[[#Headers],[Domaine]],MATCH(Table1[[#This Row],[Loca / action]],'Constats projets Entretiens'!J:J,0)-1,5,,)),\"Ligne supprimée dans Constat\")","v":""},{"$f":"IFERROR(Table1[[#This Row],[localisation]]&\" \"&Table1[[#This Row],[constat/projet/entretien]],\"\")","v":"HEURE / Terrains / général enlever les bornes d'arrivée électrique"}]
[{"$f":"IFERROR(IF(OFFSET(Table24[[#Headers],[Domaine]],MATCH(Table1[[#This Row],[Loca / action]],'Constats projets Entretiens'!J:J,0)-1,6,,)=0,\"\",OFFSET(Table24[[#Headers],[Domaine]],MATCH(Table1[[#This Row],[Loca / action]],'Constats projets Entretiens'!J:J,0)-1,6,,)),\"Ligne supprimée dans Constat\")","v":3},"HEURE / Terrains / Epicéas","planter une haie pour isoler et mettre à l'ombre le terrain",null,null,{"$f":"IFERROR(IF(OFFSET(Table24[[#Headers],[Domaine]],MATCH(Table1[[#This Row],[Loca / action]],'Constats projets Entretiens'!J:J,0)-1,5,,)=0,\"\",OFFSET(Table24[[#Headers],[Domaine]],MATCH(Table1[[#This Row],[Loca / action]],'Constats projets Entretiens'!J:J,0)-1,5,,)),\"Ligne supprimée dans Constat\")","v":""},{"$f":"IFERROR(Table1[[#This Row],[localisation]]&\" \"&Table1[[#This Row],[constat/projet/entretien]],\"\")","v":"HEURE / Terrains / Epicéas planter une haie pour isoler et mettre à l'ombre le terrain"}]
[{"$f":"IFERROR(IF(OFFSET(Table24[[#Headers],[Domaine]],MATCH(Table1[[#This Row],[Loca / action]],'Constats projets Entretiens'!J:J,0)-1,6,,)=0,\"\",OFFSET(Table24[[#Headers],[Domaine]],MATCH(Table1[[#This Row],[Loca / action]],'Constats projets Entretiens'!J:J,0)-1,6,,)),\"Ligne supprimée dans Constat\")","v":3},"HEURE / La Carlingue / abords extérieurs","créer un cabanon pour les déchets PMC",null,null,{"$f":"IFERROR(IF(OFFSET(Table24[[#Headers],[Domaine]],MATCH(Table1[[#This Row],[Loca / action]],'Constats projets Entretiens'!J:J,0)-1,5,,)=0,\"\",OFFSET(Table24[[#Headers],[Domaine]],MATCH(Table1[[#This Row],[Loca / action]],'Constats projets Entretiens'!J:J,0)-1,5,,)),\"Ligne supprimée dans Constat\")","v":""},{"$f":"IFERROR(Table1[[#This Row],[localisation]]&\" \"&Table1[[#This Row],[constat/projet/entretien]],\"\")","v":"HEURE / La Carlingue / abords extérieurs créer un cabanon pour les déchets PMC"}]
[{"$f":"IFERROR(IF(OFFSET(Table24[[#Headers],[Domaine]],MATCH(Table1[[#This Row],[Loca / action]],'Constats projets Entretiens'!J:J,0)-1,6,,)=0,\"\",OFFSET(Table24[[#Headers],[Domaine]],MATCH(Table1[[#This Row],[Loca / action]],'Constats projets Entretiens'!J:J,0)-1,6,,)),\"Ligne supprimée dans Constat\")","v":3},"HEURE / La Carlingue / réfectoire","ajouter un plan de travail",null,null,{"$f":"IFERROR(IF(OFFSET(Table24[[#Headers],[Domaine]],MATCH(Table1[[#This Row],[Loca / action]],'Constats projets Entretiens'!J:J,0)-1,5,,)=0,\"\",OFFSET(Table24[[#Headers],[Domaine]],MATCH(Table1[[#This Row],[Loca / action]],'Constats projets Entretiens'!J:J,0)-1,5,,)),\"Ligne supprimée dans Constat\")","v":""},{"$f":"IFERROR(Table1[[#This Row],[localisation]]&\" \"&Table1[[#This Row],[constat/projet/entretien]],\"\")","v":"HEURE / La Carlingue / réfectoire ajouter un plan de travail"}]

{"sheet":"suivi des dossiers","index":2,"n_rows":85,"n_cols":100,"rows_kept":85,"cut":false,"hidden":false,"merged":[]}
["responsable","localisation","constat/projet/entretien","action","échéance","état d'avancement","infos détaillées"]
[{"$f":"IFERROR(OFFSET('TODO LIST'!$G$1,MATCH(Table4[[#This Row],[localisation]]& \" \" &Table4[[#This Row],[constat/projet/entretien]],'TODO LIST'!G:G,0)-1,-2,,),\"\")","v":""},"HEURE / Ensemble du domaine / autre","évacuer la citerner à gaz du mini-chalet",null,"2016-04-30"]
[{"$f":"IFERROR(OFFSET('TODO LIST'!$G$1,MATCH(Table4[[#This Row],[localisation]]& \" \" &Table4[[#This Row],[constat/projet/entretien]],'TODO LIST'!G:G,0)-1,-2,,),\"\")","v":""},"PDH 38 / Premier / appartement (salle de Bains)","APPART : réaménager la sdb (nouv bain et lavabo, bac de douche, repeindre,...)",null,""]
[{"$f":"IFERROR(OFFSET('TODO LIST'!$G$1,MATCH(Table4[[#This Row],[localisation]]& \" \" &Table4[[#This Row],[constat/projet/entretien]],'TODO LIST'!G:G,0)-1,-2,,),\"\")","v":""},"HEURE / Le Grand Chalet / murs extérieurs","rejointoyer et traiter les plaques des murs + remplacer mettre vis inoxydables",null,""]
[{"$f":"IFERROR(OFFSET('TODO LIST'!$G$1,MATCH(Table4[[#This Row],[localisation]]& \" \" &Table4[[#This Row],[constat/projet/entretien]],'TODO LIST'!G:G,0)-1,-2,,),\"\")","v":""},"CDS / Ensemble du domaine / travail administratif","VENTE : annoncer la vente aux potentiels repreneurs",null,""]
[{"$f":"IFERROR(OFFSET('TODO LIST'!$G$1,MATCH(Table4[[#This Row],[localisation]]& \" \" &Table4[[#This Row],[constat/projet/entretien]],'TODO LIST'!G:G,0)-1,-2,,),\"\")","v":""},"CDS / Ensemble du domaine / travail administratif","VENTE : créer annonce immoweb (si pas vente directe)",null,""]
[{"$f":"IFERROR(OFFSET('TODO LIST'!$G$1,MATCH(Table4[[#This Row],[localisation]]& \" \" &Table4[[#This Row],[constat/projet/entretien]],'TODO LIST'!G:G,0)-1,-2,,),\"\")","v":"roro"},"PDH 38 / caves / chaudière et chauffage","chaudière instable, s'éteint tout le temps",null,"",null,null,null,null,null,null,null,null,null,null,null,null,null,null,null,null,null,null,null,null,null,null,null,null,null,null,null,null,null,null,null,null,null,null,null,null,null,null,null,null,null,null,null,null,null,null,null,null,null,null,null,null,null,null,null,null,null,null,null,null,null,null,null,null,null,null,null,null,null,null,null,null,null,null,null,null,null,null,null,null,null,null,null,null,null,null,null,null,null,null,null,null,null,null,"x"]
[{"$f":"IFERROR(OFFSET('TODO LIST'!$G$1,MATCH(Table4[[#This Row],[localisation]]& \" \" &Table4[[#This Row],[constat/projet/entretien]],'TODO LIST'!G:G,0)-1,-2,,),\"\")","v":""},"ITTRE / Extérieur / évacuation des eaux de pluie","drains bouchés ?",null,"",null,null,null,null,null,null,null,null,null,null,null,null,null,null,null,null,null,null,null,null,null,null,null,null,null,null,null,null,null,null,null,null,null,null,null,null,null,null,null,null,null,null,null,null,null,null,null,null,null,null,null,null,null,null,null,null,null,null,null,null,null,null,null,null,null,null,null,null,null,null,null,null,null,null,null,null,null,null,null,null,null,null,null,null,null,null,null,null,null,null,null,null,null,null,"x"]
[{"$f":"IFERROR(OFFSET('TODO LIST'!$G$1,MATCH(Table4[[#This Row],[localisation]]& \" \" &Table4[[#This Row],[constat/projet/entretien]],'TODO LIST'!G:G,0)-1,-2,,),\"\")","v":"roro"},"PDH 38 / deuxième / appartement SGP (salle de bains)","refaire ou changer le bac de douche",null,"",null,null,null,null,null,null,null,null,null,null,null,null,null,null,null,null,null,null,null,null,null,null,null,null,null,null,null,null,null,null,null,null,null,null,null,null,null,null,null,null,null,null,null,null,null,null,null,null,null,null,null,null,null,null,null,null,null,null,null,null,null,null,null,null,null,null,null,null,null,null,null,null,null,null,null,null,null,null,null,null,null,null,null,null,null,null,null,null,null,null,null,null,null,null,"x"]
[{"$f":"IFERROR(OFFSET('TODO LIST'!$G$1,MATCH(Table4[[#This Row],[localisation]]& \" \" &Table4[[#This Row],[constat/projet/entretien]],'TODO LIST'!G:G,0)-1,-2,,),\"\")","v":0},"ITTRE / Extérieur / abords des bâtiments","barrière en mauvais état, à refaire",null,"",null,null,null,null,null,null,null,null,null,null,null,null,null,null,null,null,null,null,null,null,null,null,null,null,null,null,null,null,null,null,null,null,null,null,null,null,null,null,null,null,null,null,null,null,null,null,null,null,null,null,null,null,null,null,null,null,null,null,null,null,null,null,null,null,null,null,null,null,null,null,null,null,null,null,null,null,null,null,null,null,null,null,null,null,null,null,null,null,null,null,null,null,null,null,"x"]
[{"$f":"IFERROR(OFFSET('TODO LIST'!$G$1,MATCH(Table4[[#This Row],[localisation]]& \" \" &Table4[[#This Row],[constat/projet/entretien]],'TODO LIST'!G:G,0)-1,-2,,),\"\")","v":0},"ITTRE / Intérieur / réfectoire","idée de faire un étage pour gagner en place",null,"",null,null,null,null,null,null,null,null,null,null,null,null,null,null,null,null,null,null,null,null,null,null,null,null,null,null,null,null,null,null,null,null,null,null,null,null,null,null,null,null,null,null,null,null,null,null,null,null,null,null,null,null,null,null,null,null,null,null,null,null,null,null,null,null,null,null,null,null,null,null,null,null,null,null,null,null,null,null,null,null,null,null,null,null,null,null,null,null,null,null,null,null,null,null,"x"]
[{"$f":"IFERROR(OFFSET('TODO LIST'!$G$1,MATCH(Table4[[#This Row],[localisation]]& \" \" &Table4[[#This Row],[constat/projet/entretien]],'TODO LIST'!G:G,0)-1,-2,,),\"\")","v":0},"ITTRE / Intérieur / sanitaires","besoin de désamianter ?",null,"",null,null,null,null,null,null,null,null,null,null,null,null,null,null,null,null,null,null,null,null,null,null,null,null,null,null,null,null,null,null,null,null,null,null,null,null,null,null,null,null,null,null,null,null,null,null,null,null,null,null,null,null,null,null,null,null,null,null,null,null,null,null,null,null,null,null,null,null,null,null,null,null,null,null,null,null,null,null,null,null,null,null,null,null,null,null,null,null,null,null,null,null,null,null,"x"]
[{"$f":"IFERROR(OFFSET('TODO LIST'!$G$1,MATCH(Table4[[#This Row],[localisation]]& \" \" &Table4[[#This Row],[constat/projet/entretien]],'TODO LIST'!G:G,0)-1,-2,,),\"\")","v":0},"ITTRE / Intérieur / sanitaires","retaper les douches et wc",null,"",null,null,null,null,null,null,null,null,null,null,null,null,null,null,null,null,null,null,null,null,null,null,null,null,null,null,null,null,null,null,null,null,null,null,null,null,null,null,null,null,null,null,null,null,null,null,null,null,null,null,null,null,null,null,null,null,null,null,null,null,null,null,null,null,null,null,null,null,null,null,null,null,null,null,null,null,null,null,null,null,null,null,null,null,null,null,null,null,null,null,null,null,null,null,"x"]
[{"$f":"IFERROR(OFFSET('TODO LIST'!$G$1,MATCH(Table4[[#This Row],[localisation]]& \" \" &Table4[[#This Row],[constat/projet/entretien]],'TODO LIST'!G:G,0)-1,-2,,),\"\")","v":0},"PDH 38 / Rez / pièce à rue","changer les chassis",null,"",null,null,null,null,null,null,null,null,null,null,null,null,null,null,null,null,null,null,null,null,null,null,null,null,null,null,null,null,null,null,null,null,null,null,null,null,null,null,null,null,null,null,null,null,null,null,null,null,null,null,null,null,null,null,null,null,null,null,null,null,null,null,null,null,null,null,null,null,null,null,null,null,null,null,null,null,null,null,null,null,null,null,null,null,null,null,null,null,null,null,null,null,null,null,"x"]
[{"$f":"IFERROR(OFFSET('TODO LIST'!$G$1,MATCH(Table4[[#This Row],[localisation]]& \" \" &Table4[[#This Row],[constat/projet/entretien]],'TODO LIST'!G:G,0)-1,-2,,),\"\")","v":0},"PDH 38 / Premier / menuiserie","APPART : changer les chassis",null,"",null,null,null,null,null,null,null,null,null,null,null,null,null,null,null,null,null,null,null,null,null,null,null,null,null,null,null,null,null,null,null,null,null,null,null,null,null,null,null,null,null,null,null,null,null,null,null,null,null,null,null,null,null,null,null,null,null,null,null,null,null,null,null,null,null,null,null,null,null,null,null,null,null,null,null,null,null,null,null,null,null,null,null,null,null,null,null,null,null,null,null,null,null,null,"x"]
[{"$f":"IFERROR(OFFSET('TODO LIST'!$G$1,MATCH(Table4[[#This Row],[localisation]]& \" \" &Table4[[#This Row],[constat/projet/entretien]],'TODO LIST'!G:G,0)-1,-2,,),\"\")","v":0},"PDH 38 / Premier / autre","APPART : traiter les sols",null,"",null,null,null,null,null,null,null,null,null,null,null,null,null,null,null,null,null,null,null,null,null,null,null,null,null,null,null,null,null,null,null,null,null,null,null,null,null,null,null,null,null,null,null,null,null,null,null,null,null,null,null,null,null,null,null,null,null,null,null,null,null,null,null,null,null,null,null,null,null,null,null,null,null,null,null,null,null,null,null,null,null,null,null,null,null,null,null,null,null,null,null,null,null,null,"x"]
[{"$f":"IFERROR(OFFSET('TODO LIST'!$G$1,MATCH(Table4[[#This Row],[localisation]]& \" \" &Table4[[#This Row],[constat/projet/entretien]],'TODO LIST'!G:G,0)-1,-2,,),\"\")","v":0},"PDH 38 / Premier / appartement (cuisine)","APPART : carreler la cuisine",null,"",null,null,null,null,null,null,null,null,null,null,null,null,null,null,null,null,null,null,null,null,null,null,null,null,null,null,null,null,null,null,null,null,null,null,null,null,null,null,null,null,null,null,null,null,null,null,null,null,null,null,null,null,null,null,null,null,null,null,null,null,null,null,null,null,null,null,null,null,null,null,null,null,null,null,null,null,null,null,null,null,null,null,null,null,null,null,null,null,null,null,null,null,null,null,"x"]
[{"$f":"IFERROR(OFFSET('TODO LIST'!$G$1,MATCH(Table4[[#This Row],[localisation]]& \" \" &Table4[[#This Row],[constat/projet/entretien]],'TODO LIST'!G:G,0)-1,-2,,),\"\")","v":0},"PDH 38 / troisième / projet","PROJET 3e : isoler la toiture",null,"",null,null,null,null,null,null,null,null,null,null,null,null,null,null,null,null,null,null,null,null,null,null,null,null,null,null,null,null,null,null,null,null,null,null,null,null,null,null,null,null,null,null,null,null,null,null,null,null,null,null,null,null,null,null,null,null,null,null,null,null,null,null,null,null,null,null,null,null,null,null,null,null,null,null,null,null,null,null,null,null,null,null,null,null,null,null,null,null,null,null,null,null,null,null,"x"]
[{"$f":"IFERROR(OFFSET('TODO LIST'!$G$1,MATCH(Table4[[#This Row],[localisation]]& \" \" &Table4[[#This Row],[constat/projet/entretien]],'TODO LIST'!G:G,0)-1,-2,,),\"\")","v":0},"PDH 38 / troisième / projet","PROJET 3e : refaire l'électricité",null,"",null,null,null,null,null,null,null,null,null,null,null,null,null,null,null,null,null,null,null,null,null,null,null,null,null,null,null,null,null,null,null,null,null,null,null,null,null,null,null,null,null,null,null,null,null,null,null,null,null,null,null,null,null,null,null,null,null,null,null,null,null,null,null,null,null,null,null,null,null,null,null,null,null,null,null,null,null,null,null,null,null,null,null,null,null,null,null,null,null,null,null,null,null,null,"x"]
[{"$f":"IFERROR(OFFSET('TODO LIST'!$G$1,MATCH(Table4[[#This Row],[localisation]]& \" \" &Table4[[#This Row],[constat/projet/entretien]],'TODO LIST'!G:G,0)-1,-2,,),\"\")","v":0},"PDH 38 / troisième / projet","PROJET 3e : installer une cuisine",null,"",null,null,null,null,null,null,null,null,null,null,null,null,null,null,null,null,null,null,null,null,null,null,null,null,null,null,null,null,null,null,null,null,null,null,null,null,null,null,null,null,null,null,null,null,null,null,null,null,null,null,null,null,null,null,null,null,null,null,null,null,null,null,null,null,null,null,null,null,null,null,null,null,null,null,null,null,null,null,null,null,null,null,null,null,null,null,null,null,null,null,null,null,null,null,"x"]
[{"$f":"IFERROR(OFFSET('TODO LIST'!$G$1,MATCH(Table4[[#This Row],[localisation]]& \" \" &Table4[[#This Row],[constat/projet/entretien]],'TODO LIST'!G:G,0)-1,-2,,),\"\")","v":0},"PDH 38 / troisième / projet","PROJET 3e : installer une salle de bain",null,"",null,null,null,null,null,null,null,null,null,null,null,null,null,null,null,null,null,null,null,null,null,null,null,null,null,null,null,null,null,null,null,null,null,null,null,null,null,null,null,null,null,null,null,null,null,null,null,null,null,null,null,null,null,null,null,null,null,null,null,null,null,null,null,null,null,null,null,null,null,null,null,null,null,null,null,null,null,null,null,null,null,null,null,null,null,null,null,null,null,null,null,null,null,null,"x"]
[{"$f":"IFERROR(OFFSET('TODO LIST'!$G$1,MATCH(Table4[[#This Row],[localisation]]& \" \" &Table4[[#This Row],[constat/projet/entretien]],'TODO LIST'!G:G,0)-1,-2,,),\"\")","v":"roro"},"PDH 39 / caves / chaudière et chauffage","chaudière embouée",null,"",null,null,null,null,null,null,null,null,null,null,null,null,null,null,null,null,null,null,null,null,null,null,null,null,null,null,null,null,null,null,null,null,null,null,null,null,null,null,null,null,null,null,null,null,null,null,null,null,null,null,null,null,null,null,null,null,null,null,null,null,null,null,null,null,null,null,null,null,null,null,null,null,null,null,null,null,null,null,null,null,null,null,null,null,null,null,null,null,null,null,null,null,null,null,"x"]
[{"$f":"IFERROR(OFFSET('TODO LIST'!$G$1,MATCH(Table4[[#This Row],[localisation]]& \" \" &Table4[[#This Row],[constat/projet/entretien]],'TODO LIST'!G:G,0)-1,-2,,),\"\")","v":0},"PDH 39 / Tout le bâtiment / travail administratif","projet auberge de jeunesse ?",null,"",null,null,null,null,null,null,null,null,null,null,null,null,null,null,null,null,null,null,null,null,null,null,null,null,null,null,null,null,null,null,null,null,null,null,null,null,null,null,null,null,null,null,null,null,null,null,null,null,null,null,null,null,null,null,null,null,null,null,null,null,null,null,null,null,null,null,null,null,null,null,null,null,null,null,null,null,null,null,null,null,null,null,null,null,null,null,null,null,null,null,null,null,null,null,"x"]
[{"$f":"IFERROR(OFFSET('TODO LIST'!$G$1,MATCH(Table4[[#This Row],[localisation]]& \" \" &Table4[[#This Row],[constat/projet/entretien]],'TODO LIST'!G:G,0)-1,-2,,),\"\")","v":0},"PDH 39 / garages / garage SGP","remonter le frigo dans l'appart du 1er",null,"",null,null,null,null,null,null,null,null,null,null,null,null,null,null,null,null,null,null,null,null,null,null,null,null,null,null,null,null,null,null,null,null,null,null,null,null,null,null,null,null,null,null,null,null,null,null,null,null,null,null,null,null,null,null,null,null,null,null,null,null,null,null,null,null,null,null,null,null,null,null,null,null,null,null,null,null,null,null,null,null,null,null,null,null,null,null,null,null,null,null,null,null,null,null,"x"]
[{"$f":"IFERROR(OFFSET('TODO LIST'!$G$1,MATCH(Table4[[#This Row],[localisation]]& \" \" &Table4[[#This Row],[constat/projet/entretien]],'TODO LIST'!G:G,0)-1,-2,,),\"\")","v":0},"PDH 39 / premier / cuisine","repeindre et rafraichir + nouveau frigo",null,"",null,null,null,null,null,null,null,null,null,null,null,null,null,null,null,null,null,null,null,null,null,null,null,null,null,null,null,null,null,null,null,null,null,null,null,null,null,null,null,null,null,null,null,null,null,null,null,null,null,null,null,null,null,null,null,null,null,null,null,null,null,null,null,null,null,null,null,null,null,null,null,null,null,null,null,null,null,null,null,null,null,null,null,null,null,null,null,null,null,null,null,null,null,null,"x"]
[{"$f":"IFERROR(OFFSET('TODO LIST'!$G$1,MATCH(Table4[[#This Row],[localisation]]& \" \" &Table4[[#This Row],[constat/projet/entretien]],'TODO LIST'!G:G,0)-1,-2,,),\"\")","v":0},"PDH 39 / premier / bureau RH, compta et affi","repeindre",null,"",null,null,null,null,null,null,null,null,null,null,null,null,null,null,null,null,null,null,null,null,null,null,null,null,null,null,null,null,null,null,null,null,null,null,null,null,null,null,null,null,null,null,null,null,null,null,null,null,null,null,null,null,null,null,null,null,null,null,null,null,null,null,null,null,null,null,null,null,null,null,null,null,null,null,null,null,null,null,null,null,null,null,null,null,null,null,null,null,null,null,null,null,null,null,"x"]
[{"$f":"IFERROR(OFFSET('TODO LIST'!$G$1,MATCH(Table4[[#This Row],[localisation]]& \" \" &Table4[[#This Row],[constat/projet/entretien]],'TODO LIST'!G:G,0)-1,-2,,),\"\")","v":0},"HEURE / La Carlingue / général","faire une nouvelle affiche infirmerie",null,"",null,null,null,null,null,null,null,null,null,null,null,null,null,null,null,null,null,null,null,null,null,null,null,null,null,null,null,null,null,null,null,null,null,null,null,null,null,null,null,null,null,null,null,null,null,null,null,null,null,null,null,null,null,null,null,null,null,null,null,null,null,null,null,null,null,null,null,null,null,null,null,null,null,null,null,null,null,null,null,null,null,null,null,null,null,null,null,null,null,null,null,null,null,null,"x"]
[{"$f":"IFERROR(OFFSET('TODO LIST'!$G$1,MATCH(Table4[[#This Row],[localisation]]& \" \" &Table4[[#This Row],[constat/projet/entretien]],'TODO LIST'!G:G,0)-1,-2,,),\"\")","v":0},"HEURE / Le Grand Chalet / toiture","infiltrations côté parking","placer une corniche ou une grande marquise en dur","",null,null,null,null,null,null,null,null,null,null,null,null,null,null,null,null,null,null,null,null,null,null,null,null,null,null,null,null,null,null,null,null,null,null,null,null,null,null,null,null,null,null,null,null,null,null,null,null,null,null,null,null,null,null,null,null,null,null,null,null,null,null,null,null,null,null,null,null,null,null,null,null,null,null,null,null,null,null,null,null,null,null,null,null,null,null,null,null,null,null,null,null,null,null,"x"]
[{"$f":"IFERROR(OFFSET('TODO LIST'!$G$1,MATCH(Table4[[#This Row],[localisation]]& \" \" &Table4[[#This Row],[constat/projet/entretien]],'TODO LIST'!G:G,0)-1,-2,,),\"\")","v":0},"HEURE / Le Grand Chalet / salle du sous-sol","humidité dans le mur sous la rampe d'accès à la terrasse","faire une petite diguette le long et sous de la rampe d'accès","",null,null,null,null,null,null,null,null,null,null,null,null,null,null,null,null,null,null,null,null,null,null,null,null,null,null,null,null,null,null,null,null,null,null,null,null,null,null,null,null,null,null,null,null,null,null,null,null,null,null,null,null,null,null,null,null,null,null,null,null,null,null,null,null,null,null,null,null,null,null,null,null,null,null,null,null,null,null,null,null,null,null,null,null,null,null,null,null,null,null,null,null,null,null,"x"]
[{"$f":"IFERROR(OFFSET('TODO LIST'!$G$1,MATCH(Table4[[#This Row],[localisation]]& \" \" &Table4[[#This Row],[constat/projet/entretien]],'TODO LIST'!G:G,0)-1,-2,,),\"\")","v":0},"HEURE / Ensemble du domaine / toilettes sèches","projet toilettes sèches : quelle gestion ?",null,"",null,null,null,null,null,null,null,null,null,null,null,null,null,null,null,null,null,null,null,null,null,null,null,null,null,null,null,null,null,null,null,null,null,null,null,null,null,null,null,null,null,null,null,null,null,null,null,null,null,null,null,null,null,null,null,null,null,null,null,null,null,null,null,null,null,null,null,null,null,null,null,null,null,null,null,null,null,null,null,null,null,null,null,null,null,null,null,null,null,null,null,null,null,null,"x"]
[{"$f":"IFERROR(OFFSET('TODO LIST'!$G$1,MATCH(Table4[[#This Row],[localisation]]& \" \" &Table4[[#This Row],[constat/projet/entretien]],'TODO LIST'!G:G,0)-1,-2,,),\"\")","v":"milos"},"HEURE / Ensemble du domaine / travail administratif","trouver ferraileur pour évacuer le vieux congel",null,"",null,null,null,null,null,null,null,null,null,null,null,null,null,null,null,null,null,null,null,null,null,null,null,null,null,null,null,null,null,null,null,null,null,null,null,null,null,null,null,null,null,null,null,null,null,null,null,null,null,null,null,null,null,null,null,null,null,null,null,null,null,null,null,null,null,null,null,null,null,null,null,null,null,null,null,null,null,null,null,null,null,null,null,null,null,null,null,null,null,null,null,null,null,null,"x"]
[{"$f":"IFERROR(OFFSET('TODO LIST'!$G$1,MATCH(Table4[[#This Row],[localisation]]& \" \" &Table4[[#This Row],[constat/projet/entretien]],'TODO LIST'!G:G,0)-1,-2,,),\"\")","v":0},"HEURE / Le Grand Chalet / chaudière et chauffage","infiltrations, local à mazout se remplit d'eau",null,"",null,null,null,null,null,null,null,null,null,null,null,null,null,null,null,null,null,null,null,null,null,null,null,null,null,null,null,null,null,null,null,null,null,null,null,null,null,null,null,null,null,null,null,null,null,null,null,null,null,null,null,null,null,null,null,null,null,null,null,null,null,null,null,null,null,null,null,null,null,null,null,null,null,null,null,null,null,null,null,null,null,null,null,null,null,null,null,null,null,null,null,null,null,null,"x"]
[{"$f":"IFERROR(OFFSET('TODO LIST'!$G$1,MATCH(Table4[[#This Row],[localisation]]& \" \" &Table4[[#This Row],[constat/projet/entretien]],'TODO LIST'!G:G,0)-1,-2,,),\"\")","v":0},"HEURE / Le Grand Chalet / menuiserie","réparer les oscillobattants des portes fenetres en bas",null,"",null,null,null,null,null,null,null,null,null,null,null,null,null,null,null,null,null,null,null,null,null,null,null,null,null,null,null,null,null,null,null,null,null,null,null,null,null,null,null,null,null,null,null,null,null,null,null,null,null,null,null,null,null,null,null,null,null,null,null,null,null,null,null,null,null,null,null,null,null,null,null,null,null,null,null,null,null,null,null,null,null,null,null,null,null,null,null,null,null,null,null,null,null,null,"x"]
[{"$f":"IFERROR(OFFSET('TODO LIST'!$G$1,MATCH(Table4[[#This Row],[localisation]]& \" \" &Table4[[#This Row],[constat/projet/entretien]],'TODO LIST'!G:G,0)-1,-2,,),\"\")","v":0},"HEURE / Le Grand Chalet / salle du sous-sol","isoler les buses de chauffage pour stopper la déperdition de chaleur",null,"",null,null,null,null,null,null,null,null,null,null,null,null,null,null,null,null,null,null,null,null,null,null,null,null,null,null,null,null,null,null,null,null,null,null,null,null,null,null,null,null,null,null,null,null,null,null,null,null,null,null,null,null,null,null,null,null,null,null,null,null,null,null,null,null,null,null,null,null,null,null,null,null,null,null,null,null,null,null,null,null,null,null,null,null,null,null,null,null,null,null,null,null,null,null,"x"]
[{"$f":"IFERROR(OFFSET('TODO LIST'!$G$1,MATCH(Table4[[#This Row],[localisation]]& \" \" &Table4[[#This Row],[constat/projet/entretien]],'TODO LIST'!G:G,0)-1,-2,,),\"\")","v":0},"HEURE / Le Grand Chalet / cuisine","hotte : placer un multiprise et isoler le trou de la hotte",null,"",null,null,null,null,null,null,null,null,null,null,null,null,null,null,null,null,null,null,null,null,null,null,null,null,null,null,null,null,null,null,null,null,null,null,null,null,null,null,null,null,null,null,null,null,null,null,null,null,null,null,null,null,null,null,null,null,null,null,null,null,null,null,null,null,null,null,null,null,null,null,null,null,null,null,null,null,null,null,null,null,null,null,null,null,null,null,null,null,null,null,null,null,null,null,"x"]
[{"$f":"IFERROR(OFFSET('TODO LIST'!$G$1,MATCH(Table4[[#This Row],[localisation]]& \" \" &Table4[[#This Row],[constat/projet/entretien]],'TODO LIST'!G:G,0)-1,-2,,),\"\")","v":0},"HEURE / Terrains / Daguet","lancer la location",null,"",null,null,null,null,null,null,null,null,null,null,null,null,null,null,null,null,null,null,null,null,null,null,null,null,null,null,null,null,null,null,null,null,null,null,null,null,null,null,null,null,null,null,null,null,null,null,null,null,null,null,null,null,null,null,null,null,null,null,null,null,null,null,null,null,null,null,null,null,null,null,null,null,null,null,null,null,null,null,null,null,null,null,null,null,null,null,null,null,null,null,null,null,null,null,"x"]
[{"$f":"IFERROR(OFFSET('TODO LIST'!$G$1,MATCH(Table4[[#This Row],[localisation]]& \" \" &Table4[[#This Row],[constat/projet/entretien]],'TODO LIST'!G:G,0)-1,-2,,),\"\")","v":0},"HEURE / ancien bloc sanitaire / projet","définir sa nouvelle affectation : nouveau bloc sanitaire \"léger\", kot à outils, etc ?",null,"",null,null,null,null,null,null,null,null,null,null,null,null,null,null,null,null,null,null,null,null,null,null,null,null,null,null,null,null,null,null,null,null,null,null,null,null,null,null,null,null,null,null,null,null,null,null,null,null,null,null,null,null,null,null,null,null,null,null,null,null,null,null,null,null,null,null,null,null,null,null,null,null,null,null,null,null,null,null,null,null,null,null,null,null,null,null,null,null,null,null,null,null,null,null,"x"]
[{"$f":"IFERROR(OFFSET('TODO LIST'!$G$1,MATCH(Table4[[#This Row],[localisation]]& \" \" &Table4[[#This Row],[constat/projet/entretien]],'TODO LIST'!G:G,0)-1,-2,,),\"\")","v":0},"HEURE / La Carlingue / abords extérieurs","terrassement et remblayage du parking",null,"",null,null,null,null,null,null,null,null,null,null,null,null,null,null,null,null,null,null,null,null,null,null,null,null,null,null,null,null,null,null,null,null,null,null,null,null,null,null,null,null,null,null,null,null,null,null,null,null,null,null,null,null,null,null,null,null,null,null,null,null,null,null,null,null,null,null,null,null,null,null,null,null,null,null,null,null,null,null,null,null,null,null,null,null,null,null,null,null,null,null,null,null,null,null,"x"]
[{"$f":"IFERROR(OFFSET('TODO LIST'!$G$1,MATCH(Table4[[#This Row],[localisation]]& \" \" &Table4[[#This Row],[constat/projet/entretien]],'TODO LIST'!G:G,0)-1,-2,,),\"\")","v":0},"HEURE / La Carlingue / abords extérieurs","faire un chemin praticable (ou terrasse) vers le bureau et toilettes",null,"",null,null,null,null,null,null,null,null,null,null,null,null,null,null,null,null,null,null,null,null,null,null,null,null,null,null,null,null,null,null,null,null,null,null,null,null,null,null,null,null,null,null,null,null,null,null,null,null,null,null,null,null,null,null,null,null,null,null,null,null,null,null,null,null,null,null,null,null,null,null,null,null,null,null,null,null,null,null,null,null,null,null,null,null,null,null,null,null,null,null,null,null,null,null,"x"]
[{"$f":"IFERROR(OFFSET('TODO LIST'!$G$1,MATCH(Table4[[#This Row],[localisation]]& \" \" &Table4[[#This Row],[constat/projet/entretien]],'TODO LIST'!G:G,0)-1,-2,,),\"\")","v":0},"HEURE / Ensemble du domaine / bois","nouvelles plantations",null,"2016-10-01",null,null,null,null,null,null,null,null,null,null,null,null,null,null,null,null,null,null,null,null,null,null,null,null,null,null,null,null,null,null,null,null,null,null,null,null,null,null,null,null,null,null,null,null,null,null,null,null,null,null,null,null,null,null,null,null,null,null,null,null,null,null,null,null,null,null,null,null,null,null,null,null,null,null,null,null,null,null,null,null,null,null,null,null,null,null,null,null,null,null,null,null,null,null,"x"]
[{"$f":"IFERROR(OFFSET('TODO LIST'!$G$1,MATCH(Table4[[#This Row],[localisation]]& \" \" &Table4[[#This Row],[constat/projet/entretien]],'TODO LIST'!G:G,0)-1,-2,,),\"\")","v":0},"PDH 39 / Tout le bâtiment / cour","cour défoncée",null,"",null,null,null,null,null,null,null,null,null,null,null,null,null,null,null,null,null,null,null,null,null,null,null,null,null,null,null,null,null,null,null,null,null,null,null,null,null,null,null,null,null,null,null,null,null,null,null,null,null,null,null,null,null,null,null,null,null,null,null,null,null,null,null,null,null,null,null,null,null,null,null,null,null,null,null,null,null,null,null,null,null,null,null,null,null,null,null,null,null,null,null,null,null,null,"x"]
[{"$f":"IFERROR(OFFSET('TODO LIST'!$G$1,MATCH(Table4[[#This Row],[localisation]]& \" \" &Table4[[#This Row],[constat/projet/entretien]],'TODO LIST'!G:G,0)-1,-2,,),\"\")","v":0},"PDH 39 / garages / sanitaire","repeindre et rafraichir les WC",null,"",null,null,null,null,null,null,null,null,null,null,null,null,null,null,null,null,null,null,null,null,null,null,null,null,null,null,null,null,null,null,null,null,null,null,null,null,null,null,null,null,null,null,null,null,null,null,null,null,null,null,null,null,null,null,null,null,null,null,null,null,null,null,null,null,null,null,null,null,null,null,null,null,null,null,null,null,null,null,null,null,null,null,null,null,null,null,null,null,null,null,null,null,null,null,"x"]
[{"$f":"IFERROR(OFFSET('TODO LIST'!$G$1,MATCH(Table4[[#This Row],[localisation]]& \" \" &Table4[[#This Row],[constat/projet/entretien]],'TODO LIST'!G:G,0)-1,-2,,),\"\")","v":0},"PDH 39 / premier / bureau SF","insonoriser le bureau",null,"",null,null,null,null,null,null,null,null,null,null,null,null,null,null,null,null,null,null,null,null,null,null,null,null,null,null,null,null,null,null,null,null,null,null,null,null,null,null,null,null,null,null,null,null,null,null,null,null,null,null,null,null,null,null,null,null,null,null,null,null,null,null,null,null,null,null,null,null,null,null,null,null,null,null,null,null,null,null,null,null,null,null,null,null,null,null,null,null,null,null,null,null,null,null,"x"]
[{"$f":"IFERROR(OFFSET('TODO LIST'!$G$1,MATCH(Table4[[#This Row],[localisation]]& \" \" &Table4[[#This Row],[constat/projet/entretien]],'TODO LIST'!G:G,0)-1,-2,,),\"\")","v":0},"PDH 39 / Tout le bâtiment / toiture","refaire le roafing du grand toit + celui de roro",null,"",null,null,null,null,null,null,null,null,null,null,null,null,null,null,null,null,null,null,null,null,null,null,null,null,null,null,null,null,null,null,null,null,null,null,null,null,null,null,null,null,null,null,null,null,null,null,null,null,null,null,null,null,null,null,null,null,null,null,null,null,null,null,null,null,null,null,null,null,null,null,null,null,null,null,null,null,null,null,null,null,null,null,null,null,null,null,null,null,null,null,null,null,null,null,"x"]
[{"$f":"IFERROR(OFFSET('TODO LIST'!$G$1,MATCH(Table4[[#This Row],[localisation]]& \" \" &Table4[[#This Row],[constat/projet/entretien]],'TODO LIST'!G:G,0)-1,-2,,),\"\")","v":0},"PDH 39 / Tout le bâtiment / toiture","transformer le toit plat au-dessus de la cuisine en terrasse",null,"",null,null,null,null,null,null,null,null,null,null,null,null,null,null,null,null,null,null,null,null,null,null,null,null,null,null,null,null,null,null,null,null,null,null,null,null,null,null,null,null,null,null,null,null,null,null,null,null,null,null,null,null,null,null,null,null,null,null,null,null,null,null,null,null,null,null,null,null,null,null,null,null,null,null,null,null,null,null,null,null,null,null,null,null,null,null,null,null,null,null,null,null,null,null,"x"]
[{"$f":"IFERROR(OFFSET('TODO LIST'!$G$1,MATCH(Table4[[#This Row],[localisation]]& \" \" &Table4[[#This Row],[constat/projet/entretien]],'TODO LIST'!G:G,0)-1,-2,,),\"\")","v":0},"PDH 39 / premier / sanitaires","rafraichir les WC",null,"",null,null,null,null,null,null,null,null,null,null,null,null,null,null,null,null,null,null,null,null,null,null,null,null,null,null,null,null,null,null,null,null,null,null,null,null,null,null,null,null,null,null,null,null,null,null,null,null,null,null,null,null,null,null,null,null,null,null,null,null,null,null,null,null,null,null,null,null,null,null,null,null,null,null,null,null,null,null,null,null,null,null,null,null,null,null,null,null,null,null,null,null,null,null,"x"]
[{"$f":"IFERROR(OFFSET('TODO LIST'!$G$1,MATCH(Table4[[#This Row],[localisation]]& \" \" &Table4[[#This Row],[constat/projet/entretien]],'TODO LIST'!G:G,0)-1,-2,,),\"\")","v":0},"PDH 39 / premier / salle biblio-costumothèque","améliorer les espaces de rangement",null,"",null,null,null,null,null,null,null,null,null,null,null,null,null,null,null,null,null,null,null,null,null,null,null,null,null,null,null,null,null,null,null,null,null,null,null,null,null,null,null,null,null,null,null,null,null,null,null,null,null,null,null,null,null,null,null,null,null,null,null,null,null,null,null,null,null,null,null,null,null,null,null,null,null,null,null,null,null,null,null,null,null,null,null,null,null,null,null,null,null,null,null,null,null,null,"x"]
[{"$f":"IFERROR(OFFSET('TODO LIST'!$G$1,MATCH(Table4[[#This Row],[localisation]]& \" \" &Table4[[#This Row],[constat/projet/entretien]],'TODO LIST'!G:G,0)-1,-2,,),\"\")","v":0},"PDH 39 / rez / Magascout","projet de peindre une fresque sur la façade du Magascout",null,"",null,null,null,null,null,null,null,null,null,null,null,null,null,null,null,null,null,null,null,null,null,null,null,null,null,null,null,null,null,null,null,null,null,null,null,null,null,null,null,null,null,null,null,null,null,null,null,null,null,null,null,null,null,null,null,null,null,null,null,null,null,null,null,null,null,null,null,null,null,null,null,null,null,null,null,null,null,null,null,null,null,null,null,null,null,null,null,null,null,null,null,null,null,null,"x"]
[{"$f":"IFERROR(OFFSET('TODO LIST'!$G$1,MATCH(Table4[[#This Row],[localisation]]& \" \" &Table4[[#This Row],[constat/projet/entretien]],'TODO LIST'!G:G,0)-1,-2,,),\"\")","v":0},"HEURE / Le Grand Chalet / abords extérieurs","terrassement et remblayage du parking",null,"",null,null,null,null,null,null,null,null,null,null,null,null,null,null,null,null,null,null,null,null,null,null,null,null,null,null,null,null,null,null,null,null,null,null,null,null,null,null,null,null,null,null,null,null,null,null,null,null,null,null,null,null,null,null,null,null,null,null,null,null,null,null,null,null,null,null,null,null,null,null,null,null,null,null,null,null,null,null,null,null,null,null,null,null,null,null,null,null,null,null,null,null,null,null,"x"]
[{"$f":"IFERROR(OFFSET('TODO LIST'!$G$1,MATCH(Table4[[#This Row],[localisation]]& \" \" &Table4[[#This Row],[constat/projet/entretien]],'TODO LIST'!G:G,0)-1,-2,,),\"\")","v":0},"HEURE / Le Grand Chalet / abords extérieurs","réparer le cabanon",null,"",null,null,null,null,null,null,null,null,null,null,null,null,null,null,null,null,null,null,null,null,null,null,null,null,null,null,null,null,null,null,null,null,null,null,null,null,null,null,null,null,null,null,null,null,null,null,null,null,null,null,null,null,null,null,null,null,null,null,null,null,null,null,null,null,null,null,null,null,null,null,null,null,null,null,null,null,null,null,null,null,null,null,null,null,null,null,null,null,null,null,null,null,null,null,"x"]
[{"$f":"IFERROR(OFFSET('TODO LIST'!$G$1,MATCH(Table4[[#This Row],[localisation]]& \" \" &Table4[[#This Row],[constat/projet/entretien]],'TODO LIST'!G:G,0)-1,-2,,),\"\")","v":0},"HEURE / Le Grand Chalet / général","placer des grilles devant les arrivées d'air chaud + nettoyer",null,"",null,null,null,null,null,null,null,null,null,null,null,null,null,null,null,null,null,null,null,null,null,null,null,null,null,null,null,null,null,null,null,null,null,null,null,null,null,null,null,null,null,null,null,null,null,null,null,null,null,null,null,null,null,null,null,null,null,null,null,null,null,null,null,null,null,null,null,null,null,null,null,null,null,null,null,null,null,null,null,null,null,null,null,null,null,null,null,null,null,null,null,null,null,null,"x"]
[{"$f":"IFERROR(OFFSET('TODO LIST'!$G$1,MATCH(Table4[[#This Row],[localisation]]& \" \" &Table4[[#This Row],[constat/projet/entretien]],'TODO LIST'!G:G,0)-1,-2,,),\"\")","v":0},"HEURE / Le Grand Chalet / sanitaires","SDD F : placer ventilation en interne (pas vers l'extérieur)",null,"",null,null,null,null,null,null,null,null,null,null,null,null,null,null,null,null,null,null,null,null,null,null,null,null,null,null,null,null,null,null,null,null,null,null,null,null,null,null,null,null,null,null,null,null,null,null,null,null,null,null,null,null,null,null,null,null,null,null,null,null,null,null,null,null,null,null,null,null,null,null,null,null,null,null,null,null,null,null,null,null,null,null,null,null,null,null,null,null,null,null,null,null,null,null,"x"]
[{"$f":"IFERROR(OFFSET('TODO LIST'!$G$1,MATCH(Table4[[#This Row],[localisation]]& \" \" &Table4[[#This Row],[constat/projet/entretien]],'TODO LIST'!G:G,0)-1,-2,,),\"\")","v":0},"HEURE / Le Grand Chalet / sanitaires","SDD H : mettre des plintes",null,"",null,null,null,null,null,null,null,null,null,null,null,null,null,null,null,null,null,null,null,null,null,null,null,null,null,null,null,null,null,null,null,null,null,null,null,null,null,null,null,null,null,null,null,null,null,null,null,null,null,null,null,null,null,null,null,null,null,null,null,null,null,null,null,null,null,null,null,null,null,null,null,null,null,null,null,null,null,null,null,null,null,null,null,null,null,null,null,null,null,null,null,null,null,null,"x"]
[{"$f":"IFERROR(OFFSET('TODO LIST'!$G$1,MATCH(Table4[[#This Row],[localisation]]& \" \" &Table4[[#This Row],[constat/projet/entretien]],'TODO LIST'!G:G,0)-1,-2,,),\"\")","v":0},"HEURE / Le Grand Chalet / sanitaires","faire un coffrage au-dessus de l'éternite (WC)",null,"",null,null,null,null,null,null,null,null,null,null,null,null,null,null,null,null,null,null,null,null,null,null,null,null,null,null,null,null,null,null,null,null,null,null,null,null,null,null,null,null,null,null,null,null,null,null,null,null,null,null,null,null,null,null,null,null,null,null,null,null,null,null,null,null,null,null,null,null,null,null,null,null,null,null,null,null,null,null,null,null,null,null,null,null,null,null,null,null,null,null,null,null,null,null,"x"]
[{"$f":"IFERROR(OFFSET('TODO LIST'!$G$1,MATCH(Table4[[#This Row],[localisation]]& \" \" &Table4[[#This Row],[constat/projet/entretien]],'TODO LIST'!G:G,0)-1,-2,,),\"\")","v":0},"HEURE / Le Grand Chalet / sanitaires","carreler les murs des WC lorsque prob d'infiltration terrasse sera réglé",null,"",null,null,null,null,null,null,null,null,null,null,null,null,null,null,null,null,null,null,null,null,null,null,null,null,null,null,null,null,null,null,null,null,null,null,null,null,null,null,null,null,null,null,null,null,null,null,null,null,null,null,null,null,null,null,null,null,null,null,null,null,null,null,null,null,null,null,null,null,null,null,null,null,null,null,null,null,null,null,null,null,null,null,null,null,null,null,null,null,null,null,null,null,null,null,"x"]
[{"$f":"IFERROR(OFFSET('TODO LIST'!$G$1,MATCH(Table4[[#This Row],[localisation]]& \" \" &Table4[[#This Row],[constat/projet/entretien]],'TODO LIST'!G:G,0)-1,-2,,),\"\")","v":0},"HEURE / Le Grand Chalet / sanitaires","poser des cadres devant les trous vitrés (WC)",null,"",null,null,null,null,null,null,null,null,null,null,null,null,null,null,null,null,null,null,null,null,null,null,null,null,null,null,null,null,null,null,null,null,null,null,null,null,null,null,null,null,null,null,null,null,null,null,null,null,null,null,null,null,null,null,null,null,null,null,null,null,null,null,null,null,null,null,null,null,null,null,null,null,null,null,null,null,null,null,null,null,null,null,null,null,null,null,null,null,null,null,null,null,null,null,"x"]
[{"$f":"IFERROR(OFFSET('TODO LIST'!$G$1,MATCH(Table4[[#This Row],[localisation]]& \" \" &Table4[[#This Row],[constat/projet/entretien]],'TODO LIST'!G:G,0)-1,-2,,),\"\")","v":0},"HEURE / Le Grand Chalet / sanitaires","remettre de service le 4e wc",null,"",null,null,null,null,null,null,null,null,null,null,null,null,null,null,null,null,null,null,null,null,null,null,null,null,null,null,null,null,null,null,null,null,null,null,null,null,null,null,null,null,null,null,null,null,null,null,null,null,null,null,null,null,null,null,null,null,null,null,null,null,null,null,null,null,null,null,null,null,null,null,null,null,null,null,null,null,null,null,null,null,null,null,null,null,null,null,null,null,null,null,null,null,null,null,"x"]
[{"$f":"IFERROR(OFFSET('TODO LIST'!$G$1,MATCH(Table4[[#This Row],[localisation]]& \" \" &Table4[[#This Row],[constat/projet/entretien]],'TODO LIST'!G:G,0)-1,-2,,),\"\")","v":0},"HEURE / Terrains / général","enlever les bornes d'arrivée électrique",null,"",null,null,null,null,null,null,null,null,null,null,null,null,null,null,null,null,null,null,null,null,null,null,null,null,null,null,null,null,null,null,null,null,null,null,null,null,null,null,null,null,null,null,null,null,null,null,null,null,null,null,null,null,null,null,null,null,null,null,null,null,null,null,null,null,null,null,null,null,null,null,null,null,null,null,null,null,null,null,null,null,null,null,null,null,null,null,null,null,null,null,null,null,null,null,"x"]
[{"$f":"IFERROR(OFFSET('TODO LIST'!$G$1,MATCH(Table4[[#This Row],[localisation]]& \" \" &Table4[[#This Row],[constat/projet/entretien]],'TODO LIST'!G:G,0)-1,-2,,),\"\")","v":0},"HEURE / Terrains / Epicéas","planter une haie pour isoler et mettre à l'ombre le terrain",null,"",null,null,null,null,null,null,null,null,null,null,null,null,null,null,null,null,null,null,null,null,null,null,null,null,null,null,null,null,null,null,null,null,null,null,null,null,null,null,null,null,null,null,null,null,null,null,null,null,null,null,null,null,null,null,null,null,null,null,null,null,null,null,null,null,null,null,null,null,null,null,null,null,null,null,null,null,null,null,null,null,null,null,null,null,null,null,null,null,null,null,null,null,null,null,"x"]
[{"$f":"IFERROR(OFFSET('TODO LIST'!$G$1,MATCH(Table4[[#This Row],[localisation]]& \" \" &Table4[[#This Row],[constat/projet/entretien]],'TODO LIST'!G:G,0)-1,-2,,),\"\")","v":0},"HEURE / La Carlingue / réfectoire","ajouter un plan de travail",null,"",null,null,null,null,null,null,null,null,null,null,null,null,null,null,null,null,null,null,null,null,null,null,null,null,null,null,null,null,null,null,null,null,null,null,null,null,null,null,null,null,null,null,null,null,null,null,null,null,null,null,null,null,null,null,null,null,null,null,null,null,null,null,null,null,null,null,null,null,null,null,null,null,null,null,null,null,null,null,null,null,null,null,null,null,null,null,null,null,null,null,null,null,null,null,"x"]
[{"$f":"IFERROR(OFFSET('TODO LIST'!$G$1,MATCH(Table4[[#This Row],[localisation]]& \" \" &Table4[[#This Row],[constat/projet/entretien]],'TODO LIST'!G:G,0)-1,-2,,),\"\")","v":0},"PDH 38 / Premier / appartement (salle de Bains)","APPART : réaménager la sdb (nouv bain et lavabo, bac de douche, repeindre, etc.)",null,"",null,null,null,null,null,null,null,null,null,null,null,null,null,null,null,null,null,null,null,null,null,null,null,null,null,null,null,null,null,null,null,null,null,null,null,null,null,null,null,null,null,null,null,null,null,null,null,null,null,null,null,null,null,null,null,null,null,null,null,null,null,null,null,null,null,null,null,null,null,null,null,null,null,null,null,null,null,null,null,null,null,null,null,null,null,null,null,null,null,null,null,null,null,null,"x"]
[{"$f":"IFERROR(OFFSET('TODO LIST'!$G$1,MATCH(Table4[[#This Row],[localisation]]& \" \" &Table4[[#This Row],[constat/projet/entretien]],'TODO LIST'!G:G,0)-1,-2,,),\"\")","v":"greg"},"PDH 39 / premier / cuisine","améliorer les conditions d'utilisation de la cuisine + commu",null,"",null,null,null,null,null,null,null,null,null,null,null,null,null,null,null,null,null,null,null,null,null,null,null,null,null,null,null,null,null,null,null,null,null,null,null,null,null,null,null,null,null,null,null,null,null,null,null,null,null,null,null,null,null,null,null,null,null,null,null,null,null,null,null,null,null,null,null,null,null,null,null,null,null,null,null,null,null,null,null,null,null,null,null,null,null,null,null,null,null,null,null,null,null,null,"x"]
[{"$f":"IFERROR(OFFSET('TODO LIST'!$G$1,MATCH(Table4[[#This Row],[localisation]]& \" \" &Table4[[#This Row],[constat/projet/entretien]],'TODO LIST'!G:G,0)-1,-2,,),\"\")","v":0},"HEURE / Ensemble du domaine / étang et abords de rivière","projet de nouveau barrage pour avoir à nouveau un étang",null,"",null,null,null,null,null,null,null,null,null,null,null,null,null,null,null,null,null,null,null,null,null,null,null,null,null,null,null,null,null,null,null,null,null,null,null,null,null,null,null,null,null,null,null,null,null,null,null,null,null,null,null,null,null,null,null,null,null,null,null,null,null,null,null,null,null,null,null,null,null,null,null,null,null,null,null,null,null,null,null,null,null,null,null,null,null,null,null,null,null,null,null,null,null,null,"x"]
[{"$f":"IFERROR(OFFSET('TODO LIST'!$G$1,MATCH(Table4[[#This Row],[localisation]]& \" \" &Table4[[#This Row],[constat/projet/entretien]],'TODO LIST'!G:G,0)-1,-2,,),\"\")","v":0},"HEURE / Ensemble du domaine / étang et abords de rivière","dégagement d'une Parcelle de bois en bord de rivière",null,"",null,null,null,null,null,null,null,null,null,null,null,null,null,null,null,null,null,null,null,null,null,null,null,null,null,null,null,null,null,null,null,null,null,null,null,null,null,null,null,null,null,null,null,null,null,null,null,null,null,null,null,null,null,null,null,null,null,null,null,null,null,null,null,null,null,null,null,null,null,null,null,null,null,null,null,null,null,null,null,null,null,null,null,null,null,null,null,null,null,null,null,null,null,null,"x"]
[{"$f":"IFERROR(OFFSET('TODO LIST'!$G$1,MATCH(Table4[[#This Row],[localisation]]& \" \" &Table4[[#This Row],[constat/projet/entretien]],'TODO LIST'!G:G,0)-1,-2,,),\"\")","v":0},"HEURE / Le Grand Chalet / murs extérieurs","rejointoyer et traiter les plaques sur les murs + remplacer mettre vis inoxydables",null,"",null,null,null,null,null,null,null,null,null,null,null,null,null,null,null,null,null,null,null,null,null,null,null,null,null,null,null,null,null,null,null,null,null,null,null,null,null,null,null,null,null,null,null,null,null,null,null,null,null,null,null,null,null,null,null,null,null,null,null,null,null,null,null,null,null,null,null,null,null,null,null,null,null,null,null,null,null,null,null,null,null,null,null,null,null,null,null,null,null,null,null,null,null,null,"x"]
[{"$f":"IFERROR(OFFSET('TODO LIST'!$G$1,MATCH(Table4[[#This Row],[localisation]]& \" \" &Table4[[#This Row],[constat/projet/entretien]],'TODO LIST'!G:G,0)-1,-2,,),\"\")","v":0},"HEURE / Le Grand Chalet / général","projet d'agrandissement",null,"",null,null,null,null,null,null,null,null,null,null,null,null,null,null,null,null,null,null,null,null,null,null,null,null,null,null,null,null,null,null,null,null,null,null,null,null,null,null,null,null,null,null,null,null,null,null,null,null,null,null,null,null,null,null,null,null,null,null,null,null,null,null,null,null,null,null,null,null,null,null,null,null,null,null,null,null,null,null,null,null,null,null,null,null,null,null,null,null,null,null,null,null,null,null,"x"]
[{"$f":"IFERROR(OFFSET('TODO LIST'!$G$1,MATCH(Table4[[#This Row],[localisation]]& \" \" &Table4[[#This Row],[constat/projet/entretien]],'TODO LIST'!G:G,0)-1,-2,,),\"\")","v":0},"PDH 38 / Premier / appartement (pièce de vie)","APPART : quel avenir ? Vente ? Location ? Auberge de jeunesse ?",null,"",null,null,null,null,null,null,null,null,null,null,null,null,null,null,null,null,null,null,null,null,null,null,null,null,null,null,null,null,null,null,null,null,null,null,null,null,null,null,null,null,null,null,null,null,null,null,null,null,null,null,null,null,null,null,null,null,null,null,null,null,null,null,null,null,null,null,null,null,null,null,null,null,null,null,null,null,null,null,null,null,null,null,null,null,null,null,null,null,null,null,null,null,null,null,"x"]
[{"$f":"IFERROR(OFFSET('TODO LIST'!$G$1,MATCH(Table4[[#This Row],[localisation]]& \" \" &Table4[[#This Row],[constat/projet/entretien]],'TODO LIST'!G:G,0)-1,-2,,),\"\")","v":"gil"},"HEURE / Ensemble du domaine / relation aux autorités publiques","dossier bourgmestre",null,"",null,null,null,null,null,null,null,null,null,null,null,null,null,null,null,null,null,null,null,null,null,null,null,null,null,null,null,null,null,null,null,null,null,null,null,null,null,null,null,null,null,null,null,null,null,null,null,null,null,null,null,null,null,null,null,null,null,null,null,null,null,null,null,null,null,null,null,null,null,null,null,null,null,null,null,null,null,null,null,null,null,null,null,null,null,null,null,null,null,null,null,null,null,null,"x"]
[{"$f":"IFERROR(OFFSET('TODO LIST'!$G$1,MATCH(Table4[[#This Row],[localisation]]& \" \" &Table4[[#This Row],[constat/projet/entretien]],'TODO LIST'!G:G,0)-1,-2,,),\"\")","v":"greg"},"ITTRE / Ensemble du domaine / chemins","eaux dévalent le chemin et entrent dans les bâtiments",null,"",null,null,null,null,null,null,null,null,null,null,null,null,null,null,null,null,null,null,null,null,null,null,null,null,null,null,null,null,null,null,null,null,null,null,null,null,null,null,null,null,null,null,null,null,null,null,null,null,null,null,null,null,null,null,null,null,null,null,null,null,null,null,null,null,null,null,null,null,null,null,null,null,null,null,null,null,null,null,null,null,null,null,null,null,null,null,null,null,null,null,null,null,null,null,"x"]
[{"$f":"IFERROR(OFFSET('TODO LIST'!$G$1,MATCH(Table4[[#This Row],[localisation]]& \" \" &Table4[[#This Row],[constat/projet/entretien]],'TODO LIST'!G:G,0)-1,-2,,),\"\")","v":"greg"},"PDH 38 / caves / archives","ARCHIVES : créer un tableau de tri",null,"",null,null,null,null,null,null,null,null,null,null,null,null,null,null,null,null,null,null,null,null,null,null,null,null,null,null,null,null,null,null,null,null,null,null,null,null,null,null,null,null,null,null,null,null,null,null,null,null,null,null,null,null,null,null,null,null,null,null,null,null,null,null,null,null,null,null,null,null,null,null,null,null,null,null,null,null,null,null,null,null,null,null,null,null,null,null,null,null,null,null,null,null,null,null,"x"]
[{"$f":"IFERROR(OFFSET('TODO LIST'!$G$1,MATCH(Table4[[#This Row],[localisation]]& \" \" &Table4[[#This Row],[constat/projet/entretien]],'TODO LIST'!G:G,0)-1,-2,,),\"\")","v":"greg"},"PDH 38 / caves / archives","ARCHIVES : trier et classer",null,"",null,null,null,null,null,null,null,null,null,null,null,null,null,null,null,null,null,null,null,null,null,null,null,null,null,null,null,null,null,null,null,null,null,null,null,null,null,null,null,null,null,null,null,null,null,null,null,null,null,null,null,null,null,null,null,null,null,null,null,null,null,null,null,null,null,null,null,null,null,null,null,null,null,null,null,null,null,null,null,null,null,null,null,null,null,null,null,null,null,null,null,null,null,null,"x"]
[{"$f":"IFERROR(OFFSET('TODO LIST'!$G$1,MATCH(Table4[[#This Row],[localisation]]& \" \" &Table4[[#This Row],[constat/projet/entretien]],'TODO LIST'!G:G,0)-1,-2,,),\"\")","v":"greg"},"PDH 38 / caves / archives","ARCHIVES : trouver un repreneur ?",null,"",null,null,null,null,null,null,null,null,null,null,null,null,null,null,null,null,null,null,null,null,null,null,null,null,null,null,null,null,null,null,null,null,null,null,null,null,null,null,null,null,null,null,null,null,null,null,null,null,null,null,null,null,null,null,null,null,null,null,null,null,null,null,null,null,null,null,null,null,null,null,null,null,null,null,null,null,null,null,null,null,null,null,null,null,null,null,null,null,null,null,null,null,null,null,"x"]
[{"$f":"IFERROR(OFFSET('TODO LIST'!$G$1,MATCH(Table4[[#This Row],[localisation]]& \" \" &Table4[[#This Row],[constat/projet/entretien]],'TODO LIST'!G:G,0)-1,-2,,),\"\")","v":"greg"},"CDS / Ensemble du domaine / relation aux autorités publiques","COUVIN : gérer les dossiers à remettre à la commune",null,"2016-05-31",null,null,null,null,null,null,null,null,null,null,null,null,null,null,null,null,null,null,null,null,null,null,null,null,null,null,null,null,null,null,null,null,null,null,null,null,null,null,null,null,null,null,null,null,null,null,null,null,null,null,null,null,null,null,null,null,null,null,null,null,null,null,null,null,null,null,null,null,null,null,null,null,null,null,null,null,null,null,null,null,null,null,null,null,null,null,null,null,null,null,null,null,null,null,"x"]
[{"$f":"IFERROR(OFFSET('TODO LIST'!$G$1,MATCH(Table4[[#This Row],[localisation]]& \" \" &Table4[[#This Row],[constat/projet/entretien]],'TODO LIST'!G:G,0)-1,-2,,),\"\")","v":"greg"},"PDH 39 / premier / autre","OXFAM : obtenir les armoires et chaises manquantes",null,"",null,null,null,null,null,null,null,null,null,null,null,null,null,null,null,null,null,null,null,null,null,null,null,null,null,null,null,null,null,null,null,null,null,null,null,null,null,null,null,null,null,null,null,null,null,null,null,null,null,null,null,null,null,null,null,null,null,null,null,null,null,null,null,null,null,null,null,null,null,null,null,null,null,null,null,null,null,null,null,null,null,null,null,null,null,null,null,null,null,null,null,null,null,null,"x"]
[{"$f":"IFERROR(OFFSET('TODO LIST'!$G$1,MATCH(Table4[[#This Row],[localisation]]& \" \" &Table4[[#This Row],[constat/projet/entretien]],'TODO LIST'!G:G,0)-1,-2,,),\"\")","v":"greg"},"PDH 39 / premier / autre","OXFAM : faire enlever le mobilier en trop",null,"",null,null,null,null,null,null,null,null,null,null,null,null,null,null,null,null,null,null,null,null,null,null,null,null,null,null,null,null,null,null,null,null,null,null,null,null,null,null,null,null,null,null,null,null,null,null,null,null,null,null,null,null,null,null,null,null,null,null,null,null,null,null,null,null,null,null,null,null,null,null,null,null,null,null,null,null,null,null,null,null,null,null,null,null,null,null,null,null,null,null,null,null,null,null,"x"]
[{"$f":"IFERROR(OFFSET('TODO LIST'!$G$1,MATCH(Table4[[#This Row],[localisation]]& \" \" &Table4[[#This Row],[constat/projet/entretien]],'TODO LIST'!G:G,0)-1,-2,,),\"\")","v":"greg"},"HEURE / Ensemble du domaine / autre","évacuer la citerne à gaz du mini-chalet","appeler antargaz","2016-04-30",null,null,null,null,null,null,null,null,null,null,null,null,null,null,null,null,null,null,null,null,null,null,null,null,null,null,null,null,null,null,null,null,null,null,null,null,null,null,null,null,null,null,null,null,null,null,null,null,null,null,null,null,null,null,null,null,null,null,null,null,null,null,null,null,null,null,null,null,null,null,null,null,null,null,null,null,null,null,null,null,null,null,null,null,null,null,null,null,null,null,null,null,null,null,"x"]
[{"$f":"IFERROR(OFFSET('TODO LIST'!$G$1,MATCH(Table4[[#This Row],[localisation]]& \" \" &Table4[[#This Row],[constat/projet/entretien]],'TODO LIST'!G:G,0)-1,-2,,),\"\")","v":"milos"},"CDS / Intérieur / menuiserie","POMPIER : barre anti-panique",null,"",null,null,null,null,null,null,null,null,null,null,null,null,null,null,null,null,null,null,null,null,null,null,null,null,null,null,null,null,null,null,null,null,null,null,null,null,null,null,null,null,null,null,null,null,null,null,null,null,null,null,null,null,null,null,null,null,null,null,null,null,null,null,null,null,null,null,null,null,null,null,null,null,null,null,null,null,null,null,null,null,null,null,null,null,null,null,null,null,null,null,null,null,null,null,"x"]
[{"$f":"IFERROR(OFFSET('TODO LIST'!$G$1,MATCH(Table4[[#This Row],[localisation]]& \" \" &Table4[[#This Row],[constat/projet/entretien]],'TODO LIST'!G:G,0)-1,-2,,),\"\")","v":"milos"},"ITTRE / Intérieur / cuisine","POMPIER : placer une hotte",null,"",null,null,null,null,null,null,null,null,null,null,null,null,null,null,null,null,null,null,null,null,null,null,null,null,null,null,null,null,null,null,null,null,null,null,null,null,null,null,null,null,null,null,null,null,null,null,null,null,null,null,null,null,null,null,null,null,null,null,null,null,null,null,null,null,null,null,null,null,null,null,null,null,null,null,null,null,null,null,null,null,null,null,null,null,null,null,null,null,null,null,null,null,null,null,"x"]
[{"$f":"IFERROR(OFFSET('TODO LIST'!$G$1,MATCH(Table4[[#This Row],[localisation]]& \" \" &Table4[[#This Row],[constat/projet/entretien]],'TODO LIST'!G:G,0)-1,-2,,),\"\")","v":0},"ITTRE / Extérieur / prairie","tondre ITTRE",null,"2016-06-01",null,null,null,null,null,null,null,null,null,null,null,null,null,null,null,null,null,null,null,null,null,null,null,null,null,null,null,null,null,null,null,null,null,null,null,null,null,null,null,null,null,null,null,null,null,null,null,null,null,null,null,null,null,null,null,null,null,null,null,null,null,null,null,null,null,null,null,null,null,null,null,null,null,null,null,null,null,null,null,null,null,null,null,null,null,null,null,null,null,null,null,null,null,null,"x"]
[{"$f":"IFERROR(OFFSET('TODO LIST'!$G$1,MATCH(Table4[[#This Row],[localisation]]& \" \" &Table4[[#This Row],[constat/projet/entretien]],'TODO LIST'!G:G,0)-1,-2,,),\"\")","v":"roro"},"PDH 39 / rez / Magascout","créer un plancher pour ratraper la pente du bureau de Fred",null,"",null,null,null,null,null,null,null,null,null,null,null,null,null,null,null,null,null,null,null,null,null,null,null,null,null,null,null,null,null,null,null,null,null,null,null,null,null,null,null,null,null,null,null,null,null,null,null,null,null,null,null,null,null,null,null,null,null,null,null,null,null,null,null,null,null,null,null,null,null,null,null,null,null,null,null,null,null,null,null,null,null,null,null,null,null,null,null,null,null,null,null,null,null,null,"x"]
[{"$f":"IFERROR(OFFSET('TODO LIST'!$G$1,MATCH(Table4[[#This Row],[localisation]]& \" \" &Table4[[#This Row],[constat/projet/entretien]],'TODO LIST'!G:G,0)-1,-2,,),\"\")","v":"greg"},"CDS / Ensemble du domaine / travail administratif","VENTE 1: annoncer la vente aux potentiels repreneurs",null,"",null,null,null,null,null,null,null,null,null,null,null,null,null,null,null,null,null,null,null,null,null,null,null,null,null,null,null,null,null,null,null,null,null,null,null,null,null,null,null,null,null,null,null,null,null,null,null,null,null,null,null,null,null,null,null,null,null,null,null,null,null,null,null,null,null,null,null,null,null,null,null,null,null,null,null,null,null,null,null,null,null,null,null,null,null,null,null,null,null,null,null,null,null,null,"x"]
[{"$f":"IFERROR(OFFSET('TODO LIST'!$G$1,MATCH(Table4[[#This Row],[localisation]]& \" \" &Table4[[#This Row],[constat/projet/entretien]],'TODO LIST'!G:G,0)-1,-2,,),\"\")","v":"greg"},"CDS / Ensemble du domaine / travail administratif","VENTE 1: créer annonce",null,"",null,null,null,null,null,null,null,null,null,null,null,null,null,null,null,null,null,null,null,null,null,null,null,null,null,null,null,null,null,null,null,null,null,null,null,null,null,null,null,null,null,null,null,null,null,null,null,null,null,null,null,null,null,null,null,null,null,null,null,null,null,null,null,null,null,null,null,null,null,null,null,null,null,null,null,null,null,null,null,null,null,null,null,null,null,null,null,null,null,null,null,null,null,null,"x"]
[{"$f":"IFERROR(OFFSET('TODO LIST'!$G$1,MATCH(Table4[[#This Row],[localisation]]& \" \" &Table4[[#This Row],[constat/projet/entretien]],'TODO LIST'!G:G,0)-1,-2,,),\"\")","v":"greg"},"CDS / Ensemble du domaine / travail administratif","VENTE 2: annonce immoweb",null,"",null,null,null,null,null,null,null,null,null,null,null,null,null,null,null,null,null,null,null,null,null,null,null,null,null,null,null,null,null,null,null,null,null,null,null,null,null,null,null,null,null,null,null,null,null,null,null,null,null,null,null,null,null,null,null,null,null,null,null,null,null,null,null,null,null,null,null,null,null,null,null,null,null,null,null,null,null,null,null,null,null,null,null,null,null,null,null,null,null,null,null,null,null,null,"x"]
[{"$f":"IFERROR(OFFSET('TODO LIST'!$G$1,MATCH(Table4[[#This Row],[localisation]]& \" \" &Table4[[#This Row],[constat/projet/entretien]],'TODO LIST'!G:G,0)-1,-2,,),\"\")","v":"greg"},"CDS / Ensemble du domaine / travail administratif","VENTE 2: faire des photos",null,"",null,null,null,null,null,null,null,null,null,null,null,null,null,null,null,null,null,null,null,null,null,null,null,null,null,null,null,null,null,null,null,null,null,null,null,null,null,null,null,null,null,null,null,null,null,null,null,null,null,null,null,null,null,null,null,null,null,null,null,null,null,null,null,null,null,null,null,null,null,null,null,null,null,null,null,null,null,null,null,null,null,null,null,null,null,null,null,null,null,null,null,null,null,null,"x"]
[{"$f":"IFERROR(OFFSET('TODO LIST'!$G$1,MATCH(Table4[[#This Row],[localisation]]& \" \" &Table4[[#This Row],[constat/projet/entretien]],'TODO LIST'!G:G,0)-1,-2,,),\"\")","v":""},"CDS / Ensemble du domaine / travail administratif","VENTE 3: prévenir notaire lorsqu'un repreneur est trouvé",null,"",null,null,null,null,null,null,null,null,null,null,null,null,null,null,null,null,null,null,null,null,null,null,null,null,null,null,null,null,null,null,null,null,null,null,null,null,null,null,null,null,null,null,null,null,null,null,null,null,null,null,null,null,null,null,null,null,null,null,null,null,null,null,null,null,null,null,null,null,null,null,null,null,null,null,null,null,null,null,null,null,null,null,null,null,null,null,null,null,null,null,null,null,null,null,"x"]

{"sheet":"Param Constats","index":3,"n_rows":22,"n_cols":34,"rows_kept":22,"cut":false,"hidden":false,"merged":[]}
["Domaine",null,"HEURE","ITTRE","CDS","PDH 38","PDH 39",null,null,"HEURE Ensemble du domaine","HEURE Le Grand Chalet","HEURE La Carlingue","HEURE Bureaux","HEURE Terrains","HEURE ancien bloc sanitaire","ITTRE Ensemble du domaine","ITTRE Intérieur","ITTRE Extérieur","CDS Ensemble du domaine","CDS Intérieur","CDS Extérieur","PDH 38 Tout le bâtiment","PDH 38 caves","PDH 38 Rez","PDH 38 Premier","PDH 38 deuxième","PDH 38 troisième","PDH 39 Tout le bâtiment","PDH 39 caves","PDH 39 garages","PDH 39 rez","PDH 39 premier","PDH 39 deuxième","PDH 39 troisième"]
["HEURE",null,"Ensemble du domaine","Ensemble du domaine","Ensemble du domaine","Tout le bâtiment","Tout le bâtiment",null,null,"travail administratif","général","général","général","général","général","travail administratif","général","général","travail administratif","général","abords extérieurs du bâtiment","travail administratif","chaudière et chauffage","menuiserie","menuiserie","menuiserie","menuiserie","travail administratif","chaudière et chauffage","garage SGP","menuiserie","menuiserie","menuiserie","menuiserie"]
["ITTRE",null,"Le Grand Chalet","Intérieur","Intérieur","caves","caves",null,null,"relation aux autorités publiques","abords extérieurs","abords extérieurs","abords extérieurs","Paturins","abords extérieurs","relation aux autorités publiques","isolation","abords des bâtiments","relation aux autorités publiques","isolation","terrasse arrière","relation aux autorités publiques","archives","plomberie et évacuation des eaux","plomberie et évacuation des eaux","plomberie et évacuation des eaux","plomberie et évacuation des eaux","relation aux autorités publiques","salles de rangement","garage CEMEA","plomberie et évacuation des eaux","plomberie et évacuation des eaux","plomberie et évacuation des eaux","plomberie et évacuation des eaux"]
["CDS",null,"La Carlingue","Extérieur","Extérieur","Rez","garages",null,null,"chemins","terrasse","murs extérieurs","toiture","Epicéas","murs","chemins","menuiserie","murs extérieurs","chemins","menuiserie","murs extérieurs","projets","autre","électricité","électricité","électricité","électricité","projets","atelier","sanitaire","électricité","électricité","électricité","électricité"]
["PDH 38",null,"Bureaux",null,null,"Premier","rez",null,null,"parkings","murs extérieurs","toiture","isolation","Wood-Badge","toiture","parkings","électricité","toiture","parkings","électricité","toiture","toiture",null,"pièce à rue","bureau AISG","appartement SGP (cuisine)","projet","toiture","autre","autre","Magascout","bureau SF","grande salle de réunion","bureaux CEMEA"]
["PDH 39",null,"Terrains",null,null,"deuxième","premier",null,null,"bois","toiture","isolation","murs extérieurs","Bouleaux","dalle de béton","autre","chaudière et chauffage","prairie","autre","chaudière et chauffage","bois","murs extérieurs",null,"sanitaires","appartement (cuisine)","appartement SGP (pièce de vie)","autre","murs extérieurs",null,null,"atelier du magascout","bureau CF et graphiste","petite salle de réunion","archives CEMEA"]
[null,null,"ancien bloc sanitaire",null,null,"troisième","deuxième",null,null,"étang et abords de rivière","isolation","menuiserie","menuiserie","Daguet","projet",null,"plomberie et évacuation des eaux","citerne à gaz",null,"plomberie et évacuation des eaux","prairie","isolation",null,"pièce derrière les sanitaires","appartement (pièce de vie)","appartement SGP (dortoirs)",null,"isolation",null,null,"matériel de bureau","bureau Rédac","salle SGAB","autre"]
[null,null,null,null,null,null,"troisième",null,null,"toilettes sèches","menuiserie","électricité","électricité","Chênes","autre",null,"réfectoire","feux de camp",null,"pièce d'accueil","BBQ","cage d'escalier",null,"pièce communiquant à la cuisine SGP","appartement (chambre)","appartement SGP (salle de bains)",null,"cour",null,null,"autre","bureau SUCR et GRH","réfectoire et pièce de jeux des CEMEA"]
[null,null,null,null,null,null,null,null,null,"autre","électricité","citerne à gaz","sas d'entrée","autre",null,null,"cuisine","évacuation des eaux de pluie",null,"lavoir","citerne à gaz","autre",null,"autre","appartement (salle de Bains)","matériel et literie",null,"cage d'escalier",null,null,null,"bureau RH, compta et affi","autre"]
[null,null,null,null,null,null,null,null,null,null,"citerne à gaz","chaudière et chauffage","bureau",null,null,null,"dortoirs","autre",null,"grande salle","sanitaires extérieurs",null,null,null,"autre","autre",null,"autre",null,null,null,"salle papier"]
[null,null,null,null,null,null,null,null,null,null,"chaudière et chauffage","plomberie et évacuation des eaux","matériel de bureau",null,null,null,"sanitaires",null,null,"réfectoire","autre",null,null,null,null,null,null,null,null,null,null,"salle biblio-costumothèque"]
[null,null,null,null,null,null,null,null,null,null,"plomberie et évacuation des eaux","réfectoire","autre",null,null,null,"matériel et literie",null,null,"cuisine",null,null,null,null,null,null,null,null,null,null,null,"cuisine"]
[null,null,null,null,null,null,null,null,null,null,"réfectoire","cuisine",null,null,null,null,"autre",null,null,"réserve frigos",null,null,null,null,null,null,null,null,null,null,null,"matériel de bureau"]
[null,null,null,null,null,null,null,null,null,null,"cuisine","dortoirs",null,null,null,null,null,null,null,"petit dortoir du rez",null,null,null,null,null,null,null,null,null,null,null,"matériel de cuisine"]
[null,null,null,null,null,null,null,null,null,null,"dortoirs","sanitaires",null,null,null,null,null,null,null,"dortoirs du 1er",null,null,null,null,null,null,null,null,null,null,null,"sanitaires"]
[null,null,null,null,null,null,null,null,null,null,"sanitaires","matériel et literie",null,null,null,null,null,null,null,"salle papotte",null,null,null,null,null,null,null,null,null,null,null,"autre"]
[null,null,null,null,null,null,null,null,null,null,"salle du sous-sol","autre",null,null,null,null,null,null,null,"sanitaires"]
[null,null,null,null,null,null,null,null,null,null,"matériel et literie",null,null,null,null,null,null,null,null,"infirmerie"]
[null,null,null,null,null,null,null,null,null,null,"autre",null,null,null,null,null,null,null,null,"réserve matériel et clefs"]
[null,null,null,null,null,null,null,null,null,null,null,null,null,null,null,null,null,null,null,"grenier"]
[null,null,null,null,null,null,null,null,null,null,null,null,null,null,null,null,null,null,null,"matériel et literie"]
[null,null,null,null,null,null,null,null,null,null,null,null,null,null,null,null,null,null,null,"autre"]

{"sheet":"Concaténation","index":4,"n_rows":98,"n_cols":3,"rows_kept":98,"cut":false,"hidden":false,"merged":[]}
["Row Labels","Localisation","Constat/projet ou Entretien"]
[1,"HEURE / Ensemble du domaine / relation aux autorités publiques","dossier bourgmestre"]
[1,"HEURE / Ensemble du domaine / travail administratif","reprendre contract avec YannJacquet (photographe) pour réaliser des photos pro des domaines"]
[1,"HEURE / Ensemble du domaine / travail administratif","envoyer planning location à Milos"]
[1,"ITTRE / Ensemble du domaine / chemins","eaux dévalent le chemin et entrent dans les bâtiments"]
[1,"ITTRE / Intérieur / cuisine","POMPIER : placer une hotte"]
[1,"PDH 38 / caves / chaudière et chauffage","chaudière instable, s'éteint tout le temps"]
[1,"CDS / Ensemble du domaine / relation aux autorités publiques","COUVIN : gérer les dossiers à remettre à la commune"]
[1,"PDH 39 / Tout le bâtiment / travail administratif","vérifier conformité détecteurs incendie (déjà fait ?)"]
[1,"PDH 39 / Tout le bâtiment / travail administratif","vérifier si besoin catering siège"]
[1,"PDH 39 / caves / chaudière et chauffage","chaudière embouée"]
[1,"PDH 39 / premier / autre","OXFAM : obtenir les armoires et chaises manquantes"]
[1,"PDH 39 / premier / autre","OXFAM : faire enlever le mobilier en trop"]
[1,"PDH 39 / premier / cuisine","améliorer les conditions d'utilisation de la cuisine + commu"]
[1,"CDS / Ensemble du domaine / travail administratif","VENTE 1: annoncer la vente aux potentiels repreneurs"]
[1,"CDS / Ensemble du domaine / travail administratif","VENTE 1: créer annonce"]
[1,"CDS / Ensemble du domaine / travail administratif","envoyer planning location à Guy"]
[1,"CDS / Intérieur / menuiserie","POMPIER : barre anti-panique"]
[1,"HEURE / Ensemble du domaine / autre","évacuer la citerne à gaz du mini-chalet"]
[1,"HEURE / Ensemble du domaine / autre","CONGRES : répartition des tâches et identification des besoins"]
[1,"ITTRE / Ensemble du domaine / travail administratif","voir avec pierre pour des subsides infra"]
[1,"ITTRE / Ensemble du domaine / travail administratif","envoyer planning location à Martine"]
[2,"HEURE / Ensemble du domaine / travail administratif","trouver ferraileur pour évacuer le vieux congel"]
[2,"PDH 38 / caves / chaudière et chauffage","voir avec catherine pour faire le point de ce qui est payé/pas payé et fait/pas fait par AMBIANCE & CHALEUR"]
[2,"PDH 38 / caves / archives","ARCHIVES : créer un tableau de tri"]
[2,"PDH 38 / caves / archives","ARCHIVES : trier et classer"]
[2,"PDH 38 / caves / archives","ARCHIVES : trouver un repreneur ?"]
[2,"PDH 38 / Premier / appartement (pièce de vie)","APPART : quel avenir ? Vente ? Location ? Auberge de jeunesse ?"]
[2,"PDH 38 / Premier / appartement (pièce de vie)","se renseigner si les normes de sécurités sont respectées"]
[2,"PDH 38 / deuxième / appartement SGP (salle de bains)","refaire ou changer le bac de douche"]
[2,"PDH 39 / Tout le bâtiment / travail administratif","projet auberge de jeunesse ?"]
[2,"PDH 39 / rez / Magascout","créer un plancher pour ratraper la pente du bureau de Fred"]
[2,"PDH 39 / garages / garage SGP","remonter le frigo dans l'appart du 1er"]
[2,"PDH 39 / premier / cuisine","repeindre et rafraichir + nouveau frigo"]
[2,"PDH 39 / premier / bureau RH, compta et affi","repeindre"]
[2,"CDS / Ensemble du domaine / travail administratif","VENTE 2: annonce immoweb"]
[2,"CDS / Ensemble du domaine / travail administratif","VENTE 2: faire des photos"]
[2,"HEURE / La Carlingue / général","faire une nouvelle affiche infirmerie"]
[2,"HEURE / Le Grand Chalet / toiture","infiltrations côté parking"]
[2,"HEURE / Le Grand Chalet / salle du sous-sol","humidité dans le mur sous la rampe d'accès à la terrasse"]
[2,"HEURE / Ensemble du domaine / toilettes sèches","projet toilettes sèches : quelle gestion ?"]
[2,"HEURE / Ensemble du domaine / toilettes sèches","se renseigner sur les normes nbre de toilette par campeur"]
[2,"HEURE / Le Grand Chalet / chaudière et chauffage","infiltrations, local à mazout se remplit d'eau"]
[2,"HEURE / Le Grand Chalet / sanitaires","faire un coffrage au-dessus de l'éternite (WC)"]
[2,"HEURE / Le Grand Chalet / menuiserie","réparer les oscillobattants des portes fenetres en bas"]
[2,"HEURE / Le Grand Chalet / cuisine","hotte : placer un multiprise et isoler le trou de la hotte"]
[2,"HEURE / Terrains / général","suivi du dossier abattage et plantation avec Yves Lambrecht"]
[2,"HEURE / Terrains / Daguet","lancer la location"]
[2,"HEURE / ancien bloc sanitaire / projet","définir sa nouvelle affectation : nouveau bloc sanitaire \"léger\", kot à outils, etc ?"]
[2,"HEURE / La Carlingue / abords extérieurs","terrassement et remblayage du parking"]
[2,"HEURE / La Carlingue / abords extérieurs","faire un chemin praticable (ou terrasse) vers le bureau et toilettes"]
[2,"HEURE / Ensemble du domaine / étang et abords de rivière","projet de nouveau barrage pour avoir à nouveau un étang"]
[2,"HEURE / Ensemble du domaine / étang et abords de rivière","dégagement d'une Parcelle de bois en bord de rivière"]
[2,"PDH 38 / Rez / autre","mettre à louer les pièces du rez comme bureaux"]
[3,"ITTRE / Extérieur / abords des bâtiments","barrière en mauvais état, à refaire"]
[3,"ITTRE / Extérieur / prairie","tondre ITTRE"]
[3,"ITTRE / Intérieur / réfectoire","idée de faire un étage pour gagner en place"]
[3,"ITTRE / Intérieur / sanitaires","besoin de désamianter ?"]
[3,"ITTRE / Intérieur / sanitaires","retaper les douches et wc"]
[3,"PDH 38 / caves / chaudière et chauffage","entretien bisannuel de la chaudière"]
[3,"PDH 38 / Rez / pièce à rue","changer les chassis"]
[3,"PDH 38 / Premier / menuiserie","APPART : changer les chassis"]
[3,"PDH 38 / Premier / autre","APPART : traiter les sols"]
[3,"PDH 38 / Premier / appartement (cuisine)","APPART : carreler la cuisine"]
[3,"PDH 38 / Premier / appartement (salle de Bains)","APPART : réaménager la sdb (nouv bain et lavabo, bac de douche, repeindre, etc.)"]
[3,"PDH 38 / deuxième / appartement SGP (salle de bains)","réparer le pommeau de la baignoire"]
[3,"PDH 38 / troisième / projet","PROJET 3e : isoler la toiture"]
[3,"PDH 38 / troisième / projet","PROJET 3e : refaire l'électricité"]
[3,"PDH 38 / troisième / projet","PROJET 3e : installer une cuisine"]
[3,"PDH 38 / troisième / projet","PROJET 3e : installer une salle de bain"]
[3,"PDH 39 / Tout le bâtiment / cour","cour défoncée"]
[3,"PDH 39 / rez / Magascout","projet de peindre une fresque sur la façade du Magascout"]
[3,"PDH 39 / garages / sanitaire","repeindre et rafraichir les WC"]
[3,"PDH 39 / caves / chaudière et chauffage","entretien bisannuel de la chaudière"]
[3,"PDH 39 / premier / bureau SF","insonoriser le bureau"]
[3,"PDH 39 / Tout le bâtiment / toiture","refaire le roafing du grand toit + celui de roro"]
[3,"PDH 39 / Tout le bâtiment / toiture","transformer le toit plat au-dessus de la cuisine en terrasse"]
[3,"PDH 39 / premier / sanitaires","rafraichir les WC"]
[3,"PDH 39 / premier / salle biblio-costumothèque","améliorer les espaces de rangement"]
[3,"CDS / Ensemble du domaine / travail administratif","VENTE 3: choisir et prévenir notaire lorsqu'un repreneur est trouvé"]
[3,"HEURE / Ensemble du domaine / bois","nouvelles plantations"]
[3,"HEURE / Le Grand Chalet / murs extérieurs","rejointoyer et traiter les plaques sur les murs + remplacer mettre vis inoxydables"]
[3,"HEURE / Le Grand Chalet / abords extérieurs","terrassement et remblayage du parking"]
[3,"HEURE / Le Grand Chalet / abords extérieurs","réparer le cabanon"]
[3,"HEURE / Le Grand Chalet / salle du sous-sol","isoler les buses de chauffage pour stopper la déperdition de chaleur"]
[3,"HEURE / Le Grand Chalet / général","placer des grilles devant les arrivées d'air chaud + nettoyer"]
[3,"HEURE / Le Grand Chalet / général","projet d'agrandissement"]
[3,"HEURE / Le Grand Chalet / sanitaires","SDD F : placer ventilation en interne (pas vers l'extérieur)"]
[3,"HEURE / Le Grand Chalet / sanitaires","SDD H : mettre des plintes"]
[3,"HEURE / Le Grand Chalet / sanitaires","carreler les murs des WC lorsque prob d'infiltration terrasse sera réglé"]
[3,"HEURE / Le Grand Chalet / sanitaires","poser des cadres devant les trous vitrés (WC)"]
[3,"HEURE / Le Grand Chalet / sanitaires","remettre de service le 4e wc"]
[3,"HEURE / Terrains / général","enlever les bornes d'arrivée électrique"]
[3,"HEURE / Terrains / Epicéas","planter une haie pour isoler et mettre à l'ombre le terrain"]
[3,"HEURE / Ensemble du domaine / autre","créer un nouvel affichage didactique pour les déchets"]
[3,"HEURE / La Carlingue / abords extérieurs","créer un cabanon pour les déchets PMC"]
[3,"HEURE / La Carlingue / réfectoire","ajouter un plan de travail"]
["(blank)","(blank)","(blank)"]